Workbook

Sheet INDEX M
A1: X:\ERATE\CKY\RATECASE\1994\SCHC\INDEX.WK1
A3: SCHEDULE M
A5: REVENUE SUMMARY FOR BASE PERIOD AND FORECASTED PERIOD
A7: COLUMBIA GAS OF KENTUCKY, INC.
A9: CASE NO. 2026-00099
A13: BASE PERIOD : | C13: FOR THE TWELVE MONTHS ENDED AUGUST 31, 2026
A15: FORECASTED PERIOD: | C15: FOR THE TWELVE MONTHS ENDED DECEMBER 31, 2027
A18: SCHEDULE | C18: DESCRIPTION
A21: M | C21: BASE AND FORECASTED PERIOD AT PRESENT RATES
A22: M-2.1 | C22: PRESENT AND PROPOSED REVENUE AT FORECASTED PERIOD
A23: M-2.2 | C23: BILLING ANALYSIS FOR THE FORECASTED PERIOD AT PRESENT RATES
A24: M-2.2B | C24: BILLING ANALYSIS FOR THE BASE PERIOD AT CURRENT RATES
A25: M-2.3 | C25: BILLING ANALYSIS FOR THE FORECASTED PERIOD AT PROPOSED RATES

Sheet Input
A1: Data entry areas are shown in the color blue. Calculations
A2: and text are shown in black. Instructions are highlighted in yellow.
A4: Columbia Gas of Kentucky, Inc.
A6: Case No. | B6: Case No. 2026-00099
A8: Witness: | B8: Witness: J. C. Wozniak
A9: Rate Design Witness:
A10: Expected Gas Cost Firm Commodity Rate: | C10: 6.9857 | D10: 1EGC tab line 24
A11: Gas Cost Adjustment Rate: | C11: =SUM(C12:C13) -> 6.7705
A12: Gas Cost Adjustment Firm Commodity Rate: | C12: =3.1699-0.0154 -> 3.1545 | D12: Commodity less uncollectible (detailed tariff tab)
A13: Gas Cost Adjustment Firm Demand Rate: | C13: 3.616 | D13: demand (detailed tariff)
A14: Gas Cost Adjustment Date: | C14: March 2, 2026
K15: SMRP portion | L15: SMRP portion
A16: Input area: | K16: rolling into | L16: included in
C17: Current Rates | K17: base rates | L17: SMRP Rider | R17: Proposed Rates
A18: Rate Code | B18: Rate Schedule Name | C18: First Block | D18: Second Block | E18: Third Block | F18: Fourth Block | G18: Fifth Block | H18: Cust Chg. | K18: SMRP (2023-2024) | L18: SMRP (2025-) | M18: EECP 01/30/26 | N18: EAP 7/01/20 | O18: R&D 03/2/26 | P18: Uncoll 3/2/26 | R18: First Block | S18: Second Block | T18: Third Block | U18: Fourth Block | V18: Fifth Block | W18: Cust Chg. | Z18: SMRP (2023-2024) | AA18: SMRP (2025-) | AB18: EECP | AC18: EAP | AD18: R&D | AE18: Uncoll
A19: GSR | B19: General Service - Residential | C19: 6.0958 | H19: 21.25 | K19: 0.56 | L19: 0.8874 | M19: =0.21-0.14 -> 0.07 | N19: 0.3 | O19: 0.0125 | P19: 0.0154 | R19: 6.9432 | W19: 32 | Y19: 0 | Z19: 0 | AA19: =L19 -> 0.8874 | AB19: =M19 -> 0.07 | AC19: =N19 -> 0.3 | AD19: =O19 -> 0.0125 | AE19: 0.0165
A20: G1C | B20: LG&E Commercial | C20: 3.8963 | H20: 86.14 | R20: =C20 -> 3.8963 | W20: =H20 -> 86.14
A21: G1R | B21: LG&E Residential | C21: 5.3838 | H21: 23.42 | R21: 5.3838 | W21: 23.42
A22: IN3 | B22: Inland Gas General Service - Residential | C22: 0.4 | H22: 0 | O22: =$O$19 -> 0.0125 | R22: 0.4 | W22: 0 | AD22: =O22 -> 0.0125
A23: IN3 | B23: Inland Gas General Service - Commercial | C23: 0.4 | H23: 0 | O23: =$O$19 -> 0.0125 | R23: 0.4 | W23: 0 | AD23: =O23 -> 0.0125
A24: IN4 | B24: Inland Gas General Service - Residential | C24: 0 | H24: 0 | O24: 0.0125 | R24: 0 | W24: 0 | AD24: =O24 -> 0.0125
A25: IN5 | B25: Inland Gas General Service - Residential | C25: 0.6 | H25: 0 | O25: 0.0125 | R25: 0.6 | W25: 0 | AD25: =O25 -> 0.0125
A26: LG2 | B26: LG&E Residential | C26: 0.35 | H26: 0 | R26: 0.35 | W26: 0
A27: LG2 | B27: LG&E Commercial | C27: 0.35 | H27: 0 | R27: 0.35 | W27: 0
A28: LG3 | B28: LG&E Residential | C28: 0 | D28: 0.35 | H28: 1.2 | R28: 0 | S28: =D28 -> 0.35 | W28: 1.2
A29: LG4 | B29: LG&E Residential | C29: 0.4 | H29: 0 | R29: 0.4 | W29: 0
A30: GSO | B30: General Service - Commercial | C30: 3.1581 | D30: 2.4376 | E30: 2.3171 | F30: 2.1078 | H30: 110 | K30: 0.3375 | L30: 0.4483 | O30: =$O$19 -> 0.0125 | P30: =$P$19 -> 0.0154 | R30: 3.9313 | S30: 3.0344 | T30: 2.8844 | U30: 2.6238 | W30: 145 | Y30: 0 | Z30: 0 | AA30: =L30 -> 0.4483 | AD30: =O30 -> 0.0125 | AE30: =AE19 -> 0.0165
A31: GSO | B31: General Service - Industrial | C31: =C30 -> 3.1581 | D31: =D30 -> 2.4376 | E31: =E30 -> 2.3171 | F31: =F30 -> 2.1078 | H31: =H30 -> 110 | K31: =K30 -> 0.3375 | L31: =L30 -> 0.4483 | O31: 0.0125 | P31: =$P$19 -> 0.0154 | R31: =R30 -> 3.9313 | S31: =S30 -> 3.0344 | T31: 2.8844 | U31: 2.6238 | W31: =W30 -> 145 | Y31: 0 | Z31: 0 | AA31: 0.4483 | AD31: =O31 -> 0.0125 | AE31: =AE19 -> 0.0165
A32: GST | B32: General Service - Trans Fallback - Comm | C32: 0 | H32: 0 | R32: 0 | W32: 0
A33: GST | B33: General Service - Trans Fallback - Ind | C33: 0 | H33: 0 | R33: 0 | W33: 0
A34: IST | B34: Interruptible Service - Fallback - Commercial | C34: 0 | H34: 0 | R34: 0 | W34: 0
A35: IST | B35: Interruptible Service - Fallback - Industrial | C35: 0 | H35: 0 | R35: 0 | W35: 0
A36: IS | B36: Interruptible Service - Industrial | C36: 0.7509 | D36: 0.4635 | E36: 0.2423 | H36: 5000 | K36: 0.062 | L36: 0.0972 | O36: =$O$19 -> 0.0125 | P36: =$P$19 -> 0.0154 | R36: 0.8069 | S36: 0.4981 | T36: 0.2604 | W36: 8000 | Y36: 0 | Z36: 0 | AA36: 0.0972 | AD36: =O36 -> 0.0125 | AE36: =AE19 -> 0.0165
A37: IUS | B37: Intrastate Utility Service - Wholesale | C37: 0.9198 | H37: 1135 | K37: 0.2122 | L37: 0.7069 | O37: 0.0125 | P37: 0.0154 | R37: 0.9244 | W37: 1570 | Y37: 0 | Z37: 0 | AA37: 0.7069 | AD37: =O37 -> 0.0125 | AE37: =AE19 -> 0.0165
B39: Transportation Service
A41: GTR | B41: GTS Choice - Residential | C41: =C19 -> 6.0958 | H41: =H19 -> 21.25 | K41: =K19 -> 0.56 | L41: =L19 -> 0.8874 | M41: =$M$19 -> 0.07 | N41: =$N$19 -> 0.3 | O41: =$O$19 -> 0.0125 | R41: =R19 -> 6.9432 | W41: =W19 -> 32 | Y41: 0 | Z41: 0 | AA41: 0.8874 | AB41: =M41 -> 0.07 | AC41: =N41 -> 0.3 | AD41: =O41 -> 0.0125
A42: GTO | B42: GTS Choice - Commercial | C42: =C30 -> 3.1581 | D42: =D30 -> 2.4376 | E42: 2.3171 | F42: 2.1078 | H42: =H30 -> 110 | K42: =K30 -> 0.3375 | L42: =L30 -> 0.4483 | O42: 0.0125 | R42: =R30 -> 3.9313 | S42: =S30 -> 3.0344 | T42: 2.8844 | U42: 2.6238 | W42: =W30 -> 145 | Y42: 0 | Z42: 0 | AA42: 0.4483 | AD42: =O42 -> 0.0125
A43: GTO | B43: GTS Choice - Industrial | C43: =C31 -> 3.1581 | D43: 2.4376 | E43: 2.3171 | F43: 2.1078 | H43: =H30 -> 110 | K43: =K31 -> 0.3375 | L43: =L31 -> 0.4483 | O43: 0.0125 | R43: =R31 -> 3.9313 | S43: =S31 -> 3.0344 | T43: 2.8844 | U43: 2.6238 | W43: =W31 -> 145 | Y43: 0 | Z43: 0 | AA43: 0.4483 | AD43: 0.0125
A44: DS | B44: GTS Delivery Service - Commercial | C44: 0.7509 | D44: 0.4635 | E44: 0.2423 | H44: 5000 | K44: =K36 -> 0.062 | L44: =L36 -> 0.0972 | O44: 0.0125 | R44: =R36 -> 0.8069 | S44: =S36 -> 0.4981 | T44: 0.2604 | W44: =W36 -> 8000 | Y44: 0 | Z44: 0 | AA44: 0.0972 | AD44: 0.0125
A45: DS | B45: GTS Delivery Service - Industrial | C45: =C44 -> 0.7509 | D45: =D44 -> 0.4635 | E45: =E44 -> 0.2423 | H45: =H44 -> 5000 | K45: =K36 -> 0.062 | L45: =L36 -> 0.0972 | O45: 0.0125 | R45: =R44 -> 0.8069 | S45: =S44 -> 0.4981 | T45: 0.2604 | W45: =W44 -> 8000 | Y45: 0 | Z45: 0 | AA45: 0.0972 | AD45: 0.0125
A46: GDS | B46: GTS Grandfathered Delivery Service - Commercial | C46: =C30 -> 3.1581 | D46: =D30 -> 2.4376 | E46: =E30 -> 2.3171 | F46: =F30 -> 2.1078 | H46: =H30 -> 110 | K46: =K30 -> 0.3375 | L46: =L30 -> 0.4483 | O46: 0.0125 | R46: =R30 -> 3.9313 | S46: =S30 -> 3.0344 | T46: 2.8844 | U46: 2.6238 | W46: =W30 -> 145 | Y46: 0 | Z46: 0 | AA46: 0.4483 | AD46: 0.0125
A47: GDS | B47: GTS Grandfathered Delivery Service - Industrial | C47: =C30 -> 3.1581 | D47: =D30 -> 2.4376 | E47: =E30 -> 2.3171 | F47: =F30 -> 2.1078 | H47: =H30 -> 110 | K47: =K31 -> 0.3375 | L47: =L31 -> 0.4483 | O47: 0.0125 | R47: =R46 -> 3.9313 | S47: =S46 -> 3.0344 | T47: =T46 -> 2.8844 | U47: =U46 -> 2.6238 | W47: =W46 -> 145 | Y47: 0 | Z47: 0 | AA47: 0.4483 | AD47: 0.0125
A48: DS3 | B48: GTS Main Line Service - Industrial (up to 400,000 Mcf) | C48: 0.0891 | H48: 300 | O48: 0.0125 | R48: 0.0897 | W48: 2800 | AD48: 0.0125
A49: ET4 | B49: GTS Main Line Service - Industrial (400,000 to 1,000,000 Mcf) | C49: =C48 -> 0.0891 | H49: 600 | O49: =O19 -> 0.0125 | R49: =R48 -> 0.0897 | W49: 4200 | AD49: 0.0125
A50: DS4 | B50: GTS Main Line Service - Industrial (over 1,000,000 Mcf) | C50: =C48 -> 0.0891 | H50: 600 | O50: 0.0125 | R50: =R48 -> 0.0897 | W50: 5600 | AD50: 0.0125
A51: FX5 | B51: GTS Flex Rate - Industrial | C51: =C48 -> 0.0891 | H51: =H50 -> 600 | R51: =R48 -> 0.0897 | W51: =W50 -> 5600
A52: SAS | B52: GTS Special Agency Service | C52: =C44 -> 0.7509 | D52: =D44 -> 0.4635 | E52: =E44 -> 0.2423 | H52: =H44 -> 5000 | K52: =K36 -> 0.062 | L52: =L36 -> 0.0972 | O52: =$O$19 -> 0.0125 | R52: =R36 -> 0.8069 | S52: =S36 -> 0.4981 | T52: 0.2604 | W52: =W36 -> 8000 | Y52: 0 | Z52: 0 | AA52: 0.0972 | AD52: =O52 -> 0.0125
AH84: =SUM(AH79:AH82) -> 0

Sheet A
A1: Columbia Gas of Kentucky, Inc.
A2: Determination of Test Year Gas Cost Revenue
A3: For the 12 Months Ended December 31, 2027
A5: Data: __ Base Period_X_Forecasted Period
A6: Type of Filing: X Original _ Update _ Revised
A7: Work Paper Reference No(s): | P7: Workpaper WPM-A.2
A8: 12 Months Forecasted | P8: Sheet 1 of 1
A9: Forecasted Period
A10: Line
A11: No. | B11: Description | D11: Jan-27 | E11: Feb-27 | F11: Mar-27 | G11: Apr-27 | H11: May-27 | I11: Jun-27 | J11: Jul-27 | K11: Aug-27 | L11: Sep-27 | M11: Oct-27 | N11: Nov-27 | O11: Dec-27 | P11: Total
B12: (A) | D12: (B) | E12: (C) | F12: (D) | G12: (E) | H12: (F) | I12: (G) | J12: (H) | K12: (I) | L12: (J) | M12: (K) | N12: (L) | O12: (M) | P12: (N)
A14: 1 | B14: Rate Schedule GSR - Residential
A16: =A14+1 -> 2 | B16: Gas Cost Rate [1] | C16: $/Mcf | D16: =EGC -> 6.7705 | E16: =$D$16 -> 6.7705 | F16: =$D$16 -> 6.7705 | G16: 6.7705 | H16: 6.7705 | I16: 6.7705 | J16: 6.7705 | K16: 6.7705 | L16: 6.7705 | M16: 6.7705 | N16: 6.7705 | O16: 6.7705
A17: =A16+1 -> 3 | B17: Volumes | C17: Mcf | D17: ='C'!D17 -> 1539508.5 | E17: ='C'!E17 -> 1504722.5 | F17: ='C'!F17 -> 1140517.2 | G17: ='C'!G17 -> 682423.5 | H17: ='C'!H17 -> 308086.1 | I17: ='C'!I17 -> 155975.3 | J17: ='C'!J17 -> 96742.5 | K17: ='C'!K17 -> 95698.7 | L17: ='C'!L17 -> 105791.5 | M17: ='C'!M17 -> 166763.7 | N17: ='C'!N17 -> 451434.4 | O17: ='C'!O17 -> 1124299.3 | P17: =SUM(D17:O17) -> 7371963.2
A18: =A17+1 -> 4 | B18: Total Gas Revenue | C18: $ | D18: =ROUND(D16*D17,2) -> 10423242.3 | E18: =ROUND(E16*E17,2) -> 10187723.69 | F18: 7721871.7 | G18: 4620348.31 | H18: 2085896.94 | I18: 1056030.77 | J18: 654995.1 | K18: 647928.05 | L18: 716261.35 | M18: 1129073.63 | N18: 3056436.61 | O18: 7612068.41 | P18: =SUM(D18:O18) -> 49911876.86
A20: =A18+1 -> 5 | B20: Rate Schedule GSO - Commercial
A22: =A20+1 -> 6 | B22: Gas Cost Rate [1] | C22: $/Mcf | D22: =D16 -> 6.7705 | E22: =E16 -> 6.7705 | F22: 6.7705 | G22: 6.7705 | H22: 6.7705 | I22: 6.7705 | J22: 6.7705 | K22: 6.7705 | L22: 6.7705 | M22: 6.7705 | N22: 6.7705 | O22: 6.7705
A23: =A22+1 -> 7 | B23: Volumes | C23: Mcf | D23: ='C'!D96 -> 809616.8 | E23: ='C'!E96 -> 800776.3 | F23: ='C'!F96 -> 594307.5 | G23: ='C'!G96 -> 383921.9 | H23: ='C'!H96 -> 216993.8 | I23: ='C'!I96 -> 152752 | J23: ='C'!J96 -> 123116.2 | K23: ='C'!K96 -> 130648.3 | L23: ='C'!L96 -> 128433.3 | M23: ='C'!M96 -> 168727.9 | N23: ='C'!N96 -> 300582.7 | O23: ='C'!O96 -> 609356.4 | P23: =SUM(D23:O23) -> 4419233.1
A24: =A23+1 -> 8 | B24: Total Gas Revenue | C24: $ | D24: =ROUND(D22*D23,2) -> 5481510.54 | E24: =ROUND(E22*E23,2) -> 5421655.94 | F24: 4023758.93 | G24: 2599343.22 | H24: 1469156.52 | I24: 1034207.42 | J24: 833558.23 | K24: 884554.32 | L24: 869557.66 | M24: 1142372.25 | N24: 2035095.17 | O24: 4125647.51 | P24: =SUM(D24:O24) -> 29920417.71
A26: =A24+1 -> 9 | B26: Rate Schedule GSO - Industrial
A28: =A26+1 -> 10 | B28: Gas Cost Rate [1] | C28: $/Mcf | D28: =D22 -> 6.7705 | E28: =E22 -> 6.7705 | F28: 6.7705 | G28: 6.7705 | H28: 6.7705 | I28: 6.7705 | J28: 6.7705 | K28: 6.7705 | L28: 6.7705 | M28: 6.7705 | N28: 6.7705 | O28: 6.7705
A29: =A28+1 -> 11 | B29: Volumes | C29: Mcf | D29: ='C'!D129 -> 32462.3 | E29: ='C'!E129 -> 31230 | F29: ='C'!F129 -> 27627 | G29: ='C'!G129 -> 25457.9 | H29: ='C'!H129 -> 20992 | I29: ='C'!I129 -> 18363.9 | J29: ='C'!J129 -> 12873 | K29: ='C'!K129 -> 14733.3 | L29: ='C'!L129 -> 13970.3 | M29: ='C'!M129 -> 15556.9 | N29: ='C'!N129 -> 23447.8 | O29: ='C'!O129 -> 31351.9 | P29: =SUM(D29:O29) -> 268066.3
A30: =A29+1 -> 12 | B30: Total Gas Revenue | C30: $ | D30: =ROUND(D28*D29,2) -> 219786 | E30: =ROUND(E28*E29,2) -> 211442.72 | F30: 187048.6 | G30: 172362.71 | H30: 142126.34 | I30: 124332.78 | J30: 87156.65 | K30: 99751.81 | L30: 94585.92 | M30: 105327.99 | N30: 158753.33 | O30: 212268.04 | P30: =SUM(D30:O30) -> 1814942.89
A32: =A30+1 -> 13 | B32: Rate Schedule IS - Industrial
A34: =A32+1 -> 14 | B34: Gas Cost Rate [1] | C34: $/Mcf | D34: =D28 -> 6.7705 | E34: =E28 -> 6.7705 | F34: 6.7705 | G34: 6.7705 | H34: 6.7705 | I34: 6.7705 | J34: 6.7705 | K34: 6.7705 | L34: 6.7705 | M34: 6.7705 | N34: 6.7705 | O34: 6.7705
A35: =A34+1 -> 15 | B35: Volumes | C35: Mcf | D35: ='C'!D136 -> 0 | E35: ='C'!E136 -> 0 | F35: ='C'!F136 -> 0 | G35: ='C'!G136 -> 0 | H35: ='C'!H136 -> 0 | I35: ='C'!I136 -> 0 | J35: ='C'!J136 -> 0 | K35: ='C'!K136 -> 0 | L35: ='C'!L136 -> 0 | M35: ='C'!M136 -> 0 | N35: ='C'!N136 -> 0 | O35: ='C'!O136 -> 0 | P35: =SUM(D35:O35) -> 0
A36: =A35+1 -> 16 | B36: Total Gas Revenue | C36: $ | D36: =ROUND(D34*D35,2) -> 0 | E36: =ROUND(E34*E35,2) -> 0 | F36: 0 | G36: 0 | H36: 0 | I36: 0 | J36: 0 | K36: 0 | L36: 0 | M36: 0 | N36: 0 | O36: 0 | P36: =SUM(D36:O36) -> 0
A38: =A36+1 -> 17 | B38: Rate Schedule IUS - Wholesale
A40: =A38+1 -> 18 | B40: Gas Cost Rate [1] | C40: $/Mcf | D40: =D34 -> 6.7705 | E40: =E34 -> 6.7705 | F40: 6.7705 | G40: 6.7705 | H40: 6.7705 | I40: 6.7705 | J40: 6.7705 | K40: 6.7705 | L40: 6.7705 | M40: 6.7705 | N40: 6.7705 | O40: 6.7705
A41: =A40+1 -> 19 | B41: Volumes | C41: Mcf | D41: ='C'!D141 -> 1737 | E41: ='C'!E141 -> 2033 | F41: ='C'!F141 -> 1295 | G41: ='C'!G141 -> 576 | H41: ='C'!H141 -> 412 | I41: ='C'!I141 -> 320 | J41: ='C'!J141 -> 248 | K41: ='C'!K141 -> 259 | L41: ='C'!L141 -> 310 | M41: ='C'!M141 -> 470 | N41: ='C'!N141 -> 950 | O41: ='C'!O141 -> 1991 | P41: =SUM(D41:O41) -> 10601
A42: =A41+1 -> 20 | B42: Total Gas Revenue | C42: $ | D42: =ROUND(D40*D41,2) -> 11760.36 | E42: =ROUND(E40*E41,2) -> 13764.43 | F42: 8767.8 | G42: 3899.81 | H42: 2789.45 | I42: 2166.56 | J42: 1679.08 | K42: 1753.56 | L42: 2098.86 | M42: 3182.14 | N42: 6431.98 | O42: 13480.07 | P42: =SUM(D42:O42) -> 71774.1
A44: =A42+1 -> 21 | B44: Rate Schedule G1R - Residential
A46: =A44+1 -> 22 | B46: Gas Cost Rate [1] | C46: $/Mcf | D46: =D40 -> 6.7705 | E46: =E40 -> 6.7705 | F46: 6.7705 | G46: 6.7705 | H46: 6.7705 | I46: 6.7705 | J46: 6.7705 | K46: 6.7705 | L46: 6.7705 | M46: 6.7705 | N46: 6.7705 | O46: 6.7705
A47: =A46+1 -> 23 | B47: Volumes | C47: Mcf | D47: ='C'!D27 -> 84.5 | E47: ='C'!E27 -> 89.9 | F47: ='C'!F27 -> 71.5 | G47: ='C'!G27 -> 47.8 | H47: ='C'!H27 -> 16.6 | I47: ='C'!I27 -> 8.9 | J47: ='C'!J27 -> 4.4 | K47: ='C'!K27 -> 4.7 | L47: ='C'!L27 -> 4.3 | M47: ='C'!M27 -> 7.2 | N47: ='C'!N27 -> 26.9 | O47: ='C'!O27 -> 58.8 | P47: =SUM(D47:O47) -> 425.5
A48: =A47+1 -> 24 | B48: Total Gas Revenue | C48: $ | D48: =ROUND(D46*D47,2) -> 572.11 | E48: =ROUND(E46*E47,2) -> 608.67 | F48: 484.09 | G48: 323.63 | H48: 112.39 | I48: 60.26 | J48: 29.79 | K48: 31.82 | L48: 29.11 | M48: 48.75 | N48: 182.13 | O48: 398.11 | P48: =SUM(D48:O48) -> 2880.86
A50: =A48+1 -> 25 | B50: Rate Schedule G1C - Commercial
A52: =A50+1 -> 26 | B52: Gas Cost Rate [1] | C52: $/Mcf | D52: =D46 -> 6.7705 | E52: =E46 -> 6.7705 | F52: 6.7705 | G52: 6.7705 | H52: 6.7705 | I52: 6.7705 | J52: 6.7705 | K52: 6.7705 | L52: 6.7705 | M52: 6.7705 | N52: 6.7705 | O52: 6.7705
A53: =A52+1 -> 27 | B53: Volumes | C53: Mcf | D53: ='C'!D22 -> 0 | E53: ='C'!E22 -> 0 | F53: ='C'!F22 -> 0 | G53: ='C'!G22 -> 0 | H53: ='C'!H22 -> 0 | I53: ='C'!I22 -> 0 | J53: ='C'!J22 -> 0 | K53: ='C'!K22 -> 0 | L53: ='C'!L22 -> 0 | M53: ='C'!M22 -> 0 | N53: ='C'!N22 -> 0 | O53: ='C'!O22 -> 0 | P53: =SUM(D53:O53) -> 0
A54: =A53+1 -> 28 | B54: Total Gas Revenue | C54: $ | D54: =ROUND(D52*D53,2) -> 0 | E54: =ROUND(E52*E53,2) -> 0 | F54: 0 | G54: 0 | H54: 0 | I54: 0 | J54: 0 | K54: 0 | L54: 0 | M54: 0 | N54: 0 | O54: 0 | P54: =SUM(D54:O54) -> 0
A56: =A54+1 -> 29 | D56: =D18+D24+D30+D36+D42+D48+D54 -> 16136871.31 | E56: 15835195.45 | F56: 11941931.12 | G56: 7396277.68 | H56: 3700081.64 | I56: 2216797.79 | J56: 1577418.85 | K56: 1634019.56 | L56: 1682532.9 | M56: 2380004.76 | N56: 5256899.22 | O56: 11963862.14 | P56: =P18+P24+P30+P36+P42+P48+P54 -> 81721892.42
A58: [1] Gas Cost Rate as of March 2, 2026, excluding Gas Cost Uncollectible Rider.

Sheet B
A1: Columbia Gas of Kentucky, Inc.
A2: Number of Bills
A3: For the 12 Months Ended December 31, 2027
A5: Data: __ Base Period_X_Forecasted Period
A6: Type of Filing: X Original _ Update _ Revised
A7: Work Paper Reference No(s): | P7: Workpaper WPM-B.2
A8: 12 Months Forecasted | P8: Sheet 1 of 6
A10: Line
A11: No. | B11: Description | C11: Reference | D11: Jan-27 | E11: Feb-27 | F11: Mar-27 | G11: Apr-27 | H11: May-27 | I11: Jun-27 | J11: Jul-27 | K11: Aug-27 | L11: Sep-27 | M11: Oct-27 | N11: Nov-27 | O11: Dec-27 | P11: Total
B12: (A) | C12: (B) | D12: (C) | E12: (D) | F12: (E) | G12: (F) | H12: (G) | I12: (H) | J12: (I) | K12: (J) | L12: (K) | M12: (L) | N12: (M) | O12: (N) | P12: (O)
A14: 1 | B14: Rate Schedule GSR - Residential
A15: =A14+1 -> 2 | B15: Bills | D15: 115255 | E15: 115403 | F15: 115242 | G15: 114910 | H15: 114366 | I15: 113634 | J15: 113127 | K15: 112750 | L15: 112632 | M15: 112920 | N15: 113925 | O15: 114844 | P15: =SUM(D15:O15) -> 1369008
A16: =A15+1 -> 3 | B16: Finaled Bills | D16: 1037 | E16: 1217 | F16: 1592 | G16: 1806 | H16: 1940 | I16: 1945 | J16: 1726 | K16: 1782 | L16: 1489 | M16: 1383 | N16: 1373 | O16: 1337 | P16: =SUM(D16:O16) -> 18627
A17: 4 | B17: Adjusted Bills | D17: =SUM(D15:D16) -> 116292 | E17: 116620 | F17: 116834 | G17: 116716 | H17: 116306 | I17: 115579 | J17: 114853 | K17: 114532 | L17: 114121 | M17: 114303 | N17: 115298 | O17: 116181 | P17: =SUM(D17:O17) -> 1387635
A19: =A17+1 -> 5 | B19: Rate Schedule G1C - Commercial
A20: =A19+1 -> 6 | B20: Bills | D20: 0 | E20: 0 | F20: 0 | G20: 0 | H20: 0 | I20: 0 | J20: 0 | K20: 0 | L20: 0 | M20: 0 | N20: 0 | O20: 0 | P20: =SUM(D20:O20) -> 0
A21: =A20+1 -> 7 | B21: Finaled Bills | D21: 0 | E21: 0 | F21: 0 | G21: 0 | H21: 0 | I21: 0 | J21: 0 | K21: 0 | L21: 0 | M21: 0 | N21: 0 | O21: 0 | P21: =SUM(D21:O21) -> 0
A22: =A21+1 -> 8 | B22: Adjusted Bills | D22: =SUM(D20:D21) -> 0 | E22: 0 | F22: 0 | G22: 0 | H22: 0 | I22: 0 | J22: 0 | K22: 0 | L22: 0 | M22: 0 | N22: 0 | O22: 0 | P22: =SUM(D22:O22) -> 0
A24: =A22+1 -> 9 | B24: Rate Schedule G1R - Residential
A25: =A24+1 -> 10 | B25: Bills | D25: 3 | E25: 3 | F25: 3 | G25: 3 | H25: 3 | I25: 3 | J25: 3 | K25: 3 | L25: 3 | M25: 3 | N25: 3 | O25: 3 | P25: =SUM(D25:O25) -> 36
A26: =A25+1 -> 11 | B26: Finaled Bills | D26: 0 | E26: 0 | F26: 0 | G26: 0 | H26: 0 | I26: 0 | J26: 0 | K26: 0 | L26: 0 | M26: 0 | N26: 0 | O26: 0 | P26: =SUM(D26:O26) -> 0
A27: 12 | B27: Adjusted Bills | D27: =SUM(D25:D26) -> 3 | E27: 3 | F27: 3 | G27: 3 | H27: 3 | I27: 3 | J27: 3 | K27: 3 | L27: 3 | M27: 3 | N27: 3 | O27: 3 | P27: =SUM(D27:O27) -> 36
A29: =A27+1 -> 13 | B29: Rate Schedule IN3 - Residential
A30: =A29+1 -> 14 | B30: Bills | D30: 7 | E30: 7 | F30: 7 | G30: 7 | H30: 7 | I30: 7 | J30: 7 | K30: 7 | L30: 7 | M30: 7 | N30: 7 | O30: 7 | P30: =SUM(D30:O30) -> 84
A31: =A30+1 -> 15 | B31: Finaled Bills | D31: 0 | E31: 0 | F31: 0 | G31: 0 | H31: 0 | I31: 0 | J31: 0 | K31: 0 | L31: 0 | M31: 0 | N31: 0 | O31: 0 | P31: =SUM(D31:O31) -> 0
A32: 16 | B32: Adjusted Bills | D32: =SUM(D30:D31) -> 7 | E32: 7 | F32: 7 | G32: 7 | H32: 7 | I32: 7 | J32: 7 | K32: 7 | L32: 7 | M32: 7 | N32: 7 | O32: 7 | P32: =SUM(D32:O32) -> 84
A34: =A32+1 -> 17 | B34: Rate Schedule IN4 - Residential
A35: =A34+1 -> 18 | B35: Bills | D35: 0 | E35: 0 | F35: 0 | G35: 0 | H35: 0 | I35: 0 | J35: 0 | K35: 0 | L35: 0 | M35: 0 | N35: 0 | O35: 0 | P35: =SUM(D35:O35) -> 0
A36: =A35+1 -> 19 | B36: Finaled Bills | D36: 0 | E36: 0 | F36: 0 | G36: 0 | H36: 0 | I36: 0 | J36: 0 | K36: 0 | L36: 0 | M36: 0 | N36: 0 | O36: 0 | P36: =SUM(D36:O36) -> 0
A37: 20 | B37: Adjusted Bills | D37: =SUM(D35:D36) -> 0 | E37: 0 | F37: 0 | G37: 0 | H37: 0 | I37: 0 | J37: 0 | K37: 0 | L37: 0 | M37: 0 | N37: 0 | O37: 0 | P37: =SUM(D37:O37) -> 0
A39: =A37+1 -> 21 | B39: Rate Schedule IN5 - Residential
A40: =A39+1 -> 22 | B40: Bills | D40: 2 | E40: 2 | F40: 2 | G40: 2 | H40: 2 | I40: 2 | J40: 2 | K40: 2 | L40: 2 | M40: 2 | N40: 2 | O40: 2 | P40: =SUM(D40:O40) -> 24
A41: =A40+1 -> 23 | B41: Finaled Bills | D41: 0 | E41: 0 | F41: 0 | G41: 0 | H41: 0 | I41: 0 | J41: 0 | K41: 0 | L41: 0 | M41: 0 | N41: 0 | O41: 0 | P41: =SUM(D41:O41) -> 0
A42: 24 | B42: Adjusted Bills | D42: =SUM(D40:D41) -> 2 | E42: 2 | F42: 2 | G42: 2 | H42: 2 | I42: 2 | J42: 2 | K42: 2 | L42: 2 | M42: 2 | N42: 2 | O42: 2 | P42: =SUM(D42:O42) -> 24
A44: =A42+1 -> 25 | B44: Rate Schedule LG2 - Residential
A45: =A44+1 -> 26 | B45: Bills | D45: 1 | E45: 1 | F45: 0 | G45: 0 | H45: 0 | I45: 1 | J45: 1 | K45: 1 | L45: 1 | M45: 1 | N45: 1 | O45: 1 | P45: =SUM(D45:O45) -> 9
A46: =A45+1 -> 27 | B46: Finaled Bills | D46: 0 | E46: 0 | F46: 1 | G46: 0 | H46: 0 | I46: 0 | J46: 0 | K46: 0 | L46: 0 | M46: 0 | N46: 0 | O46: 0 | P46: =SUM(D46:O46) -> 1
A47: 28 | B47: Adjusted Bills | D47: =SUM(D45:D46) -> 1 | E47: 1 | F47: 1 | G47: 0 | H47: 0 | I47: 1 | J47: 1 | K47: 1 | L47: 1 | M47: 1 | N47: 1 | O47: 1 | P47: =SUM(D47:O47) -> 10
A49: =A47+1 -> 29 | B49: Rate Schedule LG2 - Commercial
A50: =A49+1 -> 30 | B50: Bills | D50: 0 | E50: 0 | F50: 0 | G50: 0 | H50: 0 | I50: 0 | J50: 0 | K50: 0 | L50: 0 | M50: 0 | N50: 0 | O50: 0 | P50: =SUM(D50:O50) -> 0
A51: =A50+1 -> 31 | B51: Finaled Bills | D51: 0 | E51: 0 | F51: 0 | G51: 0 | H51: 0 | I51: 0 | J51: 0 | K51: 0 | L51: 0 | M51: 0 | N51: 0 | O51: 0 | P51: =SUM(D51:O51) -> 0
A52: 32 | B52: Adjusted Bills | D52: =SUM(D50:D51) -> 0 | E52: 0 | F52: 0 | G52: 0 | H52: 0 | I52: 0 | J52: 0 | K52: 0 | L52: 0 | M52: 0 | N52: 0 | O52: 0 | P52: =SUM(D52:O52) -> 0
A54: Columbia Gas of Kentucky, Inc.
A55: Number of Bills
A56: =A3 -> For the 12 Months Ended December 31, 2027
A58: =$A$5 -> Data: __ Base Period_X_Forecasted Period
A59: =$A$6 -> Type of Filing: X Original _ Update _ Revised
A60: =$A$7 -> Work Paper Reference No(s): | P60: =$P$7 -> Workpaper WPM-B.2
A61: =$A$8 -> 12 Months Forecasted | P61: Sheet 2 of 6
A63: Line
A64: No. | B64: Description | C64: Reference | D64: =$D$11 -> Jan-27 | E64: =$E$11 -> Feb-27 | F64: =$F$11 -> Mar-27 | G64: =$G$11 -> Apr-27 | H64: =$H$11 -> May-27 | I64: =$I$11 -> Jun-27 | J64: =$J$11 -> Jul-27 | K64: =$K$11 -> Aug-27 | L64: =$L$11 -> Sep-27 | M64: =$M$11 -> Oct-27 | N64: =$N$11 -> Nov-27 | O64: =$O$11 -> Dec-27 | P64: Total
B65: (A) | C65: (B) | D65: (C) | E65: (D) | F65: (E) | G65: (F) | H65: (G) | I65: (H) | J65: (I) | K65: (J) | L65: (K) | M65: (L) | N65: (M) | O65: (N) | P65: (O)
A67: 1 | B67: Rate Schedule LG3 - Residential
A68: =A67+1 -> 2 | B68: Bills | D68: 1 | E68: 1 | F68: 1 | G68: 1 | H68: 1 | I68: 1 | J68: 1 | K68: 1 | L68: 1 | M68: 1 | N68: 1 | O68: 1 | P68: =SUM(D68:O68) -> 12
A69: =A68+1 -> 3 | B69: Finaled Bills | D69: 0 | E69: 0 | F69: 0 | G69: 0 | H69: 0 | I69: 0 | J69: 0 | K69: 0 | L69: 0 | M69: 0 | N69: 0 | O69: 0 | P69: =SUM(D69:O69) -> 0
A70: 4 | B70: Adjusted Bills | D70: =SUM(D68:D69) -> 1 | E70: 1 | F70: 1 | G70: 1 | H70: 1 | I70: 1 | J70: 1 | K70: 1 | L70: 1 | M70: 1 | N70: 1 | O70: 1 | P70: =SUM(D70:O70) -> 12
A72: =A70+1 -> 5 | B72: Rate Schedule LG4 - Residential
A73: =A72+1 -> 6 | B73: Bills | D73: 0 | E73: 0 | F73: 0 | G73: 0 | H73: 0 | I73: 0 | J73: 0 | K73: 0 | L73: 0 | M73: 0 | N73: 0 | O73: 0 | P73: =SUM(D73:O73) -> 0
A74: =A73+1 -> 7 | B74: Finaled Bills | D74: 0 | E74: 0 | F74: 0 | G74: 0 | H74: 0 | I74: 0 | J74: 0 | K74: 0 | L74: 0 | M74: 0 | N74: 0 | O74: 0 | P74: =SUM(D74:O74) -> 0
A75: 8 | B75: Adjusted Bills | D75: =SUM(D73:D74) -> 0 | E75: 0 | F75: 0 | G75: 0 | H75: 0 | I75: 0 | J75: 0 | K75: 0 | L75: 0 | M75: 0 | N75: 0 | O75: 0 | P75: =SUM(D75:O75) -> 0
A77: =A75+1 -> 9 | B77: Rate Schedule GSO - Commercial
A78: =A77+1 -> 10 | B78: Bills | D78: =-30+12232 -> 12202 | E78: =-34+12271 -> 12237 | F78: =-35+12251 -> 12216 | G78: =-23+12169 -> 12146 | H78: =30+12018 -> 12048 | I78: =70+11880 -> 11950 | J78: =74+11804 -> 11878 | K78: =99+11746 -> 11845 | L78: =99+11704 -> 11803 | M78: =86+11741 -> 11827 | N78: =-26+12043 -> 12017 | O78: =-42+12238 -> 12196 | P78: =SUM(D78:O78) -> 144365
A79: =A78+1 -> 11 | B79: Industrial Adjustment | C79: (WPM-D) | D79: ='D pg 1'!D16 -> 0 | E79: ='D pg 1'!E16 -> 0 | F79: ='D pg 1'!F16 -> 0 | G79: ='D pg 1'!G16 -> 0 | H79: ='D pg 1'!H16 -> 0 | I79: ='D pg 1'!I16 -> 0 | J79: ='D pg 1'!J16 -> 0 | K79: ='D pg 1'!K16 -> 0 | L79: ='D pg 1'!L16 -> 0 | M79: ='D pg 1'!M16 -> 0 | N79: ='D pg 1'!N16 -> 0 | O79: ='D pg 1'!O16 -> 0 | P79: =SUM(D79:O79) -> 0
A80: 12 | B80: Finaled Bills | D80: 57 | E80: 86 | F80: 130 | G80: 193 | H80: 236 | I80: 205 | J80: 135 | K80: 154 | L80: 115 | M80: 75 | N80: 92 | O80: 83 | P80: =SUM(D80:O80) -> 1561
A81: =A80+1 -> 13 | B81: Adjusted Bills | D81: =SUM(D78:D80) -> 12259 | E81: 12323 | F81: 12346 | G81: 12339 | H81: 12284 | I81: 12155 | J81: 12013 | K81: 11999 | L81: 11918 | M81: 11902 | N81: 12109 | O81: 12279 | P81: =SUM(D81:O81) -> 145926
A83: =A81+1 -> 14 | B83: Rate Schedule GSO - Industrial
A84: =A83+1 -> 15 | B84: Bills | D84: =49+1 -> 50 | E84: =49+1 -> 50 | F84: =49+1 -> 50 | G84: =49+1 -> 50 | H84: =49+1 -> 50 | I84: =47+1 -> 48 | J84: =47+1 -> 48 | K84: =49+1 -> 50 | L84: =49+1 -> 50 | M84: =49+1 -> 50 | N84: =48+1 -> 49 | O84: =48+1 -> 49 | P84: =SUM(D84:O84) -> 594
A85: =A84+1 -> 16 | B85: Industrial Adjustment | C85: (WPM-D) | D85: ='D pg 1'!D17 -> 0 | E85: ='D pg 1'!E17 -> 0 | F85: ='D pg 1'!F17 -> 0 | G85: ='D pg 1'!G17 -> 0 | H85: ='D pg 1'!H17 -> 0 | I85: ='D pg 1'!I17 -> 0 | J85: ='D pg 1'!J17 -> 0 | K85: ='D pg 1'!K17 -> 0 | L85: ='D pg 1'!L17 -> 0 | M85: ='D pg 1'!M17 -> 0 | N85: ='D pg 1'!N17 -> 0 | O85: ='D pg 1'!O17 -> 0 | P85: =SUM(D85:O85) -> 0
A86: =A85+1 -> 17 | B86: Finaled Bills | D86: 0 | E86: 0 | F86: 0 | G86: 2 | H86: 0 | I86: 2 | J86: 0 | K86: 0 | L86: 0 | M86: 0 | N86: 2 | O86: 1 | P86: =SUM(D86:O86) -> 7
A87: =A86+1 -> 18 | B87: Adjusted Bills | D87: =SUM(D84:D86) -> 50 | E87: 50 | F87: 50 | G87: 52 | H87: 50 | I87: 50 | J87: 48 | K87: 50 | L87: 50 | M87: 50 | N87: 51 | O87: 50 | P87: =SUM(D87:O87) -> 601
A89: =A87+1 -> 19 | B89: Rate Schedule IS - Industrial
A90: =A89+1 -> 20 | B90: Bills | D90: 0 | E90: 0 | F90: 0 | G90: 0 | H90: 0 | I90: 0 | J90: 0 | K90: 0 | L90: 0 | M90: 0 | N90: 0 | O90: 0 | P90: =SUM(D90:O90) -> 0
A91: =A90+1 -> 21 | B91: Industrial Adjustment | C91: (WPM-D) | D91: 0 | E91: 0 | F91: 0 | G91: 0 | H91: 0 | I91: 0 | J91: 0 | K91: 0 | L91: 0 | M91: 0 | N91: 0 | O91: 0 | P91: =SUM(D91:O91) -> 0
A92: =A91+1 -> 22 | B92: Finaled Bills | D92: 0 | E92: 0 | F92: 0 | G92: 0 | H92: 0 | I92: 0 | J92: 0 | K92: 0 | L92: 0 | M92: 0 | N92: 0 | O92: 0 | P92: =SUM(D92:O92) -> 0
A93: =A92+1 -> 23 | B93: Adjusted Bills | D93: =SUM(D90:D92) -> 0 | E93: 0 | F93: 0 | G93: 0 | H93: 0 | I93: 0 | J93: 0 | K93: 0 | L93: 0 | M93: 0 | N93: 0 | O93: 0 | P93: =SUM(D93:O93) -> 0
A95: =A93+1 -> 24 | B95: Rate Schedule IUS - Wholesale
A96: =A95+1 -> 25 | B96: Bills | D96: 2 | E96: 2 | F96: 2 | G96: 2 | H96: 2 | I96: 2 | J96: 2 | K96: 2 | L96: 2 | M96: 2 | N96: 2 | O96: 2 | P96: =SUM(D96:O96) -> 24
A97: =A96+1 -> 26 | B97: Industrial Adjustment | C97: (WPM-D) | D97: 0 | E97: 0 | F97: 0 | G97: 0 | H97: 0 | I97: 0 | J97: 0 | K97: 0 | L97: 0 | M97: 0 | N97: 0 | O97: 0 | P97: =SUM(D97:O97) -> 0
A98: =A97+1 -> 27 | B98: Finaled Bills | D98: 0 | E98: 0 | F98: 0 | G98: 0 | H98: 0 | I98: 0 | J98: 0 | K98: 0 | L98: 0 | M98: 0 | N98: 0 | O98: 0 | P98: =SUM(D98:O98) -> 0
A99: =A98+1 -> 28 | B99: Adjusted Bills | D99: =SUM(D96:D98) -> 2 | E99: 2 | F99: 2 | G99: 2 | H99: 2 | I99: 2 | J99: 2 | K99: 2 | L99: 2 | M99: 2 | N99: 2 | O99: 2 | P99: =SUM(D99:O99) -> 24
A104: Columbia Gas of Kentucky, Inc.
A105: Number of Bills
A106: =A3 -> For the 12 Months Ended December 31, 2027
A108: =$A$5 -> Data: __ Base Period_X_Forecasted Period
A109: =$A$6 -> Type of Filing: X Original _ Update _ Revised
A110: =$A$7 -> Work Paper Reference No(s): | P110: =$P$7 -> Workpaper WPM-B.2
A111: =$A$8 -> 12 Months Forecasted | P111: Sheet 3 of 6
A113: Line
A114: No. | B114: Description | C114: Reference | D114: =$D$11 -> Jan-27 | E114: =$E$11 -> Feb-27 | F114: =$F$11 -> Mar-27 | G114: =$G$11 -> Apr-27 | H114: =$H$11 -> May-27 | I114: =$I$11 -> Jun-27 | J114: =$J$11 -> Jul-27 | K114: =$K$11 -> Aug-27 | L114: =$L$11 -> Sep-27 | M114: =$M$11 -> Oct-27 | N114: =$N$11 -> Nov-27 | O114: =$O$11 -> Dec-27 | P114: Total
B115: (A) | C115: (B) | D115: (C) | E115: (D) | F115: (E) | G115: (F) | H115: (G) | I115: (H) | J115: (I) | K115: (J) | L115: (K) | M115: (L) | N115: (M) | O115: (N) | P115: (O)
A117: 1 | B117: Tariff Sales Summary by Customer Class
A119: =A117+1 -> 2 | B119: Total Residential Sales
A120: =A119+1 -> 3 | B120: Bills | D120: =D15+D25+D30+D35+D40+D45+D68+D73 -> 115269 | E120: 115417 | F120: 115255 | G120: 114923 | H120: 114379 | I120: 113648 | J120: 113141 | K120: 112764 | L120: 112646 | M120: 112934 | N120: 113939 | O120: 114858 | P120: =SUM(D120:O120) -> 1369173
A121: =A120+1 -> 4 | B121: Finaled Bills | D121: =D16+D26+D31+D36+D41+D46+D69+D74 -> 1037 | E121: =E16+E26+E31+E36+E41+E46+E69+E74 -> 1217 | F121: 1593 | G121: 1806 | H121: 1940 | I121: 1945 | J121: 1726 | K121: 1782 | L121: 1489 | M121: 1383 | N121: 1373 | O121: 1337 | P121: =SUM(D121:O121) -> 18628
A122: =A121+1 -> 5 | B122: Adjusted Bills | D122: =SUM(D120:D121) -> 116306 | E122: 116634 | F122: 116848 | G122: 116729 | H122: 116319 | I122: 115593 | J122: 114867 | K122: 114546 | L122: 114135 | M122: 114317 | N122: 115312 | O122: 116195 | P122: =SUM(D122:O122) -> 1387801
A124: =A122+1 -> 6 | B124: Total Commercial Sales
A125: =A124+1 -> 7 | B125: Bills | D125: =D20+D50+D78 -> 12202 | E125: 12237 | F125: 12216 | G125: 12146 | H125: 12048 | I125: 11950 | J125: 11878 | K125: 11845 | L125: 11803 | M125: 11827 | N125: 12017 | O125: 12196 | P125: 144365
A126: =A125+1 -> 8 | B126: Industrial Adjustment | D126: =D79 -> 0 | E126: =E79 -> 0 | F126: 0 | G126: 0 | H126: 0 | I126: 0 | J126: 0 | K126: 0 | L126: 0 | M126: 0 | N126: 0 | O126: 0 | P126: 0
A127: =A126+1 -> 9 | B127: Finaled Bills | D127: =D21+D51+D80 -> 57 | E127: 86 | F127: 130 | G127: 193 | H127: 236 | I127: 205 | J127: 135 | K127: 154 | L127: 115 | M127: 75 | N127: 92 | O127: 83 | P127: 1561
A128: =A127+1 -> 10 | B128: Adjusted Bills | D128: =SUM(D125:D127) -> 12259 | E128: 12323 | F128: 12346 | G128: 12339 | H128: 12284 | I128: 12155 | J128: 12013 | K128: 11999 | L128: 11918 | M128: 11902 | N128: 12109 | O128: 12279 | P128: =SUM(D128:O128) -> 145926
A130: =A128+1 -> 11 | B130: Total Industrial Sales
A131: =A130+1 -> 12 | B131: Bills | D131: =+D84+D90 -> 50 | E131: =+E84+E90 -> 50 | F131: 50 | G131: 50 | H131: 50 | I131: 48 | J131: 48 | K131: 50 | L131: 50 | M131: 50 | N131: 49 | O131: 49 | P131: =SUM(D131:O131) -> 594
A132: =A131+1 -> 13 | B132: Industrial Adjustment | D132: =D85+D91 -> 0 | E132: 0 | F132: 0 | G132: 0 | H132: 0 | I132: 0 | J132: 0 | K132: 0 | L132: 0 | M132: 0 | N132: 0 | O132: 0 | P132: =SUM(D132:O132) -> 0
A133: =A132+1 -> 14 | B133: Finaled Bills | D133: =D86+D92 -> 0 | E133: 0 | F133: 0 | G133: 2 | H133: 0 | I133: 2 | J133: 0 | K133: 0 | L133: 0 | M133: 0 | N133: 2 | O133: 1 | P133: =SUM(D133:O133) -> 7
A134: =A133+1 -> 15 | B134: Adjusted Bills | D134: =SUM(D131:D133) -> 50 | E134: 50 | F134: 50 | G134: 52 | H134: 50 | I134: 50 | J134: 48 | K134: 50 | L134: 50 | M134: 50 | N134: 51 | O134: 50 | P134: =SUM(D134:O134) -> 601
A136: =A134+1 -> 16 | B136: Total Wholesale Sales
A137: =A136+1 -> 17 | B137: Bills | D137: =D96 -> 2 | E137: 2 | F137: 2 | G137: 2 | H137: 2 | I137: 2 | J137: 2 | K137: 2 | L137: 2 | M137: 2 | N137: 2 | O137: 2 | P137: =SUM(D137:O137) -> 24
A138: =A137+1 -> 18 | B138: Industrial Adjustment | D138: =D97 -> 0 | E138: 0 | F138: 0 | G138: 0 | H138: 0 | I138: 0 | J138: 0 | K138: 0 | L138: 0 | M138: 0 | N138: 0 | O138: 0 | P138: =SUM(D138:O138) -> 0
A139: =A138+1 -> 19 | B139: Finaled Bills | D139: =D98 -> 0 | E139: 0 | F139: 0 | G139: 0 | H139: 0 | I139: 0 | J139: 0 | K139: 0 | L139: 0 | M139: 0 | N139: 0 | O139: 0 | P139: =SUM(D139:O139) -> 0
A140: =A139+1 -> 20 | B140: Adjusted Bills | D140: =SUM(D137:D139) -> 2 | E140: 2 | F140: 2 | G140: 2 | H140: 2 | I140: 2 | J140: 2 | K140: 2 | L140: 2 | M140: 2 | N140: 2 | O140: 2 | P140: =SUM(D140:O140) -> 24
A142: =A140+1 -> 21 | B142: Total Tariff Sales
A143: =A142+1 -> 22 | B143: Bills | D143: =D120+D125+D131+D137 -> 127523 | E143: 127706 | F143: 127523 | G143: 127121 | H143: 126479 | I143: 125648 | J143: 125069 | K143: 124661 | L143: 124501 | M143: 124813 | N143: 126007 | O143: 127105 | P143: =SUM(D143:O143) -> 1514156
A144: =A143+1 -> 23 | B144: Industrial Adjustment | D144: =D126+D132+D138 -> 0 | E144: =E126+E132+E138 -> 0 | F144: 0 | G144: 0 | H144: 0 | I144: 0 | J144: 0 | K144: 0 | L144: 0 | M144: 0 | N144: 0 | O144: 0 | P144: =P126+P132+P138 -> 0
A145: =A144+1 -> 24 | B145: Finaled Bills | D145: =D121+D127+D133+D139 -> 1094 | E145: 1303 | F145: 1723 | G145: 2001 | H145: 2176 | I145: 2152 | J145: 1861 | K145: 1936 | L145: 1604 | M145: 1458 | N145: 1467 | O145: 1421 | P145: =SUM(D145:O145) -> 20196
A146: =A145+1 -> 25 | B146: Adjusted Bills | D146: =SUM(D143:D145) -> 128617 | E146: 129009 | F146: 129246 | G146: 129122 | H146: 128655 | I146: 127800 | J146: 126930 | K146: 126597 | L146: 126105 | M146: 126271 | N146: 127474 | O146: 128526 | P146: =SUM(D146:O146) -> 1534352
A148: Columbia Gas of Kentucky, Inc.
A149: Number of Bills
A150: =A3 -> For the 12 Months Ended December 31, 2027
A152: =$A$5 -> Data: __ Base Period_X_Forecasted Period
A153: =$A$6 -> Type of Filing: X Original _ Update _ Revised
A154: =$A$7 -> Work Paper Reference No(s): | P154: =$P$7 -> Workpaper WPM-B.2
A155: =$A$8 -> 12 Months Forecasted | P155: Sheet 4 of 6
A157: Line
A158: No. | B158: Description | C158: Reference | D158: =$D$11 -> Jan-27 | E158: =$E$11 -> Feb-27 | F158: =$F$11 -> Mar-27 | G158: =$G$11 -> Apr-27 | H158: =$H$11 -> May-27 | I158: =$I$11 -> Jun-27 | J158: =$J$11 -> Jul-27 | K158: =$K$11 -> Aug-27 | L158: =$L$11 -> Sep-27 | M158: =$M$11 -> Oct-27 | N158: =$N$11 -> Nov-27 | O158: =$O$11 -> Dec-27 | P158: Total
B159: (A) | C159: (B) | D159: (C) | E159: (D) | F159: (E) | G159: (F) | H159: (G) | I159: (H) | J159: (I) | K159: (J) | L159: (K) | M159: (L) | N159: (M) | O159: (N) | P159: (O)
A161: 1 | B161: Rate Schedule GTR - Residential
A162: =A161+1 -> 2 | B162: Bills | D162: 10041 | E162: 10041 | F162: 10041 | G162: 10041 | H162: 10041 | I162: 10041 | J162: 10041 | K162: 10041 | L162: 10041 | M162: 10041 | N162: 10041 | O162: 10041 | P162: =SUM(D162:O162) -> 120492
A163: =A162+1 -> 3 | B163: Finaled Bills | D163: 26 | E163: 41 | F163: 55 | G163: 47 | H163: 43 | I163: 48 | J163: 47 | K163: 57 | L163: 44 | M163: 48 | N163: 47 | O163: 43 | P163: =SUM(D163:O163) -> 546
A164: =A163+1 -> 4 | B164: Adjusted Bills | D164: =SUM(D162:D163) -> 10067 | E164: 10082 | F164: 10096 | G164: 10088 | H164: 10084 | I164: 10089 | J164: 10088 | K164: 10098 | L164: 10085 | M164: 10089 | N164: 10088 | O164: 10084 | P164: =SUM(D164:O164) -> 121038
A166: =A164+1 -> 5 | B166: Rate Schedule GTO - Commercial
A167: =A166+1 -> 6 | B167: Bills | D167: =-24+1767 -> 1743 | E167: =-27+1756 -> 1729 | F167: =-26+1751 -> 1725 | G167: =-24+1749 -> 1725 | H167: =-19+1743 -> 1724 | I167: =-13+1733 -> 1720 | J167: =-10+1727 -> 1717 | K167: =-7+1704 -> 1697 | L167: =1+1699 -> 1700 | M167: =8+1695 -> 1703 | N167: =-6+1689 -> 1683 | O167: =-6+1681 -> 1675 | P167: =SUM(D167:O167) -> 20541
A168: =A167+1 -> 7 | B168: Industrial Adjustment | C168: (WPM-D) | D168: 0 | E168: 0 | F168: 0 | G168: 0 | H168: 0 | I168: 0 | J168: 0 | K168: 0 | L168: 0 | M168: 0 | N168: 0 | O168: 0 | P168: =SUM(D168:O168) -> 0
A169: =A168+1 -> 8 | B169: Finaled Bills | D169: 6 | E169: 7 | F169: 6 | G169: 2 | H169: 7 | I169: 8 | J169: 3 | K169: 23 | L169: 4 | M169: 2 | N169: 0 | O169: 6 | P169: =SUM(D169:O169) -> 74
A170: =A169+1 -> 9 | B170: Adjusted Bills | D170: =SUM(D167:D169) -> 1749 | E170: 1736 | F170: 1731 | G170: 1727 | H170: 1731 | I170: 1728 | J170: 1720 | K170: 1720 | L170: 1704 | M170: 1705 | N170: 1683 | O170: 1681 | P170: =SUM(D170:O170) -> 20615
A172: =A170+1 -> 10 | B172: Rate Schedule GTO - Industrial
A173: =A172+1 -> 11 | B173: Bills | D173: 14 | E173: 14 | F173: 14 | G173: 14 | H173: 14 | I173: 14 | J173: 14 | K173: 13 | L173: 13 | M173: 13 | N173: 13 | O173: 13 | P173: =SUM(D173:O173) -> 163
A174: =A173+1 -> 12 | B174: Industrial Adjustment | C174: (WPM-D) | D174: 0 | E174: 0 | F174: 0 | G174: 0 | H174: 0 | I174: 0 | J174: 0 | K174: 0 | L174: 0 | M174: 0 | N174: 0 | O174: 0 | P174: =SUM(D174:O174) -> 0
A175: =A174+1 -> 13 | B175: Finaled Bills | D175: 0 | E175: 0 | F175: 0 | G175: 0 | H175: 0 | I175: 0 | J175: 0 | K175: 0 | L175: 0 | M175: 0 | N175: 0 | O175: 0 | P175: =SUM(D175:O175) -> 0
A176: =A175+1 -> 14 | B176: Adjusted Bills | D176: =SUM(D173:D175) -> 14 | E176: 14 | F176: 14 | G176: 14 | H176: 14 | I176: 14 | J176: 14 | K176: 13 | L176: 13 | M176: 13 | N176: 13 | O176: 13 | P176: =SUM(D176:O176) -> 163
A178: =A176+1 -> 15 | B178: Rate Schedule DS - Commercial
A179: =A178+1 -> 16 | B179: Bills | D179: 22 | E179: 22 | F179: 22 | G179: 22 | H179: 22 | I179: 22 | J179: 22 | K179: 22 | L179: 22 | M179: 22 | N179: 22 | O179: 22 | P179: =SUM(D179:O179) -> 264
A180: =A179+1 -> 17 | B180: Industrial Adjustment | C180: (WPM-D) | D180: ='D pg 1'!D17 -> 0 | E180: ='D pg 1'!E17 -> 0 | F180: ='D pg 1'!F17 -> 0 | G180: ='D pg 1'!G17 -> 0 | H180: ='D pg 1'!H17 -> 0 | I180: ='D pg 1'!I17 -> 0 | J180: ='D pg 1'!J17 -> 0 | K180: ='D pg 1'!K17 -> 0 | L180: ='D pg 1'!L17 -> 0 | M180: ='D pg 1'!M17 -> 0 | N180: ='D pg 1'!N17 -> 0 | O180: ='D pg 1'!P17 -> 0 | P180: =SUM(D180:O180) -> 0
A181: =A180+1 -> 18 | B181: Finaled Bills | D181: 0 | E181: 0 | F181: 0 | G181: 2 | H181: 0 | I181: 2 | J181: 0 | K181: 0 | L181: 0 | M181: 0 | N181: 0 | O181: 0 | P181: =SUM(D181:O181) -> 4
A182: =A181+1 -> 19 | B182: Adjusted Bills | D182: =SUM(D179:D181) -> 22 | E182: 22 | F182: 22 | G182: 24 | H182: 22 | I182: 24 | J182: 22 | K182: 22 | L182: 22 | M182: 22 | N182: 22 | O182: 22 | P182: =SUM(D182:O182) -> 268
A184: =A182+1 -> 20 | B184: Rate Schedule DS - Industrial
A185: =A184+1 -> 21 | B185: Bills | D185: 41 | E185: 41 | F185: 41 | G185: 41 | H185: 41 | I185: 41 | J185: 41 | K185: 41 | L185: 42 | M185: 42 | N185: 42 | O185: 42 | P185: =SUM(D185:O185) -> 496
A186: =A185+1 -> 22 | B186: Industrial Adjustment | C186: (WPM-D) | D186: ='D pg 1'!D20 -> 0 | E186: ='D pg 1'!E20 -> 0 | F186: ='D pg 1'!F20 -> 0 | G186: ='D pg 1'!G20 -> 0 | H186: ='D pg 1'!H20 -> 0 | I186: ='D pg 1'!I20 -> 0 | J186: ='D pg 1'!J20 -> 0 | K186: ='D pg 1'!K20 -> 0 | L186: ='D pg 1'!L20 -> 0 | M186: ='D pg 1'!M20 -> 0 | N186: ='D pg 1'!N20 -> 0 | O186: ='D pg 1'!O20 -> 0 | P186: =SUM(D186:O186) -> 0
A187: =A186+1 -> 23 | B187: Finaled Bills | D187: 0 | E187: 0 | F187: 0 | G187: 0 | H187: 0 | I187: 0 | J187: 0 | K187: 0 | L187: 0 | M187: 0 | N187: 0 | O187: 0 | P187: =SUM(D187:O187) -> 0
A188: =A187+1 -> 24 | B188: Adjusted Bills | D188: =SUM(D185:D187) -> 41 | E188: 41 | F188: 41 | G188: 41 | H188: 41 | I188: 41 | J188: 41 | K188: 41 | L188: 42 | M188: 42 | N188: 42 | O188: 42 | P188: =SUM(D188:O188) -> 496
A190: =A188+1 -> 25 | B190: Rate Schedule GDS - Commercial
A191: =A190+1 -> 26 | B191: Bills | D191: 15 | E191: 15 | F191: 15 | G191: 15 | H191: 15 | I191: 15 | J191: 15 | K191: 15 | L191: 15 | M191: 15 | N191: 15 | O191: 15 | P191: =SUM(D191:O191) -> 180
A192: =A191+1 -> 27 | B192: Industrial Adjustment | C192: (WPM-D) | D192: ='D pg 1'!D18 -> 0 | E192: ='D pg 1'!E18 -> 0 | F192: ='D pg 1'!F18 -> 0 | G192: ='D pg 1'!G18 -> 0 | H192: ='D pg 1'!H18 -> 0 | I192: ='D pg 1'!I18 -> 0 | J192: ='D pg 1'!J18 -> 0 | K192: ='D pg 1'!K18 -> 0 | L192: ='D pg 1'!L18 -> 0 | M192: ='D pg 1'!M18 -> 0 | N192: ='D pg 1'!N18 -> 0 | O192: ='D pg 1'!O18 -> 0 | P192: =SUM(D192:O192) -> 0
A193: =A192+1 -> 28 | B193: Finaled Bills | D193: 0 | E193: 0 | F193: 0 | G193: 0 | H193: 0 | I193: 0 | J193: 0 | K193: 0 | L193: 0 | M193: 0 | N193: 0 | O193: 0 | P193: =SUM(D193:O193) -> 0
A194: =A193+1 -> 29 | B194: Adjusted Bills | D194: =SUM(D191:D193) -> 15 | E194: 15 | F194: 15 | G194: 15 | H194: 15 | I194: 15 | J194: 15 | K194: 15 | L194: 15 | M194: 15 | N194: 15 | O194: 15 | P194: =SUM(D194:O194) -> 180
A196: =A194+1 -> 30 | B196: Rate Schedule GDS - Industrial
A197: =A196+1 -> 31 | B197: Bills | D197: 3 | E197: 3 | F197: 3 | G197: 3 | H197: 3 | I197: 3 | J197: 3 | K197: 3 | L197: 3 | M197: 3 | N197: 3 | O197: 3 | P197: =SUM(D197:O197) -> 36
A198: =A197+1 -> 32 | B198: Industrial Adjustment | C198: (WPM-D) | D198: ='D pg 1'!D19 -> 0 | E198: ='D pg 1'!E19 -> 0 | F198: ='D pg 1'!F19 -> 0 | G198: ='D pg 1'!G19 -> 0 | H198: ='D pg 1'!H19 -> 0 | I198: ='D pg 1'!I19 -> 0 | J198: ='D pg 1'!J19 -> 0 | K198: ='D pg 1'!K19 -> 0 | L198: ='D pg 1'!L19 -> 0 | M198: ='D pg 1'!M19 -> 0 | N198: ='D pg 1'!N19 -> 0 | O198: ='D pg 1'!O19 -> 0 | P198: =SUM(D198:O198) -> 0
A199: =A198+1 -> 33 | B199: Finaled Bills | D199: 0 | E199: 0 | F199: 0 | G199: 0 | H199: 0 | I199: 0 | J199: 0 | K199: 0 | L199: 0 | M199: 0 | N199: 0 | O199: 0 | P199: =SUM(D199:O199) -> 0
A200: =A199+1 -> 34 | B200: Adjusted Bills | D200: =SUM(D197:D199) -> 3 | E200: 3 | F200: 3 | G200: 3 | H200: 3 | I200: 3 | J200: 3 | K200: 3 | L200: 3 | M200: 3 | N200: 3 | O200: 3 | P200: =SUM(D200:O200) -> 36
A203: Columbia Gas of Kentucky, Inc.
A204: Number of Bills
A205: =A3 -> For the 12 Months Ended December 31, 2027
A207: =$A$5 -> Data: __ Base Period_X_Forecasted Period
A208: =$A$6 -> Type of Filing: X Original _ Update _ Revised
A209: =$A$7 -> Work Paper Reference No(s): | P209: =$P$7 -> Workpaper WPM-B.2
A210: =$A$8 -> 12 Months Forecasted | P210: Sheet 5 of 6
A212: Line
A213: No. | B213: Description | C213: Reference | D213: =$D$11 -> Jan-27 | E213: =$E$11 -> Feb-27 | F213: =$F$11 -> Mar-27 | G213: =$G$11 -> Apr-27 | H213: =$H$11 -> May-27 | I213: =$I$11 -> Jun-27 | J213: =$J$11 -> Jul-27 | K213: =$K$11 -> Aug-27 | L213: =$L$11 -> Sep-27 | M213: =$M$11 -> Oct-27 | N213: =$N$11 -> Nov-27 | O213: =$O$11 -> Dec-27 | P213: Total
B214: (A) | C214: (B) | D214: (C) | E214: (D) | F214: (E) | G214: (F) | H214: (G) | I214: (H) | J214: (I) | K214: (J) | L214: (K) | M214: (L) | N214: (M) | O214: (N) | P214: (O)
A216: 1 | B216: Rate Schedule DS3 - Industrial
A217: =A216+1 -> 2 | B217: Bills | D217: 3 | E217: 3 | F217: 3 | G217: 3 | H217: 3 | I217: 3 | J217: 3 | K217: 3 | L217: 3 | M217: 3 | N217: 3 | O217: 3 | P217: =SUM(D217:O217) -> 36
A218: =A217+1 -> 3 | B218: Industrial Adjustment | C218: (WPM-D) | D218: 0 | E218: 0 | F218: 0 | G218: 0 | H218: 0 | I218: 0 | J218: 0 | K218: 0 | L218: 0 | M218: 0 | N218: 0 | O218: 0 | P218: =SUM(D218:O218) -> 0
A219: =A218+1 -> 4 | B219: Finaled Bills | D219: 0 | E219: 0 | F219: 0 | G219: 0 | H219: 0 | I219: 0 | J219: 0 | K219: 0 | L219: 0 | M219: 0 | N219: 0 | O219: 0 | P219: =SUM(D219:O219) -> 0
A220: =A219+1 -> 5 | B220: Adjusted Bills | D220: =SUM(D217:D219) -> 3 | E220: 3 | F220: 3 | G220: 3 | H220: 3 | I220: 3 | J220: 3 | K220: 3 | L220: 3 | M220: 3 | N220: 3 | O220: 3 | P220: =SUM(D220:O220) -> 36
A222: =A220+1 -> 6 | B222: Rate Schedule ET4 - Industrial
A223: =A222+1 -> 7 | B223: Bills | D223: 1 | E223: 1 | F223: 1 | G223: 1 | H223: 1 | I223: 1 | J223: 1 | K223: 1 | L223: 1 | M223: 1 | N223: 1 | O223: 1 | P223: =SUM(D223:O223) -> 12
A224: =A223+1 -> 8 | B224: Industrial Adjustment | C224: (WPM-D) | D224: 0 | E224: 0 | F224: 0 | G224: 0 | H224: 0 | I224: 0 | J224: 0 | K224: 0 | L224: 0 | M224: 0 | N224: 0 | O224: 0 | P224: =SUM(D224:O224) -> 0
A225: =A224+1 -> 9 | B225: Finaled Bills | D225: 0 | E225: 0 | F225: 0 | G225: 0 | H225: 0 | I225: 0 | J225: 0 | K225: 0 | L225: 0 | M225: 0 | N225: 0 | O225: 0 | P225: =SUM(D225:O225) -> 0
A226: =A225+1 -> 10 | B226: Adjusted Bills | D226: =SUM(D223:D225) -> 1 | E226: =SUM(E223:E225) -> 1 | F226: =SUM(F223:F225) -> 1 | G226: 1 | H226: 1 | I226: 1 | J226: 1 | K226: 1 | L226: 1 | M226: 1 | N226: 1 | O226: 1 | P226: =SUM(D226:O226) -> 12
A228: =A226+1 -> 11 | B228: Rate Schedule DS4 - Industrial
A229: =A228+1 -> 12 | B229: Bills | D229: 0 | E229: 0 | F229: 0 | G229: 0 | H229: 0 | I229: 0 | J229: 0 | K229: 0 | L229: 0 | M229: 0 | N229: 0 | O229: 0 | P229: =SUM(D229:O229) -> 0
A230: =A229+1 -> 13 | B230: Industrial Adjustment | C230: (WPM-D) | D230: 0 | E230: 0 | F230: 0 | G230: 0 | H230: 0 | I230: 0 | J230: 0 | K230: 0 | L230: 0 | M230: 0 | N230: 0 | O230: 0 | P230: =SUM(D230:O230) -> 0
A231: =A230+1 -> 14 | B231: Finaled Bills | D231: 0 | E231: 0 | F231: 0 | G231: 0 | H231: 0 | I231: 0 | J231: 0 | K231: 0 | L231: 0 | M231: 0 | N231: 0 | O231: 0 | P231: =SUM(D231:O231) -> 0
A232: =A231+1 -> 15 | B232: Adjusted Bills | D232: =SUM(D229:D231) -> 0 | E232: =SUM(E229:E231) -> 0 | F232: =SUM(F229:F231) -> 0 | G232: 0 | H232: 0 | I232: 0 | J232: 0 | K232: 0 | L232: 0 | M232: 0 | N232: 0 | O232: 0 | P232: =SUM(D232:O232) -> 0
A234: =A232+1 -> 16 | B234: Rate Schedule FX5 - Industrial
A235: =A234+1 -> 17 | B235: Bills | D235: 2 | E235: 2 | F235: 2 | G235: 2 | H235: 2 | I235: 2 | J235: 2 | K235: 2 | L235: 2 | M235: 2 | N235: 2 | O235: 2 | P235: =SUM(D235:O235) -> 24
A236: =A235+1 -> 18 | B236: Industrial Adjustment | C236: (WPM-D) | D236: 0 | E236: 0 | F236: 0 | G236: 0 | H236: 0 | I236: 0 | J236: 0 | K236: 0 | L236: 0 | M236: 0 | N236: 0 | O236: 0 | P236: =SUM(D236:O236) -> 0
A237: =A236+1 -> 19 | B237: Finaled Bills | D237: 0 | E237: 0 | F237: 0 | G237: 0 | H237: 0 | I237: 0 | J237: 0 | K237: 0 | L237: 0 | M237: 0 | N237: 0 | O237: 0 | P237: =SUM(D237:O237) -> 0
A238: =A237+1 -> 20 | B238: Adjusted Bills | D238: =SUM(D235:D237) -> 2 | E238: 2 | F238: 2 | G238: 2 | H238: 2 | I238: 2 | J238: 2 | K238: 2 | L238: 2 | M238: 2 | N238: 2 | O238: 2 | P238: =SUM(D238:O238) -> 24
A240: =A238+1 -> 21 | B240: Rate Schedule SAS - Commercial
A241: =A240+1 -> 22 | B241: Bills | D241: 0 | E241: 0 | F241: 0 | G241: 0 | H241: 0 | I241: 0 | J241: 0 | K241: 0 | L241: 0 | M241: 0 | N241: 0 | O241: 0 | P241: =SUM(D241:O241) -> 0
A242: =A241+1 -> 23 | B242: Industrial Adjustment | C242: (WPM-D) | D242: ='D pg 1'!D21 -> 0 | E242: ='D pg 1'!E21 -> 0 | F242: ='D pg 1'!F21 -> 0 | G242: ='D pg 1'!G21 -> 0 | H242: ='D pg 1'!H21 -> 0 | I242: ='D pg 1'!I21 -> 0 | J242: ='D pg 1'!J21 -> 0 | K242: ='D pg 1'!K21 -> 0 | L242: ='D pg 1'!L21 -> 0 | M242: ='D pg 1'!M21 -> 0 | N242: ='D pg 1'!N21 -> 0 | O242: ='D pg 1'!O21 -> 0 | P242: =SUM(D242:O242) -> 0
A243: =A242+1 -> 24 | B243: Finaled Bills | D243: 0 | E243: 0 | F243: 0 | G243: 0 | H243: 0 | I243: 0 | J243: 0 | K243: 0 | L243: 0 | M243: 0 | N243: 0 | O243: 0 | P243: =SUM(D243:O243) -> 0
A244: =A243+1 -> 25 | B244: Adjusted Bills | D244: =SUM(D241:D243) -> 0 | E244: 0 | F244: 0 | G244: 0 | H244: 0 | I244: 0 | J244: 0 | K244: 0 | L244: 0 | M244: 0 | N244: 0 | O244: 0 | P244: =SUM(D244:O244) -> 0
A246: Columbia Gas of Kentucky, Inc.
A247: Number of Bills
A248: =A3 -> For the 12 Months Ended December 31, 2027
A250: =$A$5 -> Data: __ Base Period_X_Forecasted Period
A251: =$A$6 -> Type of Filing: X Original _ Update _ Revised
A252: =$A$7 -> Work Paper Reference No(s): | P252: =$P$7 -> Workpaper WPM-B.2
... 29 more rows

Sheet C
A1: =CONAME -> Columbia Gas of Kentucky, Inc.
A2: Volumes (Mcf)
A3: =TYDESC -> For the 12 Months Ended December 31, 2027
A5: Data: __ Base Period_X_Forecasted Period | P5: Workpaper WPM-C.2
A6: Type of Filing: X Original _ Update _ Revised | P6: Sheet 1 of 8
A7: Work Paper Reference No(s):
A8: 12 Months Forecasted
A10: Line
A11: No. | B11: Description | C11: Reference | D11: =B!$D$11 -> Jan-27 | E11: =B!$E$11 -> Feb-27 | F11: =B!$F$11 -> Mar-27 | G11: =B!$G$11 -> Apr-27 | H11: =B!$H$11 -> May-27 | I11: =B!$I$11 -> Jun-27 | J11: =B!$J$11 -> Jul-27 | K11: =B!$K$11 -> Aug-27 | L11: =B!$L$11 -> Sep-27 | M11: =B!$M$11 -> Oct-27 | N11: =B!$N$11 -> Nov-27 | O11: =B!$O$11 -> Dec-27 | P11: Total
B12: (A) | C12: (B) | D12: (C) | E12: (D) | F12: (E) | G12: (F) | H12: (G) | I12: (H) | J12: (I) | K12: (J) | L12: (K) | M12: (L) | N12: (M) | O12: (N) | P12: (O)
A14: 1 | B14: Rate Schedule GSR - Residential
A15: =A14+1 -> 2 | B15: Volumes | D15: 1539508.5 | E15: 1504722.5 | F15: 1140517.2 | G15: 682423.5 | H15: 308086.1 | I15: 155975.3 | J15: 96742.5 | K15: 95698.7 | L15: 105791.5 | M15: 166763.7 | N15: 451434.4 | O15: 1124299.3 | P15: =SUM(D15:O15) -> 7371963.2
A16: =A15+1 -> 3 | B16: Industrial Adjustment | C16: (WPM-D) | D16: 0 | E16: 0 | F16: 0 | G16: 0 | H16: 0 | I16: 0 | J16: 0 | K16: 0 | L16: 0 | M16: 0 | N16: 0 | O16: 0 | P16: =SUM(D16:O16) -> 0
A17: =A16+1 -> 4 | B17: Adjusted Volumes | D17: =SUM(D15:D16) -> 1539508.5 | E17: 1504722.5 | F17: 1140517.2 | G17: 682423.5 | H17: 308086.1 | I17: 155975.3 | J17: 96742.5 | K17: 95698.7 | L17: 105791.5 | M17: 166763.7 | N17: 451434.4 | O17: 1124299.3 | P17: =SUM(D17:O17) -> 7371963.2
A19: =A17+1 -> 5 | B19: Rate Schedule G1C - Commercial
A20: =A19+1 -> 6 | B20: Volumes | D20: 0 | E20: 0 | F20: 0 | G20: 0 | H20: 0 | I20: 0 | J20: 0 | K20: 0 | L20: 0 | M20: 0 | N20: 0 | O20: 0 | P20: =SUM(D20:O20) -> 0
A21: =A20+1 -> 7 | B21: Industrial Adjustment | C21: (WPM-D) | D21: 0 | E21: 0 | F21: 0 | G21: 0 | H21: 0 | I21: 0 | J21: 0 | K21: 0 | L21: 0 | M21: 0 | N21: 0 | O21: 0 | P21: =SUM(D21:O21) -> 0
A22: =A21+1 -> 8 | B22: Adjusted Volumes | D22: =SUM(D20:D21) -> 0 | E22: 0 | F22: 0 | G22: 0 | H22: 0 | I22: 0 | J22: 0 | K22: 0 | L22: 0 | M22: 0 | N22: 0 | O22: 0 | P22: =SUM(D22:O22) -> 0
A24: =A22+1 -> 9 | B24: Rate Schedule G1R - Residential
A25: =A24+1 -> 10 | B25: Volumes | D25: 84.5 | E25: 89.9 | F25: 71.5 | G25: 47.8 | H25: 16.6 | I25: 8.9 | J25: 4.4 | K25: 4.7 | L25: 4.3 | M25: 7.2 | N25: 26.9 | O25: 58.8 | P25: =SUM(D25:O25) -> 425.5
A26: =A25+1 -> 11 | B26: Industrial Adjustment | C26: (WPM-D) | D26: 0 | E26: 0 | F26: 0 | G26: 0 | H26: 0 | I26: 0 | J26: 0 | K26: 0 | L26: 0 | M26: 0 | N26: 0 | O26: 0 | P26: =SUM(D26:O26) -> 0
A27: =A26+1 -> 12 | B27: Adjusted Volumes | D27: =SUM(D25:D26) -> 84.5 | E27: 89.9 | F27: 71.5 | G27: 47.8 | H27: 16.6 | I27: 8.9 | J27: 4.4 | K27: 4.7 | L27: 4.3 | M27: 7.2 | N27: 26.9 | O27: 58.8 | P27: =SUM(D27:O27) -> 425.5
A29: =A27+1 -> 13 | B29: Rate Schedule IN3 - Residential
A30: =A29+1 -> 14 | B30: Volumes | D30: 188 | E30: 159 | F30: 103.4 | G30: 69.4 | H30: 31.7 | I30: 14 | J30: 6 | K30: 7.1 | L30: 7.7 | M30: 26.3 | N30: 61.6 | O30: 135.8 | P30: =SUM(D30:O30) -> 810
A31: =A30+1 -> 15 | B31: Industrial Adjustment | C31: (WPM-D) | D31: 0 | E31: 0 | F31: 0 | G31: 0 | H31: 0 | I31: 0 | J31: 0 | K31: 0 | L31: 0 | M31: 0 | N31: 0 | O31: 0 | P31: =SUM(D31:O31) -> 0
A32: =A31+1 -> 16 | B32: Adjusted Volumes | D32: =SUM(D30:D31) -> 188 | E32: 159 | F32: 103.4 | G32: 69.4 | H32: 31.7 | I32: 14 | J32: 6 | K32: 7.1 | L32: 7.7 | M32: 26.3 | N32: 61.6 | O32: 135.8 | P32: =SUM(D32:O32) -> 810
A34: =A32+1 -> 17 | B34: Rate Schedule IN4 - Residential
A35: =A34+1 -> 18 | B35: Volumes | D35: 0 | E35: 0 | F35: 0 | G35: 0 | H35: 0 | I35: 0 | J35: 0 | K35: 0 | L35: 0 | M35: 0 | N35: 0 | O35: 0 | P35: =SUM(D35:O35) -> 0
A36: =A35+1 -> 19 | B36: Industrial Adjustment | C36: (WPM-D) | D36: 0 | E36: 0 | F36: 0 | G36: 0 | H36: 0 | I36: 0 | J36: 0 | K36: 0 | L36: 0 | M36: 0 | N36: 0 | O36: 0 | P36: =SUM(D36:O36) -> 0
A37: =A36+1 -> 20 | B37: Adjusted Volumes | D37: =SUM(D35:D36) -> 0 | E37: 0 | F37: 0 | G37: 0 | H37: 0 | I37: 0 | J37: 0 | K37: 0 | L37: 0 | M37: 0 | N37: 0 | O37: 0 | P37: =SUM(D37:O37) -> 0
A39: =A37+1 -> 21 | B39: Rate Schedule IN5 - Residential
A40: =A39+1 -> 22 | B40: Volumes | D40: 47.1 | E40: 21.1 | F40: 10.8 | G40: 6.7 | H40: 2.9 | I40: 0.6 | J40: 0.5 | K40: 0.4 | L40: 0.5 | M40: 0.6 | N40: 4.7 | O40: 23.3 | P40: =SUM(D40:O40) -> 119.2
A41: =A40+1 -> 23 | B41: Industrial Adjustment | C41: (WPM-D) | D41: 0 | E41: 0 | F41: 0 | G41: 0 | H41: 0 | I41: 0 | J41: 0 | K41: 0 | L41: 0 | M41: 0 | N41: 0 | O41: 0 | P41: =SUM(D41:O41) -> 0
A42: =A41+1 -> 24 | B42: Adjusted Volumes | D42: =SUM(D40:D41) -> 47.1 | E42: 21.1 | F42: 10.8 | G42: 6.7 | H42: 2.9 | I42: 0.6 | J42: 0.5 | K42: 0.4 | L42: 0.5 | M42: 0.6 | N42: 4.7 | O42: 23.3 | P42: =SUM(D42:O42) -> 119.2
A44: =A42+1 -> 25 | B44: Rate Schedule LG2 - Residential
A45: =A44+1 -> 26 | B45: Volumes | D45: 134.2 | E45: 86 | F45: 65.9 | G45: 0 | H45: 0 | I45: 5.6 | J45: 2.6 | K45: 2.8 | L45: 2.2 | M45: 4 | N45: 23.3 | O45: 84.3 | P45: =SUM(D45:O45) -> 410.9
A46: =A45+1 -> 27 | B46: Industrial Adjustment | C46: (WPM-D) | D46: 0 | E46: 0 | F46: 0 | G46: 0 | H46: 0 | I46: 0 | J46: 0 | K46: 0 | L46: 0 | M46: 0 | N46: 0 | O46: 0 | P46: =SUM(D46:O46) -> 0
A47: =A46+1 -> 28 | B47: Adjusted Volumes | D47: =SUM(D45:D46) -> 134.2 | E47: 86 | F47: 65.9 | G47: 0 | H47: 0 | I47: 5.6 | J47: 2.6 | K47: 2.8 | L47: 2.2 | M47: 4 | N47: 23.3 | O47: 84.3 | P47: =SUM(D47:O47) -> 410.9
A49: =A47+1 -> 29 | B49: Rate Schedule LG2 - Commercial
A50: =A49+1 -> 30 | B50: Volumes | D50: 0 | E50: 0 | F50: 0 | G50: 0 | H50: 0 | I50: 0 | J50: 0 | K50: 0 | L50: 0 | M50: 0 | N50: 0 | O50: 0 | P50: =SUM(D50:O50) -> 0
A51: =A50+1 -> 31 | B51: Industrial Adjustment | C51: (WPM-D) | D51: 0 | E51: 0 | F51: 0 | G51: 0 | H51: 0 | I51: 0 | J51: 0 | K51: 0 | L51: 0 | M51: 0 | N51: 0 | O51: 0 | P51: =SUM(D51:O51) -> 0
A52: =A51+1 -> 32 | B52: Adjusted Volumes | D52: =SUM(D50:D51) -> 0 | E52: 0 | F52: 0 | G52: 0 | H52: 0 | I52: 0 | J52: 0 | K52: 0 | L52: 0 | M52: 0 | N52: 0 | O52: 0 | P52: =SUM(D52:O52) -> 0
A54: =CONAME -> Columbia Gas of Kentucky, Inc.
A55: Volumes (Mcf)
A56: =TYDESC -> For the 12 Months Ended December 31, 2027
A58: =$A$5 -> Data: __ Base Period_X_Forecasted Period | P58: =$P$5 -> Workpaper WPM-C.2
A59: =$A$6 -> Type of Filing: X Original _ Update _ Revised | P59: Sheet 2 of 8
A60: =$A$7 -> Work Paper Reference No(s):
A61: =$A$8 -> 12 Months Forecasted
A63: Line
A64: No. | B64: Description | C64: Reference | D64: =B!$D$11 -> Jan-27 | E64: =B!$E$11 -> Feb-27 | F64: =B!$F$11 -> Mar-27 | G64: =B!$G$11 -> Apr-27 | H64: =B!$H$11 -> May-27 | I64: =B!$I$11 -> Jun-27 | J64: =B!$J$11 -> Jul-27 | K64: =B!$K$11 -> Aug-27 | L64: =B!$L$11 -> Sep-27 | M64: =B!$M$11 -> Oct-27 | N64: =B!$N$11 -> Nov-27 | O64: =B!$O$11 -> Dec-27 | P64: Total
B65: (A) | C65: (B) | D65: (C) | E65: (D) | F65: (E) | G65: (F) | H65: (G) | I65: (H) | J65: (I) | K65: (J) | L65: (K) | M65: (L) | N65: (M) | O65: (N) | P65: (O)
A67: 1 | B67: Rate Schedule LG3 - Residential
A68: =A67+1 -> 2 | B68: Volumes
A69: =A68+1 -> 3 | B69: First 2 Mcf | D69: 2 | E69: 2 | F69: 2 | G69: 2 | H69: 2 | I69: =2+0.4 -> 2.4 | J69: 2 | K69: 2 | L69: 2 | M69: 2 | N69: 2 | O69: 2 | P69: =SUM(D69:O69) -> 24.4
A70: =A69+1 -> 4 | B70: Over 2 Mcf | D70: =D71-D69 -> 93.8 | E70: =E71-E69 -> 66.3 | F70: 36 | G70: 29 | H70: 11.1 | I70: 8.2 | J70: 8 | K70: 7.5 | L70: 7.9 | M70: 19.3 | N70: 38.1 | O70: 66.7 | P70: =SUM(D70:O70) -> 391.9
A71: =A70+1 -> 5 | B71: Volumes | D71: 95.8 | E71: 68.3 | F71: 38 | G71: 31 | H71: 13.1 | I71: 10.6 | J71: 10 | K71: 9.5 | L71: 9.9 | M71: 21.3 | N71: 40.1 | O71: 68.7 | P71: =SUM(D71:O71) -> 416.3
A73: =A71+1 -> 6 | B73: Rate Schedule LG4 - Residential
A74: =A73+1 -> 7 | B74: Volumes | D74: 0 | E74: 0 | F74: 0 | G74: 0 | H74: 0 | I74: 0 | J74: 0 | K74: 0 | L74: 0 | M74: 0 | N74: 0 | O74: 0 | P74: =SUM(D74:O74) -> 0
A75: =A74+1 -> 8 | B75: Industrial Adjustment | C75: (WPM-D) | D75: 0 | E75: 0 | F75: 0 | G75: 0 | H75: 0 | I75: 0 | J75: 0 | K75: 0 | L75: 0 | M75: 0 | N75: 0 | O75: 0 | P75: =SUM(D75:O75) -> 0
A76: =A75+1 -> 9 | B76: Adjusted Volumes | D76: =SUM(D74:D75) -> 0 | E76: 0 | F76: 0 | G76: 0 | H76: 0 | I76: 0 | J76: 0 | K76: 0 | L76: 0 | M76: 0 | N76: 0 | O76: 0 | P76: =SUM(D76:O76) -> 0
A78: =A76+1 -> 10 | B78: Rate Schedule GSO - Commercial
A79: =A78+1 -> 11 | B79: Volumes
A80: =A79+1 -> 12 | B80: First 50 Mcf | D80: 335953.2 | E80: 338950.3 | F80: 279311.8 | G80: 196593.8 | H80: 111497.3 | I80: 78986.6 | J80: 66587.2 | K80: 67738.9 | L80: 68499.2 | M80: 80966.5 | N80: 161142.7 | O80: 284654.2 | P80: =SUM(D80:O80) -> 2070881.7
A81: =A80+1 -> 13 | B81: Next 350 Mcf | D81: 336782.8 | E81: 331396 | F81: 231280.3 | G81: 144761.2 | H81: 72190.7 | I81: 50447.9 | J81: 38504.8 | K81: 41173.4 | L81: 41123.1 | M81: 57589.8 | N81: 102945.7 | O81: 240754.6 | P81: =SUM(D81:O81) -> 1688950.3
A82: =A81+1 -> 14 | B82: Next 600 Mcf | D82: 83501 | E82: 81577.2 | F82: 51503.7 | G82: 26446.1 | H82: 14477.4 | I82: 10486.7 | J82: 8884.5 | K82: 9552.8 | L82: 8971.4 | M82: 14504.1 | N82: 20730.7 | O82: 54698.9 | P82: =SUM(D82:O82) -> 385334.5
A83: =A82+1 -> 15 | B83: Over 1,000 Mcf | D83: 53379.8 | E83: 48852.8 | F83: 32211.7 | G83: 16120.8 | H83: 18828.4 | I83: 12830.8 | J83: 9139.7 | K83: 12183.2 | L83: 9839.6 | M83: 15667.5 | N83: 15763.6 | O83: 29248.7 | P83: =SUM(D83:O83) -> 274066.6
D84: =SUM(D80:D83) -> 809616.8 | E84: 800776.3 | F84: 594307.5 | G84: 383921.9 | H84: 216993.8 | I84: 152752 | J84: 123116.2 | K84: 130648.3 | L84: 128433.3 | M84: 168727.9 | N84: 300582.7 | O84: =SUM(O80:O83) -> 609356.4 | P84: =SUM(D84:O84) -> 4419233.1
A85: =A83+1 -> 16 | B85: Industrial Adjustment | C85: (WPM-D)
A86: =A85+1 -> 17 | B86: =B80 -> First 50 Mcf | D86: ='D pg 1'!D29 -> 0 | E86: ='D pg 1'!E29 -> 0 | F86: ='D pg 1'!F29 -> 0 | G86: ='D pg 1'!G29 -> 0 | H86: ='D pg 1'!H29 -> 0 | I86: ='D pg 1'!I29 -> 0 | J86: ='D pg 1'!J29 -> 0 | K86: ='D pg 1'!K29 -> 0 | L86: ='D pg 1'!L29 -> 0 | M86: ='D pg 1'!M29 -> 0 | N86: ='D pg 1'!N29 -> 0 | O86: ='D pg 1'!O29 -> 0 | P86: =SUM(D86:O86) -> 0
A87: =A86+1 -> 18 | B87: =B81 -> Next 350 Mcf | D87: ='D pg 1'!D30 -> 0 | E87: ='D pg 1'!E30 -> 0 | F87: ='D pg 1'!F30 -> 0 | G87: ='D pg 1'!G30 -> 0 | H87: ='D pg 1'!H30 -> 0 | I87: ='D pg 1'!I30 -> 0 | J87: ='D pg 1'!J30 -> 0 | K87: ='D pg 1'!K30 -> 0 | L87: ='D pg 1'!L30 -> 0 | M87: ='D pg 1'!M30 -> 0 | N87: ='D pg 1'!N30 -> 0 | O87: ='D pg 1'!O30 -> 0 | P87: =SUM(D87:O87) -> 0
A88: =A87+1 -> 19 | B88: =B82 -> Next 600 Mcf | D88: ='D pg 1'!D31 -> 0 | E88: ='D pg 1'!E31 -> 0 | F88: ='D pg 1'!F31 -> 0 | G88: ='D pg 1'!G31 -> 0 | H88: ='D pg 1'!H31 -> 0 | I88: ='D pg 1'!I31 -> 0 | J88: ='D pg 1'!J31 -> 0 | K88: ='D pg 1'!K31 -> 0 | L88: ='D pg 1'!L31 -> 0 | M88: ='D pg 1'!M31 -> 0 | N88: ='D pg 1'!N31 -> 0 | O88: ='D pg 1'!O31 -> 0 | P88: =SUM(D88:O88) -> 0
A89: =A88+1 -> 20 | B89: =B83 -> Over 1,000 Mcf | D89: ='D pg 1'!D32 -> 0 | E89: ='D pg 1'!E32 -> 0 | F89: ='D pg 1'!F32 -> 0 | G89: ='D pg 1'!G32 -> 0 | H89: ='D pg 1'!H32 -> 0 | I89: ='D pg 1'!I32 -> 0 | J89: ='D pg 1'!J32 -> 0 | K89: ='D pg 1'!K32 -> 0 | L89: ='D pg 1'!L32 -> 0 | M89: ='D pg 1'!M32 -> 0 | N89: ='D pg 1'!N32 -> 0 | O89: ='D pg 1'!O32 -> 0 | P89: =SUM(D89:O89) -> 0
D90: =SUM(D86:D89) -> 0 | E90: 0 | F90: 0 | G90: 0 | H90: 0 | I90: 0 | J90: 0 | K90: 0 | L90: 0 | M90: 0 | N90: 0 | O90: =SUM(O86:O89) -> 0 | P90: =SUM(D90:O90) -> 0
A91: =A89+1 -> 21 | B91: Adjusted Volumes
A92: =A91+1 -> 22 | B92: =B80 -> First 50 Mcf | D92: =D80+D86 -> 335953.2 | E92: =E80+E86 -> 338950.3 | F92: 279311.8 | G92: 196593.8 | H92: 111497.3 | I92: 78986.6 | J92: 66587.2 | K92: 67738.9 | L92: 68499.2 | M92: 80966.5 | N92: 161142.7 | O92: 284654.2 | P92: =SUM(D92:O92) -> 2070881.7
A93: =A92+1 -> 23 | B93: =B81 -> Next 350 Mcf | D93: =D81+D87 -> 336782.8 | E93: 331396 | F93: 231280.3 | G93: 144761.2 | H93: 72190.7 | I93: 50447.9 | J93: 38504.8 | K93: 41173.4 | L93: 41123.1 | M93: 57589.8 | N93: 102945.7 | O93: 240754.6 | P93: =SUM(D93:O93) -> 1688950.3
A94: =A93+1 -> 24 | B94: =B82 -> Next 600 Mcf | D94: 83501 | E94: 81577.2 | F94: 51503.7 | G94: 26446.1 | H94: 14477.4 | I94: 10486.7 | J94: 8884.5 | K94: 9552.8 | L94: 8971.4 | M94: 14504.1 | N94: 20730.7 | O94: 54698.9 | P94: =SUM(D94:O94) -> 385334.5
A95: =A94+1 -> 25 | B95: =B83 -> Over 1,000 Mcf | D95: 53379.8 | E95: 48852.8 | F95: 32211.7 | G95: 16120.8 | H95: 18828.4 | I95: 12830.8 | J95: 9139.7 | K95: 12183.2 | L95: 9839.6 | M95: 15667.5 | N95: 15763.6 | O95: 29248.7 | P95: =SUM(D95:O95) -> 274066.6
A96: =A95+1 -> 26 | B96: Adjusted Volumes | D96: =D84+D90 -> 809616.8 | E96: =E84+E90 -> 800776.3 | F96: 594307.5 | G96: 383921.9 | H96: 216993.8 | I96: 152752 | J96: 123116.2 | K96: 130648.3 | L96: 128433.3 | M96: 168727.9 | N96: 300582.7 | O96: 609356.4 | P96: =SUM(D96:O96) -> 4419233.1
A98: =CONAME -> Columbia Gas of Kentucky, Inc.
A99: Volumes (Mcf)
A100: =TYDESC -> For the 12 Months Ended December 31, 2027
A102: =$A$5 -> Data: __ Base Period_X_Forecasted Period | P102: =$P$5 -> Workpaper WPM-C.2
A103: =$A$6 -> Type of Filing: X Original _ Update _ Revised | P103: Sheet 3 of 8
A104: =$A$7 -> Work Paper Reference No(s):
A105: =$A$8 -> 12 Months Forecasted
A107: Line
A108: No. | B108: Description | C108: Reference | D108: =B!$D$11 -> Jan-27 | E108: =B!$E$11 -> Feb-27 | F108: =B!$F$11 -> Mar-27 | G108: =B!$G$11 -> Apr-27 | H108: =B!$H$11 -> May-27 | I108: =B!$I$11 -> Jun-27 | J108: =B!$J$11 -> Jul-27 | K108: =B!$K$11 -> Aug-27 | L108: =B!$L$11 -> Sep-27 | M108: =B!$M$11 -> Oct-27 | N108: =B!$N$11 -> Nov-27 | O108: =B!$O$11 -> Dec-27 | P108: Total
B109: (A) | C109: (B) | D109: (C) | E109: (D) | F109: (E) | G109: (F) | H109: (G) | I109: (H) | J109: (I) | K109: (J) | L109: (K) | M109: (L) | N109: (M) | O109: (N) | P109: (O)
A111: =A109+1 -> 1 | B111: Rate Schedule GSO - Industrial
A112: =A111+1 -> 2 | B112: Volumes
A113: =A112+1 -> 3 | B113: First 50 Mcf | D113: =2085.8+50 -> 2135.8 | E113: 2169.2 | F113: 2210 | G113: 2039.4 | H113: 1466.2 | I113: =979.9+50 -> 1029.9 | J113: 877.1 | K113: 894.2 | L113: 1000.3 | M113: 1148.7 | N113: =1760.9+50 -> 1810.9 | O113: 2086.2 | P113: =SUM(D113:O113) -> 18867.9
A114: =A113+1 -> 4 | B114: Next 350 Mcf | D114: =9634.3+350 -> 9984.3 | E114: 9677.8 | F114: 9429.4 | G114: 8343.8 | H114: 6136.2 | I114: =4312.1+350 -> 4662.1 | J114: 4138.1 | K114: 3988.8 | L114: 4209.3 | M114: 4713.5 | N114: =7180+350 -> 7530 | O114: 10392.4 | P114: =SUM(D114:O114) -> 83205.7
A115: =A114+1 -> 5 | B115: Next 600 Mcf | D115: =7800.1+600 -> 8400.1 | E115: 8434.2 | F115: 7633.1 | G115: 7243.1 | H115: 5189.6 | I115: =3897.9+600 -> 4497.9 | J115: 3557.8 | K115: 3950.3 | L115: 3760.7 | M115: 3994.7 | N115: =6143.3+554 -> 6697.3 | O115: 8309 | P115: =SUM(D115:O115) -> 71667.8
A116: =A115+1 -> 6 | B116: Over 1,000 Mcf | D116: =11360.1+582 -> 11942.1 | E116: 10948.8 | F116: 8354.5 | G116: 7831.6 | H116: 8200 | I116: =6900+1274 -> 8174 | J116: 4300 | K116: 5900 | L116: 5000 | M116: 5700 | N116: 7409.6 | O116: 10564.3 | P116: =SUM(D116:O116) -> 94324.9
D117: =SUM(D113:D116) -> 32462.3 | E117: 31230 | F117: 27627 | G117: 25457.9 | H117: 20992 | I117: 18363.9 | J117: 12873 | K117: 14733.3 | L117: 13970.3 | M117: 15556.9 | N117: 23447.8 | O117: 31351.9 | P117: =SUM(D117:O117) -> 268066.3
A118: =A116+1 -> 7 | B118: Industrial Adjustment | C118: (WPM-D)
A119: =A118+1 -> 8 | B119: =B113 -> First 50 Mcf | D119: ='D pg 1'!D36 -> 0 | E119: ='D pg 1'!E36 -> 0 | F119: ='D pg 1'!F36 -> 0 | G119: ='D pg 1'!G36 -> 0 | H119: ='D pg 1'!H36 -> 0 | I119: ='D pg 1'!I36 -> 0 | J119: ='D pg 1'!J36 -> 0 | K119: ='D pg 1'!K36 -> 0 | L119: ='D pg 1'!L36 -> 0 | M119: ='D pg 1'!M36 -> 0 | N119: ='D pg 1'!N36 -> 0 | O119: ='D pg 1'!O36 -> 0 | P119: =SUM(D119:O119) -> 0
A120: =A119+1 -> 9 | B120: =B114 -> Next 350 Mcf | D120: ='D pg 1'!D37 -> 0 | E120: ='D pg 1'!E37 -> 0 | F120: ='D pg 1'!F37 -> 0 | G120: ='D pg 1'!G37 -> 0 | H120: ='D pg 1'!H37 -> 0 | I120: ='D pg 1'!I37 -> 0 | J120: ='D pg 1'!J37 -> 0 | K120: ='D pg 1'!K37 -> 0 | L120: ='D pg 1'!L37 -> 0 | M120: ='D pg 1'!M37 -> 0 | N120: ='D pg 1'!N37 -> 0 | O120: ='D pg 1'!O37 -> 0 | P120: =SUM(D120:O120) -> 0
A121: =A120+1 -> 10 | B121: =B115 -> Next 600 Mcf | D121: ='D pg 1'!D38 -> 0 | E121: ='D pg 1'!E38 -> 0 | F121: ='D pg 1'!F38 -> 0 | G121: ='D pg 1'!G38 -> 0 | H121: ='D pg 1'!H38 -> 0 | I121: ='D pg 1'!I38 -> 0 | J121: ='D pg 1'!J38 -> 0 | K121: ='D pg 1'!K38 -> 0 | L121: ='D pg 1'!L38 -> 0 | M121: ='D pg 1'!M38 -> 0 | N121: ='D pg 1'!N38 -> 0 | O121: ='D pg 1'!O38 -> 0 | P121: =SUM(D121:O121) -> 0
A122: =A121+1 -> 11 | B122: =B116 -> Over 1,000 Mcf | D122: ='D pg 1'!D39 -> 0 | E122: ='D pg 1'!E39 -> 0 | F122: ='D pg 1'!F39 -> 0 | G122: ='D pg 1'!G39 -> 0 | H122: ='D pg 1'!H39 -> 0 | I122: ='D pg 1'!I39 -> 0 | J122: ='D pg 1'!J39 -> 0 | K122: ='D pg 1'!K39 -> 0 | L122: ='D pg 1'!L39 -> 0 | M122: ='D pg 1'!M39 -> 0 | N122: ='D pg 1'!N39 -> 0 | O122: ='D pg 1'!O39 -> 0 | P122: =SUM(D122:O122) -> 0
D123: =SUM(D119:D122) -> 0 | E123: 0 | F123: 0 | G123: 0 | H123: 0 | I123: 0 | J123: 0 | K123: 0 | L123: 0 | M123: 0 | N123: 0 | O123: 0 | P123: =SUM(D123:O123) -> 0
A124: =A122+1 -> 12 | B124: Adjusted Volumes
A125: =A124+1 -> 13 | B125: =B113 -> First 50 Mcf | D125: =D113+D119 -> 2135.8 | E125: 2169.2 | F125: 2210 | G125: 2039.4 | H125: 1466.2 | I125: 1029.9 | J125: 877.1 | K125: 894.2 | L125: 1000.3 | M125: 1148.7 | N125: 1810.9 | O125: 2086.2 | P125: =SUM(D125:O125) -> 18867.9
A126: =A125+1 -> 14 | B126: =B114 -> Next 350 Mcf | D126: =D114+D120 -> 9984.3 | E126: 9677.8 | F126: 9429.4 | G126: 8343.8 | H126: 6136.2 | I126: 4662.1 | J126: 4138.1 | K126: 3988.8 | L126: 4209.3 | M126: 4713.5 | N126: 7530 | O126: 10392.4 | P126: =SUM(D126:O126) -> 83205.7
A127: =A126+1 -> 15 | B127: =B115 -> Next 600 Mcf | D127: =D115+D121 -> 8400.1 | E127: 8434.2 | F127: 7633.1 | G127: 7243.1 | H127: 5189.6 | I127: 4497.9 | J127: 3557.8 | K127: 3950.3 | L127: 3760.7 | M127: 3994.7 | N127: 6697.3 | O127: 8309 | P127: =SUM(D127:O127) -> 71667.8
A128: =A127+1 -> 16 | B128: =B116 -> Over 1,000 Mcf | D128: =D116+D122 -> 11942.1 | E128: 10948.8 | F128: 8354.5 | G128: 7831.6 | H128: 8200 | I128: 8174 | J128: 4300 | K128: 5900 | L128: 5000 | M128: 5700 | N128: 7409.6 | O128: 10564.3 | P128: =SUM(D128:O128) -> 94324.9
A129: =A128+1 -> 17 | B129: Adjusted Volumes | D129: =D117+D123 -> 32462.3 | E129: 31230 | F129: 27627 | G129: 25457.9 | H129: 20992 | I129: 18363.9 | J129: 12873 | K129: 14733.3 | L129: 13970.3 | M129: 15556.9 | N129: 23447.8 | O129: 31351.9 | P129: =SUM(D129:O129) -> 268066.3
A131: =A129+1 -> 18 | B131: Rate Schedule IS - Industrial
A132: =A131+1 -> 19 | B132: Volumes
A133: =A132+1 -> 20 | B133: First 30,000 Mcf | D133: 0 | E133: 0 | F133: 0 | G133: 0 | H133: 0 | I133: 0 | J133: 0 | K133: 0 | L133: 0 | M133: 0 | N133: 0 | O133: 0 | P133: =SUM(D133:O133) -> 0
A134: =A133+1 -> 21 | B134: Next 70,000 Mcf | D134: 0 | E134: 0 | F134: 0 | G134: 0 | H134: 0 | I134: 0 | J134: 0 | K134: 0 | L134: 0 | M134: 0 | N134: 0 | O134: 0 | P134: =SUM(D134:O134) -> 0
A135: 22 | B135: Over 100,000 Mcf | D135: 0 | E135: 0 | F135: 0 | G135: 0 | H135: 0 | I135: 0 | J135: 0 | K135: 0 | L135: 0 | M135: 0 | N135: 0 | O135: 0 | P135: =SUM(D135:O135) -> 0
A136: =A135+1 -> 23 | B136: Volumes | D136: =SUM(D133:D135) -> 0 | E136: =SUM(E133:E135) -> 0 | F136: 0 | G136: 0 | H136: 0 | I136: 0 | J136: 0 | K136: 0 | L136: 0 | M136: 0 | N136: 0 | O136: =SUM(O133:O135) -> 0 | P136: =SUM(D136:O136) -> 0
A138: =A136+1 -> 24 | B138: Rate Schedule IUS - Wholesale
A139: =A138+1 -> 25 | B139: Volumes | D139: 1737 | E139: 2033 | F139: 1295 | G139: 576 | H139: 412 | I139: 320 | J139: 248 | K139: 259 | L139: 310 | M139: 470 | N139: 950 | O139: 1991 | P139: =SUM(D139:O139) -> 10601
A140: =A139+1 -> 26 | B140: Industrial Adjustment | C140: (WPM-D) | D140: 0 | E140: 0 | F140: 0 | G140: 0 | H140: 0 | I140: 0 | J140: 0 | K140: 0 | L140: 0 | M140: 0 | N140: 0 | O140: 0 | P140: =SUM(D140:O140) -> 0
A141: =A140+1 -> 27 | B141: Adjusted Volumes | D141: =SUM(D139:D140) -> 1737 | E141: 2033 | F141: 1295 | G141: 576 | H141: 412 | I141: 320 | J141: 248 | K141: 259 | L141: 310 | M141: 470 | N141: 950 | O141: 1991 | P141: =SUM(D141:O141) -> 10601
A143: =CONAME -> Columbia Gas of Kentucky, Inc.
A144: Volumes (Mcf)
A145: =TYDESC -> For the 12 Months Ended December 31, 2027
A147: =$A$5 -> Data: __ Base Period_X_Forecasted Period | P147: =$P$5 -> Workpaper WPM-C.2
A148: =$A$6 -> Type of Filing: X Original _ Update _ Revised | P148: Sheet 4 of 8
A149: =$A$7 -> Work Paper Reference No(s):
A150: =$A$8 -> 12 Months Forecasted
A152: Line
A153: No. | B153: Description | C153: Reference | D153: =B!$D$11 -> Jan-27 | E153: =B!$E$11 -> Feb-27 | F153: =B!$F$11 -> Mar-27 | G153: =B!$G$11 -> Apr-27 | H153: =B!$H$11 -> May-27 | I153: =B!$I$11 -> Jun-27 | J153: =B!$J$11 -> Jul-27 | K153: =B!$K$11 -> Aug-27 | L153: =B!$L$11 -> Sep-27 | M153: =B!$M$11 -> Oct-27 | N153: =B!$N$11 -> Nov-27 | O153: =B!$O$11 -> Dec-27 | P153: Total
B154: (A) | C154: (B) | D154: (C) | E154: (D) | F154: (E) | G154: (F) | H154: (G) | I154: (H) | J154: (I) | K154: (J) | L154: (K) | M154: (L) | N154: (M) | O154: (N) | P154: (O)
A156: 1 | B156: Tariff Sales Summary by Customer Class
A158: =A156+1 -> 2 | B158: Total Residential Sales
A159: =A158+1 -> 3 | B159: Volumes | D159: =D15+D25+D30+D35+D40+D45+D71+D74 -> 1540058.1 | E159: 1505146.8 | F159: 1140806.8 | G159: 682578.4 | H159: 308150.4 | I159: 156015 | J159: 96766 | K159: 95723.2 | L159: 105816.1 | M159: 166823.1 | N159: 451591 | O159: 1124670.2 | P159: =SUM(D159:O159) -> 7374145.1
A160: =A159+1 -> 4 | B160: Industrial Adjustment | D160: =D16+D26+D31+D36+D41+D46+D75 -> 0 | E160: 0 | F160: 0 | G160: 0 | H160: 0 | I160: 0 | J160: 0 | K160: 0 | L160: 0 | M160: 0 | N160: 0 | O160: 0 | P160: 0
A161: =A160+1 -> 5 | B161: Adjusted Volumes | D161: =SUM(D159:D160) -> 1540058.1 | E161: 1505146.8 | F161: 1140806.8 | G161: 682578.4 | H161: 308150.4 | I161: 156015 | J161: 96766 | K161: 95723.2 | L161: 105816.1 | M161: 166823.1 | N161: 451591 | O161: 1124670.2 | P161: =SUM(D161:O161) -> 7374145.1
A163: =A161+1 -> 6 | B163: Total Commercial Sales
A164: =A163+1 -> 7 | B164: Volumes | D164: =D20+D50+D84 -> 809616.8 | E164: =E20+E50+E84 -> 800776.3 | F164: 594307.5 | G164: 383921.9 | H164: 216993.8 | I164: 152752 | J164: 123116.2 | K164: 130648.3 | L164: 128433.3 | M164: 168727.9 | N164: 300582.7 | O164: 609356.4 | P164: 4419233.1
A165: =A164+1 -> 8 | B165: Industrial Adjustment | D165: =D21+D51+D90 -> 0 | E165: 0 | F165: 0 | G165: 0 | H165: 0 | I165: 0 | J165: 0 | K165: 0 | L165: 0 | M165: 0 | N165: 0 | O165: 0 | P165: 0
A166: =A165+1 -> 9 | B166: Adjusted Volumes | D166: =SUM(D164:D165) -> 809616.8 | E166: 800776.3 | F166: 594307.5 | G166: 383921.9 | H166: 216993.8 | I166: 152752 | J166: 123116.2 | K166: 130648.3 | L166: 128433.3 | M166: 168727.9 | N166: 300582.7 | O166: 609356.4 | P166: =SUM(D166:O166) -> 4419233.1
A168: =A166+1 -> 10 | B168: Total Industrial Sales
A169: =A168+1 -> 11 | B169: Volumes | D169: =D117+D136 -> 32462.3 | E169: =E117+E136 -> 31230 | F169: 27627 | G169: 25457.9 | H169: 20992 | I169: 18363.9 | J169: 12873 | K169: 14733.3 | L169: 13970.3 | M169: 15556.9 | N169: 23447.8 | O169: 31351.9 | P169: 268066.3
A170: =A169+1 -> 12 | B170: Industrial Adjustment | D170: =D123 -> 0 | E170: =E123 -> 0 | F170: 0 | G170: 0 | H170: 0 | I170: 0 | J170: 0 | K170: 0 | L170: 0 | M170: 0 | N170: 0 | O170: 0 | P170: 0
A171: =A170+1 -> 13 | B171: Adjusted Volumes | D171: =SUM(D169:D170) -> 32462.3 | E171: 31230 | F171: 27627 | G171: 25457.9 | H171: 20992 | I171: 18363.9 | J171: 12873 | K171: 14733.3 | L171: 13970.3 | M171: 15556.9 | N171: 23447.8 | O171: 31351.9 | P171: =SUM(D171:O171) -> 268066.3
A173: =A171+1 -> 14 | B173: Total Wholesale Sales
A174: =A173+1 -> 15 | B174: Volumes | D174: =D139 -> 1737 | E174: 2033 | F174: 1295 | G174: 576 | H174: 412 | I174: 320 | J174: 248 | K174: 259 | L174: 310 | M174: 470 | N174: 950 | O174: 1991 | P174: =SUM(D174:O174) -> 10601
A175: =A174+1 -> 16 | B175: Industrial Adjustment | D175: =D140 -> 0 | E175: 0 | F175: 0 | G175: 0 | H175: 0 | I175: 0 | J175: 0 | K175: 0 | L175: 0 | M175: 0 | N175: 0 | O175: 0 | P175: =SUM(D175:O175) -> 0
A176: =A175+1 -> 17 | B176: Adjusted Volumes | D176: =SUM(D174:D175) -> 1737 | E176: 2033 | F176: 1295 | G176: 576 | H176: 412 | I176: 320 | J176: 248 | K176: 259 | L176: 310 | M176: 470 | N176: 950 | O176: 1991 | P176: =SUM(D176:O176) -> 10601
A178: =A176+1 -> 18 | B178: Total Tariff Sales
A179: =A178+1 -> 19 | B179: Volumes | D179: =D159+D164+D169+D174 -> 2383874.2 | E179: 2339186.1 | F179: 1764036.3 | G179: 1092534.2 | H179: 546548.2 | I179: 327450.9 | J179: 233003.2 | K179: 241363.8 | L179: 248529.7 | M179: 351577.9 | N179: 776571.5 | O179: 1767369.5 | P179: =SUM(D179:O179) -> 12072045.5
A180: =A179+1 -> 20 | B180: Industrial Adjustment | D180: =D160+D165+D170+D175 -> 0 | E180: 0 | F180: 0 | G180: 0 | H180: 0 | I180: 0 | J180: 0 | K180: 0 | L180: 0 | M180: 0 | N180: 0 | O180: 0 | P180: =SUM(D180:O180) -> 0
A181: =A180+1 -> 21 | B181: Adjusted Volumes | D181: =SUM(D179:D180) -> 2383874.2 | E181: 2339186.1 | F181: 1764036.3 | G181: 1092534.2 | H181: 546548.2 | I181: 327450.9 | J181: 233003.2 | K181: 241363.8 | L181: 248529.7 | M181: 351577.9 | N181: 776571.5 | O181: 1767369.5 | P181: =SUM(D181:O181) -> 12072045.5
A184: =A181+1 -> 22 | B184: Rate Schedule GTR - Residential
A185: =A184+1 -> 23 | B185: Volumes | D185: 149336.7 | E185: 143923.5 | F185: 110860.6 | G185: 68262.7 | H185: 30289.8 | I185: 14748.6 | J185: 8535.4 | K185: 8539.5 | L185: 8611.3 | M185: 16362.3 | N185: 46480.2 | O185: 111402.2 | P185: =SUM(D185:O185) -> 717352.8
A186: =A185+1 -> 24 | B186: Industrial Adjustment | C186: (WPM-D) | D186: 0 | E186: 0 | F186: 0 | G186: 0 | H186: 0 | I186: 0 | J186: 0 | K186: 0 | L186: 0 | M186: 0 | N186: 0 | O186: 0 | P186: =SUM(D186:O186) -> 0
A187: =A186+1 -> 25 | B187: Adjusted Volumes | D187: =SUM(D185:D186) -> 149336.7 | E187: 143923.5 | F187: 110860.6 | G187: 68262.7 | H187: 30289.8 | I187: 14748.6 | J187: 8535.4 | K187: 8539.5 | L187: 8611.3 | M187: 16362.3 | N187: 46480.2 | O187: 111402.2 | P187: =SUM(D187:O187) -> 717352.8
A189: =A187+1 -> 26 | B189: Rate Schedule GTO - Commercial
A190: =A189+1 -> 27 | B190: Volumes
A191: =A190+1 -> 28 | B191: First 50 Mcf | D191: 59721.1 | E191: 58425.5 | F191: 51132.1 | G191: 37853 | H191: 23045 | I191: 16157.7 | J191: 14234.2 | K191: 12459.9 | L191: 14374.2 | M191: 15975.3 | N191: 32678.1 | O191: 51299.1 | P191: =SUM(D191:O191) -> 387355.2
A192: =A191+1 -> 29 | B192: Next 350 Mcf | D192: 94631.4 | E192: 89228.5 | F192: 68406.8 | G192: 41545.5 | H192: 23745.3 | I192: 16244.3 | J192: 14783.1 | K192: 10200.2 | L192: 14244.1 | M192: 16882.4 | N192: 32316.8 | O192: 69819.4 | P192: =SUM(D192:O192) -> 492047.8
A193: =A192+1 -> 30 | B193: Next 600 Mcf | D193: 28138.5 | E193: 25433.8 | F193: 17209.8 | G193: 10520.7 | H193: 6538.3 | I193: 5047.4 | J193: 4589.8 | K193: 3050.8 | L193: 5302.9 | M193: 5825.5 | N193: 8092.7 | O193: 17304 | P193: =SUM(D193:O193) -> 137054.2
A194: =A193+1 -> 31 | B194: Over 1,000 Mcf | D194: 14027.3 | E194: 8679.7 | F194: 5632 | G194: 2990.1 | H194: 1937.4 | I194: 1403.7 | J194: 860.8 | K194: 424.2 | L194: 800.7 | M194: 1602.3 | N194: 2361.4 | O194: 6496.5 | P194: =SUM(D194:O194) -> 47216.1
D195: =SUM(D191:D194) -> 196518.3 | E195: 181767.5 | F195: 142380.7 | G195: 92909.3 | H195: 55266 | I195: 38853.1 | J195: 34467.9 | K195: 26135.1 | L195: 34721.9 | M195: 40285.5 | N195: 75449 | O195: =SUM(O191:O194) -> 144919 | P195: =SUM(D195:O195) -> 1063673.3
A196: =A194+1 -> 32 | B196: Industrial Adjustment | C196: (WPM-D)
A197: =A196+1 -> 33 | B197: =B191 -> First 50 Mcf | D197: 0 | E197: 0 | F197: 0 | G197: 0 | H197: 0 | I197: 0 | J197: 0 | K197: 0 | L197: 0 | M197: 0 | N197: 0 | O197: 0 | P197: =SUM(D197:O197) -> 0
A198: =A197+1 -> 34 | B198: =B192 -> Next 350 Mcf | D198: 0 | E198: 0 | F198: 0 | G198: 0 | H198: 0 | I198: 0 | J198: 0 | K198: 0 | L198: 0 | M198: 0 | N198: 0 | O198: 0 | P198: =SUM(D198:O198) -> 0
A199: =A198+1 -> 35 | B199: =B193 -> Next 600 Mcf | D199: 0 | E199: 0 | F199: 0 | G199: 0 | H199: 0 | I199: 0 | J199: 0 | K199: 0 | L199: 0 | M199: 0 | N199: 0 | O199: 0 | P199: =SUM(D199:O199) -> 0
A200: =A199+1 -> 36 | B200: =B194 -> Over 1,000 Mcf | D200: 0 | E200: 0 | F200: 0 | G200: 0 | H200: 0 | I200: 0 | J200: 0 | K200: 0 | L200: 0 | M200: 0 | N200: 0 | O200: 0 | P200: =SUM(D200:O200) -> 0
D201: =SUM(D197:D200) -> 0 | E201: 0 | F201: 0 | G201: 0 | H201: 0 | I201: 0 | J201: 0 | K201: 0 | L201: 0 | M201: 0 | N201: 0 | O201: =SUM(O197:O200) -> 0 | P201: =SUM(D201:O201) -> 0
A202: =A200+1 -> 37 | B202: Adjusted Volumes
A203: =A202+1 -> 38 | B203: =B191 -> First 50 Mcf | D203: =D191+D197 -> 59721.1 | E203: =E191+E197 -> 58425.5 | F203: 51132.1 | G203: 37853 | H203: 23045 | I203: 16157.7 | J203: 14234.2 | K203: 12459.9 | L203: 14374.2 | M203: 15975.3 | N203: 32678.1 | O203: 51299.1 | P203: =SUM(D203:O203) -> 387355.2
A204: =A203+1 -> 39 | B204: =B192 -> Next 350 Mcf | D204: =D192+D198 -> 94631.4 | E204: 89228.5 | F204: 68406.8 | G204: 41545.5 | H204: 23745.3 | I204: 16244.3 | J204: 14783.1 | K204: 10200.2 | L204: 14244.1 | M204: 16882.4 | N204: 32316.8 | O204: 69819.4 | P204: =SUM(D204:O204) -> 492047.8
A205: =A204+1 -> 40 | B205: =B193 -> Next 600 Mcf | D205: 28138.5 | E205: 25433.8 | F205: 17209.8 | G205: 10520.7 | H205: 6538.3 | I205: 5047.4 | J205: 4589.8 | K205: 3050.8 | L205: 5302.9 | M205: 5825.5 | N205: 8092.7 | O205: 17304 | P205: =SUM(D205:O205) -> 137054.2
A206: =A205+1 -> 41 | B206: =B194 -> Over 1,000 Mcf | D206: 14027.3 | E206: 8679.7 | F206: 5632 | G206: 2990.1 | H206: 1937.4 | I206: 1403.7 | J206: 860.8 | K206: 424.2 | L206: 800.7 | M206: 1602.3 | N206: 2361.4 | O206: 6496.5 | P206: =SUM(D206:O206) -> 47216.1
A207: =A206+1 -> 42 | B207: Adjusted Volumes | D207: =D195+D201 -> 196518.3 | E207: =E195+E201 -> 181767.5 | F207: 142380.7 | G207: 92909.3 | H207: 55266 | I207: 38853.1 | J207: 34467.9 | K207: 26135.1 | L207: 34721.9 | M207: 40285.5 | N207: 75449 | O207: 144919 | P207: =SUM(D207:O207) -> 1063673.3
A209: =CONAME -> Columbia Gas of Kentucky, Inc.
A210: Volumes (Mcf)
A211: =TYDESC -> For the 12 Months Ended December 31, 2027
A213: =$A$5 -> Data: __ Base Period_X_Forecasted Period | P213: =$P$5 -> Workpaper WPM-C.2
A214: =$A$6 -> Type of Filing: X Original _ Update _ Revised | P214: Sheet 5 of 8
A215: =$A$7 -> Work Paper Reference No(s):
A216: =$A$8 -> 12 Months Forecasted
A218: Line
A219: No. | B219: Description | C219: Reference | D219: =B!$D$11 -> Jan-27 | E219: =B!$E$11 -> Feb-27 | F219: =B!$F$11 -> Mar-27 | G219: =B!$G$11 -> Apr-27 | H219: =B!$H$11 -> May-27 | I219: =B!$I$11 -> Jun-27 | J219: =B!$J$11 -> Jul-27 | K219: =B!$K$11 -> Aug-27 | L219: =B!$L$11 -> Sep-27 | M219: =B!$M$11 -> Oct-27 | N219: =B!$N$11 -> Nov-27 | O219: =B!$O$11 -> Dec-27 | P219: Total
B220: (A) | C220: (B) | D220: (C) | E220: (D) | F220: (E) | G220: (F) | H220: (G) | I220: (H) | J220: (I) | K220: (J) | L220: (K) | M220: (L) | N220: (M) | O220: (N) | P220: (O)
A222: 1 | B222: Rate Schedule GTO - Industrial
A223: =A222+1 -> 2 | B223: Volumes
A224: =A223+1 -> 3 | B224: First 50 Mcf | D224: 612.1 | E224: 613.5 | F224: 659 | G224: 625.6 | H224: 575.7 | I224: 529.6 | J224: 378.6 | K224: 368 | L224: 435.4 | M224: 445.2 | N224: 508.7 | O224: 566.8 | P224: =SUM(D224:O224) -> 6318.2
A225: =A224+1 -> 4 | B225: Next 350 Mcf | D225: 3657.3 | E225: 3633.8 | F225: 3892.7 | G225: 3744.7 | H225: 2993.3 | I225: 2032.8 | J225: 1277.9 | K225: 1361.3 | L225: 1740.5 | M225: 2225 | N225: 2697.9 | O225: 3381.6 | P225: =SUM(D225:O225) -> 32638.8
A226: =A225+1 -> 5 | B226: Next 600 Mcf | D226: 3413.4 | E226: 3840.8 | F226: 3411.4 | G226: 3146.6 | H226: 1324.4 | I226: 929.5 | J226: 884.3 | K226: 901.7 | L226: 400 | M226: 1407.8 | N226: 2794.1 | O226: 3207 | P226: =SUM(D226:O226) -> 25661
A227: =A226+1 -> 6 | B227: Over 1,000 Mcf | D227: 2553.5 | E227: 1869 | F227: 565.9 | G227: 516.1 | H227: 356.6 | I227: 0 | J227: 0 | K227: 0 | L227: 0 | M227: 0 | N227: 1077.2 | O227: 3843.8 | P227: =SUM(D227:O227) -> 10782.1
D228: =SUM(D224:D227) -> 10236.3 | E228: 9957.1 | F228: 8529 | G228: 8033 | H228: 5250 | I228: 3491.9 | J228: 2540.8 | K228: 2631 | L228: 2575.9 | M228: 4078 | N228: 7077.9 | O228: =SUM(O224:O227) -> 10999.2 | P228: =SUM(D228:O228) -> 75400.1
A229: =A227+1 -> 7 | B229: Industrial Adjustment | C229: (WPM-D)
A230: =A229+1 -> 8 | B230: =B224 -> First 50 Mcf | D230: 0 | E230: 0 | F230: 0 | G230: 0 | H230: 0 | I230: 0 | J230: 0 | K230: 0 | L230: 0 | M230: 0 | N230: 0 | O230: 0 | P230: =SUM(D230:O230) -> 0
A231: =A230+1 -> 9 | B231: =B225 -> Next 350 Mcf | D231: 0 | E231: 0 | F231: 0 | G231: 0 | H231: 0 | I231: 0 | J231: 0 | K231: 0 | L231: 0 | M231: 0 | N231: 0 | O231: 0 | P231: =SUM(D231:O231) -> 0
A232: =A231+1 -> 10 | B232: =B226 -> Next 600 Mcf | D232: 0 | E232: 0 | F232: 0 | G232: 0 | H232: 0 | I232: 0 | J232: 0 | K232: 0 | L232: 0 | M232: 0 | N232: 0 | O232: 0 | P232: =SUM(D232:O232) -> 0
A233: =A232+1 -> 11 | B233: =B227 -> Over 1,000 Mcf | D233: 0 | E233: 0 | F233: 0 | G233: 0 | H233: 0 | I233: 0 | J233: 0 | K233: 0 | L233: 0 | M233: 0 | N233: 0 | O233: 0 | P233: =SUM(D233:O233) -> 0
D234: =SUM(D230:D233) -> 0 | E234: 0 | F234: 0 | G234: 0 | H234: 0 | I234: 0 | J234: 0 | K234: 0 | L234: 0 | M234: 0 | N234: 0 | O234: =SUM(O230:O233) -> 0 | P234: =SUM(D234:O234) -> 0
A235: =A233+1 -> 12 | B235: Adjusted Volumes
A236: =A235+1 -> 13 | B236: =B224 -> First 50 Mcf | D236: =D224+D230 -> 612.1 | E236: =E224+E230 -> 613.5 | F236: 659 | G236: 625.6 | H236: 575.7 | I236: 529.6 | J236: 378.6 | K236: 368 | L236: 435.4 | M236: 445.2 | N236: 508.7 | O236: =O224+O230 -> 566.8 | P236: =SUM(D236:O236) -> 6318.2
A237: =A236+1 -> 14 | B237: =B225 -> Next 350 Mcf | D237: =D225+D231 -> 3657.3 | E237: 3633.8 | F237: 3892.7 | G237: 3744.7 | H237: 2993.3 | I237: 2032.8 | J237: 1277.9 | K237: 1361.3 | L237: 1740.5 | M237: 2225 | N237: 2697.9 | O237: =O225+O231 -> 3381.6 | P237: =SUM(D237:O237) -> 32638.8
A238: =A237+1 -> 15 | B238: =B226 -> Next 600 Mcf | D238: 3413.4 | E238: 3840.8 | F238: 3411.4 | G238: 3146.6 | H238: 1324.4 | I238: 929.5 | J238: 884.3 | K238: 901.7 | L238: 400 | M238: 1407.8 | N238: 2794.1 | O238: =O226+O232 -> 3207 | P238: =SUM(D238:O238) -> 25661
... 152 more rows

Sheet D pg 1
A1: =CONAME -> Columbia Gas of Kentucky, Inc.
A2: Adjustment to Test Year Bills and Mcf
A3: =TYDESC -> For the 12 Months Ended December 31, 2027
A5: Data: __ Base Period_X_Forecasted Period
A6: Type of Filing: X Original _ Update _ Revised
A7: Work Paper Reference No(s): | P7: Workpaper WPM-D.2
A8: 12 Months Forecasted | P8: Sheet 1 of 2
A10: Line
A11: No. | B11: Description | C11: Reference | D11: =B!$D$11 -> Jan-27 | E11: =B!$E$11 -> Feb-27 | F11: =B!$F$11 -> Mar-27 | G11: =B!$G$11 -> Apr-27 | H11: =B!$H$11 -> May-27 | I11: =B!$I$11 -> Jun-27 | J11: =B!$J$11 -> Jul-27 | K11: =B!$K$11 -> Aug-27 | L11: =B!$L$11 -> Sep-27 | M11: =B!$M$11 -> Oct-27 | N11: =B!$N$11 -> Nov-27 | O11: =B!$O$11 -> Dec-27 | P11: Total
B12: (A) | C12: (B) | D12: (C) | E12: (D) | F12: (E) | G12: (F) | H12: (G) | I12: (H) | J12: (I) | K12: (J) | L12: (K) | M12: (L) | N12: (M) | O12: (N) | P12: (O)
A14: 1 | B14: Large Com/Ind Customers
A16: =A14+1 -> 2 | B16: Rate Schedule GSO - Commercial | D16: 0 | E16: 0 | F16: 0 | G16: 0 | H16: 0 | I16: 0 | J16: 0 | K16: 0 | L16: 0 | M16: 0 | N16: 0 | O16: 0 | P16: =SUM(D16:O16) -> 0
A17: =A16+1 -> 3 | B17: Rate Schedule GSO - Industrial | D17: 0 | E17: 0 | F17: 0 | G17: 0 | H17: 0 | I17: 0 | J17: 0 | K17: 0 | L17: 0 | M17: 0 | N17: 0 | O17: 0 | P17: 0
A18: 4 | B18: Rate Schedule GDS - Commercial | D18: 0 | E18: 0 | F18: 0 | G18: 0 | H18: 0 | I18: 0 | J18: 0 | K18: 0 | L18: 0 | M18: 0 | N18: 0 | O18: 0 | P18: 0
A19: 5 | B19: Rate Schedule GDS - Industrial | D19: 0 | E19: 0 | F19: 0 | G19: 0 | H19: 0 | I19: 0 | J19: 0 | K19: 0 | L19: 0 | M19: 0 | N19: 0 | O19: 0 | P19: 0
A20: 6 | B20: Rate Schedule DS - Industrial | D20: 0 | E20: 0 | F20: 0 | G20: 0 | H20: 0 | I20: 0 | J20: 0 | K20: 0 | L20: 0 | M20: 0 | N20: 0 | O20: 0 | P20: 0
A21: 7 | B21: Rate Schedule SAS - Commercial | D21: 0 | E21: 0 | F21: 0 | G21: 0 | H21: 0 | I21: 0 | J21: 0 | K21: 0 | L21: 0 | M21: 0 | N21: 0 | O21: 0 | P21: 0
A22: 8 | B22: Adjusted Bills | D22: =SUM(D16:D21) -> 0 | E22: 0 | F22: 0 | G22: 0 | H22: 0 | I22: 0 | J22: 0 | K22: 0 | L22: 0 | M22: 0 | N22: 0 | O22: 0 | P22: 0
A24: =A22+1 -> 9 | B24: Total Adjusted Bills | D24: =D22 -> 0 | E24: 0 | F24: 0 | G24: 0 | H24: 0 | I24: 0 | J24: 0 | K24: 0 | L24: 0 | M24: 0 | N24: 0 | O24: 0 | P24: 0
A26: =A24+1 -> 10 | B26: Large Com/Ind Volumes
A28: =A26+1 -> 11 | B28: Rate Schedule GSO - Commercial
A29: =A28+1 -> 12 | B29: ='C'!B80 -> First 50 Mcf | D29: ='D pg 2'!F43 -> 0 | E29: ='D pg 2'!G43 -> 0 | F29: ='D pg 2'!H43 -> 0 | G29: ='D pg 2'!I43 -> 0 | H29: ='D pg 2'!J43 -> 0 | I29: ='D pg 2'!K43 -> 0 | J29: ='D pg 2'!L43 -> 0 | K29: ='D pg 2'!M43 -> 0 | L29: ='D pg 2'!N43 -> 0 | M29: ='D pg 2'!O43 -> 0 | N29: ='D pg 2'!P43 -> 0 | O29: ='D pg 2'!Q43 -> 0 | P29: =SUM(D29:O29) -> 0
A30: =A29+1 -> 13 | B30: ='C'!B81 -> Next 350 Mcf | D30: ='D pg 2'!F44 -> 0 | E30: ='D pg 2'!G44 -> 0 | F30: ='D pg 2'!H44 -> 0 | G30: ='D pg 2'!I44 -> 0 | H30: ='D pg 2'!J44 -> 0 | I30: ='D pg 2'!K44 -> 0 | J30: ='D pg 2'!L44 -> 0 | K30: ='D pg 2'!M44 -> 0 | L30: ='D pg 2'!N44 -> 0 | M30: ='D pg 2'!O44 -> 0 | N30: ='D pg 2'!P44 -> 0 | O30: ='D pg 2'!Q44 -> 0 | P30: =SUM(D30:O30) -> 0
A31: =A30+1 -> 14 | B31: ='C'!B82 -> Next 600 Mcf | D31: ='D pg 2'!F45 -> 0 | E31: ='D pg 2'!G45 -> 0 | F31: ='D pg 2'!H45 -> 0 | G31: ='D pg 2'!I45 -> 0 | H31: ='D pg 2'!J45 -> 0 | I31: ='D pg 2'!K45 -> 0 | J31: ='D pg 2'!L45 -> 0 | K31: ='D pg 2'!M45 -> 0 | L31: ='D pg 2'!N45 -> 0 | M31: ='D pg 2'!O45 -> 0 | N31: ='D pg 2'!P45 -> 0 | O31: ='D pg 2'!Q45 -> 0 | P31: =SUM(D31:O31) -> 0
A32: =A31+1 -> 15 | B32: ='C'!B83 -> Over 1,000 Mcf | D32: ='D pg 2'!F46 -> 0 | E32: ='D pg 2'!G46 -> 0 | F32: ='D pg 2'!H46 -> 0 | G32: ='D pg 2'!I46 -> 0 | H32: ='D pg 2'!J46 -> 0 | I32: ='D pg 2'!K46 -> 0 | J32: ='D pg 2'!L46 -> 0 | K32: ='D pg 2'!M46 -> 0 | L32: ='D pg 2'!N46 -> 0 | M32: ='D pg 2'!O46 -> 0 | N32: ='D pg 2'!P46 -> 0 | O32: ='D pg 2'!Q46 -> 0 | P32: =SUM(D32:O32) -> 0
A33: =A32+1 -> 16 | B33: Adjusted Volumes | D33: =SUM(D29:D32) -> 0 | E33: 0 | F33: 0 | G33: 0 | H33: 0 | I33: 0 | J33: 0 | K33: 0 | L33: 0 | M33: 0 | N33: 0 | O33: =SUM(O29:O32) -> 0 | P33: =SUM(D33:O33) -> 0
A35: =A33+1 -> 17 | B35: Rate Schedule GSO - Industrial
A36: =A35+1 -> 18 | B36: ='C'!B113 -> First 50 Mcf | D36: ='D pg 2'!F17+'D pg 2'!F25+'D pg 2'!F33 -> 0 | E36: ='D pg 2'!G17+'D pg 2'!G25+'D pg 2'!G33 -> 0 | F36: ='D pg 2'!H17+'D pg 2'!H25+'D pg 2'!H33 -> 0 | G36: ='D pg 2'!I17+'D pg 2'!I25+'D pg 2'!I33 -> 0 | H36: ='D pg 2'!J17+'D pg 2'!J25+'D pg 2'!J33 -> 0 | I36: ='D pg 2'!K17+'D pg 2'!K25+'D pg 2'!K33 -> 0 | J36: ='D pg 2'!L17+'D pg 2'!L25+'D pg 2'!L33 -> 0 | K36: ='D pg 2'!M17+'D pg 2'!M25+'D pg 2'!M33 -> 0 | L36: ='D pg 2'!N17+'D pg 2'!N25+'D pg 2'!N33 -> 0 | M36: ='D pg 2'!O17+'D pg 2'!O25+'D pg 2'!O33 -> 0 | N36: ='D pg 2'!P17+'D pg 2'!P25+'D pg 2'!P33 -> 0 | O36: ='D pg 2'!Q17+'D pg 2'!Q25+'D pg 2'!Q33 -> 0 | P36: =SUM(D36:O36) -> 0
A37: =A36+1 -> 19 | B37: ='C'!B114 -> Next 350 Mcf | D37: ='D pg 2'!F18+'D pg 2'!F26+'D pg 2'!F34 -> 0 | E37: ='D pg 2'!G18+'D pg 2'!G26+'D pg 2'!G34 -> 0 | F37: ='D pg 2'!H18+'D pg 2'!H26+'D pg 2'!H34 -> 0 | G37: ='D pg 2'!I18+'D pg 2'!I26+'D pg 2'!I34 -> 0 | H37: ='D pg 2'!J18+'D pg 2'!J26+'D pg 2'!J34 -> 0 | I37: ='D pg 2'!K18+'D pg 2'!K26+'D pg 2'!K34 -> 0 | J37: ='D pg 2'!L18+'D pg 2'!L26+'D pg 2'!L34 -> 0 | K37: ='D pg 2'!M18+'D pg 2'!M26+'D pg 2'!M34 -> 0 | L37: ='D pg 2'!N18+'D pg 2'!N26+'D pg 2'!N34 -> 0 | M37: ='D pg 2'!O18+'D pg 2'!O26+'D pg 2'!O34 -> 0 | N37: ='D pg 2'!P18+'D pg 2'!P26+'D pg 2'!P34 -> 0 | O37: ='D pg 2'!Q18+'D pg 2'!Q26+'D pg 2'!Q34 -> 0 | P37: =SUM(D37:O37) -> 0
A38: =A37+1 -> 20 | B38: ='C'!B115 -> Next 600 Mcf | D38: ='D pg 2'!F19+'D pg 2'!F27+'D pg 2'!F35 -> 0 | E38: ='D pg 2'!G19+'D pg 2'!G27+'D pg 2'!G35 -> 0 | F38: ='D pg 2'!H19+'D pg 2'!H27+'D pg 2'!H35 -> 0 | G38: ='D pg 2'!I19+'D pg 2'!I27+'D pg 2'!I35 -> 0 | H38: ='D pg 2'!J19+'D pg 2'!J27+'D pg 2'!J35 -> 0 | I38: ='D pg 2'!K19+'D pg 2'!K27+'D pg 2'!K35 -> 0 | J38: ='D pg 2'!L19+'D pg 2'!L27+'D pg 2'!L35 -> 0 | K38: ='D pg 2'!M19+'D pg 2'!M27+'D pg 2'!M35 -> 0 | L38: ='D pg 2'!N19+'D pg 2'!N27+'D pg 2'!N35 -> 0 | M38: ='D pg 2'!O19+'D pg 2'!O27+'D pg 2'!O35 -> 0 | N38: ='D pg 2'!P19+'D pg 2'!P27+'D pg 2'!P35 -> 0 | O38: ='D pg 2'!Q19+'D pg 2'!Q27+'D pg 2'!Q35 -> 0 | P38: =SUM(D38:O38) -> 0
A39: =A38+1 -> 21 | B39: ='C'!B116 -> Over 1,000 Mcf | D39: ='D pg 2'!F20+'D pg 2'!F28+'D pg 2'!F36 -> 0 | E39: ='D pg 2'!G20+'D pg 2'!G28+'D pg 2'!G36 -> 0 | F39: ='D pg 2'!H20+'D pg 2'!H28+'D pg 2'!H36 -> 0 | G39: ='D pg 2'!I20+'D pg 2'!I28+'D pg 2'!I36 -> 0 | H39: ='D pg 2'!J20+'D pg 2'!J28+'D pg 2'!J36 -> 0 | I39: ='D pg 2'!K20+'D pg 2'!K28+'D pg 2'!K36 -> 0 | J39: ='D pg 2'!L20+'D pg 2'!L28+'D pg 2'!L36 -> 0 | K39: ='D pg 2'!M20+'D pg 2'!M28+'D pg 2'!M36 -> 0 | L39: ='D pg 2'!N20+'D pg 2'!N28+'D pg 2'!N36 -> 0 | M39: ='D pg 2'!O20+'D pg 2'!O28+'D pg 2'!O36 -> 0 | N39: ='D pg 2'!P20+'D pg 2'!P28+'D pg 2'!P36 -> 0 | O39: ='D pg 2'!Q20+'D pg 2'!Q28+'D pg 2'!Q36 -> 0 | P39: =SUM(D39:O39) -> 0
A40: =A39+1 -> 22 | B40: Adjusted Volumes | D40: =SUM(D36:D39) -> 0 | E40: 0 | F40: 0 | G40: 0 | H40: 0 | I40: 0 | J40: 0 | K40: 0 | L40: 0 | M40: 0 | N40: 0 | O40: =SUM(O36:O39) -> 0 | P40: =SUM(D40:O40) -> 0
A42: =A40+1 -> 23 | B42: Rate Schedule GDS - Commercial
A43: =A42+1 -> 24 | B43: ='C'!B291 -> First 50 Mcf | D43: 0 | E43: 0 | F43: 0 | G43: 0 | H43: 0 | I43: 0 | J43: 0 | K43: 0 | L43: 0 | M43: 0 | N43: 0 | O43: 0 | P43: =SUM(D43:O43) -> 0
A44: =A43+1 -> 25 | B44: ='C'!B292 -> Next 350 Mcf | D44: 0 | E44: 0 | F44: 0 | G44: 0 | H44: 0 | I44: 0 | J44: 0 | K44: 0 | L44: 0 | M44: 0 | N44: 0 | O44: 0 | P44: =SUM(D44:O44) -> 0
A45: =A44+1 -> 26 | B45: ='C'!B293 -> Next 600 Mcf | D45: 0 | E45: 0 | F45: 0 | G45: 0 | H45: 0 | I45: 0 | J45: 0 | K45: 0 | L45: 0 | M45: 0 | N45: 0 | O45: 0 | P45: =SUM(D45:O45) -> 0
A46: =A45+1 -> 27 | B46: ='C'!B294 -> Over 1,000 Mcf | D46: 0 | E46: 0 | F46: 0 | G46: 0 | H46: 0 | I46: 0 | J46: 0 | K46: 0 | L46: 0 | M46: 0 | N46: 0 | O46: 0 | P46: =SUM(D46:O46) -> 0
A47: =A46+1 -> 28 | B47: Adjusted Volumes | D47: =SUM(D43:D46) -> 0 | E47: 0 | F47: 0 | G47: 0 | H47: 0 | I47: 0 | J47: 0 | K47: 0 | L47: 0 | M47: 0 | N47: 0 | O47: =SUM(O43:O46) -> 0 | P47: =SUM(D47:O47) -> 0
A49: =A47+1 -> 29 | B49: Rate Schedule GDS - Industrial
A50: =A49+1 -> 30 | B50: ='C'!B311 -> First 50 Mcf | D50: 0 | E50: 0 | F50: 0 | G50: 0 | H50: 0 | I50: 0 | J50: 0 | K50: 0 | L50: 0 | M50: 0 | N50: 0 | O50: 0 | P50: =SUM(D50:O50) -> 0
A51: =A50+1 -> 31 | B51: ='C'!B312 -> Next 350 Mcf | D51: 0 | E51: 0 | F51: 0 | G51: 0 | H51: 0 | I51: 0 | J51: 0 | K51: 0 | L51: 0 | M51: 0 | N51: 0 | O51: 0 | P51: =SUM(D51:O51) -> 0
A52: =A51+1 -> 32 | B52: ='C'!B313 -> Next 600 Mcf | D52: 0 | E52: 0 | F52: 0 | G52: 0 | H52: 0 | I52: 0 | J52: 0 | K52: 0 | L52: 0 | M52: 0 | N52: 0 | O52: 0 | P52: =SUM(D52:O52) -> 0
A53: =A52+1 -> 33 | B53: ='C'!B314 -> Over 1,000 Mcf | D53: 0 | E53: 0 | F53: 0 | G53: 0 | H53: 0 | I53: 0 | J53: 0 | K53: 0 | L53: 0 | M53: 0 | N53: 0 | O53: 0 | P53: =SUM(D53:O53) -> 0
A54: =A53+1 -> 34 | B54: Adjusted Volumes | D54: =SUM(D50:D53) -> 0 | E54: 0 | F54: 0 | G54: 0 | H54: 0 | I54: 0 | J54: 0 | K54: 0 | L54: 0 | M54: 0 | N54: 0 | O54: =SUM(O50:O53) -> 0 | P54: =SUM(D54:O54) -> 0
A56: =A54+1 -> 35 | B56: Rate Schedule DS - Industrial
A57: =A56+1 -> 36 | B57: ='C'!B261 -> First 30,000 Mcf | D57: ='D pg 2'!F53 -> 0 | E57: ='D pg 2'!G53 -> 0 | F57: ='D pg 2'!H53 -> 0 | G57: ='D pg 2'!I53 -> 0 | H57: ='D pg 2'!J53 -> 0 | I57: ='D pg 2'!K53 -> 0 | J57: ='D pg 2'!L53 -> 0 | K57: ='D pg 2'!M53 -> 0 | L57: ='D pg 2'!N53 -> 0 | M57: ='D pg 2'!O53 -> 0 | N57: ='D pg 2'!P53 -> 0 | O57: ='D pg 2'!Q53 -> 0 | P57: =SUM(D57:O57) -> 0
A58: =A57+1 -> 37 | B58: ='C'!B262 -> Next 70,000 Mcf | D58: ='D pg 2'!F54 -> 0 | E58: ='D pg 2'!G54 -> 0 | F58: ='D pg 2'!H54 -> 0 | G58: ='D pg 2'!I54 -> 0 | H58: ='D pg 2'!J54 -> 0 | I58: ='D pg 2'!K54 -> 0 | J58: ='D pg 2'!L54 -> 0 | K58: ='D pg 2'!M54 -> 0 | L58: ='D pg 2'!N54 -> 0 | M58: ='D pg 2'!O54 -> 0 | N58: ='D pg 2'!P54 -> 0 | O58: ='D pg 2'!Q54 -> 0 | P58: =SUM(D58:O58) -> 0
A59: =A58+1 -> 38 | B59: ='C'!B263 -> Over 100,000 Mcf | D59: ='D pg 2'!F55 -> 0 | E59: ='D pg 2'!G55 -> 0 | F59: ='D pg 2'!H55 -> 0 | G59: ='D pg 2'!I55 -> 0 | H59: ='D pg 2'!J55 -> 0 | I59: ='D pg 2'!K55 -> 0 | J59: ='D pg 2'!L55 -> 0 | K59: ='D pg 2'!M55 -> 0 | L59: ='D pg 2'!N55 -> 0 | M59: ='D pg 2'!O55 -> 0 | N59: ='D pg 2'!P55 -> 0 | O59: ='D pg 2'!Q55 -> 0 | P59: =SUM(D59:O59) -> 0
A60: 39 | B60: Adjusted Volumes | D60: =SUM(D57:D59) -> 0 | E60: =SUM(E57:E59) -> 0 | F60: 0 | G60: 0 | H60: 0 | I60: 0 | J60: 0 | K60: 0 | L60: 0 | M60: 0 | N60: 0 | O60: 0 | P60: =SUM(D60:O60) -> 0
A62: =A60+1 -> 40 | B62: Total Adjusted Volumes | D62: =D33+D40+D60+D47+D54 -> 0 | E62: 0 | F62: 0 | G62: 0 | H62: 0 | I62: 0 | J62: 0 | K62: 0 | L62: 0 | M62: 0 | N62: 0 | O62: 0 | P62: =SUM(D62:O62) -> 0

Sheet D pg 2
A1: =CONAME -> Columbia Gas of Kentucky, Inc.
A2: Adjustment to Bills and Mcf Generated By Industrial Customers
A3: =TYDESC -> For the 12 Months Ended December 31, 2027
R5: ='D pg 1'!$P$7 -> Workpaper WPM-D.2
D6: Mo | R6: Sheet 2 of 2
D7: Service
A8: Line | C8: Rate | D8: Began/ | E8: Incremental
A9: No. | B9: Acct No. | C9: Schedule | D9: Terminated | E9: Bills | F9: =B!$D$11 -> Jan-27 | G9: =B!$E$11 -> Feb-27 | H9: =B!$F$11 -> Mar-27 | I9: =B!$G$11 -> Apr-27 | J9: =B!$H$11 -> May-27 | K9: =B!$I$11 -> Jun-27 | L9: =B!$J$11 -> Jul-27 | M9: =B!$K$11 -> Aug-27 | N9: =B!$L$11 -> Sep-27 | O9: =B!$M$11 -> Oct-27 | P9: =B!$N$11 -> Nov-27 | Q9: =B!$O$11 -> Dec-27 | R9: Total
F10: (Mcf) | G10: (Mcf) | H10: (Mcf) | I10: (Mcf) | J10: (Mcf) | K10: (Mcf) | L10: (Mcf) | M10: (Mcf) | N10: (Mcf) | O10: (Mcf) | P10: (Mcf) | Q10: (Mcf) | R10: (Mcf)
A12: 1 | B12: Customers who have significant usage change between January 1, 2027 and December 31, 2027
A14: =A12+1 -> 2 | C14: GSO-ind
A15: =A14+1 -> 3 | B15: Test Year Volumes | F15: 0 | G15: 0 | H15: 0 | I15: 0 | J15: 0 | K15: 0 | L15: 0 | M15: 0 | N15: 0 | O15: 0 | P15: 0 | Q15: 0 | R15: =SUM(F15:Q15) -> 0
A17: =A15+1 -> 4 | B17: Additional Volumes (First 50 Mcf) | E17: 0 | F17: 0 | G17: 0 | H17: 0 | I17: 0 | J17: 0 | K17: =-K15 -> 0 | L17: 0 | M17: 0 | N17: =-N15 -> 0 | O17: 0 | P17: 0 | Q17: 0 | R17: =SUM(F17:Q17) -> 0
A18: =A17+1 -> 5 | B18: Additional Volumes (Next 350 Mcf) | F18: 0 | G18: 0 | H18: 0 | I18: 0 | J18: 0 | K18: 0 | L18: 0 | M18: 0 | N18: 0 | O18: 0 | P18: 0 | Q18: 0 | R18: =SUM(F18:Q18) -> 0
A19: =A18+1 -> 6 | B19: Additional Volumes (Next 600 Mcf) | F19: 0 | G19: 0 | H19: 0 | I19: 0 | J19: 0 | K19: 0 | L19: 0 | M19: 0 | N19: 0 | O19: 0 | P19: 0 | Q19: 0 | R19: =SUM(F19:Q19) -> 0
A20: =A19+1 -> 7 | B20: Additional Volumes (Over 1,000 Mcf) | F20: 0 | G20: 0 | H20: 0 | I20: 0 | J20: 0 | K20: 0 | L20: 0 | M20: 0 | N20: 0 | O20: 0 | P20: 0 | Q20: 0 | R20: =SUM(F20:Q20) -> 0
A22: =A20+1 -> 8 | C22: GSO-ind
A23: =A22+1 -> 9 | B23: Test Year Volumes | F23: 0 | G23: 0 | H23: 0 | I23: 0 | J23: 0 | K23: 0 | L23: 0 | M23: 0 | N23: 0 | O23: 0 | P23: 0 | Q23: 0 | R23: =SUM(F23:Q23) -> 0
A25: =A23+1 -> 10 | B25: Additional Volumes (First 50 Mcf) | F25: 0 | G25: 0 | H25: 0 | I25: 0 | J25: 0 | K25: 0 | L25: 0 | M25: 0 | N25: 0 | O25: 0 | P25: 0 | Q25: 0 | R25: =SUM(F25:Q25) -> 0
A26: =A25+1 -> 11 | B26: Additional Volumes (Next 350 Mcf) | F26: 0 | G26: 0 | H26: 0 | I26: 0 | J26: 0 | K26: 0 | L26: 0 | M26: 0 | N26: 0 | O26: 0 | P26: 0 | Q26: 0 | R26: =SUM(F26:Q26) -> 0
A27: =A26+1 -> 12 | B27: Additional Volumes (Next 600 Mcf) | F27: 0 | G27: 0 | H27: 0 | I27: 0 | J27: 0 | K27: 0 | L27: 0 | M27: 0 | N27: 0 | O27: 0 | P27: 0 | Q27: 0 | R27: =SUM(F27:Q27) -> 0
A28: =A27+1 -> 13 | B28: Additional Volumes (Over 1,000 Mcf) | F28: 0 | G28: 0 | H28: 0 | I28: 0 | J28: 0 | K28: 0 | L28: 0 | M28: 0 | N28: 0 | O28: 0 | P28: 0 | Q28: 0 | R28: =SUM(F28:Q28) -> 0
A30: =A28+1 -> 14 | C30: GSO-ind
A31: =A30+1 -> 15 | B31: Test Year Volumes | F31: 0 | G31: 0 | H31: 0 | I31: 0 | J31: 0 | K31: 0 | L31: 0 | M31: 0 | N31: 0 | O31: 0 | P31: 0 | Q31: 0 | R31: =SUM(F31:Q31) -> 0
A33: =A31+1 -> 16 | B33: Additional Volumes (First 50 Mcf) | E33: 0 | F33: 0 | G33: 0 | H33: 0 | I33: 0 | J33: 0 | K33: 0 | L33: 0 | M33: 0 | N33: 0 | O33: 0 | P33: 0 | Q33: 0 | R33: =SUM(F33:Q33) -> 0
A34: =A33+1 -> 17 | B34: Additional Volumes (Next 350 Mcf) | F34: 0 | G34: 0 | H34: 0 | I34: 0 | J34: 0 | K34: 0 | L34: 0 | M34: 0 | N34: 0 | O34: 0 | P34: 0 | Q34: 0 | R34: =SUM(F34:Q34) -> 0
A35: =A34+1 -> 18 | B35: Additional Volumes (Next 600 Mcf) | F35: 0 | G35: 0 | H35: 0 | I35: 0 | J35: 0 | K35: 0 | L35: 0 | M35: 0 | N35: 0 | O35: 0 | P35: 0 | Q35: 0 | R35: =SUM(F35:Q35) -> 0
A36: =A35+1 -> 19 | B36: Additional Volumes (Over 1,000 Mcf) | F36: 0 | G36: 0 | H36: 0 | I36: 0 | J36: 0 | K36: 0 | L36: 0 | M36: 0 | N36: 0 | O36: 0 | P36: 0 | Q36: 0 | R36: =SUM(F36:Q36) -> 0
A38: =A36+1 -> 20 | B38: Customers who have become inactive between January 1, 2027 and and December 31, 2027
A40: =A38+1 -> 21 | C40: GSO-Com
A41: =A40+1 -> 22 | B41: Test Year Volumes | F41: 0 | G41: 0 | H41: 0 | I41: 0 | J41: 0 | K41: 0 | L41: 0 | M41: 0 | N41: 0 | O41: 0 | P41: 0 | Q41: 0 | R41: =SUM(F41:Q41) -> 0
A43: =A41+1 -> 23 | B43: Additional Volumes (First 50 Mcf) | E43: 0 | F43: 0 | G43: 0 | H43: 0 | I43: 0 | J43: 0 | K43: 0 | L43: 0 | M43: 0 | N43: 0 | O43: 0 | P43: 0 | Q43: 0 | R43: =SUM(F43:Q43) -> 0
A44: =A43+1 -> 24 | B44: Additional Volumes (Next 350 Mcf) | F44: 0 | G44: 0 | H44: 0 | I44: 0 | J44: 0 | K44: 0 | L44: 0 | M44: 0 | N44: 0 | O44: 0 | P44: 0 | Q44: 0 | R44: =SUM(F44:Q44) -> 0
A45: =A44+1 -> 25 | B45: Additional Volumes (Next 600 Mcf) | F45: 0 | G45: 0 | H45: 0 | I45: 0 | J45: 0 | K45: 0 | L45: 0 | M45: 0 | N45: 0 | O45: 0 | P45: 0 | Q45: 0 | R45: =SUM(F45:Q45) -> 0
A46: =A45+1 -> 26 | B46: Additional Volumes (Over 1,000 Mcf) | F46: 0 | G46: 0 | H46: 0 | I46: 0 | J46: 0 | K46: 0 | L46: 0 | M46: 0 | N46: 0 | O46: 0 | P46: 0 | Q46: 0 | R46: =SUM(F46:Q46) -> 0
A48: =A46+1 -> 27 | B48: Customers who have significant usage change between January 1, 2027 and December 31, 2027
A50: =A48+1 -> 28 | C50: DS-Ind
A51: =A50+1 -> 29 | B51: Test Year Volumes | F51: 0 | G51: 0 | H51: 0 | I51: 0 | J51: 0 | K51: 0 | L51: 0 | M51: 0 | N51: 0 | O51: 0 | P51: 0 | Q51: 0 | R51: =SUM(F51:Q51) -> 0
A53: =A51+1 -> 30 | B53: First 30,000 Mcf | F53: 0 | G53: 0 | H53: 0 | I53: 0 | J53: 0 | K53: 0 | L53: 0 | M53: 0 | N53: 0 | O53: 0 | P53: 0 | Q53: 0 | R53: =SUM(F53:Q53) -> 0
A54: =A53+1 -> 31 | B54: Next 70,000 Mcf | F54: 0 | G54: 0 | H54: 0 | I54: 0 | J54: 0 | K54: 0 | L54: 0 | M54: 0 | N54: 0 | O54: 0 | P54: 0 | Q54: 0 | R54: =SUM(F54:Q54) -> 0
A55: =A54+1 -> 32 | B55: Over 100,000 Mcf | F55: 0 | G55: 0 | H55: 0 | I55: 0 | J55: 0 | K55: 0 | L55: 0 | M55: 0 | N55: 0 | O55: 0 | P55: 0 | Q55: 0 | R55: =SUM(F55:Q55) -> 0

Sheet E
A1: =CONAME -> Columbia Gas of Kentucky, Inc.
A2: =case -> Case No. 2026-00099
A3: 2025-2027 SMRP Revenues Priced Out At Current Rates - For Informational Purposes only
A4: =TYDESC -> For the 12 Months Ended December 31, 2027
A5: (Gas Service)
A6: =$A$48 -> Data: __ Base Period _X_ Forecasted Period
A7: =$A$49 -> Type of Filing: X Original _ Update _ Revised | Q7: Workpaper WPM-E.2
A8: =$A$50 -> Work Paper Reference No(s): | Q8: Page 1 of 4
A9: =$A$51 -> 12 Months Forecasted | Q9: =Witness -> Witness: J. C. Wozniak
A10: 2025-2027 SMRP Revenue at Present Rates
A12: Line | B12: FERC | C12: Class/ | D12: Proposed
A13: No. | B13: Acct | C13: Description | D13: Rates | E13: =B!$D$11 -> Jan-27 | F13: =B!$E$11 -> Feb-27 | G13: =B!$F$11 -> Mar-27 | H13: =B!$G$11 -> Apr-27 | I13: =B!$H$11 -> May-27 | J13: =B!$I$11 -> Jun-27 | K13: =B!$J$11 -> Jul-27 | L13: =B!$K$11 -> Aug-27 | M13: =B!$L$11 -> Sep-27 | N13: =B!$M$11 -> Oct-27 | O13: =B!$N$11 -> Nov-27 | P13: =B!$O$11 -> Dec-27 | Q13: Total
B14: (A) | C14: (B) | D14: (C) | E14: (D) | F14: (E) | G14: (F) | H14: (G) | I14: (H) | J14: (I) | K14: (J) | L14: (K) | M14: (L) | N14: (M) | O14: (N) | P14: (O) | Q14: (P)
A16: 1 | C16: Operating Revenue
A18: =A16+1 -> 2 | C18: Sales of Gas
A19: =A18+1 -> 3 | B19: 480 | C19: Residential Sales Revenue | E19: =E65 -> 1366159.84 | F19: =F65 -> 1335290.75 | G19: 1012094.96 | H19: 605582.61 | I19: 273395.61 | J19: 138412.48 | K19: 85849.29 | L19: 84923.03 | M19: 93879.38 | N19: 147986.11 | O19: 400602.89 | P19: 997703.2 | Q19: =SUM(E19:P19) -> 6541880.15
A20: =A19+1 -> 4 | B20: 481.1 | C20: Commercial Sales Revenue | E20: =E79 -> 362951.21 | F20: =F79 -> 358988.02 | G20: 266428.05 | H20: 172112.19 | I20: 97278.32 | J20: 68478.72 | K20: 55192.99 | L20: 58569.63 | M20: 57576.65 | N20: 75640.72 | O20: 134751.22 | P20: 273174.47 | Q20: =SUM(E20:P20) -> 1981142.19
A21: =A20+1 -> 5 | B21: 481.2 | C21: Industrial Sales Revenue | E21: =E92+E104 -> 14552.85 | F21: =F92+F104 -> 14000.41 | G21: 12385.18 | H21: 11412.78 | I21: 9410.71 | J21: 8232.54 | K21: 5770.97 | L21: 6604.94 | M21: 6262.89 | N21: 6974.16 | O21: 10511.65 | P21: 14055.06 | Q21: =SUM(E21:P21) -> 120174.14
A22: =A21+1 -> 6 | B22: 481.3 | C22: Other Sales Revenue | E22: 0 | F22: 0 | G22: 0 | H22: 0 | I22: 0 | J22: 0 | K22: 0 | L22: 0 | M22: 0 | N22: 0 | O22: 0 | P22: 0 | Q22: 0
A23: 7 | B23: 483 | C23: Public Utilities | E23: =E112 -> 1227.89 | F23: =F112 -> 1437.13 | G23: 915.44 | H23: 407.17 | I23: 291.24 | J23: 226.21 | K23: 175.31 | L23: 183.09 | M23: 219.14 | N23: 332.24 | O23: 671.56 | P23: 1407.44 | Q23: =SUM(E23:P23) -> 7493.86
A24: =A21+1 -> 6 | C24: Total Sales of Gas | E24: =SUM(E19:E23) -> 1744891.79 | F24: =SUM(F19:F23) -> 1709716.31 | G24: =SUM(G19:G23) -> 1291823.63 | H24: =SUM(H19:H23) -> 789514.75 | I24: =SUM(I19:I23) -> 380375.88 | J24: =SUM(J19:J23) -> 215349.95 | K24: 146988.56 | L24: 150280.69 | M24: 157938.06 | N24: 230933.23 | O24: 546537.32 | P24: =SUM(P19:P23) -> 1286340.17 | Q24: =SUM(E24:P24) -> 8650690.34
A26: =A24+1 -> 7 | C26: Other Operating Revenue
A27: =A26+1 -> 8 | B27: 489 | C27: Transportation Revenue - Residential | E27: =E139 -> 132521.39 | F27: =F139 -> 127717.71 | G27: 98377.7 | H27: 60576.32 | I27: 26879.17 | J27: 13087.91 | K27: 7574.31 | L27: 7577.95 | M27: 7641.67 | N27: 14519.91 | O27: 41246.53 | P27: 98858.31 | Q27: =SUM(E27:P27) -> 636578.88
A28: =A27+1 -> 9 | B28: 489 | C28: Transportation Revenue - Commercial | E28: =E152+E177+E213+E238 -> 142781.36 | F28: 127299.43 | G28: 104813.02 | H28: 74874.54 | I28: 50859.74 | J28: 38896.4 | K28: 36317.69 | L28: 33032.82 | M28: 37203.85 | N28: 45605.42 | O28: 70407.59 | P28: 110149.25 | Q28: 872241.11
A29: =A28+1 -> 10 | B29: 489 | C29: Transportation Revenue - Industrial | E29: =E165+E189+E226 -> 78709.97 | F29: 67093.56 | G29: 62885.53 | H29: 54145.28 | I29: 48448.41 | J29: 44210.81 | K29: 28981.25 | L29: 44145.64 | M29: 43990.71 | N29: 53655.1 | O29: 58488.99 | P29: 64448.92 | Q29: 649204.17
A30: =A29+1 -> 11 | C30: Total Other Operating Revenue | E30: =SUM(E27:E29) -> 354012.72 | F30: =SUM(F27:F29) -> 322110.7 | G30: 266076.25 | H30: =SUM(H27:H29) -> 189596.14 | I30: 126187.32 | J30: 96195.12 | K30: 72873.25 | L30: 84756.41 | M30: 88836.23 | N30: 113780.43 | O30: 170143.11 | P30: 273456.48 | Q30: =SUM(Q27:Q29) -> 2158024.16
A32: =A30+1 -> 12 | C32: Total Operating Revenue | E32: =E24+E30 -> 2098904.51 | F32: =F24+F30 -> 2031827.01 | G32: 1557899.88 | H32: =H24+H30 -> 979110.89 | I32: 506563.2 | J32: 311545.07 | K32: 219861.81 | L32: 235037.1 | M32: 246774.29 | N32: 344713.66 | O32: 716680.43 | P32: 1559796.65 | Q32: =Q24+Q30 -> 10808714.5
A43: =CONAME -> Columbia Gas of Kentucky, Inc.
A44: =case -> Case No. 2026-00099
A45: Annualized Test Year Revenues at Proposed Rates
A46: =TYDESC -> For the 12 Months Ended December 31, 2027
A47: (Gas Service)
A48: Data: __ Base Period _X_ Forecasted Period
A49: Type of Filing: X Original _ Update _ Revised | Q49: =Q7 -> Workpaper WPM-E.2
A50: Work Paper Reference No(s): | Q50: Page 2 of 4
A51: 12 Months Forecasted | Q51: =Witness -> Witness: J. C. Wozniak
A53: Line | B53: Rate | C53: Class/ | D53: Proposed
A54: No. | B54: Code | C54: Description | D54: Rates | E54: =B!$D$11 -> Jan-27 | F54: =B!$E$11 -> Feb-27 | G54: =B!$F$11 -> Mar-27 | H54: =B!$G$11 -> Apr-27 | I54: =B!$H$11 -> May-27 | J54: =B!$I$11 -> Jun-27 | K54: =B!$J$11 -> Jul-27 | L54: =B!$K$11 -> Aug-27 | M54: =B!$L$11 -> Sep-27 | N54: =B!$M$11 -> Oct-27 | O54: =B!$N$11 -> Nov-27 | P54: =B!$O$11 -> Dec-27 | Q54: Total
B55: (A) | C55: (B) | D55: (C) | E55: (D) | F55: (E) | G55: (F) | H55: (G) | I55: (H) | J55: (I) | K55: (J) | L55: (K) | M55: (L) | N55: (M) | O55: (N) | P55: (O) | Q55: (P)
A58: 1 | C58: Sales Service
A59: =A58+1 -> 2 | B59: GSR | C59: General Service - Residential
A61: =A59+1 -> 3 | C61: RESIDENTIAL
A63: =A61+1 -> 4 | C63: Volumes (Mcf) [1] | E63: ='C'!D17 -> 1539508.5 | F63: ='C'!E17 -> 1504722.5 | G63: ='C'!F17 -> 1140517.2 | H63: ='C'!G17 -> 682423.5 | I63: ='C'!H17 -> 308086.1 | J63: ='C'!I17 -> 155975.3 | K63: ='C'!J17 -> 96742.5 | L63: ='C'!K17 -> 95698.7 | M63: ='C'!L17 -> 105791.5 | N63: ='C'!M17 -> 166763.7 | O63: ='C'!N17 -> 451434.4 | P63: ='C'!O17 -> 1124299.3 | Q63: =SUM(E63:P63) -> 7371963.2
A65: =A63+1 -> 5 | C65: Safety Modification & Replacement Program (2025-2027) Revenue | D65: =Input!L19 -> 0.8874 | E65: =ROUND(E$63*$D$65,2) -> 1366159.84 | F65: 1335290.75 | G65: 1012094.96 | H65: 605582.61 | I65: 273395.61 | J65: 138412.48 | K65: 85849.29 | L65: 84923.03 | M65: 93879.38 | N65: 147986.11 | O65: 400602.89 | P65: 997703.2 | Q65: =SUM(E65:P65) -> 6541880.15
A68: =A65+1 -> 6 | B68: GSO | C68: General Service - Commercial
A70: =A68+1 -> 7 | C70: COMMERCIAL
A72: =A70+1 -> 8 | C72: Volumes (Mcf) [1]
A73: =A72+1 -> 9 | C73: ='C'!B80 -> First 50 Mcf | E73: ='C'!D92 -> 335953.2 | F73: ='C'!E92 -> 338950.3 | G73: ='C'!F92 -> 279311.8 | H73: ='C'!G92 -> 196593.8 | I73: ='C'!H92 -> 111497.3 | J73: ='C'!I92 -> 78986.6 | K73: ='C'!J92 -> 66587.2 | L73: ='C'!K92 -> 67738.9 | M73: ='C'!L92 -> 68499.2 | N73: ='C'!M92 -> 80966.5 | O73: ='C'!N92 -> 161142.7 | P73: ='C'!O92 -> 284654.2 | Q73: =SUM(E73:P73) -> 2070881.7
A74: =A73+1 -> 10 | C74: ='C'!B81 -> Next 350 Mcf | E74: ='C'!D93 -> 336782.8 | F74: ='C'!E93 -> 331396 | G74: ='C'!F93 -> 231280.3 | H74: ='C'!G93 -> 144761.2 | I74: ='C'!H93 -> 72190.7 | J74: ='C'!I93 -> 50447.9 | K74: ='C'!J93 -> 38504.8 | L74: ='C'!K93 -> 41173.4 | M74: ='C'!L93 -> 41123.1 | N74: ='C'!M93 -> 57589.8 | O74: ='C'!N93 -> 102945.7 | P74: ='C'!O93 -> 240754.6 | Q74: =SUM(E74:P74) -> 1688950.3
A75: =A74+1 -> 11 | C75: ='C'!B82 -> Next 600 Mcf | E75: ='C'!D94 -> 83501 | F75: ='C'!E94 -> 81577.2 | G75: ='C'!F94 -> 51503.7 | H75: ='C'!G94 -> 26446.1 | I75: ='C'!H94 -> 14477.4 | J75: ='C'!I94 -> 10486.7 | K75: ='C'!J94 -> 8884.5 | L75: ='C'!K94 -> 9552.8 | M75: ='C'!L94 -> 8971.4 | N75: ='C'!M94 -> 14504.1 | O75: ='C'!N94 -> 20730.7 | P75: ='C'!O94 -> 54698.9 | Q75: =SUM(E75:P75) -> 385334.5
A76: =A75+1 -> 12 | C76: ='C'!B83 -> Over 1,000 Mcf | E76: ='C'!D95 -> 53379.8 | F76: ='C'!E95 -> 48852.8 | G76: ='C'!F95 -> 32211.7 | H76: ='C'!G95 -> 16120.8 | I76: ='C'!H95 -> 18828.4 | J76: ='C'!I95 -> 12830.8 | K76: ='C'!J95 -> 9139.7 | L76: ='C'!K95 -> 12183.2 | M76: ='C'!L95 -> 9839.6 | N76: ='C'!M95 -> 15667.5 | O76: ='C'!N95 -> 15763.6 | P76: ='C'!O95 -> 29248.7 | Q76: =SUM(E76:P76) -> 274066.6
A77: =A76+1 -> 13 | C77: Total Volumes (Mcf) | E77: =SUM(E73:E76) -> 809616.8 | F77: 800776.3 | G77: 594307.5 | H77: 383921.9 | I77: 216993.8 | J77: 152752 | K77: 123116.2 | L77: 130648.3 | M77: 128433.3 | N77: 168727.9 | O77: 300582.7 | P77: 609356.4 | Q77: =SUM(E77:P77) -> 4419233.1
A79: =A77+1 -> 14 | C79: Safety Modification & Replacement Program (2025-2027) Revenue | D79: =Input!L30 -> 0.4483 | E79: =ROUND(E$77*$D$79,2) -> 362951.21 | F79: 358988.02 | G79: 266428.05 | H79: 172112.19 | I79: 97278.32 | J79: 68478.72 | K79: 55192.99 | L79: 58569.63 | M79: 57576.65 | N79: 75640.72 | O79: 134751.22 | P79: 273174.47 | Q79: =SUM(E79:P79) -> 1981142.19
A81: =A79+1 -> 15 | B81: GSO | C81: General Service - Industrial
A83: =A81+1 -> 16 | C83: INDUSTRIAL
A85: =A83+1 -> 17 | C85: Volumes (Mcf) [1]
A86: =A85+1 -> 18 | C86: ='C'!B113 -> First 50 Mcf | E86: ='C'!D125 -> 2135.8 | F86: ='C'!E125 -> 2169.2 | G86: ='C'!F125 -> 2210 | H86: ='C'!G125 -> 2039.4 | I86: ='C'!H125 -> 1466.2 | J86: ='C'!I125 -> 1029.9 | K86: ='C'!J125 -> 877.1 | L86: ='C'!K125 -> 894.2 | M86: ='C'!L125 -> 1000.3 | N86: ='C'!M125 -> 1148.7 | O86: ='C'!N125 -> 1810.9 | P86: ='C'!O125 -> 2086.2 | Q86: =SUM(E86:P86) -> 18867.9
A87: =A86+1 -> 19 | C87: ='C'!B114 -> Next 350 Mcf | E87: ='C'!D126 -> 9984.3 | F87: ='C'!E126 -> 9677.8 | G87: ='C'!F126 -> 9429.4 | H87: ='C'!G126 -> 8343.8 | I87: ='C'!H126 -> 6136.2 | J87: ='C'!I126 -> 4662.1 | K87: ='C'!J126 -> 4138.1 | L87: ='C'!K126 -> 3988.8 | M87: ='C'!L126 -> 4209.3 | N87: ='C'!M126 -> 4713.5 | O87: ='C'!N126 -> 7530 | P87: ='C'!O126 -> 10392.4 | Q87: =SUM(E87:P87) -> 83205.7
A88: =A87+1 -> 20 | C88: ='C'!B115 -> Next 600 Mcf | E88: ='C'!D127 -> 8400.1 | F88: ='C'!E127 -> 8434.2 | G88: ='C'!F127 -> 7633.1 | H88: ='C'!G127 -> 7243.1 | I88: ='C'!H127 -> 5189.6 | J88: ='C'!I127 -> 4497.9 | K88: ='C'!J127 -> 3557.8 | L88: ='C'!K127 -> 3950.3 | M88: ='C'!L127 -> 3760.7 | N88: ='C'!M127 -> 3994.7 | O88: ='C'!N127 -> 6697.3 | P88: ='C'!O127 -> 8309 | Q88: =SUM(E88:P88) -> 71667.8
A89: =A88+1 -> 21 | C89: ='C'!B116 -> Over 1,000 Mcf | E89: ='C'!D128 -> 11942.1 | F89: ='C'!E128 -> 10948.8 | G89: ='C'!F128 -> 8354.5 | H89: ='C'!G128 -> 7831.6 | I89: ='C'!H128 -> 8200 | J89: ='C'!I128 -> 8174 | K89: ='C'!J128 -> 4300 | L89: ='C'!K128 -> 5900 | M89: ='C'!L128 -> 5000 | N89: ='C'!M128 -> 5700 | O89: ='C'!N128 -> 7409.6 | P89: ='C'!O128 -> 10564.3 | Q89: =SUM(E89:P89) -> 94324.9
A90: =A89+1 -> 22 | C90: Total Volumes (Mcf) | E90: =SUM(E86:E89) -> 32462.3 | F90: =SUM(F86:F89) -> 31230 | G90: 27627 | H90: 25457.9 | I90: 20992 | J90: 18363.9 | K90: 12873 | L90: 14733.3 | M90: 13970.3 | N90: 15556.9 | O90: 23447.8 | P90: 31351.9 | Q90: 268066.3
A92: =A90+1 -> 23 | C92: Safety Modification & Replacement Program (2025-2027) Revenue | D92: =Input!L31 -> 0.4483 | E92: =ROUND(E$90*$D$92,2) -> 14552.85 | F92: =ROUND(F$90*$D$92,2) -> 14000.41 | G92: 12385.18 | H92: 11412.78 | I92: 9410.71 | J92: 8232.54 | K92: 5770.97 | L92: 6604.94 | M92: 6262.89 | N92: 6974.16 | O92: 10511.65 | P92: 14055.06 | Q92: =SUM(E92:P92) -> 120174.14
A94: =A92+1 -> 24 | B94: IS | C94: Interruptible Service - Industrial
A96: =A94+1 -> 25 | C96: INDUSTRIAL
A98: =A96+1 -> 26 | C98: Volumes (Mcf) [1]
A99: =A98+1 -> 27 | C99: ='C'!B133 -> First 30,000 Mcf | E99: ='C'!D133 -> 0 | F99: ='C'!E133 -> 0 | G99: ='C'!F133 -> 0 | H99: ='C'!G133 -> 0 | I99: ='C'!H133 -> 0 | J99: ='C'!I133 -> 0 | K99: ='C'!J133 -> 0 | L99: ='C'!K133 -> 0 | M99: ='C'!L133 -> 0 | N99: ='C'!M133 -> 0 | O99: ='C'!N133 -> 0 | P99: ='C'!O133 -> 0 | Q99: =SUM(E99:P99) -> 0
A100: =A99+1 -> 28 | C100: ='C'!B134 -> Next 70,000 Mcf | E100: ='C'!D134 -> 0 | F100: ='C'!E134 -> 0 | G100: ='C'!F134 -> 0 | H100: ='C'!G134 -> 0 | I100: ='C'!H134 -> 0 | J100: ='C'!I134 -> 0 | K100: ='C'!J134 -> 0 | L100: ='C'!K134 -> 0 | M100: ='C'!L134 -> 0 | N100: ='C'!M134 -> 0 | O100: ='C'!N134 -> 0 | P100: ='C'!O134 -> 0 | Q100: =SUM(E100:P100) -> 0
A101: 29 | C101: ='C'!B135 -> Over 100,000 Mcf | E101: ='C'!D135 -> 0 | F101: ='C'!E135 -> 0 | G101: ='C'!F135 -> 0 | H101: ='C'!G135 -> 0 | I101: ='C'!H135 -> 0 | J101: ='C'!I135 -> 0 | K101: ='C'!J135 -> 0 | L101: ='C'!K135 -> 0 | M101: ='C'!L135 -> 0 | N101: ='C'!M135 -> 0 | O101: ='C'!N135 -> 0 | P101: ='C'!O135 -> 0 | Q101: =SUM(E101:P101) -> 0
A102: =A101+1 -> 30 | C102: Total Volumes (Mcf) | E102: =SUM(E99:E101) -> 0 | F102: 0 | G102: 0 | H102: 0 | I102: 0 | J102: 0 | K102: 0 | L102: 0 | M102: 0 | N102: 0 | O102: 0 | P102: 0 | Q102: =SUM(E102:P102) -> 0
A104: =A102+1 -> 31 | C104: Safety Modification & Replacement Program (2025-2027) Revenue | D104: =Input!L36 -> 0.0972 | E104: =ROUND(E$102*$D$104,2) -> 0 | F104: 0 | G104: 0 | H104: 0 | I104: 0 | J104: 0 | K104: 0 | L104: 0 | M104: 0 | N104: 0 | O104: 0 | P104: 0 | Q104: =SUM(E104:P104) -> 0
A106: =A104+1 -> 32 | B106: IUS | C106: Intrastate Utility Service - Wholesale
A108: =A106+1 -> 33 | C108: WHOLESALE
A110: =A108+1 -> 34 | C110: Volumes (Mcf) [1] | E110: ='C'!D141 -> 1737 | F110: ='C'!E141 -> 2033 | G110: ='C'!F141 -> 1295 | H110: ='C'!G141 -> 576 | I110: ='C'!H141 -> 412 | J110: ='C'!I141 -> 320 | K110: ='C'!J141 -> 248 | L110: ='C'!K141 -> 259 | M110: ='C'!L141 -> 310 | N110: ='C'!M141 -> 470 | O110: ='C'!N141 -> 950 | P110: ='C'!O141 -> 1991 | Q110: =SUM(E110:P110) -> 10601
A112: =A110+1 -> 35 | C112: Safety Modification & Replacement Program (2025-2027) Revenue | D112: =Input!L37 -> 0.7069 | E112: =ROUND(E$110*$D$112,2) -> 1227.89 | F112: 1437.13 | G112: 915.44 | H112: 407.17 | I112: 291.24 | J112: 226.21 | K112: 175.31 | L112: 183.09 | M112: 219.14 | N112: 332.24 | O112: 671.56 | P112: 1407.44 | Q112: =SUM(E112:P112) -> 7493.86
A115: =CONAME -> Columbia Gas of Kentucky, Inc.
A116: =case -> Case No. 2026-00099
A117: Annualized Test Year Revenues at Proposed Rates
A118: =TYDESC -> For the 12 Months Ended December 31, 2027
A119: (Gas Service)
A120: =$A$48 -> Data: __ Base Period _X_ Forecasted Period
A121: =$A$49 -> Type of Filing: X Original _ Update _ Revised | Q121: =$Q$49 -> Workpaper WPM-E.2
A122: =$A$50 -> Work Paper Reference No(s): | Q122: Page 3 of 4
A123: =$A$51 -> 12 Months Forecasted | Q123: =Witness -> Witness: J. C. Wozniak
A124: 2025-2027 SMRP Revenue at Present Rates
A127: Line | B127: Rate | C127: Class/ | D127: Proposed
A128: No. | B128: Code | C128: Description | D128: Rates | E128: =B!$D$11 -> Jan-27 | F128: =B!$E$11 -> Feb-27 | G128: =B!$F$11 -> Mar-27 | H128: =B!$G$11 -> Apr-27 | I128: =B!$H$11 -> May-27 | J128: =B!$I$11 -> Jun-27 | K128: =B!$J$11 -> Jul-27 | L128: =B!$K$11 -> Aug-27 | M128: =B!$L$11 -> Sep-27 | N128: =B!$M$11 -> Oct-27 | O128: =B!$N$11 -> Nov-27 | P128: =B!$O$11 -> Dec-27 | Q128: Total
B129: (A) | C129: (B) | D129: (C) | E129: (D) | F129: (E) | G129: (F) | H129: (G) | I129: (H) | J129: (I) | K129: (J) | L129: (K) | M129: (L) | N129: (M) | O129: (N) | P129: (O) | Q129: (P)
A132: 1 | C132: Transportation Service
A133: =A132+1 -> 2 | B133: GTR | C133: GTS Choice - Residential
A135: =A133+1 -> 3 | C135: RESIDENTIAL
A137: =A135+1 -> 4 | C137: Volumes (Mcf) [1] | E137: ='C'!D187 -> 149336.7 | F137: ='C'!E187 -> 143923.5 | G137: ='C'!F187 -> 110860.6 | H137: ='C'!G187 -> 68262.7 | I137: ='C'!H187 -> 30289.8 | J137: ='C'!I187 -> 14748.6 | K137: ='C'!J187 -> 8535.4 | L137: ='C'!K187 -> 8539.5 | M137: ='C'!L187 -> 8611.3 | N137: ='C'!M187 -> 16362.3 | O137: ='C'!N187 -> 46480.2 | P137: ='C'!O187 -> 111402.2 | Q137: =SUM(E137:P137) -> 717352.8
A139: =A137+1 -> 5 | C139: Safety Modification & Replacement Program (2025-2027) Revenue | D139: =Input!L41 -> 0.8874 | E139: =ROUND(E$137*$D$139,2) -> 132521.39 | F139: 127717.71 | G139: 98377.7 | H139: 60576.32 | I139: 26879.17 | J139: 13087.91 | K139: 7574.31 | L139: 7577.95 | M139: 7641.67 | N139: 14519.91 | O139: 41246.53 | P139: 98858.31 | Q139: =SUM(E139:P139) -> 636578.88
A141: =A139+1 -> 6 | B141: GTO | C141: GTS Choice - Commercial
A143: =A141+1 -> 7 | C143: COMMERCIAL
A145: =A143+1 -> 8 | C145: Volumes (Mcf) [1]
A146: =A145+1 -> 9 | C146: ='C'!B191 -> First 50 Mcf | E146: ='C'!D203 -> 59721.1 | F146: ='C'!E203 -> 58425.5 | G146: ='C'!F203 -> 51132.1 | H146: ='C'!G203 -> 37853 | I146: ='C'!H203 -> 23045 | J146: ='C'!I203 -> 16157.7 | K146: ='C'!J203 -> 14234.2 | L146: ='C'!K203 -> 12459.9 | M146: ='C'!L203 -> 14374.2 | N146: ='C'!M203 -> 15975.3 | O146: ='C'!N203 -> 32678.1 | P146: ='C'!O203 -> 51299.1 | Q146: =SUM(E146:P146) -> 387355.2
A147: =A146+1 -> 10 | C147: ='C'!B192 -> Next 350 Mcf | E147: ='C'!D204 -> 94631.4 | F147: ='C'!E204 -> 89228.5 | G147: ='C'!F204 -> 68406.8 | H147: ='C'!G204 -> 41545.5 | I147: ='C'!H204 -> 23745.3 | J147: ='C'!I204 -> 16244.3 | K147: ='C'!J204 -> 14783.1 | L147: ='C'!K204 -> 10200.2 | M147: ='C'!L204 -> 14244.1 | N147: ='C'!M204 -> 16882.4 | O147: ='C'!N204 -> 32316.8 | P147: ='C'!O204 -> 69819.4 | Q147: =SUM(E147:P147) -> 492047.8
A148: =A147+1 -> 11 | C148: ='C'!B193 -> Next 600 Mcf | E148: ='C'!D205 -> 28138.5 | F148: ='C'!E205 -> 25433.8 | G148: ='C'!F205 -> 17209.8 | H148: ='C'!G205 -> 10520.7 | I148: ='C'!H205 -> 6538.3 | J148: ='C'!I205 -> 5047.4 | K148: ='C'!J205 -> 4589.8 | L148: ='C'!K205 -> 3050.8 | M148: ='C'!L205 -> 5302.9 | N148: ='C'!M205 -> 5825.5 | O148: ='C'!N205 -> 8092.7 | P148: ='C'!O205 -> 17304 | Q148: =SUM(E148:P148) -> 137054.2
A149: =A148+1 -> 12 | C149: ='C'!B194 -> Over 1,000 Mcf | E149: ='C'!D206 -> 14027.3 | F149: ='C'!E206 -> 8679.7 | G149: ='C'!F206 -> 5632 | H149: ='C'!G206 -> 2990.1 | I149: ='C'!H206 -> 1937.4 | J149: ='C'!I206 -> 1403.7 | K149: ='C'!J206 -> 860.8 | L149: ='C'!K206 -> 424.2 | M149: ='C'!L206 -> 800.7 | N149: ='C'!M206 -> 1602.3 | O149: ='C'!N206 -> 2361.4 | P149: ='C'!O206 -> 6496.5 | Q149: =SUM(E149:P149) -> 47216.1
A150: =A149+1 -> 13 | C150: Total Volumes (Mcf) | E150: =SUM(E146:E149) -> 196518.3 | F150: 181767.5 | G150: 142380.7 | H150: 92909.3 | I150: 55266 | J150: 38853.1 | K150: 34467.9 | L150: 26135.1 | M150: 34721.9 | N150: 40285.5 | O150: 75449 | P150: 144919 | Q150: =SUM(E150:P150) -> 1063673.3
A152: =A150+1 -> 14 | C152: Safety Modification & Replacement Program (2025-2027) Revenue | D152: =Input!L42 -> 0.4483 | E152: =ROUND(E$150*$D$152,2) -> 88099.15 | F152: 81486.37 | G152: 63829.27 | H152: 41651.24 | I152: 24775.75 | J152: 17417.84 | K152: 15451.96 | L152: 11716.37 | M152: 15565.83 | N152: 18059.99 | O152: 33823.79 | P152: 64967.19 | Q152: =SUM(E152:P152) -> 476844.75
A154: =A152+1 -> 15 | B154: GTO | C154: GTS Choice - Industrial
A156: =A154+1 -> 16 | C156: INDUSTRIAL
A158: =A156+1 -> 17 | C158: Volumes (Mcf) [1]
A159: =A158+1 -> 18 | C159: ='C'!B224 -> First 50 Mcf | E159: ='C'!D236 -> 612.1 | F159: ='C'!E236 -> 613.5 | G159: ='C'!F236 -> 659 | H159: ='C'!G236 -> 625.6 | I159: ='C'!H236 -> 575.7 | J159: ='C'!I236 -> 529.6 | K159: ='C'!J236 -> 378.6 | L159: ='C'!K236 -> 368 | M159: ='C'!L236 -> 435.4 | N159: ='C'!M236 -> 445.2 | O159: ='C'!N236 -> 508.7 | P159: ='C'!O236 -> 566.8 | Q159: =SUM(E159:P159) -> 6318.2
A160: =A159+1 -> 19 | C160: ='C'!B225 -> Next 350 Mcf | E160: ='C'!D237 -> 3657.3 | F160: ='C'!E237 -> 3633.8 | G160: ='C'!F237 -> 3892.7 | H160: ='C'!G237 -> 3744.7 | I160: ='C'!H237 -> 2993.3 | J160: ='C'!I237 -> 2032.8 | K160: ='C'!J237 -> 1277.9 | L160: ='C'!K237 -> 1361.3 | M160: ='C'!L237 -> 1740.5 | N160: ='C'!M237 -> 2225 | O160: ='C'!N237 -> 2697.9 | P160: ='C'!O237 -> 3381.6 | Q160: =SUM(E160:P160) -> 32638.8
A161: =A160+1 -> 20 | C161: ='C'!B226 -> Next 600 Mcf | E161: ='C'!D238 -> 3413.4 | F161: ='C'!E238 -> 3840.8 | G161: ='C'!F238 -> 3411.4 | H161: ='C'!G238 -> 3146.6 | I161: ='C'!H238 -> 1324.4 | J161: ='C'!I238 -> 929.5 | K161: ='C'!J238 -> 884.3 | L161: ='C'!K238 -> 901.7 | M161: ='C'!L238 -> 400 | N161: ='C'!M238 -> 1407.8 | O161: ='C'!N238 -> 2794.1 | P161: ='C'!O238 -> 3207 | Q161: =SUM(E161:P161) -> 25661
A162: =A161+1 -> 21 | C162: ='C'!B227 -> Over 1,000 Mcf | E162: ='C'!D239 -> 2553.5 | F162: ='C'!E239 -> 1869 | G162: ='C'!F239 -> 565.9 | H162: ='C'!G239 -> 516.1 | I162: ='C'!H239 -> 356.6 | J162: ='C'!I239 -> 0 | K162: ='C'!J239 -> 0 | L162: ='C'!K239 -> 0 | M162: ='C'!L239 -> 0 | N162: ='C'!M239 -> 0 | O162: ='C'!N239 -> 1077.2 | P162: ='C'!O239 -> 3843.8 | Q162: =SUM(E162:P162) -> 10782.1
A163: =A162+1 -> 22 | C163: Total Volumes (Mcf) | E163: =SUM(E159:E162) -> 10236.3 | F163: 9957.1 | G163: 8529 | H163: 8033 | I163: 5250 | J163: 3491.9 | K163: 2540.8 | L163: 2631 | M163: 2575.9 | N163: 4078 | O163: 7077.9 | P163: 10999.2 | Q163: =SUM(E163:P163) -> 75400.1
A165: =A163+1 -> 23 | C165: Safety Modification & Replacement Program (2025-2027) Revenue | D165: =Input!L43 -> 0.4483 | E165: =ROUND(E$163*$D$165,2) -> 4588.93 | F165: 4463.77 | G165: 3823.55 | H165: 3601.19 | I165: 2353.58 | J165: 1565.42 | K165: 1139.04 | L165: 1179.48 | M165: 1154.78 | N165: 1828.17 | O165: 3173.02 | P165: 4930.94 | Q165: =SUM(E165:P165) -> 33801.87
A167: =A165+1 -> 24 | B167: DS | C167: GTS Delivery Service - Commercial
A169: =A167+1 -> 25 | C169: COMMERCIAL
A171: =A169+1 -> 26 | C171: Volumes (Mcf) [1]
A172: =A171+1 -> 27 | C172: ='C'!B244 -> First 30,000 Mcf | E172: ='C'!D254 -> 253652.7 | F172: ='C'!E254 -> 227318.8 | G172: ='C'!F254 -> 215216.2 | H172: ='C'!G254 -> 185042 | I172: ='C'!H254 -> 169173.5 | J172: ='C'!I254 -> 158320.8 | K172: ='C'!J254 -> 155523.6 | L172: ='C'!K254 -> 157239 | M172: ='C'!L254 -> 159033.5 | N172: ='C'!M254 -> 176537.6 | O172: ='C'!N254 -> 201832.5 | P172: ='C'!O254 -> 227056.3 | Q172: =SUM(E172:P172) -> 2285946.5
A173: =A172+1 -> 28 | C173: ='C'!B245 -> Next 70,000 Mcf | E173: ='C'!D255 -> 107300 | F173: ='C'!E255 -> 93000 | G173: ='C'!F255 -> 82560 | H173: ='C'!G255 -> 49580 | I173: ='C'!H255 -> 26260 | J173: ='C'!I255 -> 6360 | K173: ='C'!J255 -> 10300 | L173: ='C'!K255 -> 11540 | M173: ='C'!L255 -> 12880 | N173: ='C'!M255 -> 39840 | O173: ='C'!N255 -> 76460 | P173: ='C'!O255 -> 94920 | Q173: =SUM(E173:P173) -> 611000
A174: =A173+1 -> 29 | C174: ='C'!B246 -> Over 100,000 Mcf | E174: ='C'!D256 -> 18800 | F174: ='C'!E256 -> 80 | G174: ='C'!F256 -> 0 | H174: ='C'!G256 -> 0 | I174: ='C'!H256 -> 0 | J174: ='C'!I256 -> 0 | K174: ='C'!J256 -> 0 | L174: ='C'!K256 -> 0 | M174: ='C'!L256 -> 0 | N174: ='C'!M256 -> 0 | O174: ='C'!N256 -> 0 | P174: ='C'!O256 -> 0 | Q174: =SUM(E174:P174) -> 18880
A175: =A174+1 -> 30 | C175: Total Volumes (Mcf) | E175: =SUM(E172:E174) -> 379752.7 | F175: =SUM(F172:F174) -> 320398.8 | G175: 297776.2 | H175: 234622 | I175: 195433.5 | J175: 164680.8 | K175: 165823.6 | L175: 168779 | M175: 171913.5 | N175: 216377.6 | O175: 278292.5 | P175: 321976.3 | Q175: =SUM(E175:P175) -> 2915826.5
A177: =A175+1 -> 31 | C177: Safety Modification & Replacement Program (2025-2027) Revenue | D177: =Input!L44 -> 0.0972 | E177: =ROUND(E$175*$D$177,2) -> 36911.96 | F177: 31142.76 | G177: 28943.85 | H177: 22805.26 | I177: 18996.14 | J177: 16006.97 | K177: 16118.05 | L177: 16405.32 | M177: 16709.99 | N177: 21031.9 | O177: 27050.03 | P177: 31296.1 | Q177: =SUM(E177:P177) -> 283418.33
A179: =A177+1 -> 32 | B179: DS | C179: GTS Delivery Service - Industrial
A181: =A179+1 -> 33 | C181: INDUSTRIAL
A183: =A181+1 -> 34 | C183: Volumes (Mcf) [1]
A184: =A183+1 -> 35 | C184: ='C'!B261 -> First 30,000 Mcf | E184: ='C'!D271 -> 376491.8 | F184: ='C'!E271 -> 340123.3 | G184: ='C'!F271 -> 344969.5 | H184: ='C'!G271 -> 326769.1 | I184: ='C'!H271 -> 319840.7 | J184: ='C'!I271 -> 308214.8 | K184: ='C'!J271 -> 256562.5 | L184: ='C'!K271 -> 316527.7 | M184: ='C'!L271 -> 303716.7 | N184: ='C'!M271 -> 337863.5 | O184: ='C'!N271 -> 343759.6 | P184: ='C'!O271 -> 346147.7 | Q184: =SUM(E184:P184) -> 3920986.9
A185: =A184+1 -> 36 | C185: ='C'!B262 -> Next 70,000 Mcf | E185: ='C'!D272 -> 142000 | F185: ='C'!E272 -> 140000 | G185: ='C'!F272 -> 140000 | H185: ='C'!G272 -> 140000 | I185: ='C'!H272 -> 126700 | J185: ='C'!I272 -> 116600 | K185: ='C'!J272 -> 24100 | L185: ='C'!K272 -> 116500 | M185: ='C'!L272 -> 118200 | N185: ='C'!M272 -> 140000 | O185: ='C'!N272 -> 140000 | P185: ='C'!O272 -> 140000 | Q185: =SUM(E185:P185) -> 1484100
A186: =A185+1 -> 37 | C186: ='C'!B263 -> Over 100,000 Mcf | E186: ='C'!D273 -> 165700 | F186: ='C'!E273 -> 97300 | G186: ='C'!F273 -> 72400 | H186: ='C'!G273 -> 35600 | I186: ='C'!H273 -> 17000 | J186: ='C'!I273 -> 7000 | K186: ='C'!J273 -> 0 | L186: ='C'!K273 -> 3000 | M186: ='C'!L273 -> 12000 | N186: ='C'!M273 -> 43300 | O186: ='C'!N273 -> 67400 | P186: ='C'!O273 -> 98800 | Q186: =SUM(E186:P186) -> 619500
A187: =A186+1 -> 38 | C187: Total Volumes (Mcf) | E187: =SUM(E184:E186) -> 684191.8 | F187: =SUM(F184:F186) -> 577423.3 | G187: 557369.5 | H187: 502369.1 | I187: 463540.7 | J187: 431814.8 | K187: 280662.5 | L187: 436027.7 | M187: 433916.7 | N187: 521163.5 | O187: 551159.6 | P187: 584947.7 | Q187: =SUM(E187:P187) -> 6024586.9
A189: =A187+1 -> 39 | C189: Safety Modification & Replacement Program (2025-2027) Revenue | D189: =Input!L45 -> 0.0972 | E189: =ROUND(E$187*$D$189,2) -> 66503.44 | F189: 56125.54 | G189: 54176.32 | H189: 48830.28 | I189: 45056.16 | J189: 41972.4 | K189: 27280.4 | L189: 42381.89 | M189: 42176.7 | N189: 50657.09 | O189: 53572.71 | P189: 56856.92 | Q189: =SUM(E189:P189) -> 585589.85
A191: =CONAME -> Columbia Gas of Kentucky, Inc.
A192: =case -> Case No. 2026-00099
A193: Annualized Test Year Revenues at Proposed Rates
A194: =TYDESC -> For the 12 Months Ended December 31, 2027
A195: (Gas Service)
A196: =$A$48 -> Data: __ Base Period _X_ Forecasted Period
A197: =$A$49 -> Type of Filing: X Original _ Update _ Revised | Q197: =$Q$49 -> Workpaper WPM-E.2
A198: =$A$50 -> Work Paper Reference No(s): | Q198: Page 4 of 4
A199: =$A$51 -> 12 Months Forecasted | Q199: =Witness -> Witness: J. C. Wozniak
A200: 2025-2027 SMRP Revenue at Present Rates
A202: 1 | B202: GDS | C202: GTS Grandfathered Delivery Service - Commercial
A204: =A202+1 -> 2 | C204: COMMERCIAL
A206: =A204+1 -> 3 | C206: Volumes (Mcf) [1]
A207: =A206+1 -> 4 | C207: ='C'!B291 -> First 50 Mcf | E207: ='C'!D303 -> 750 | F207: ='C'!E303 -> 750 | G207: ='C'!F303 -> 750 | H207: ='C'!G303 -> 750 | I207: ='C'!H303 -> 750 | J207: ='C'!I303 -> 700 | K207: ='C'!J303 -> 700 | L207: ='C'!K303 -> 700 | M207: ='C'!L303 -> 700 | N207: ='C'!M303 -> 700 | O207: ='C'!N303 -> 750 | P207: ='C'!O303 -> 750 | Q207: =SUM(E207:P207) -> 8750
A208: =A207+1 -> 5 | C208: ='C'!B292 -> Next 350 Mcf | E208: ='C'!D304 -> 5250 | F208: ='C'!E304 -> 5250 | G208: ='C'!F304 -> 5250 | H208: ='C'!G304 -> 5250 | I208: ='C'!H304 -> 4976.5 | J208: ='C'!I304 -> 4330.4 | K208: ='C'!J304 -> 4360.2 | L208: ='C'!K304 -> 4369.8 | M208: ='C'!L304 -> 4553.4 | N208: ='C'!M304 -> 4850 | O208: ='C'!N304 -> 5250 | P208: ='C'!O304 -> 5250 | Q208: =SUM(E208:P208) -> 58940.3
A209: =A208+1 -> 6 | C209: ='C'!B293 -> Next 600 Mcf | E209: ='C'!D305 -> 8963.6 | F209: ='C'!E305 -> 8817.4 | G209: ='C'!F305 -> 8455.5 | H209: ='C'!G305 -> 8215.1 | I209: ='C'!H305 -> 6023 | J209: ='C'!I305 -> 4790.5 | K209: ='C'!J305 -> 4441 | L209: ='C'!K305 -> 4322 | M209: ='C'!L305 -> 4555.6 | N209: ='C'!M305 -> 5806.2 | O209: ='C'!N305 -> 8088.2 | P209: ='C'!O305 -> 8974.1 | Q209: =SUM(E209:P209) -> 81452.2
A210: =A209+1 -> 7 | C210: ='C'!B294 -> Over 1,000 Mcf | E210: ='C'!D306 -> 24675.6 | F210: ='C'!E306 -> 17906.9 | G210: ='C'!F306 -> 12401.3 | H210: ='C'!G306 -> 9023.9 | I210: ='C'!H306 -> 4061 | J210: ='C'!I306 -> 2384.3 | K210: ='C'!J306 -> 1089.2 | L210: ='C'!K306 -> 1563.2 | M210: ='C'!L306 -> 1183.7 | N210: ='C'!M306 -> 3173.2 | O210: ='C'!N306 -> 7178.3 | P210: ='C'!O306 -> 16000.6 | Q210: =SUM(E210:P210) -> 100641.2
A211: =A210+1 -> 8 | C211: Total Volumes (Mcf) | E211: =SUM(E207:E210) -> 39639.2 | F211: 32724.3 | G211: 26856.8 | H211: 23239 | I211: 15810.5 | J211: 12205.2 | K211: 10590.4 | L211: 10955 | M211: 10992.7 | N211: 14529.4 | O211: 21266.5 | P211: 30974.7 | Q211: =SUM(E211:P211) -> 249783.7
A213: =A211+1 -> 9 | C213: Safety Modification & Replacement Program (2025-2027) Revenue | D213: =Input!L46 -> 0.4483 | E213: =ROUND(E$211*$D$213,2) -> 17770.25 | F213: 14670.3 | G213: 12039.9 | H213: 10418.04 | I213: 7087.85 | J213: 5471.59 | K213: 4747.68 | L213: 4911.13 | M213: 4928.03 | N213: 6513.53 | O213: 9533.77 | P213: 13885.96 | Q213: =SUM(E213:P213) -> 111978.03
A215: =A213+1 -> 10 | B215: GDS | C215: GTS Grandfathered Delivery Service - Industrial
A217: =A215+1 -> 11 | C217: INDUSTRIAL
A219: =A217+1 -> 12 | C219: Volumes (Mcf) [1]
A220: =A219+1 -> 13 | C220: ='C'!B311 -> First 50 Mcf | E220: ='C'!D323 -> 150 | F220: ='C'!E323 -> 150 | G220: ='C'!F323 -> 150 | H220: ='C'!G323 -> 150 | I220: ='C'!H323 -> 150 | J220: ='C'!I323 -> 100 | K220: ='C'!J323 -> 100 | L220: ='C'!K323 -> 100 | M220: ='C'!L323 -> 100 | N220: ='C'!M323 -> 150 | O220: ='C'!N323 -> 150 | P220: ='C'!O323 -> 150 | Q220: =SUM(E220:P220) -> 1600
A221: =A220+1 -> 14 | C221: ='C'!B312 -> Next 350 Mcf | E221: ='C'!D324 -> 1050 | F221: ='C'!E324 -> 1050 | G221: ='C'!F324 -> 1050 | H221: ='C'!G324 -> 1050 | I221: ='C'!H324 -> 850 | J221: ='C'!I324 -> 700 | K221: ='C'!J324 -> 700 | L221: ='C'!K324 -> 700 | M221: ='C'!L324 -> 700 | N221: ='C'!M324 -> 850 | O221: ='C'!N324 -> 950 | P221: ='C'!O324 -> 1050 | Q221: =SUM(E221:P221) -> 10700
A222: =A221+1 -> 15 | C222: ='C'!B313 -> Next 600 Mcf | E222: ='C'!D325 -> 1800 | F222: ='C'!E325 -> 1800 | G222: ='C'!F325 -> 1800 | H222: ='C'!G325 -> 1800 | I222: ='C'!H325 -> 1039.1 | J222: ='C'!I325 -> 701.2 | K222: ='C'!J325 -> 453.2 | L222: ='C'!K325 -> 503.3 | M222: ='C'!L325 -> 670.5 | N222: ='C'!M325 -> 1200 | O222: ='C'!N325 -> 1200 | P222: ='C'!O325 -> 1800 | Q222: =SUM(E222:P222) -> 14767.3
A223: =A222+1 -> 16 | C223: ='C'!B314 -> Over 1,000 Mcf | E223: ='C'!D326 -> 13992.2 | F223: ='C'!E326 -> 11508.7 | G223: ='C'!F326 -> 7898.2 | H223: ='C'!G326 -> 822.9 | I223: ='C'!H326 -> 277.8 | J223: ='C'!I326 -> 0 | K223: ='C'!J326 -> 0 | L223: ='C'!K326 -> 0 | M223: ='C'!L326 -> 0 | N223: ='C'!M326 -> 409.5 | O223: ='C'!N326 -> 1588.6 | P223: ='C'!O326 -> 2935.9 | Q223: =SUM(E223:P223) -> 39433.8
A224: =A223+1 -> 17 | C224: Total Volumes (Mcf) | E224: =SUM(E220:E223) -> 16992.2 | F224: 14508.7 | G224: 10898.2 | H224: 3822.9 | I224: 2316.9 | J224: 1501.2 | K224: 1253.2 | L224: 1303.3 | M224: 1470.5 | N224: 2609.5 | O224: 3888.6 | P224: 5935.9 | Q224: =SUM(E224:P224) -> 66501.1
A226: =A224+1 -> 18 | C226: Safety Modification & Replacement Program (2025-2027) Revenue | D226: =Input!L47 -> 0.4483 | E226: =ROUND(E$224*$D$226,2) -> 7617.6 | F226: 6504.25 | G226: 4885.66 | H226: 1713.81 | I226: 1038.67 | J226: 672.99 | K226: 561.81 | L226: 584.27 | M226: 659.23 | N226: 1169.84 | O226: 1743.26 | P226: 2661.06 | Q226: =SUM(E226:P226) -> 29812.45
A229: =A226+1 -> 19 | B229: SAS | C229: GTS Special Agency Service
A231: =A229+1 -> 20 | C231: COMMERCIAL
A233: =A231+1 -> 21 | C233: Volumes (Mcf) [1]
A234: =A233+1 -> 22 | C234: ='C'!B364 -> First 30,000 Mcf | E234: ='C'!D372 -> 0 | F234: ='C'!E372 -> 0 | G234: ='C'!F372 -> 0 | H234: ='C'!G372 -> 0 | I234: ='C'!H372 -> 0 | J234: ='C'!I372 -> 0 | K234: ='C'!J372 -> 0 | L234: ='C'!K372 -> 0 | M234: ='C'!L372 -> 0 | N234: ='C'!M372 -> 0 | O234: ='C'!N372 -> 0 | P234: ='C'!O372 -> 0 | Q234: =SUM(E234:P234) -> 0
A235: =A234+1 -> 23 | C235: ='C'!B365 -> Over 30,000 Mcf | E235: ='C'!D373 -> 0 | F235: ='C'!E373 -> 0 | G235: ='C'!F373 -> 0 | H235: ='C'!G373 -> 0 | I235: ='C'!H373 -> 0 | J235: ='C'!I373 -> 0 | K235: ='C'!J373 -> 0 | L235: ='C'!K373 -> 0 | M235: ='C'!L373 -> 0 | N235: ='C'!M373 -> 0 | O235: ='C'!N373 -> 0 | P235: ='C'!O373 -> 0 | Q235: =SUM(E235:P235) -> 0
A236: =A235+1 -> 24 | C236: Total Volumes (Mcf) | E236: =SUM(E234:E235) -> 0 | F236: 0 | G236: 0 | H236: 0 | I236: 0 | J236: 0 | K236: 0 | L236: 0 | M236: 0 | N236: 0 | O236: 0 | P236: 0 | Q236: =SUM(E236:P236) -> 0
A238: =A236+1 -> 25 | C238: Safety Modification & Replacement Program (2023-2024) | D238: =Input!L52 -> 0.0972 | E238: =ROUND(E$236*$D$238,2) -> 0 | F238: 0 | G238: 0 | H238: 0 | I238: 0 | J238: 0 | K238: 0 | L238: 0 | M238: 0 | N238: 0 | O238: 0 | P238: 0 | Q238: =SUM(E238:P238) -> 0

Sheet Sch M
A1: Columbia Gas of Kentucky, Inc.
A2: ='Sch M 2.1'!A2:J2 -> Case No. 2026-00099
A3: Revenues At Present and Proposed Rates
A4: For the 12 Months Ended December 31, 2027
A5: (Gas Service)
A6: Data: __ Base Period _X_Forecasted Period
A7: Type of Filing: X Original _ Update _ Revised | O7: Schedule M
A8: Work Paper Reference No(s): | O8: Page 2 of 3
A9: 12 Months Forecasted | O9: =Witness -> Witness: J. C. Wozniak
A11: Current Annualized
A13: Line
A14: No. | B14: Description | C14: =B!$D$11 -> Jan-27 | D14: =B!$E$11 -> Feb-27 | E14: =B!$F$11 -> Mar-27 | F14: =B!$G$11 -> Apr-27 | G14: =B!$H$11 -> May-27 | H14: =B!$I$11 -> Jun-27 | I14: =B!$J$11 -> Jul-27 | J14: =B!$K$11 -> Aug-27 | K14: =B!$L$11 -> Sep-27 | L14: =B!$M$11 -> Oct-27 | M14: =B!$N$11 -> Nov-27 | N14: =B!$O$11 -> Dec-27 | O14: Total
A16: 1 | B16: Revenue by Customer Class
A18: =A16+1 -> 2 | B18: Residential Sales | C18: ='Sch M 2.2'!E71+'Sch M 2.2'!E85+'Sch M 2.2'!E92+'Sch M 2.2'!E99+'Sch M 2.2'!E106+'Sch M 2.2'!E135+'Sch M 2.2'!E149+'Sch M 2.2'!E156 -> 23209126.2 | D18: ='Sch M 2.2'!F71+'Sch M 2.2'!F85+'Sch M 2.2'!F92+'Sch M 2.2'!F99+'Sch M 2.2'!F106+'Sch M 2.2'!F135+'Sch M 2.2'!F149+'Sch M 2.2'!F156 -> 22748646.54 | E18: ='Sch M 2.2'!G71+'Sch M 2.2'!G85+'Sch M 2.2'!G92+'Sch M 2.2'!G99+'Sch M 2.2'!G106+'Sch M 2.2'!G135+'Sch M 2.2'!G149+'Sch M 2.2'!G156 -> 17857465.12 | F18: ='Sch M 2.2'!H71+'Sch M 2.2'!H85+'Sch M 2.2'!H92+'Sch M 2.2'!H99+'Sch M 2.2'!H106+'Sch M 2.2'!H135+'Sch M 2.2'!H149+'Sch M 2.2'!H156 -> 11697026.25 | G18: ='Sch M 2.2'!I71+'Sch M 2.2'!I85+'Sch M 2.2'!I92+'Sch M 2.2'!I99+'Sch M 2.2'!I106+'Sch M 2.2'!I135+'Sch M 2.2'!I149+'Sch M 2.2'!I156 -> 6656028.19 | H18: ='Sch M 2.2'!J71+'Sch M 2.2'!J85+'Sch M 2.2'!J92+'Sch M 2.2'!J99+'Sch M 2.2'!J106+'Sch M 2.2'!J135+'Sch M 2.2'!J149+'Sch M 2.2'!J156 -> 4595581.6 | I18: ='Sch M 2.2'!K71+'Sch M 2.2'!K85+'Sch M 2.2'!K92+'Sch M 2.2'!K99+'Sch M 2.2'!K106+'Sch M 2.2'!K135+'Sch M 2.2'!K149+'Sch M 2.2'!K156 -> 3783636.87 | J18: ='Sch M 2.2'!L71+'Sch M 2.2'!L85+'Sch M 2.2'!L92+'Sch M 2.2'!L99+'Sch M 2.2'!L106+'Sch M 2.2'!L135+'Sch M 2.2'!L149+'Sch M 2.2'!L156 -> 3762670.33 | K18: ='Sch M 2.2'!M71+'Sch M 2.2'!M85+'Sch M 2.2'!M92+'Sch M 2.2'!M99+'Sch M 2.2'!M106+'Sch M 2.2'!M135+'Sch M 2.2'!M149+'Sch M 2.2'!M156 -> 3889444.27 | L18: ='Sch M 2.2'!N71+'Sch M 2.2'!N85+'Sch M 2.2'!N92+'Sch M 2.2'!N99+'Sch M 2.2'!N106+'Sch M 2.2'!N135+'Sch M 2.2'!N149+'Sch M 2.2'!N156 -> 4712996.49 | M18: ='Sch M 2.2'!O71+'Sch M 2.2'!O85+'Sch M 2.2'!O92+'Sch M 2.2'!O99+'Sch M 2.2'!O106+'Sch M 2.2'!O135+'Sch M 2.2'!O149+'Sch M 2.2'!O156 -> 8561235.91 | N18: ='Sch M 2.2'!P71+'Sch M 2.2'!P85+'Sch M 2.2'!P92+'Sch M 2.2'!P99+'Sch M 2.2'!P106+'Sch M 2.2'!P135+'Sch M 2.2'!P149+'Sch M 2.2'!P156 -> 17625234.87 | O18: =SUM(C18:N18) -> 129099092.6
A19: =A18+1 -> 3 | B19: Commercial Sales | C19: ='Sch M 2.2'!E78+'Sch M 2.2'!E142+'Sch M 2.2'!E163 -> 9303623.97 | D19: ='Sch M 2.2'!F78+'Sch M 2.2'!F142+'Sch M 2.2'!F163 -> 9230024.19 | E19: ='Sch M 2.2'!G78+'Sch M 2.2'!G142+'Sch M 2.2'!G163 -> 7224648.55 | F19: ='Sch M 2.2'!H78+'Sch M 2.2'!H142+'Sch M 2.2'!H163 -> 5161109.72 | G19: ='Sch M 2.2'!I78+'Sch M 2.2'!I142+'Sch M 2.2'!I163 -> 3498297.38 | H19: ='Sch M 2.2'!J78+'Sch M 2.2'!J142+'Sch M 2.2'!J163 -> 2848926.47 | I19: ='Sch M 2.2'!K78+'Sch M 2.2'!K142+'Sch M 2.2'!K163 -> 2542435.21 | J19: ='Sch M 2.2'!L78+'Sch M 2.2'!L142+'Sch M 2.2'!L163 -> 2612655.14 | K19: ='Sch M 2.2'!M78+'Sch M 2.2'!M142+'Sch M 2.2'!M163 -> 2583958.3 | L19: ='Sch M 2.2'!N78+'Sch M 2.2'!N142+'Sch M 2.2'!N163 -> 2973848.94 | M19: ='Sch M 2.2'!O78+'Sch M 2.2'!O142+'Sch M 2.2'!O163 -> 4314267.62 | N19: ='Sch M 2.2'!P78+'Sch M 2.2'!P142+'Sch M 2.2'!P163 -> 7365602.46 | O19: =SUM(C19:N19) -> 59659397.95
A20: =A19+1 -> 4 | B20: Industrial Sales | C20: ='Sch M 2.2'!E191+'Sch M 2.2'!E198 -> 312460.18 | D20: ='Sch M 2.2'!F191+'Sch M 2.2'!F198 -> 301025.71 | E20: ='Sch M 2.2'!G191+'Sch M 2.2'!G198 -> 267558.96 | F20: ='Sch M 2.2'!H191+'Sch M 2.2'!H198 -> 247136.72 | G20: ='Sch M 2.2'!I191+'Sch M 2.2'!I198 -> 203931.21 | H20: ='Sch M 2.2'!J191+'Sch M 2.2'!J198 -> 178581.5 | I20: ='Sch M 2.2'!K191+'Sch M 2.2'!K198 -> 127143.85 | J20: ='Sch M 2.2'!L191+'Sch M 2.2'!L198 -> 144587.52 | K20: ='Sch M 2.2'!M191+'Sch M 2.2'!M198 -> 137688.6 | L20: ='Sch M 2.2'!N191+'Sch M 2.2'!N198 -> 152705.94 | M20: ='Sch M 2.2'!O191+'Sch M 2.2'!O198 -> 227848.45 | N20: ='Sch M 2.2'!P191+'Sch M 2.2'!P198 -> 302273.28 | O20: =SUM(C20:N20) -> 2602941.92
A21: =A20+1 -> 5 | B21: Other Sales | C21: 0 | D21: 0 | E21: 0 | F21: 0 | G21: 0 | H21: 0 | I21: 0 | J21: 0 | K21: 0 | L21: 0 | M21: 0 | N21: 0 | O21: =SUM(C21:N21) -> 0
A22: 6 | B22: Public Utilities | C22: ='Sch M 2.2'!E205 -> 16023.39 | D22: ='Sch M 2.2'!F205 -> 18367.09 | E22: ='Sch M 2.2'!G205 -> 12523.68 | F22: ='Sch M 2.2'!H205 -> 6830.71 | G22: ='Sch M 2.2'!I205 -> 5532.18 | H22: ='Sch M 2.2'!J205 -> 4803.73 | I22: ='Sch M 2.2'!K205 -> 4233.64 | J22: ='Sch M 2.2'!L205 -> 4320.74 | K22: ='Sch M 2.2'!M205 -> 4724.55 | L22: ='Sch M 2.2'!N205 -> 5991.42 | M22: ='Sch M 2.2'!O205 -> 9792.01 | N22: ='Sch M 2.2'!P205 -> 18034.54 | O22: 111177.68
A23: =A22+1 -> 7 | B23: Total Sales | C23: =SUM(C18:C22) -> 32841233.74 | D23: 32298063.53 | E23: 25362196.31 | F23: 17112103.4 | G23: 10363788.96 | H23: 7627893.3 | I23: 6457449.57 | J23: 6524233.73 | K23: 6615815.72 | L23: 7845542.79 | M23: 13113143.99 | N23: 25311145.15 | O23: 191472610.2
A25: =A23+1 -> 8 | B25: Transportation | C25: ='Sch M 2.2'!E233+'Sch M 2.2'!E240+'Sch M 2.2'!E247+'Sch M 2.2'!E254+'Sch M 2.2'!E261+'Sch M 2.2'!E268+'Sch M 2.2'!E295+'Sch M 2.2'!E302+'Sch M 2.2'!E309+'Sch M 2.2'!E316+'Sch M 2.2'!E323+'Sch M 2.2'!E350 -> 3262982.67 | D25: ='Sch M 2.2'!F233+'Sch M 2.2'!F240+'Sch M 2.2'!F247+'Sch M 2.2'!F254+'Sch M 2.2'!F261+'Sch M 2.2'!F268+'Sch M 2.2'!F295+'Sch M 2.2'!F302+'Sch M 2.2'!F309+'Sch M 2.2'!F316+'Sch M 2.2'!F323+'Sch M 2.2'!F350 -> 3068190.23 | E25: ='Sch M 2.2'!G233+'Sch M 2.2'!G240+'Sch M 2.2'!G247+'Sch M 2.2'!G254+'Sch M 2.2'!G261+'Sch M 2.2'!G268+'Sch M 2.2'!G295+'Sch M 2.2'!G302+'Sch M 2.2'!G309+'Sch M 2.2'!G316+'Sch M 2.2'!G323+'Sch M 2.2'!G350 -> 2690478.35 | F25: ='Sch M 2.2'!H233+'Sch M 2.2'!H240+'Sch M 2.2'!H247+'Sch M 2.2'!H254+'Sch M 2.2'!H261+'Sch M 2.2'!H268+'Sch M 2.2'!H295+'Sch M 2.2'!H302+'Sch M 2.2'!H309+'Sch M 2.2'!H316+'Sch M 2.2'!H323+'Sch M 2.2'!H350 -> 2171001.31 | G25: ='Sch M 2.2'!I233+'Sch M 2.2'!I240+'Sch M 2.2'!I247+'Sch M 2.2'!I254+'Sch M 2.2'!I261+'Sch M 2.2'!I268+'Sch M 2.2'!I295+'Sch M 2.2'!I302+'Sch M 2.2'!I309+'Sch M 2.2'!I316+'Sch M 2.2'!I323+'Sch M 2.2'!I350 -> 1717585.53 | H25: ='Sch M 2.2'!J233+'Sch M 2.2'!J240+'Sch M 2.2'!J247+'Sch M 2.2'!J254+'Sch M 2.2'!J261+'Sch M 2.2'!J268+'Sch M 2.2'!J295+'Sch M 2.2'!J302+'Sch M 2.2'!J309+'Sch M 2.2'!J316+'Sch M 2.2'!J323+'Sch M 2.2'!J350 -> 1514776.94 | I25: ='Sch M 2.2'!K233+'Sch M 2.2'!K240+'Sch M 2.2'!K247+'Sch M 2.2'!K254+'Sch M 2.2'!K261+'Sch M 2.2'!K268+'Sch M 2.2'!K295+'Sch M 2.2'!K302+'Sch M 2.2'!K309+'Sch M 2.2'!K316+'Sch M 2.2'!K323+'Sch M 2.2'!K350 -> 1348154.99 | J25: ='Sch M 2.2'!L233+'Sch M 2.2'!L240+'Sch M 2.2'!L247+'Sch M 2.2'!L254+'Sch M 2.2'!L261+'Sch M 2.2'!L268+'Sch M 2.2'!L295+'Sch M 2.2'!L302+'Sch M 2.2'!L309+'Sch M 2.2'!L316+'Sch M 2.2'!L323+'Sch M 2.2'!L350 -> 1426150.02 | K25: ='Sch M 2.2'!M233+'Sch M 2.2'!M240+'Sch M 2.2'!M247+'Sch M 2.2'!M254+'Sch M 2.2'!M261+'Sch M 2.2'!M268+'Sch M 2.2'!M295+'Sch M 2.2'!M302+'Sch M 2.2'!M309+'Sch M 2.2'!M316+'Sch M 2.2'!M323+'Sch M 2.2'!M350 -> 1452982.1 | L25: ='Sch M 2.2'!N233+'Sch M 2.2'!N240+'Sch M 2.2'!N247+'Sch M 2.2'!N254+'Sch M 2.2'!N261+'Sch M 2.2'!N268+'Sch M 2.2'!N295+'Sch M 2.2'!N302+'Sch M 2.2'!N309+'Sch M 2.2'!N316+'Sch M 2.2'!N323+'Sch M 2.2'!N350 -> 1618865.47 | M25: ='Sch M 2.2'!O233+'Sch M 2.2'!O240+'Sch M 2.2'!O247+'Sch M 2.2'!O254+'Sch M 2.2'!O261+'Sch M 2.2'!O268+'Sch M 2.2'!O295+'Sch M 2.2'!O302+'Sch M 2.2'!O309+'Sch M 2.2'!O316+'Sch M 2.2'!O323+'Sch M 2.2'!O350 -> 2004107.74 | N25: ='Sch M 2.2'!P233+'Sch M 2.2'!P240+'Sch M 2.2'!P247+'Sch M 2.2'!P254+'Sch M 2.2'!P261+'Sch M 2.2'!P268+'Sch M 2.2'!P295+'Sch M 2.2'!P302+'Sch M 2.2'!P309+'Sch M 2.2'!P316+'Sch M 2.2'!P323+'Sch M 2.2'!P350 -> 2731886.4 | O25: =SUM(C25:N25) -> 25007161.75
A26: =A25+1 -> 9 | B26: Other Revenue | C26: ='Sch M 2.2'!E362 -> 60291.91693 | D26: ='Sch M 2.2'!F362 -> 65822.94725 | E26: ='Sch M 2.2'!G362 -> 60600.78608 | F26: ='Sch M 2.2'!H362 -> 52764.4876 | G26: ='Sch M 2.2'!I362 -> 42808.21125 | H26: ='Sch M 2.2'!J362 -> 35214.62398 | I26: ='Sch M 2.2'!K362 -> 31912.03192 | J26: ='Sch M 2.2'!L362 -> 26030.43331 | K26: ='Sch M 2.2'!M362 -> 30711.87549 | L26: ='Sch M 2.2'!N362 -> 32373.55986 | M26: ='Sch M 2.2'!O362 -> 35843.67184 | N26: ='Sch M 2.2'!P362 -> 46249.88114 | O26: =SUM(C26:N26) -> 520624.4267
A28: =A26+1 -> 10 | B28: Total Operating Revenues | C28: =C23+C25+C26 -> 36164508.33 | D28: 35432076.71 | E28: 28113275.45 | F28: 19335869.2 | G28: 12124182.7 | H28: 9177884.864 | I28: 7837516.592 | J28: 7976414.183 | K28: 8099509.695 | L28: 9496781.82 | M28: 15153095.4 | N28: =N23+N25+N26 -> 28089281.43 | O28: =SUM(C28:N28) -> 217000396.4
A29: =A28+1 -> 11 | B29: Gas Cost Revenue | C29: ='Sch M 2.2'!E70+'Sch M 2.2'!E77+'Sch M 2.2'!E84+'Sch M 2.2'!E91+'Sch M 2.2'!E98+'Sch M 2.2'!E105+'Sch M 2.2'!E134+'Sch M 2.2'!E141+'Sch M 2.2'!E148+'Sch M 2.2'!E155+'Sch M 2.2'!E162+'Sch M 2.2'!E190+'Sch M 2.2'!E197+'Sch M 2.2'!E204 -> 16136871.31 | D29: ='Sch M 2.2'!F70+'Sch M 2.2'!F77+'Sch M 2.2'!F84+'Sch M 2.2'!F91+'Sch M 2.2'!F98+'Sch M 2.2'!F105+'Sch M 2.2'!F134+'Sch M 2.2'!F141+'Sch M 2.2'!F148+'Sch M 2.2'!F155+'Sch M 2.2'!F162+'Sch M 2.2'!F190+'Sch M 2.2'!F197+'Sch M 2.2'!F204 -> 15835195.45 | E29: ='Sch M 2.2'!G70+'Sch M 2.2'!G77+'Sch M 2.2'!G84+'Sch M 2.2'!G91+'Sch M 2.2'!G98+'Sch M 2.2'!G105+'Sch M 2.2'!G134+'Sch M 2.2'!G141+'Sch M 2.2'!G148+'Sch M 2.2'!G155+'Sch M 2.2'!G162+'Sch M 2.2'!G190+'Sch M 2.2'!G197+'Sch M 2.2'!G204 -> 11941931.12 | F29: ='Sch M 2.2'!H70+'Sch M 2.2'!H77+'Sch M 2.2'!H84+'Sch M 2.2'!H91+'Sch M 2.2'!H98+'Sch M 2.2'!H105+'Sch M 2.2'!H134+'Sch M 2.2'!H141+'Sch M 2.2'!H148+'Sch M 2.2'!H155+'Sch M 2.2'!H162+'Sch M 2.2'!H190+'Sch M 2.2'!H197+'Sch M 2.2'!H204 -> 7396277.68 | G29: ='Sch M 2.2'!I70+'Sch M 2.2'!I77+'Sch M 2.2'!I84+'Sch M 2.2'!I91+'Sch M 2.2'!I98+'Sch M 2.2'!I105+'Sch M 2.2'!I134+'Sch M 2.2'!I141+'Sch M 2.2'!I148+'Sch M 2.2'!I155+'Sch M 2.2'!I162+'Sch M 2.2'!I190+'Sch M 2.2'!I197+'Sch M 2.2'!I204 -> 3700081.64 | H29: ='Sch M 2.2'!J70+'Sch M 2.2'!J77+'Sch M 2.2'!J84+'Sch M 2.2'!J91+'Sch M 2.2'!J98+'Sch M 2.2'!J105+'Sch M 2.2'!J134+'Sch M 2.2'!J141+'Sch M 2.2'!J148+'Sch M 2.2'!J155+'Sch M 2.2'!J162+'Sch M 2.2'!J190+'Sch M 2.2'!J197+'Sch M 2.2'!J204 -> 2216797.79 | I29: ='Sch M 2.2'!K70+'Sch M 2.2'!K77+'Sch M 2.2'!K84+'Sch M 2.2'!K91+'Sch M 2.2'!K98+'Sch M 2.2'!K105+'Sch M 2.2'!K134+'Sch M 2.2'!K141+'Sch M 2.2'!K148+'Sch M 2.2'!K155+'Sch M 2.2'!K162+'Sch M 2.2'!K190+'Sch M 2.2'!K197+'Sch M 2.2'!K204 -> 1577418.85 | J29: ='Sch M 2.2'!L70+'Sch M 2.2'!L77+'Sch M 2.2'!L84+'Sch M 2.2'!L91+'Sch M 2.2'!L98+'Sch M 2.2'!L105+'Sch M 2.2'!L134+'Sch M 2.2'!L141+'Sch M 2.2'!L148+'Sch M 2.2'!L155+'Sch M 2.2'!L162+'Sch M 2.2'!L190+'Sch M 2.2'!L197+'Sch M 2.2'!L204 -> 1634019.56 | K29: ='Sch M 2.2'!M70+'Sch M 2.2'!M77+'Sch M 2.2'!M84+'Sch M 2.2'!M91+'Sch M 2.2'!M98+'Sch M 2.2'!M105+'Sch M 2.2'!M134+'Sch M 2.2'!M141+'Sch M 2.2'!M148+'Sch M 2.2'!M155+'Sch M 2.2'!M162+'Sch M 2.2'!M190+'Sch M 2.2'!M197+'Sch M 2.2'!M204 -> 1682532.9 | L29: ='Sch M 2.2'!N70+'Sch M 2.2'!N77+'Sch M 2.2'!N84+'Sch M 2.2'!N91+'Sch M 2.2'!N98+'Sch M 2.2'!N105+'Sch M 2.2'!N134+'Sch M 2.2'!N141+'Sch M 2.2'!N148+'Sch M 2.2'!N155+'Sch M 2.2'!N162+'Sch M 2.2'!N190+'Sch M 2.2'!N197+'Sch M 2.2'!N204 -> 2380004.76 | M29: ='Sch M 2.2'!O70+'Sch M 2.2'!O77+'Sch M 2.2'!O84+'Sch M 2.2'!O91+'Sch M 2.2'!O98+'Sch M 2.2'!O105+'Sch M 2.2'!O134+'Sch M 2.2'!O141+'Sch M 2.2'!O148+'Sch M 2.2'!O155+'Sch M 2.2'!O162+'Sch M 2.2'!O190+'Sch M 2.2'!O197+'Sch M 2.2'!O204 -> 5256899.22 | N29: ='Sch M 2.2'!P70+'Sch M 2.2'!P77+'Sch M 2.2'!P84+'Sch M 2.2'!P91+'Sch M 2.2'!P98+'Sch M 2.2'!P105+'Sch M 2.2'!P134+'Sch M 2.2'!P141+'Sch M 2.2'!P148+'Sch M 2.2'!P155+'Sch M 2.2'!P162+'Sch M 2.2'!P190+'Sch M 2.2'!P197+'Sch M 2.2'!P204 -> 11963862.14 | O29: =SUM(C29:N29) -> 81721892.42
A31: =A29+1 -> 12 | B31: Total Revenue (Excluding Gas Cost) | C31: =C28-C29 -> 20027637.02 | D31: 19596881.26 | E31: 16171344.33 | F31: 11939591.52 | G31: 8424101.061 | H31: 6961087.074 | I31: 6260097.742 | J31: 6342394.623 | K31: 6416976.795 | L31: 7116777.06 | M31: 9896196.182 | N31: 16125419.29 | O31: 135278503.9
A34: =A31+1 -> 13 | B34: Mcf by Customer Class
A36: =A34+1 -> 14 | B36: Residential Sales | C36: ='Sch M 2.2'!E68+'Sch M 2.2'!E82+'Sch M 2.2'!E89+'Sch M 2.2'!E96+'Sch M 2.2'!E103+'Sch M 2.2'!E132+'Sch M 2.2'!E146+'Sch M 2.2'!E153 -> 1540058.1 | D36: ='Sch M 2.2'!F68+'Sch M 2.2'!F82+'Sch M 2.2'!F89+'Sch M 2.2'!F96+'Sch M 2.2'!F103+'Sch M 2.2'!F132+'Sch M 2.2'!F146+'Sch M 2.2'!F153 -> 1505146.8 | E36: ='Sch M 2.2'!G68+'Sch M 2.2'!G82+'Sch M 2.2'!G89+'Sch M 2.2'!G96+'Sch M 2.2'!G103+'Sch M 2.2'!G132+'Sch M 2.2'!G146+'Sch M 2.2'!G153 -> 1140806.8 | F36: ='Sch M 2.2'!H68+'Sch M 2.2'!H82+'Sch M 2.2'!H89+'Sch M 2.2'!H96+'Sch M 2.2'!H103+'Sch M 2.2'!H132+'Sch M 2.2'!H146+'Sch M 2.2'!H153 -> 682578.4 | G36: ='Sch M 2.2'!I68+'Sch M 2.2'!I82+'Sch M 2.2'!I89+'Sch M 2.2'!I96+'Sch M 2.2'!I103+'Sch M 2.2'!I132+'Sch M 2.2'!I146+'Sch M 2.2'!I153 -> 308150.4 | H36: ='Sch M 2.2'!J68+'Sch M 2.2'!J82+'Sch M 2.2'!J89+'Sch M 2.2'!J96+'Sch M 2.2'!J103+'Sch M 2.2'!J132+'Sch M 2.2'!J146+'Sch M 2.2'!J153 -> 156015 | I36: ='Sch M 2.2'!K68+'Sch M 2.2'!K82+'Sch M 2.2'!K89+'Sch M 2.2'!K96+'Sch M 2.2'!K103+'Sch M 2.2'!K132+'Sch M 2.2'!K146+'Sch M 2.2'!K153 -> 96766 | J36: ='Sch M 2.2'!L68+'Sch M 2.2'!L82+'Sch M 2.2'!L89+'Sch M 2.2'!L96+'Sch M 2.2'!L103+'Sch M 2.2'!L132+'Sch M 2.2'!L146+'Sch M 2.2'!L153 -> 95723.2 | K36: ='Sch M 2.2'!M68+'Sch M 2.2'!M82+'Sch M 2.2'!M89+'Sch M 2.2'!M96+'Sch M 2.2'!M103+'Sch M 2.2'!M132+'Sch M 2.2'!M146+'Sch M 2.2'!M153 -> 105816.1 | L36: ='Sch M 2.2'!N68+'Sch M 2.2'!N82+'Sch M 2.2'!N89+'Sch M 2.2'!N96+'Sch M 2.2'!N103+'Sch M 2.2'!N132+'Sch M 2.2'!N146+'Sch M 2.2'!N153 -> 166823.1 | M36: ='Sch M 2.2'!O68+'Sch M 2.2'!O82+'Sch M 2.2'!O89+'Sch M 2.2'!O96+'Sch M 2.2'!O103+'Sch M 2.2'!O132+'Sch M 2.2'!O146+'Sch M 2.2'!O153 -> 451591 | N36: ='Sch M 2.2'!P68+'Sch M 2.2'!P82+'Sch M 2.2'!P89+'Sch M 2.2'!P96+'Sch M 2.2'!P103+'Sch M 2.2'!P132+'Sch M 2.2'!P146+'Sch M 2.2'!P153 -> 1124670.2 | O36: =SUM(C36:N36) -> 7374145.1
A37: =A36+1 -> 15 | B37: Commercial Sales | C37: ='Sch M 2.2'!E75+'Sch M 2.2'!E139+'Sch M 2.2'!E160 -> 809616.8 | D37: ='Sch M 2.2'!F75+'Sch M 2.2'!F139+'Sch M 2.2'!F160 -> 800776.3 | E37: ='Sch M 2.2'!G75+'Sch M 2.2'!G139+'Sch M 2.2'!G160 -> 594307.5 | F37: ='Sch M 2.2'!H75+'Sch M 2.2'!H139+'Sch M 2.2'!H160 -> 383921.9 | G37: ='Sch M 2.2'!I75+'Sch M 2.2'!I139+'Sch M 2.2'!I160 -> 216993.8 | H37: ='Sch M 2.2'!J75+'Sch M 2.2'!J139+'Sch M 2.2'!J160 -> 152752 | I37: ='Sch M 2.2'!K75+'Sch M 2.2'!K139+'Sch M 2.2'!K160 -> 123116.2 | J37: ='Sch M 2.2'!L75+'Sch M 2.2'!L139+'Sch M 2.2'!L160 -> 130648.3 | K37: ='Sch M 2.2'!M75+'Sch M 2.2'!M139+'Sch M 2.2'!M160 -> 128433.3 | L37: ='Sch M 2.2'!N75+'Sch M 2.2'!N139+'Sch M 2.2'!N160 -> 168727.9 | M37: ='Sch M 2.2'!O75+'Sch M 2.2'!O139+'Sch M 2.2'!O160 -> 300582.7 | N37: ='Sch M 2.2'!P75+'Sch M 2.2'!P139+'Sch M 2.2'!P160 -> 609356.4 | O37: =SUM(C37:N37) -> 4419233.1
A38: =A37+1 -> 16 | B38: Industrial Sales | C38: ='Sch M 2.2'!E188+'Sch M 2.2'!E195 -> 32462.3 | D38: ='Sch M 2.2'!F188+'Sch M 2.2'!F195 -> 31230 | E38: ='Sch M 2.2'!G188+'Sch M 2.2'!G195 -> 27627 | F38: ='Sch M 2.2'!H188+'Sch M 2.2'!H195 -> 25457.9 | G38: ='Sch M 2.2'!I188+'Sch M 2.2'!I195 -> 20992 | H38: ='Sch M 2.2'!J188+'Sch M 2.2'!J195 -> 18363.9 | I38: ='Sch M 2.2'!K188+'Sch M 2.2'!K195 -> 12873 | J38: ='Sch M 2.2'!L188+'Sch M 2.2'!L195 -> 14733.3 | K38: ='Sch M 2.2'!M188+'Sch M 2.2'!M195 -> 13970.3 | L38: ='Sch M 2.2'!N188+'Sch M 2.2'!N195 -> 15556.9 | M38: ='Sch M 2.2'!O188+'Sch M 2.2'!O195 -> 23447.8 | N38: ='Sch M 2.2'!P188+'Sch M 2.2'!P195 -> 31351.9 | O38: =SUM(C38:N38) -> 268066.3
A39: =A38+1 -> 17 | B39: Other Sales | C39: 0 | D39: 0 | E39: 0 | F39: 0 | G39: 0 | H39: 0 | I39: 0 | J39: 0 | K39: 0 | L39: 0 | M39: 0 | N39: 0 | O39: =SUM(C39:N39) -> 0
A40: 18 | B40: Public Utilities | C40: ='Sch M 2.2'!E202 -> 1737 | D40: ='Sch M 2.2'!F202 -> 2033 | E40: ='Sch M 2.2'!G202 -> 1295 | F40: ='Sch M 2.2'!H202 -> 576 | G40: ='Sch M 2.2'!I202 -> 412 | H40: ='Sch M 2.2'!J202 -> 320 | I40: ='Sch M 2.2'!K202 -> 248 | J40: ='Sch M 2.2'!L202 -> 259 | K40: ='Sch M 2.2'!M202 -> 310 | L40: ='Sch M 2.2'!N202 -> 470 | M40: ='Sch M 2.2'!O202 -> 950 | N40: ='Sch M 2.2'!P202 -> 1991 | O40: =SUM(C40:N40) -> 10601
A42: =A40+1 -> 19 | B42: Total Sales | C42: =SUM(C36:C40) -> 2383874.2 | D42: =SUM(D36:D40) -> 2339186.1 | E42: =SUM(E36:E40) -> 1764036.3 | F42: =SUM(F36:F40) -> 1092534.2 | G42: =SUM(G36:G40) -> 546548.2 | H42: =SUM(H36:H40) -> 327450.9 | I42: 233003.2 | J42: 241363.8 | K42: 248529.7 | L42: 351577.9 | M42: 776571.5 | N42: 1767369.5 | O42: =SUM(O36:O40) -> 12072045.5
A44: =A42+1 -> 20 | B44: Transportation | C44: ='Sch M 2.2'!E230+'Sch M 2.2'!E237+'Sch M 2.2'!E244+'Sch M 2.2'!E251+'Sch M 2.2'!E258+'Sch M 2.2'!E265+'Sch M 2.2'!E292+'Sch M 2.2'!E299+'Sch M 2.2'!E306+'Sch M 2.2'!E313+'Sch M 2.2'!E320+'Sch M 2.2'!E347 -> 2449203 | D44: ='Sch M 2.2'!F230+'Sch M 2.2'!F237+'Sch M 2.2'!F244+'Sch M 2.2'!F251+'Sch M 2.2'!F258+'Sch M 2.2'!F265+'Sch M 2.2'!F292+'Sch M 2.2'!F299+'Sch M 2.2'!F306+'Sch M 2.2'!F313+'Sch M 2.2'!F320+'Sch M 2.2'!F347 -> 2160987.8 | E44: ='Sch M 2.2'!G230+'Sch M 2.2'!G237+'Sch M 2.2'!G244+'Sch M 2.2'!G251+'Sch M 2.2'!G258+'Sch M 2.2'!G265+'Sch M 2.2'!G292+'Sch M 2.2'!G299+'Sch M 2.2'!G306+'Sch M 2.2'!G313+'Sch M 2.2'!G320+'Sch M 2.2'!G347 -> 2044428.6 | F44: ='Sch M 2.2'!H230+'Sch M 2.2'!H237+'Sch M 2.2'!H244+'Sch M 2.2'!H251+'Sch M 2.2'!H258+'Sch M 2.2'!H265+'Sch M 2.2'!H292+'Sch M 2.2'!H299+'Sch M 2.2'!H306+'Sch M 2.2'!H313+'Sch M 2.2'!H320+'Sch M 2.2'!H347 -> 1769599.7 | G44: ='Sch M 2.2'!I230+'Sch M 2.2'!I237+'Sch M 2.2'!I244+'Sch M 2.2'!I251+'Sch M 2.2'!I258+'Sch M 2.2'!I265+'Sch M 2.2'!I292+'Sch M 2.2'!I299+'Sch M 2.2'!I306+'Sch M 2.2'!I313+'Sch M 2.2'!I320+'Sch M 2.2'!I347 -> 1568567.8 | H44: ='Sch M 2.2'!J230+'Sch M 2.2'!J237+'Sch M 2.2'!J244+'Sch M 2.2'!J251+'Sch M 2.2'!J258+'Sch M 2.2'!J265+'Sch M 2.2'!J292+'Sch M 2.2'!J299+'Sch M 2.2'!J306+'Sch M 2.2'!J313+'Sch M 2.2'!J320+'Sch M 2.2'!J347 -> 1404445.4 | I44: ='Sch M 2.2'!K230+'Sch M 2.2'!K237+'Sch M 2.2'!K244+'Sch M 2.2'!K251+'Sch M 2.2'!K258+'Sch M 2.2'!K265+'Sch M 2.2'!K292+'Sch M 2.2'!K299+'Sch M 2.2'!K306+'Sch M 2.2'!K313+'Sch M 2.2'!K320+'Sch M 2.2'!K347 -> 1233145.1 | J44: ='Sch M 2.2'!L230+'Sch M 2.2'!L237+'Sch M 2.2'!L244+'Sch M 2.2'!L251+'Sch M 2.2'!L258+'Sch M 2.2'!L265+'Sch M 2.2'!L292+'Sch M 2.2'!L299+'Sch M 2.2'!L306+'Sch M 2.2'!L313+'Sch M 2.2'!L320+'Sch M 2.2'!L347 -> 1388474.3 | K44: ='Sch M 2.2'!M230+'Sch M 2.2'!M237+'Sch M 2.2'!M244+'Sch M 2.2'!M251+'Sch M 2.2'!M258+'Sch M 2.2'!M265+'Sch M 2.2'!M292+'Sch M 2.2'!M299+'Sch M 2.2'!M306+'Sch M 2.2'!M313+'Sch M 2.2'!M320+'Sch M 2.2'!M347 -> 1427484.7 | L44: ='Sch M 2.2'!N230+'Sch M 2.2'!N237+'Sch M 2.2'!N244+'Sch M 2.2'!N251+'Sch M 2.2'!N258+'Sch M 2.2'!N265+'Sch M 2.2'!N292+'Sch M 2.2'!N299+'Sch M 2.2'!N306+'Sch M 2.2'!N313+'Sch M 2.2'!N320+'Sch M 2.2'!N347 -> 1630731 | M44: ='Sch M 2.2'!O230+'Sch M 2.2'!O237+'Sch M 2.2'!O244+'Sch M 2.2'!O251+'Sch M 2.2'!O258+'Sch M 2.2'!O265+'Sch M 2.2'!O292+'Sch M 2.2'!O299+'Sch M 2.2'!O306+'Sch M 2.2'!O313+'Sch M 2.2'!O320+'Sch M 2.2'!O347 -> 1777099 | N44: ='Sch M 2.2'!P230+'Sch M 2.2'!P237+'Sch M 2.2'!P244+'Sch M 2.2'!P251+'Sch M 2.2'!P258+'Sch M 2.2'!P265+'Sch M 2.2'!P292+'Sch M 2.2'!P299+'Sch M 2.2'!P306+'Sch M 2.2'!P313+'Sch M 2.2'!P320+'Sch M 2.2'!P347 -> 2133658 | O44: =SUM(C44:N44) -> 20987824.4
A46: =A44+1 -> 21 | B46: Total Volumes | C46: =C42+C44 -> 4833077.2 | D46: 4500173.9 | E46: 3808464.9 | F46: 2862133.9 | G46: 2115116 | H46: 1731896.3 | I46: 1466148.3 | J46: 1629838.1 | K46: 1676014.4 | L46: 1982308.9 | M46: 2553670.5 | N46: =N42+N44 -> 3901027.5 | O46: =SUM(C46:N46) -> 33059869.9
A52: Columbia Gas of Kentucky, Inc.
A53: =A2 -> Case No. 2026-00099
A54: Revenues At Present and Proposed Rates
A55: =A4 -> For the 12 Months Ended December 31, 2027
A56: (Gas Service)
A57: Data: __ Base Period _X_Forecasted Period
A58: Type of Filing: X Original _ Update _ Revised | O58: Schedule M
A59: Work Paper Reference No(s): | O59: Page 3 of 3
A60: 12 Months Forecasted | O60: =O9 -> Witness: J. C. Wozniak
A62: Proposed Annualized
A64: Line
A65: No. | B65: Description | C65: =B!$D$11 -> Jan-27 | D65: =B!$E$11 -> Feb-27 | E65: =B!$F$11 -> Mar-27 | F65: =B!$G$11 -> Apr-27 | G65: =B!$H$11 -> May-27 | H65: =B!$I$11 -> Jun-27 | I65: =B!$J$11 -> Jul-27 | J65: =B!$K$11 -> Aug-27 | K65: =B!$L$11 -> Sep-27 | L65: =B!$M$11 -> Oct-27 | M65: =B!$N$11 -> Nov-27 | N65: =B!$O$11 -> Dec-27 | O65: Total
A67: 1 | B67: Revenue by Customer Class
A69: =A67+1 -> 2 | B69: Residential Sales | C69: ='Sch M 2.3'!E70+'Sch M 2.3'!E84+'Sch M 2.3'!E91+'Sch M 2.3'!E98+'Sch M 2.3'!E105+'Sch M 2.3'!E132+'Sch M 2.3'!E146+'Sch M 2.3'!E153 -> 24903413.41 | D69: ='Sch M 2.3'!F70+'Sch M 2.3'!F84+'Sch M 2.3'!F91+'Sch M 2.3'!F98+'Sch M 2.3'!F105+'Sch M 2.3'!F132+'Sch M 2.3'!F146+'Sch M 2.3'!F153 -> 24436423.97 | E69: ='Sch M 2.3'!G70+'Sch M 2.3'!G84+'Sch M 2.3'!G91+'Sch M 2.3'!G98+'Sch M 2.3'!G105+'Sch M 2.3'!G132+'Sch M 2.3'!G146+'Sch M 2.3'!G153 -> 19442469.83 | F69: ='Sch M 2.3'!H70+'Sch M 2.3'!H84+'Sch M 2.3'!H91+'Sch M 2.3'!H98+'Sch M 2.3'!H105+'Sch M 2.3'!H132+'Sch M 2.3'!H146+'Sch M 2.3'!H153 -> 13148602.44 | G69: ='Sch M 2.3'!I70+'Sch M 2.3'!I84+'Sch M 2.3'!I91+'Sch M 2.3'!I98+'Sch M 2.3'!I105+'Sch M 2.3'!I132+'Sch M 2.3'!I146+'Sch M 2.3'!I153 -> 7995200.52 | H69: ='Sch M 2.3'!J70+'Sch M 2.3'!J84+'Sch M 2.3'!J91+'Sch M 2.3'!J98+'Sch M 2.3'!J105+'Sch M 2.3'!J132+'Sch M 2.3'!J146+'Sch M 2.3'!J153 -> 5883054.72 | I69: ='Sch M 2.3'!K70+'Sch M 2.3'!K84+'Sch M 2.3'!K91+'Sch M 2.3'!K98+'Sch M 2.3'!K105+'Sch M 2.3'!K132+'Sch M 2.3'!K146+'Sch M 2.3'!K153 -> 5046216.84 | J69: ='Sch M 2.3'!L70+'Sch M 2.3'!L84+'Sch M 2.3'!L91+'Sch M 2.3'!L98+'Sch M 2.3'!L105+'Sch M 2.3'!L132+'Sch M 2.3'!L146+'Sch M 2.3'!L153 -> 5021498.4 | K69: ='Sch M 2.3'!M70+'Sch M 2.3'!M84+'Sch M 2.3'!M91+'Sch M 2.3'!M98+'Sch M 2.3'!M105+'Sch M 2.3'!M132+'Sch M 2.3'!M146+'Sch M 2.3'!M153 -> 5146765.86 | L69: ='Sch M 2.3'!N70+'Sch M 2.3'!N84+'Sch M 2.3'!N91+'Sch M 2.3'!N98+'Sch M 2.3'!N105+'Sch M 2.3'!N132+'Sch M 2.3'!N146+'Sch M 2.3'!N153 -> 5989865.07 | M69: ='Sch M 2.3'!O70+'Sch M 2.3'!O84+'Sch M 2.3'!O91+'Sch M 2.3'!O98+'Sch M 2.3'!O105+'Sch M 2.3'!O132+'Sch M 2.3'!O146+'Sch M 2.3'!O153 -> 9930928.24 | N69: ='Sch M 2.3'!P70+'Sch M 2.3'!P84+'Sch M 2.3'!P91+'Sch M 2.3'!P98+'Sch M 2.3'!P105+'Sch M 2.3'!P132+'Sch M 2.3'!P146+'Sch M 2.3'!P153 -> 19198260.36 | O69: =SUM(C69:N69) -> 146142699.7
A70: =A69+1 -> 3 | B70: Commercial Sales | C70: ='Sch M 2.3'!E77+'Sch M 2.3'!E139+'Sch M 2.3'!E160 -> 9995998.97 | D70: ='Sch M 2.3'!F77+'Sch M 2.3'!F139+'Sch M 2.3'!F160 -> 9923288.34 | E70: ='Sch M 2.3'!G77+'Sch M 2.3'!G139+'Sch M 2.3'!G160 -> 7856664.75 | F70: ='Sch M 2.3'!H77+'Sch M 2.3'!H139+'Sch M 2.3'!H160 -> 5725544.42 | G70: ='Sch M 2.3'!I77+'Sch M 2.3'!I139+'Sch M 2.3'!I160 -> 4002462.29 | H70: ='Sch M 2.3'!J77+'Sch M 2.3'!J139+'Sch M 2.3'!J160 -> 3326715.25 | I70: ='Sch M 2.3'!K77+'Sch M 2.3'!K139+'Sch M 2.3'!K160 -> 3005695.07 | J70: ='Sch M 2.3'!L77+'Sch M 2.3'!L139+'Sch M 2.3'!L160 -> 3077323.9 | K70: ='Sch M 2.3'!M77+'Sch M 2.3'!M139+'Sch M 2.3'!M160 -> 3045555.89 | L70: ='Sch M 2.3'!N77+'Sch M 2.3'!N139+'Sch M 2.3'!N160 -> 3446944.37 | M70: ='Sch M 2.3'!O77+'Sch M 2.3'!O139+'Sch M 2.3'!O160 -> 4842894.67 | N70: ='Sch M 2.3'!P77+'Sch M 2.3'!P139+'Sch M 2.3'!P160 -> 8000565.75 | O70: =SUM(C70:N70) -> 66249653.67
A71: =A70+1 -> 4 | B71: Industrial Sales | C71: ='Sch M 2.3'!E187+'Sch M 2.3'!E194 -> 321827.39 | D71: ='Sch M 2.3'!F187+'Sch M 2.3'!F194 -> 310157.19 | E71: ='Sch M 2.3'!G187+'Sch M 2.3'!G194 -> 275992.64 | F71: ='Sch M 2.3'!H187+'Sch M 2.3'!H194 -> 255099.24 | G71: ='Sch M 2.3'!I187+'Sch M 2.3'!I194 -> 210590.51 | H71: ='Sch M 2.3'!J187+'Sch M 2.3'!J194 -> 184501.99 | I71: ='Sch M 2.3'!K187+'Sch M 2.3'!K194 -> 131878.3 | J71: ='Sch M 2.3'!L187+'Sch M 2.3'!L194 -> 149738.56 | K71: ='Sch M 2.3'!M187+'Sch M 2.3'!M194 -> 142737.97 | L71: ='Sch M 2.3'!N187+'Sch M 2.3'!N194 -> 158131.17 | M71: ='Sch M 2.3'!O187+'Sch M 2.3'!O194 -> 235262.44 | N71: ='Sch M 2.3'!P187+'Sch M 2.3'!P194 -> 311456.62 | O71: =SUM(C71:N71) -> 2687374.02
A72: =A71+1 -> 5 | B72: Other Sales | C72: 0 | D72: 0 | E72: 0 | F72: 0 | G72: 0 | H72: 0 | I72: 0 | J72: 0 | K72: 0 | L72: 0 | M72: 0 | N72: 0 | O72: =SUM(C72:N72) -> 0
A73: 6 | B73: Public Utilities | C73: ='Sch M 2.3'!E201 -> 16534.7 | D73: ='Sch M 2.3'!F201 -> 18817.28 | E73: ='Sch M 2.3'!G201 -> 13126.27 | F73: ='Sch M 2.3'!H201 -> 7581.76 | G73: ='Sch M 2.3'!I201 -> 6317.1 | H73: ='Sch M 2.3'!J201 -> 5607.65 | I73: ='Sch M 2.3'!K201 -> 5052.42 | J73: ='Sch M 2.3'!L201 -> 5137.25 | K73: ='Sch M 2.3'!M201 -> 5530.54 | L73: ='Sch M 2.3'!N201 -> 6764.37 | M73: ='Sch M 2.3'!O201 -> 10465.84 | N73: ='Sch M 2.3'!P201 -> 18493.03 | O73: =SUM(C73:N73) -> 119428.21
A74: =A73+1 -> 7 | B74: Total Sales | C74: =SUM(C69:C73) -> 35237774.47 | D74: 34688686.78 | E74: 27588253.49 | F74: 19136827.86 | G74: 12214570.42 | H74: 9399879.61 | I74: 8188842.63 | J74: 8253698.11 | K74: 8340590.26 | L74: 9601704.98 | M74: 15019551.19 | N74: =SUM(N69:N73) -> 27528775.76 | O74: =SUM(O69:O73) -> 215199155.6
A76: =A74+1 -> 8 | B76: Transportation | C76: ='Sch M 2.3'!E228+'Sch M 2.3'!E235+'Sch M 2.3'!E242+'Sch M 2.3'!E249+'Sch M 2.3'!E256+'Sch M 2.3'!E263+'Sch M 2.3'!E291+'Sch M 2.3'!E298+'Sch M 2.3'!E305+'Sch M 2.3'!E312+'Sch M 2.3'!E319+'Sch M 2.3'!E346 -> 3741814.69 | D76: ='Sch M 2.3'!F228+'Sch M 2.3'!F235+'Sch M 2.3'!F242+'Sch M 2.3'!F249+'Sch M 2.3'!F256+'Sch M 2.3'!F263+'Sch M 2.3'!F291+'Sch M 2.3'!F298+'Sch M 2.3'!F305+'Sch M 2.3'!F312+'Sch M 2.3'!F319+'Sch M 2.3'!F346 -> 3544508.69 | E76: ='Sch M 2.3'!G228+'Sch M 2.3'!G235+'Sch M 2.3'!G242+'Sch M 2.3'!G249+'Sch M 2.3'!G256+'Sch M 2.3'!G263+'Sch M 2.3'!G291+'Sch M 2.3'!G298+'Sch M 2.3'!G305+'Sch M 2.3'!G312+'Sch M 2.3'!G319+'Sch M 2.3'!G346 -> 3145736.52 | F76: ='Sch M 2.3'!H228+'Sch M 2.3'!H235+'Sch M 2.3'!H242+'Sch M 2.3'!H249+'Sch M 2.3'!H256+'Sch M 2.3'!H263+'Sch M 2.3'!H291+'Sch M 2.3'!H298+'Sch M 2.3'!H305+'Sch M 2.3'!H312+'Sch M 2.3'!H319+'Sch M 2.3'!H346 -> 2605764.93 | G76: ='Sch M 2.3'!I228+'Sch M 2.3'!I235+'Sch M 2.3'!I242+'Sch M 2.3'!I249+'Sch M 2.3'!I256+'Sch M 2.3'!I263+'Sch M 2.3'!I291+'Sch M 2.3'!I298+'Sch M 2.3'!I305+'Sch M 2.3'!I312+'Sch M 2.3'!I319+'Sch M 2.3'!I346 -> 2122849.21 | H76: ='Sch M 2.3'!J228+'Sch M 2.3'!J235+'Sch M 2.3'!J242+'Sch M 2.3'!J249+'Sch M 2.3'!J256+'Sch M 2.3'!J263+'Sch M 2.3'!J291+'Sch M 2.3'!J298+'Sch M 2.3'!J305+'Sch M 2.3'!J312+'Sch M 2.3'!J319+'Sch M 2.3'!J346 -> 1916113.6 | I76: ='Sch M 2.3'!K228+'Sch M 2.3'!K235+'Sch M 2.3'!K242+'Sch M 2.3'!K249+'Sch M 2.3'!K256+'Sch M 2.3'!K263+'Sch M 2.3'!K291+'Sch M 2.3'!K298+'Sch M 2.3'!K305+'Sch M 2.3'!K312+'Sch M 2.3'!K319+'Sch M 2.3'!K346 -> 1742419.34 | J76: ='Sch M 2.3'!L228+'Sch M 2.3'!L235+'Sch M 2.3'!L242+'Sch M 2.3'!L249+'Sch M 2.3'!L256+'Sch M 2.3'!L263+'Sch M 2.3'!L291+'Sch M 2.3'!L298+'Sch M 2.3'!L305+'Sch M 2.3'!L312+'Sch M 2.3'!L319+'Sch M 2.3'!L346 -> 1815122.7 | K76: ='Sch M 2.3'!M228+'Sch M 2.3'!M235+'Sch M 2.3'!M242+'Sch M 2.3'!M249+'Sch M 2.3'!M256+'Sch M 2.3'!M263+'Sch M 2.3'!M291+'Sch M 2.3'!M298+'Sch M 2.3'!M305+'Sch M 2.3'!M312+'Sch M 2.3'!M319+'Sch M 2.3'!M346 -> 1846432.61 | L76: ='Sch M 2.3'!N228+'Sch M 2.3'!N235+'Sch M 2.3'!N242+'Sch M 2.3'!N249+'Sch M 2.3'!N256+'Sch M 2.3'!N263+'Sch M 2.3'!N291+'Sch M 2.3'!N298+'Sch M 2.3'!N305+'Sch M 2.3'!N312+'Sch M 2.3'!N319+'Sch M 2.3'!N346 -> 2014614.09 | M76: ='Sch M 2.3'!O228+'Sch M 2.3'!O235+'Sch M 2.3'!O242+'Sch M 2.3'!O249+'Sch M 2.3'!O256+'Sch M 2.3'!O263+'Sch M 2.3'!O291+'Sch M 2.3'!O298+'Sch M 2.3'!O305+'Sch M 2.3'!O312+'Sch M 2.3'!O319+'Sch M 2.3'!O346 -> 2419668.29 | N76: ='Sch M 2.3'!P228+'Sch M 2.3'!P235+'Sch M 2.3'!P242+'Sch M 2.3'!P249+'Sch M 2.3'!P256+'Sch M 2.3'!P263+'Sch M 2.3'!P291+'Sch M 2.3'!P298+'Sch M 2.3'!P305+'Sch M 2.3'!P312+'Sch M 2.3'!P319+'Sch M 2.3'!P346 -> 3187431.46 | O76: =SUM(C76:N76) -> 30102476.13
A77: =A76+1 -> 9 | B77: Other Revenue | C77: ='Sch M 2.3'!E358 -> 60291.91693 | D77: ='Sch M 2.3'!F358 -> 65822.94725 | E77: ='Sch M 2.3'!G358 -> 60600.78608 | F77: ='Sch M 2.3'!H358 -> 52764.4876 | G77: ='Sch M 2.3'!I358 -> 42808.21125 | H77: ='Sch M 2.3'!J358 -> 35214.62398 | I77: ='Sch M 2.3'!K358 -> 31912.03192 | J77: ='Sch M 2.3'!L358 -> 26030.43331 | K77: ='Sch M 2.3'!M358 -> 30711.87549 | L77: ='Sch M 2.3'!N358 -> 32373.55986 | M77: ='Sch M 2.3'!O358 -> 35843.67184 | N77: ='Sch M 2.3'!P358 -> 46249.88114 | O77: =SUM(C77:N77) -> 520624.4267
A79: =A77+1 -> 10 | B79: Total Operating Revenues | C79: =C74+C76+C77 -> 39039881.08 | D79: 38299018.42 | E79: 30794590.8 | F79: 21795357.28 | G79: 14380227.84 | H79: 11351207.83 | I79: 9963174.002 | J79: 10094851.24 | K79: 10217734.75 | L79: 11648692.63 | M79: 17475063.15 | N79: =N74+N76+N77 -> 30762457.1 | O79: =SUM(C79:N79) -> 245822256.1
A80: =A79+1 -> 11 | B80: Gas Cost Revenue | C80: ='Sch M 2.3'!E69+'Sch M 2.3'!E76+'Sch M 2.3'!E83+'Sch M 2.3'!E90++'Sch M 2.3'!E97+'Sch M 2.3'!E104+'Sch M 2.3'!E131+'Sch M 2.3'!E138+'Sch M 2.3'!E145+'Sch M 2.3'!E152+'Sch M 2.3'!E159+'Sch M 2.3'!E186+'Sch M 2.3'!E193+'Sch M 2.3'!E200 -> 16136871.31 | D80: ='Sch M 2.3'!F69+'Sch M 2.3'!F76+'Sch M 2.3'!F83+'Sch M 2.3'!F90++'Sch M 2.3'!F97+'Sch M 2.3'!F104+'Sch M 2.3'!F131+'Sch M 2.3'!F138+'Sch M 2.3'!F145+'Sch M 2.3'!F152+'Sch M 2.3'!F159+'Sch M 2.3'!F186+'Sch M 2.3'!F193+'Sch M 2.3'!F200 -> 15835195.45 | E80: ='Sch M 2.3'!G69+'Sch M 2.3'!G76+'Sch M 2.3'!G83+'Sch M 2.3'!G90++'Sch M 2.3'!G97+'Sch M 2.3'!G104+'Sch M 2.3'!G131+'Sch M 2.3'!G138+'Sch M 2.3'!G145+'Sch M 2.3'!G152+'Sch M 2.3'!G159+'Sch M 2.3'!G186+'Sch M 2.3'!G193+'Sch M 2.3'!G200 -> 11941931.12 | F80: ='Sch M 2.3'!H69+'Sch M 2.3'!H76+'Sch M 2.3'!H83+'Sch M 2.3'!H90++'Sch M 2.3'!H97+'Sch M 2.3'!H104+'Sch M 2.3'!H131+'Sch M 2.3'!H138+'Sch M 2.3'!H145+'Sch M 2.3'!H152+'Sch M 2.3'!H159+'Sch M 2.3'!H186+'Sch M 2.3'!H193+'Sch M 2.3'!H200 -> 7396277.68 | G80: ='Sch M 2.3'!I69+'Sch M 2.3'!I76+'Sch M 2.3'!I83+'Sch M 2.3'!I90++'Sch M 2.3'!I97+'Sch M 2.3'!I104+'Sch M 2.3'!I131+'Sch M 2.3'!I138+'Sch M 2.3'!I145+'Sch M 2.3'!I152+'Sch M 2.3'!I159+'Sch M 2.3'!I186+'Sch M 2.3'!I193+'Sch M 2.3'!I200 -> 3700081.64 | H80: ='Sch M 2.3'!J69+'Sch M 2.3'!J76+'Sch M 2.3'!J83+'Sch M 2.3'!J90++'Sch M 2.3'!J97+'Sch M 2.3'!J104+'Sch M 2.3'!J131+'Sch M 2.3'!J138+'Sch M 2.3'!J145+'Sch M 2.3'!J152+'Sch M 2.3'!J159+'Sch M 2.3'!J186+'Sch M 2.3'!J193+'Sch M 2.3'!J200 -> 2216797.79 | I80: ='Sch M 2.3'!K69+'Sch M 2.3'!K76+'Sch M 2.3'!K83+'Sch M 2.3'!K90++'Sch M 2.3'!K97+'Sch M 2.3'!K104+'Sch M 2.3'!K131+'Sch M 2.3'!K138+'Sch M 2.3'!K145+'Sch M 2.3'!K152+'Sch M 2.3'!K159+'Sch M 2.3'!K186+'Sch M 2.3'!K193+'Sch M 2.3'!K200 -> 1577418.85 | J80: ='Sch M 2.3'!L69+'Sch M 2.3'!L76+'Sch M 2.3'!L83+'Sch M 2.3'!L90++'Sch M 2.3'!L97+'Sch M 2.3'!L104+'Sch M 2.3'!L131+'Sch M 2.3'!L138+'Sch M 2.3'!L145+'Sch M 2.3'!L152+'Sch M 2.3'!L159+'Sch M 2.3'!L186+'Sch M 2.3'!L193+'Sch M 2.3'!L200 -> 1634019.56 | K80: ='Sch M 2.3'!M69+'Sch M 2.3'!M76+'Sch M 2.3'!M83+'Sch M 2.3'!M90++'Sch M 2.3'!M97+'Sch M 2.3'!M104+'Sch M 2.3'!M131+'Sch M 2.3'!M138+'Sch M 2.3'!M145+'Sch M 2.3'!M152+'Sch M 2.3'!M159+'Sch M 2.3'!M186+'Sch M 2.3'!M193+'Sch M 2.3'!M200 -> 1682532.9 | L80: ='Sch M 2.3'!N69+'Sch M 2.3'!N76+'Sch M 2.3'!N83+'Sch M 2.3'!N90++'Sch M 2.3'!N97+'Sch M 2.3'!N104+'Sch M 2.3'!N131+'Sch M 2.3'!N138+'Sch M 2.3'!N145+'Sch M 2.3'!N152+'Sch M 2.3'!N159+'Sch M 2.3'!N186+'Sch M 2.3'!N193+'Sch M 2.3'!N200 -> 2380004.76 | M80: ='Sch M 2.3'!O69+'Sch M 2.3'!O76+'Sch M 2.3'!O83+'Sch M 2.3'!O90++'Sch M 2.3'!O97+'Sch M 2.3'!O104+'Sch M 2.3'!O131+'Sch M 2.3'!O138+'Sch M 2.3'!O145+'Sch M 2.3'!O152+'Sch M 2.3'!O159+'Sch M 2.3'!O186+'Sch M 2.3'!O193+'Sch M 2.3'!O200 -> 5256899.22 | N80: ='Sch M 2.3'!P69+'Sch M 2.3'!P76+'Sch M 2.3'!P83+'Sch M 2.3'!P90++'Sch M 2.3'!P97+'Sch M 2.3'!P104+'Sch M 2.3'!P131+'Sch M 2.3'!P138+'Sch M 2.3'!P145+'Sch M 2.3'!P152+'Sch M 2.3'!P159+'Sch M 2.3'!P186+'Sch M 2.3'!P193+'Sch M 2.3'!P200 -> 11963862.14 | O80: =SUM(C80:N80) -> 81721892.42
A82: =A80+1 -> 12 | B82: Total Revenue (Excluding Gas Cost) | C82: =C79-C80 -> 22903009.77 | D82: 22463822.97 | E82: 18852659.68 | F82: 14399079.6 | G82: 10680146.2 | H82: 9134410.044 | I82: 8385755.152 | J82: 8460831.683 | K82: 8535201.845 | L82: 9268687.87 | M82: 12218163.93 | N82: =N79-N80 -> 18798594.96 | O82: =O79-O80 -> 164100363.7
A85: =A82+1 -> 13 | B85: Mcf by Customer Class
A87: =A85+1 -> 14 | B87: Residential Sales | C87: ='Sch M 2.3'!E67+'Sch M 2.3'!E81+'Sch M 2.3'!E88+'Sch M 2.3'!E95+'Sch M 2.3'!E102+'Sch M 2.3'!E129+'Sch M 2.3'!E143+'Sch M 2.3'!E150 -> 1540058.1 | D87: ='Sch M 2.3'!F67+'Sch M 2.3'!F81+'Sch M 2.3'!F88+'Sch M 2.3'!F95+'Sch M 2.3'!F102+'Sch M 2.3'!F129+'Sch M 2.3'!F143+'Sch M 2.3'!F150 -> 1505146.8 | E87: ='Sch M 2.3'!G67+'Sch M 2.3'!G81+'Sch M 2.3'!G88+'Sch M 2.3'!G95+'Sch M 2.3'!G102+'Sch M 2.3'!G129+'Sch M 2.3'!G143+'Sch M 2.3'!G150 -> 1140806.8 | F87: ='Sch M 2.3'!H67+'Sch M 2.3'!H81+'Sch M 2.3'!H88+'Sch M 2.3'!H95+'Sch M 2.3'!H102+'Sch M 2.3'!H129+'Sch M 2.3'!H143+'Sch M 2.3'!H150 -> 682578.4 | G87: ='Sch M 2.3'!I67+'Sch M 2.3'!I81+'Sch M 2.3'!I88+'Sch M 2.3'!I95+'Sch M 2.3'!I102+'Sch M 2.3'!I129+'Sch M 2.3'!I143+'Sch M 2.3'!I150 -> 308150.4 | H87: ='Sch M 2.3'!J67+'Sch M 2.3'!J81+'Sch M 2.3'!J88+'Sch M 2.3'!J95+'Sch M 2.3'!J102+'Sch M 2.3'!J129+'Sch M 2.3'!J143+'Sch M 2.3'!J150 -> 156015 | I87: ='Sch M 2.3'!K67+'Sch M 2.3'!K81+'Sch M 2.3'!K88+'Sch M 2.3'!K95+'Sch M 2.3'!K102+'Sch M 2.3'!K129+'Sch M 2.3'!K143+'Sch M 2.3'!K150 -> 96766 | J87: ='Sch M 2.3'!L67+'Sch M 2.3'!L81+'Sch M 2.3'!L88+'Sch M 2.3'!L95+'Sch M 2.3'!L102+'Sch M 2.3'!L129+'Sch M 2.3'!L143+'Sch M 2.3'!L150 -> 95723.2 | K87: ='Sch M 2.3'!M67+'Sch M 2.3'!M81+'Sch M 2.3'!M88+'Sch M 2.3'!M95+'Sch M 2.3'!M102+'Sch M 2.3'!M129+'Sch M 2.3'!M143+'Sch M 2.3'!M150 -> 105816.1 | L87: ='Sch M 2.3'!N67+'Sch M 2.3'!N81+'Sch M 2.3'!N88+'Sch M 2.3'!N95+'Sch M 2.3'!N102+'Sch M 2.3'!N129+'Sch M 2.3'!N143+'Sch M 2.3'!N150 -> 166823.1 | M87: ='Sch M 2.3'!O67+'Sch M 2.3'!O81+'Sch M 2.3'!O88+'Sch M 2.3'!O95+'Sch M 2.3'!O102+'Sch M 2.3'!O129+'Sch M 2.3'!O143+'Sch M 2.3'!O150 -> 451591 | N87: ='Sch M 2.3'!P67+'Sch M 2.3'!P81+'Sch M 2.3'!P88+'Sch M 2.3'!P95+'Sch M 2.3'!P102+'Sch M 2.3'!P129+'Sch M 2.3'!P143+'Sch M 2.3'!P150 -> 1124670.2 | O87: =SUM(C87:N87) -> 7374145.1
A88: =A87+1 -> 15 | B88: Commercial Sales | C88: ='Sch M 2.3'!E74+'Sch M 2.3'!E136+'Sch M 2.3'!E157 -> 809616.8 | D88: ='Sch M 2.3'!F74+'Sch M 2.3'!F136+'Sch M 2.3'!F157 -> 800776.3 | E88: ='Sch M 2.3'!G74+'Sch M 2.3'!G136+'Sch M 2.3'!G157 -> 594307.5 | F88: ='Sch M 2.3'!H74+'Sch M 2.3'!H136+'Sch M 2.3'!H157 -> 383921.9 | G88: ='Sch M 2.3'!I74+'Sch M 2.3'!I136+'Sch M 2.3'!I157 -> 216993.8 | H88: ='Sch M 2.3'!J74+'Sch M 2.3'!J136+'Sch M 2.3'!J157 -> 152752 | I88: ='Sch M 2.3'!K74+'Sch M 2.3'!K136+'Sch M 2.3'!K157 -> 123116.2 | J88: ='Sch M 2.3'!L74+'Sch M 2.3'!L136+'Sch M 2.3'!L157 -> 130648.3 | K88: ='Sch M 2.3'!M74+'Sch M 2.3'!M136+'Sch M 2.3'!M157 -> 128433.3 | L88: ='Sch M 2.3'!N74+'Sch M 2.3'!N136+'Sch M 2.3'!N157 -> 168727.9 | M88: ='Sch M 2.3'!O74+'Sch M 2.3'!O136+'Sch M 2.3'!O157 -> 300582.7 | N88: ='Sch M 2.3'!P74+'Sch M 2.3'!P136+'Sch M 2.3'!P157 -> 609356.4 | O88: =SUM(C88:N88) -> 4419233.1
A89: =A88+1 -> 16 | B89: Industrial Sales | C89: ='Sch M 2.3'!E184+'Sch M 2.3'!E191 -> 32462.3 | D89: ='Sch M 2.3'!F184+'Sch M 2.3'!F191 -> 31230 | E89: ='Sch M 2.3'!G184+'Sch M 2.3'!G191 -> 27627 | F89: ='Sch M 2.3'!H184+'Sch M 2.3'!H191 -> 25457.9 | G89: ='Sch M 2.3'!I184+'Sch M 2.3'!I191 -> 20992 | H89: ='Sch M 2.3'!J184+'Sch M 2.3'!J191 -> 18363.9 | I89: ='Sch M 2.3'!K184+'Sch M 2.3'!K191 -> 12873 | J89: ='Sch M 2.3'!L184+'Sch M 2.3'!L191 -> 14733.3 | K89: ='Sch M 2.3'!M184+'Sch M 2.3'!M191 -> 13970.3 | L89: ='Sch M 2.3'!N184+'Sch M 2.3'!N191 -> 15556.9 | M89: ='Sch M 2.3'!O184+'Sch M 2.3'!O191 -> 23447.8 | N89: ='Sch M 2.3'!P184+'Sch M 2.3'!P191 -> 31351.9 | O89: =SUM(C89:N89) -> 268066.3
A90: =A89+1 -> 17 | B90: Other Sales | C90: 0 | D90: 0 | E90: 0 | F90: 0 | G90: 0 | H90: 0 | I90: 0 | J90: 0 | K90: 0 | L90: 0 | M90: 0 | N90: 0 | O90: =SUM(C90:N90) -> 0
A91: 18 | B91: Public Utilities | C91: ='Sch M 2.3'!E198 -> 1737 | D91: ='Sch M 2.3'!F198 -> 2033 | E91: ='Sch M 2.3'!G198 -> 1295 | F91: ='Sch M 2.3'!H198 -> 576 | G91: ='Sch M 2.3'!I198 -> 412 | H91: ='Sch M 2.3'!J198 -> 320 | I91: ='Sch M 2.3'!K198 -> 248 | J91: ='Sch M 2.3'!L198 -> 259 | K91: ='Sch M 2.3'!M198 -> 310 | L91: ='Sch M 2.3'!N198 -> 470 | M91: ='Sch M 2.3'!O198 -> 950 | N91: ='Sch M 2.3'!P198 -> 1991 | O91: =SUM(C91:N91) -> 10601
A92: =A91+1 -> 19 | B92: Total Sales | C92: =SUM(C87:C91) -> 2383874.2 | D92: 2339186.1 | E92: 1764036.3 | F92: 1092534.2 | G92: 546548.2 | H92: 327450.9 | I92: 233003.2 | J92: 241363.8 | K92: 248529.7 | L92: 351577.9 | M92: 776571.5 | N92: =SUM(N87:N91) -> 1767369.5 | O92: =SUM(O87:O91) -> 12072045.5
A94: =A92+1 -> 20 | B94: Transportation | C94: ='Sch M 2.3'!E225+'Sch M 2.3'!E232+'Sch M 2.3'!E239+'Sch M 2.3'!E246+'Sch M 2.3'!E253+'Sch M 2.3'!E260+'Sch M 2.3'!E288+'Sch M 2.3'!E295+'Sch M 2.3'!E302+'Sch M 2.3'!E309+'Sch M 2.3'!E316+'Sch M 2.3'!E343 -> 2449203 | D94: ='Sch M 2.3'!F225+'Sch M 2.3'!F232+'Sch M 2.3'!F239+'Sch M 2.3'!F246+'Sch M 2.3'!F253+'Sch M 2.3'!F260+'Sch M 2.3'!F288+'Sch M 2.3'!F295+'Sch M 2.3'!F302+'Sch M 2.3'!F309+'Sch M 2.3'!F316+'Sch M 2.3'!F343 -> 2160987.8 | E94: ='Sch M 2.3'!G225+'Sch M 2.3'!G232+'Sch M 2.3'!G239+'Sch M 2.3'!G246+'Sch M 2.3'!G253+'Sch M 2.3'!G260+'Sch M 2.3'!G288+'Sch M 2.3'!G295+'Sch M 2.3'!G302+'Sch M 2.3'!G309+'Sch M 2.3'!G316+'Sch M 2.3'!G343 -> 2044428.6 | F94: ='Sch M 2.3'!H225+'Sch M 2.3'!H232+'Sch M 2.3'!H239+'Sch M 2.3'!H246+'Sch M 2.3'!H253+'Sch M 2.3'!H260+'Sch M 2.3'!H288+'Sch M 2.3'!H295+'Sch M 2.3'!H302+'Sch M 2.3'!H309+'Sch M 2.3'!H316+'Sch M 2.3'!H343 -> 1769599.7 | G94: ='Sch M 2.3'!I225+'Sch M 2.3'!I232+'Sch M 2.3'!I239+'Sch M 2.3'!I246+'Sch M 2.3'!I253+'Sch M 2.3'!I260+'Sch M 2.3'!I288+'Sch M 2.3'!I295+'Sch M 2.3'!I302+'Sch M 2.3'!I309+'Sch M 2.3'!I316+'Sch M 2.3'!I343 -> 1568567.8 | H94: ='Sch M 2.3'!J225+'Sch M 2.3'!J232+'Sch M 2.3'!J239+'Sch M 2.3'!J246+'Sch M 2.3'!J253+'Sch M 2.3'!J260+'Sch M 2.3'!J288+'Sch M 2.3'!J295+'Sch M 2.3'!J302+'Sch M 2.3'!J309+'Sch M 2.3'!J316+'Sch M 2.3'!J343 -> 1404445.4 | I94: ='Sch M 2.3'!K225+'Sch M 2.3'!K232+'Sch M 2.3'!K239+'Sch M 2.3'!K246+'Sch M 2.3'!K253+'Sch M 2.3'!K260+'Sch M 2.3'!K288+'Sch M 2.3'!K295+'Sch M 2.3'!K302+'Sch M 2.3'!K309+'Sch M 2.3'!K316+'Sch M 2.3'!K343 -> 1233145.1 | J94: ='Sch M 2.3'!L225+'Sch M 2.3'!L232+'Sch M 2.3'!L239+'Sch M 2.3'!L246+'Sch M 2.3'!L253+'Sch M 2.3'!L260+'Sch M 2.3'!L288+'Sch M 2.3'!L295+'Sch M 2.3'!L302+'Sch M 2.3'!L309+'Sch M 2.3'!L316+'Sch M 2.3'!L343 -> 1388474.3 | K94: ='Sch M 2.3'!M225+'Sch M 2.3'!M232+'Sch M 2.3'!M239+'Sch M 2.3'!M246+'Sch M 2.3'!M253+'Sch M 2.3'!M260+'Sch M 2.3'!M288+'Sch M 2.3'!M295+'Sch M 2.3'!M302+'Sch M 2.3'!M309+'Sch M 2.3'!M316+'Sch M 2.3'!M343 -> 1427484.7 | L94: ='Sch M 2.3'!N225+'Sch M 2.3'!N232+'Sch M 2.3'!N239+'Sch M 2.3'!N246+'Sch M 2.3'!N253+'Sch M 2.3'!N260+'Sch M 2.3'!N288+'Sch M 2.3'!N295+'Sch M 2.3'!N302+'Sch M 2.3'!N309+'Sch M 2.3'!N316+'Sch M 2.3'!N343 -> 1630731 | M94: ='Sch M 2.3'!O225+'Sch M 2.3'!O232+'Sch M 2.3'!O239+'Sch M 2.3'!O246+'Sch M 2.3'!O253+'Sch M 2.3'!O260+'Sch M 2.3'!O288+'Sch M 2.3'!O295+'Sch M 2.3'!O302+'Sch M 2.3'!O309+'Sch M 2.3'!O316+'Sch M 2.3'!O343 -> 1777099 | N94: ='Sch M 2.3'!P225+'Sch M 2.3'!P232+'Sch M 2.3'!P239+'Sch M 2.3'!P246+'Sch M 2.3'!P253+'Sch M 2.3'!P260+'Sch M 2.3'!P288+'Sch M 2.3'!P295+'Sch M 2.3'!P302+'Sch M 2.3'!P309+'Sch M 2.3'!P316+'Sch M 2.3'!P343 -> 2133658 | O94: =SUM(C94:N94) -> 20987824.4
A96: =A94+1 -> 21 | B96: Total Volumes | C96: =C92+C94 -> 4833077.2 | D96: 4500173.9 | E96: 3808464.9 | F96: 2862133.9 | G96: 2115116 | H96: 1731896.3 | I96: 1466148.3 | J96: 1629838.1 | K96: 1676014.4 | L96: 1982308.9 | M96: 2553670.5 | N96: =N92+N94 -> 3901027.5 | O96: =SUM(C96:N96) -> 33059869.9

Sheet Sch M 2.1
A1: =CONAME -> Columbia Gas of Kentucky, Inc.
A2: =case -> Case No. 2026-00099
A3: Revenues At Present and Proposed Rates
A4: =TYDESC -> For the 12 Months Ended December 31, 2027
A5: (Gas Service)
A7: Data: __ Base Period _X_Forecasted Period
A8: Type of Filing: X Original _ Update _ Revised | J8: Schedule M 2.1
A9: Work Paper Reference No(s): | J9: Page 1 of 1
A10: 12 Months Forecasted | J10: =Witness -> Witness: J. C. Wozniak
E11: Revenue At | F11: D-2.6/D-2.7 | H11: Revenue At | J11: % Of
A12: Line | B12: Rate | C12: Customer | E12: Present | F12: Ratemaking | G12: Revenue | H12: Proposed | I12: Revenue | J12: Revenue
A13: No. | B13: Classification | C13: Bills | D13: Volumes | E13: Rates | F13: Adjustments | G13: Adjusted | H13: Rates | I13: Change | J13: Change
B14: (A) | C14: (B) | D14: (C) | E14: (D) | F14: (E) | G14: (F) | H14: (G) | I14: (H=G-F) | J14: (I=H/F)
E15: ($) | F15: ($) | G15: ($) | H15: ($) | I15: ($) | J15: (%)
A17: 1 | B17: Sales Service
A19: =A17+1 -> 2 | B19: =Input!B19 -> General Service - Residential | C19: ='Sch M 2.2'!Q67 -> 1387635 | D19: ='Sch M 2.2'!Q68 -> 7371963.2 | E19: ='Sch M 2.2'!Q71 -> 129092386.9 | F19: =ROUND('C'!P17*(Input!$AE$19-Input!$P$19),0)-'Sch M 2.2'!Q393 -> -4120190.39 | G19: =E19+F19 -> 124972196.5 | H19: ='Sch M 2.3'!Q70 -> 146135993.9 | I19: =H19-G19 -> 21163797.41 | J19: =IF(G19=0,0,ROUND(I19/G19,4)*100) -> 16.93
A20: =A19+1 -> 3 | B20: =Input!B20 -> LG&E Commercial | C20: ='Sch M 2.2'!Q74 -> 0 | D20: ='Sch M 2.2'!Q75 -> 0 | E20: ='Sch M 2.2'!Q78 -> 0 | F20: 0 | G20: =E20+F20 -> 0 | H20: ='Sch M 2.3'!Q77 -> 0 | I20: =H20-G20 -> 0 | J20: =IF(G20=0,0,ROUND(I20/G20,4)*100) -> 0
A21: 4 | B21: =Input!B21 -> LG&E Residential | C21: ='Sch M 2.2'!Q81 -> 36 | D21: ='Sch M 2.2'!Q82 -> 425.5 | E21: ='Sch M 2.2'!Q85 -> 6014.78 | F21: 0 | G21: =E21+F21 -> 6014.78 | H21: ='Sch M 2.3'!Q84 -> 6014.78 | I21: 0 | J21: 0
A22: 5 | B22: =Input!B22 -> Inland Gas General Service - Residential | C22: ='Sch M 2.2'!Q88 -> 84 | D22: ='Sch M 2.2'!Q89 -> 810 | E22: ='Sch M 2.2'!Q92 -> 324 | F22: 0 | G22: 324 | H22: ='Sch M 2.3'!Q91 -> 324 | I22: 0 | J22: 0
A23: 6 | B23: =Input!B24 -> Inland Gas General Service - Residential | C23: ='Sch M 2.2'!Q95 -> 0 | D23: ='Sch M 2.2'!Q96 -> 0 | E23: ='Sch M 2.2'!Q99 -> 0 | F23: 0 | G23: 0 | H23: ='Sch M 2.3'!Q98 -> 0 | I23: 0 | J23: 0
A24: 7 | B24: =Input!B25 -> Inland Gas General Service - Residential | C24: ='Sch M 2.2'!Q102 -> 24 | D24: ='Sch M 2.2'!Q103 -> 119.2 | E24: ='Sch M 2.2'!Q106 -> 71.52 | F24: 0 | G24: 71.52 | H24: ='Sch M 2.3'!Q105 -> 71.52 | I24: 0 | J24: 0
A25: 8 | B25: =Input!B26 -> LG&E Residential | C25: ='Sch M 2.2'!Q131 -> 10 | D25: ='Sch M 2.2'!Q132 -> 410.9 | E25: ='Sch M 2.2'!Q135 -> 143.83 | F25: 0 | G25: 143.83 | H25: ='Sch M 2.3'!Q132 -> 143.83 | I25: 0 | J25: 0
A26: 9 | B26: =Input!B27 -> LG&E Commercial | C26: ='Sch M 2.2'!Q138 -> 0 | D26: ='Sch M 2.2'!Q139 -> 0 | E26: ='Sch M 2.2'!Q142 -> 0 | F26: 0 | G26: 0 | H26: ='Sch M 2.3'!Q139 -> 0 | I26: 0 | J26: 0
A27: =A26+1 -> 10 | B27: =Input!B28 -> LG&E Residential | C27: ='Sch M 2.2'!Q145 -> 12 | D27: ='Sch M 2.2'!Q146 -> 416.3 | E27: ='Sch M 2.2'!Q149 -> 151.6 | F27: 0 | G27: 151.6 | H27: ='Sch M 2.3'!Q146 -> 151.6 | I27: 0 | J27: 0
A28: 11 | B28: =Input!B29 -> LG&E Residential | C28: ='Sch M 2.2'!Q152 -> 0 | D28: ='Sch M 2.2'!Q153 -> 0 | E28: ='Sch M 2.2'!Q156 -> 0 | F28: 0 | G28: 0 | H28: ='Sch M 2.3'!Q153 -> 0 | I28: 0 | J28: 0
A29: 12 | B29: =Input!B30 -> General Service - Commercial | C29: ='Sch M 2.2'!Q159 -> 145926 | D29: ='Sch M 2.2'!Q160 -> 4419233.1 | E29: ='Sch M 2.2'!Q163 -> 59659397.95 | F29: =ROUND(D29*(Input!$AE$19-Input!$P$19),2)-'Sch M 2.2'!Q652 -> -1486630.02 | G29: =E29+F29 -> 58172767.93 | H29: ='Sch M 2.3'!Q160 -> 66249653.67 | I29: 8076885.74 | J29: 13.88
A30: 13 | B30: =Input!B31 -> General Service - Industrial | C30: ='Sch M 2.2'!Q187 -> 601 | D30: ='Sch M 2.2'!Q188 -> 268066.3 | E30: ='Sch M 2.2'!Q191 -> 2602941.92 | F30: =ROUND(D30*(Input!$AE$19-Input!$P$19),2)-'Sch M 2.2'!Q704 -> -90177.52 | G30: 2512764.4 | H30: ='Sch M 2.3'!Q187 -> 2687374.02 | I30: 174609.62 | J30: 6.95
A31: 14 | B31: =Input!B36 -> Interruptible Service - Industrial | C31: ='Sch M 2.2'!Q194 -> 0 | D31: ='Sch M 2.2'!Q195 -> 0 | E31: ='Sch M 2.2'!Q198 -> 0 | F31: =ROUND(D31*(Input!$AE$19-Input!$P$19),2)-'Sch M 2.2'!Q755 -> 0 | G31: 0 | H31: ='Sch M 2.3'!Q194 -> 0 | I31: 0 | J31: 0
A32: 15 | B32: =Input!B37 -> Intrastate Utility Service - Wholesale | C32: ='Sch M 2.2'!Q201 -> 24 | D32: ='Sch M 2.2'!Q202 -> 10601 | E32: ='Sch M 2.2'!Q205 -> 111177.68 | F32: =ROUND(D32*(Input!$AE$19-Input!$P$19),2)-'Sch M 2.2'!Q780 -> -2237.87 | G32: 108939.81 | H32: ='Sch M 2.3'!Q201 -> 119428.21 | I32: 10488.4 | J32: 9.63
A34: =A32+1 -> 16 | B34: Transportation Service
A36: =A34+1 -> 17 | B36: =Input!B41 -> GTS Choice - Residential | C36: ='Sch M 2.2'!Q229 -> 121038 | D36: ='Sch M 2.2'!Q230 -> 717352.8 | E36: ='Sch M 2.2'!Q233 -> 7391398.33 | F36: =-'Sch M 2.2'!Q822 -> -401717.57 | G36: =E36+F36 -> 6989680.76 | H36: ='Sch M 2.3'!Q228 -> 8898724.04 | I36: =H36-G36 -> 1909043.28 | J36: =IF(G36=0,0,ROUND(I36/G36,4)*100) -> 27.31
A37: 18 | B37: =Input!B42 -> GTS Choice - Commercial | C37: ='Sch M 2.2'!Q236 -> 20615 | D37: ='Sch M 2.2'!Q237 -> 1063673.3 | E37: ='Sch M 2.2'!Q240 -> 5466452.33 | F37: =-'Sch M 2.2'!Q858 -> -358989.76 | G37: =E37+F37 -> 5107462.57 | H37: ='Sch M 2.3'!Q235 -> 6524259.08 | I37: 1416796.51 | J37: 27.74
A38: 19 | B38: =Input!B43 -> GTS Choice - Industrial | C38: ='Sch M 2.2'!Q243 -> 163 | D38: ='Sch M 2.2'!Q244 -> 75400.1 | E38: ='Sch M 2.2'!Q247 -> 225077.01 | F38: =-'Sch M 2.2'!Q904 -> -25447.55 | G38: 199629.46 | H38: ='Sch M 2.3'!Q242 -> 249819.56 | I38: 50190.1 | J38: 25.14
A39: 20 | B39: =Input!B44 -> GTS Delivery Service - Commercial | C39: ='Sch M 2.2'!Q250 -> 268 | D39: ='Sch M 2.2'!Q251 -> 2915826.5 | E39: ='Sch M 2.2'!Q254 -> 3525071.6 | F39: =-'Sch M 2.2'!Q948 -> -180781.25 | G39: 3344290.35 | H39: ='Sch M 2.3'!Q249 -> 4297785.68 | I39: 953495.33 | J39: 28.51
A40: 21 | B40: =Input!B45 -> GTS Delivery Service - Industrial | C40: ='Sch M 2.2'!Q257 -> 496 | D40: ='Sch M 2.2'!Q258 -> 6024586.9 | E40: ='Sch M 2.2'!Q261 -> 6635778.66 | F40: =-'Sch M 2.2'!Q975 -> -373524.4 | G40: 6262254.26 | H40: ='Sch M 2.3'!Q256 -> 8032605.93 | I40: 1770351.67 | J40: 28.27
A41: 22 | B41: =Input!B46 -> GTS Grandfathered Delivery Service - Commercial | C41: ='Sch M 2.2'!Q264 -> 180 | D41: ='Sch M 2.2'!Q265 -> 249783.7 | E41: ='Sch M 2.2'!Q268 -> 676272.7 | F41: =-'Sch M 2.2'!Q1020 -> -84301.99 | G41: 591970.71 | H41: ='Sch M 2.3'!Q263 -> 738350.43 | I41: 146379.72 | J41: 24.73
A42: 23 | B42: =Input!B47 -> GTS Grandfathered Delivery Service - Industrial | C42: ='Sch M 2.2'!Q291 -> 36 | D42: ='Sch M 2.2'!Q292 -> 66501.1 | E42: ='Sch M 2.2'!Q295 -> 174875.34 | F42: =-'Sch M 2.2'!Q1048 -> -22444.13 | G42: 152431.21 | H42: ='Sch M 2.3'!Q291 -> 190039.41 | I42: 37608.2 | J42: 24.67
A43: 24 | B43: =Input!B48 -> GTS Main Line Service - Industrial (up to 400,000 Mcf) | C43: ='Sch M 2.2'!Q298 -> 36 | D43: ='Sch M 2.2'!Q299 -> 519300 | E43: ='Sch M 2.2'!Q302 -> 57069.63 | F43: 0 | G43: 57069.63 | H43: ='Sch M 2.3'!Q298 -> 147381.65 | I43: 90312.02 | J43: 158.25
A44: 25 | B44: =Input!B49 -> GTS Main Line Service - Industrial (400,000 to 1,000,000 Mcf) | C44: ='Sch M 2.2'!Q305 -> 12 | D44: ='Sch M 2.2'!Q306 -> 800000 | E44: ='Sch M 2.2'!Q309 -> 78480.01 | F44: 0 | G44: 78480.01 | H44: ='Sch M 2.3'!Q1101 -> 122160.01 | I44: 43680 | J44: 55.66
A45: 26 | B45: =Input!B50 -> GTS Main Line Service - Industrial (over 1,000,000 Mcf) | C45: ='Sch M 2.2'!Q312 -> 0 | D45: ='Sch M 2.2'!Q313 -> 0 | E45: ='Sch M 2.2'!Q316 -> 0 | F45: 0 | G45: 0 | H45: ='Sch M 2.3'!Q312 -> 0 | I45: 0 | J45: 0
A46: =A45+1 -> 27 | B46: =Input!B51 -> GTS Flex Rate - Industrial | C46: ='Sch M 2.2'!Q319 -> 24 | D46: ='Sch M 2.2'!Q320 -> 8555400 | E46: ='Sch M 2.2'!Q323 -> 776686.14 | F46: 0 | G46: 776686.14 | H46: ='Sch M 2.3'!Q319 -> 901350.34 | I46: 124664.2 | J46: 16.05
A47: =A46+1 -> 28 | B47: =Input!B52 -> GTS Special Agency Service | C47: ='Sch M 2.2'!Q346 -> 0 | D47: ='Sch M 2.2'!Q347 -> 0 | E47: ='Sch M 2.2'!Q350 -> 0 | F47: =-'Sch M 2.2'!Q1174 -> 0 | G47: 0 | H47: ='Sch M 2.3'!Q346 -> 0 | I47: 0 | J47: 0
A49: =A47+1 -> 29 | B49: Total Sales and Transportation | C49: =SUM(C19:C47) -> 1677220 | D49: =SUM(D19:D47) -> 33059869.9 | E49: 216479771.9 | F49: -7146442.45 | G49: 209333329.5 | H49: 245301631.7 | I49: 35968302.2 | J49: =IF(G49=0,0,ROUND(I49/G49,4)*100) -> 17.18
A51: =A49+1 -> 30 | B51: Other Gas Department Revenue
A53: =A51+1 -> 31 | B53: Acct. 487 Forfeited Discounts | E53: ='Sch M 2.2'!Q356 -> 150000 | F53: 0 | G53: =E53+F53 -> 150000 | H53: ='Sch M 2.3'!Q30 -> 150000 | I53: =H53-G53 -> 0 | J53: =IF(G53=0,0,ROUND(I53/G53,4)*100) -> 0
A54: =A53+1 -> 32 | B54: Acct. 488 Miscellaneous Service Revenue | E54: ='Sch M 2.2'!Q357 -> 116465.7367 | F54: 0 | G54: =E54+F54 -> 116465.7367 | H54: ='Sch M 2.3'!Q31 -> 116465.7367 | I54: =H54-G54 -> 0 | J54: =IF(G54=0,0,ROUND(I54/G54,4)*100) -> 0
A55: =A54+1 -> 33 | B55: Acct. 493 Rent From Gas Property | E55: ='Sch M 2.2'!Q358 -> 74034 | F55: 0 | G55: =E55+F55 -> 74034 | H55: ='Sch M 2.3'!Q32 -> 74034 | I55: =H55-G55 -> 0 | J55: =IF(G55=0,0,ROUND(I55/G55,4)*100) -> 0
A56: =A55+1 -> 34 | B56: Acct. 495 Non-Traditional Sales | E56: ='Sch M 2.2'!Q359 -> 0 | F56: 0 | G56: =E56+F56 -> 0 | H56: ='Sch M 2.3'!Q33 -> 0 | I56: =H56-G56 -> 0 | J56: =IF(G56=0,0,ROUND(I56/G56,4)*100) -> 0
A57: =A56+1 -> 35 | B57: Acct. 495 Other Gas Revenues - Other | E57: ='Sch M 2.2'!Q360 -> 180124.69 | F57: 0 | G57: =E57+F57 -> 180124.69 | H57: ='Sch M 2.3'!Q34 -> 180124.69 | I57: =H57-G57 -> 0 | J57: =IF(G57=0,0,ROUND(I57/G57,4)*100) -> 0
A59: =A57+1 -> 36 | B59: Total Other Gas Department Revenue | E59: =SUM(E53:E57) -> 520624.4267 | F59: =SUM(F53:F57) -> 0 | G59: =SUM(G53:G57) -> 520624.4267 | H59: =SUM(H53:H57) -> 520624.4267 | I59: =SUM(I53:I57) -> 0 | J59: =IF(G59=0,0,ROUND(I59/G59,4)*100) -> 0
A61: =A59+1 -> 37 | B61: Total Gross Revenue | E61: =E59+E49 -> 217000396.4 | F61: =F59+F49 -> -7146442.45 | G61: =G59+G49 -> 209853953.9 | H61: =H59+H49 -> 245822256.1 | I61: =I59+I49 -> 35968302.2 | J61: =IF(G61=0,0,ROUND(I61/G61,4)*100) -> 17.14
F80: 13277.11
F81: ='Sch M 2.2'!Q1305 -> 0
F82: =F80-F81 -> 13277.11

Sheet Sch M 2.2
A1: =CONAME -> Columbia Gas of Kentucky, Inc.
A2: =case -> Case No. 2026-00099
A3: Annualized Test Year Revenues at Current Rates
A4: =TYDESC -> For the 12 Months Ended December 31, 2027
A5: (Gas Service)
A6: =$A$53 -> Data: __ Base Period _X_ Forecasted Period
A7: =$A$54 -> Type of Filing: X Original _ Update _ Revised | Q7: =$Q$54 -> Schedule M-2.2
A8: =$A$55 -> Work Paper Reference No(s): | Q8: Page 1 of 20
A9: =$A$56 -> 12 Months Forecasted | Q9: =Witness -> Witness: J. C. Wozniak
A10: Current Annualized
A12: Line | B12: FERC | C12: Class/ | D12: Current
A13: No. | B13: Acct | C13: Description | D13: Rates | E13: =B!$D$11 -> Jan-27 | F13: =B!$E$11 -> Feb-27 | G13: =B!$F$11 -> Mar-27 | H13: =B!$G$11 -> Apr-27 | I13: =B!$H$11 -> May-27 | J13: =B!$I$11 -> Jun-27 | K13: =B!$J$11 -> Jul-27 | L13: =B!$K$11 -> Aug-27 | M13: =B!$L$11 -> Sep-27 | N13: =B!$M$11 -> Oct-27 | O13: =B!$N$11 -> Nov-27 | P13: =B!$O$11 -> Dec-27 | Q13: Total
B14: (A) | C14: (B) | D14: (C) | E14: (D) | F14: (E) | G14: (F) | H14: (G) | I14: (H) | J14: (I) | K14: (J) | L14: (K) | M14: (L) | N14: (M) | O14: (N) | P14: (O) | Q14: (P)
A16: 1 | C16: Operating Revenue
A18: =A16+1 -> 2 | C18: Sales of Gas
A19: =A18+1 -> 3 | B19: 480 | C19: Residential Sales Revenue | E19: =E71+E85+E92+E99+E106+E135+E149+E156 -> 23209126.2 | F19: 22748646.54 | G19: =G71+G85+G92+G99+G106+G135+G149+G156 -> 17857465.12 | H19: 11697026.25 | I19: 6656028.19 | J19: 4595581.6 | K19: 3783636.87 | L19: 3762670.33 | M19: 3889444.27 | N19: 4712996.49 | O19: 8561235.91 | P19: 17625234.87 | Q19: =SUM(E19:P19) -> 129099092.6
A20: =A19+1 -> 4 | B20: 481.1 | C20: Commercial Sales Revenue | E20: =E78+E142+E163 -> 9303623.97 | F20: 9230024.19 | G20: =G78+G142+G163 -> 7224648.55 | H20: 5161109.72 | I20: 3498297.38 | J20: 2848926.47 | K20: 2542435.21 | L20: 2612655.14 | M20: 2583958.3 | N20: 2973848.94 | O20: 4314267.62 | P20: 7365602.46 | Q20: 59659397.95
A21: =A20+1 -> 5 | B21: 481.2 | C21: Industrial Sales Revenue | E21: =E191+E198 -> 312460.18 | F21: 301025.71 | G21: =G191+G198 -> 267558.96 | H21: 247136.72 | I21: 203931.21 | J21: 178581.5 | K21: 127143.85 | L21: 144587.52 | M21: 137688.6 | N21: 152705.94 | O21: 227848.45 | P21: 302273.28 | Q21: 2602941.92
A22: 6 | B22: 481.3 | C22: Other Sales Revenue | E22: 0 | F22: 0 | G22: 0 | H22: 0 | I22: 0 | J22: 0 | K22: 0 | L22: 0 | M22: 0 | N22: 0 | O22: 0 | P22: 0 | Q22: 0
A23: 7 | B23: 483 | C23: Public Utilities | E23: =E205 -> 16023.39 | F23: =F205 -> 18367.09 | G23: =G205 -> 12523.68 | H23: 6830.71 | I23: 5532.18 | J23: 4803.73 | K23: 4233.64 | L23: 4320.74 | M23: 4724.55 | N23: 5991.42 | O23: 9792.01 | P23: 18034.54 | Q23: 111177.68
A24: =A23+1 -> 8 | C24: Total Sales of Gas | E24: =SUM(E19:E23) -> 32841233.74 | F24: 32298063.53 | G24: 25362196.31 | H24: 17112103.4 | I24: 10363788.96 | J24: 7627893.3 | K24: 6457449.57 | L24: 6524233.73 | M24: 6615815.72 | N24: 7845542.79 | O24: 13113143.99 | P24: =SUM(P19:P23) -> 25311145.15 | Q24: 191472610.2
A26: =A24+1 -> 9 | C26: Other Operating Revenue
A27: =A26+1 -> 10 | B27: 489 | C27: Transportation Revenue - Residential | E27: =E233 -> 1211603.75 | F27: 1175898.87 | G27: 956141.51 | H27: 672445.44 | I27: 419618.93 | J27: 316287.92 | K27: 274912.47 | L27: 275155.96 | M27: 275352.79 | N27: 327028.38 | O27: 527465.47 | P27: 959486.84 | Q27: =SUM(E27:P27) -> 7391398.33
A28: 11 | B28: 489 | C28: Transportation Revenue - Commercial | E28: =E240+E254+E268+E350 -> 1254036.37 | F28: =F240+F254+F268+F350 -> 1161269.91 | G28: =G240+G254+G268+G350 -> 1018386.53 | H28: 832011.66 | I28: 664277.55 | J28: 595174.28 | K28: 566757.84 | L28: 545600.44 | M28: 571017.93 | N28: 624798.14 | O28: 788413.52 | P28: 1046052.46 | Q28: =SUM(E28:P28) -> 9667796.63
A29: 12 | B29: 489 | C29: Transportation Revenue - Industrial | E29: =E247+E261+E295+E302+E309+E316+E323 -> 797342.55 | F29: =F247+F261+F295+F302+F309+F316+F323 -> 731021.45 | G29: 715950.31 | H29: 666544.21 | I29: 633689.05 | J29: 603314.74 | K29: 506484.68 | L29: 605393.62 | M29: 606611.38 | N29: 667038.95 | O29: 688228.75 | P29: 726347.1 | Q29: 7947966.79
A30: =A29+1 -> 13 | B30: 487 | C30: Forfeited Discounts | E30: =E356 -> 17542.44888 | F30: 23759.59253 | G30: 25028.6047 | H30: 17844.42954 | I30: 12587.98986 | J30: 9719.595927 | K30: 6886.923867 | L30: 6957.745256 | M30: 5912.767437 | N30: 6268.421807 | O30: 7282.693784 | P30: 10208.78642 | Q30: 150000
A31: 14 | B31: 488 | C31: Miscellaneous Service Revenue | E31: =E357 -> 9705.478056 | F31: 9705.478056 | G31: 9705.478056 | H31: 9705.478056 | I31: 9705.478056 | J31: 9705.478056 | K31: 9705.478056 | L31: 9705.478056 | M31: 9705.478056 | N31: 9705.478056 | O31: 9705.478056 | P31: 9705.478056 | Q31: 116465.7367
A32: 15 | B32: 493 | C32: Rent from Gas Property | E32: =E358 -> 6169.5 | F32: 6169.5 | G32: 6169.5 | H32: 6169.5 | I32: 6169.5 | J32: 6169.5 | K32: 6169.5 | L32: 6169.5 | M32: 6169.5 | N32: 6169.5 | O32: 6169.5 | P32: 6169.5 | Q32: 74034
A33: 16 | B33: 495 | C33: Non-Traditional Sales | E33: =E359 -> 0 | F33: 0 | G33: 0 | H33: 0 | I33: 0 | J33: 0 | K33: 0 | L33: 0 | M33: 0 | N33: 0 | O33: 0 | P33: 0 | Q33: 0
A34: 17 | B34: 495 | C34: Other Gas Revenues - Other | E34: =E360 -> 26874.49 | F34: 26188.37667 | G34: 19697.20333 | H34: 19045.08 | I34: 14345.24333 | J34: 9620.05 | K34: 9150.13 | L34: 3197.71 | M34: 8924.13 | N34: 10230.16 | O34: 12686 | P34: 20166.11667 | Q34: 180124.69
A35: =A34+1 -> 18 | C35: Total Other Operating Revenue | E35: =SUM(E27:E34) -> 3323274.587 | F35: 3134013.177 | G35: 2751079.136 | H35: 2223765.798 | I35: 1760393.741 | J35: 1549991.564 | K35: 1380067.022 | L35: 1452180.453 | M35: 1483693.975 | N35: 1651239.03 | O35: 2039951.412 | P35: 2778136.281 | Q35: 25527786.18
A37: =A35+1 -> 19 | C37: Total Operating Revenue | E37: =E24+E35 -> 36164508.33 | F37: 35432076.71 | G37: 28113275.45 | H37: 19335869.2 | I37: 12124182.7 | J37: 9177884.864 | K37: 7837516.592 | L37: 7976414.183 | M37: 8099509.695 | N37: 9496781.82 | O37: 15153095.4 | P37: 28089281.43 | Q37: =SUM(E37:P37) -> 217000396.4
A48: =CONAME -> Columbia Gas of Kentucky, Inc.
A49: =case -> Case No. 2026-00099
A50: Annualized Test Year Revenues at Current Rates
A51: =TYDESC -> For the 12 Months Ended December 31, 2027
A52: (Gas Service)
A53: Data: __ Base Period _X_ Forecasted Period
A54: Type of Filing: X Original _ Update _ Revised | Q54: Schedule M-2.2
A55: Work Paper Reference No(s): | Q55: Page 2 of 20
A56: 12 Months Forecasted | Q56: =Witness -> Witness: J. C. Wozniak
A57: Current Annualized
A60: Line | B60: Rate | C60: Class/ | D60: Current
A61: No. | B61: Code | C61: Description | D61: Rates | E61: =B!$D$11 -> Jan-27 | F61: =B!$E$11 -> Feb-27 | G61: =B!$F$11 -> Mar-27 | H61: =B!$G$11 -> Apr-27 | I61: =B!$H$11 -> May-27 | J61: =B!$I$11 -> Jun-27 | K61: =B!$J$11 -> Jul-27 | L61: =B!$K$11 -> Aug-27 | M61: =B!$L$11 -> Sep-27 | N61: =B!$M$11 -> Oct-27 | O61: =B!$N$11 -> Nov-27 | P61: =B!$O$11 -> Dec-27 | Q61: Total
B62: (A) | C62: (B) | D62: (C) | E62: (D) | F62: (E) | G62: (F) | H62: (G) | I62: (H) | J62: (I) | K62: (J) | L62: (K) | M62: (L) | N62: (M) | O62: (N) | P62: (O) | Q62: (P)
A64: 1 | C64: Sales Service
A66: =A64+1 -> 2 | B66: =Input!A19 -> GSR | C66: ='Sch M 2.1'!B19 -> General Service - Residential
A67: =A66+1 -> 3 | C67: Bills | E67: =E387 -> 116292 | F67: =F387 -> 116620 | G67: 116834 | H67: 116716 | I67: 116306 | J67: 115579 | K67: 114853 | L67: 114532 | M67: 114121 | N67: 114303 | O67: 115298 | P67: 116181 | Q67: =SUM(E67:P67) -> 1387635
A68: =A67+1 -> 4 | C68: Volumes [1] | E68: =E390 -> 1539508.5 | F68: 1504722.5 | G68: 1140517.2 | H68: 682423.5 | I68: 308086.1 | J68: 155975.3 | K68: 96742.5 | L68: 95698.7 | M68: 105791.5 | N68: 166763.7 | O68: 451434.4 | P68: 1124299.3 | Q68: =SUM(E68:P68) -> 7371963.2
A69: =A68+1 -> 5 | C69: Revenue Less Gas Cost | E69: =E395+E405 -> 12784602.14 | F69: 12559629.15 | G69: 10134569.42 | H69: 7075983.57 | I69: 4569839.72 | J69: 3539360.4 | K69: 3128510.42 | L69: 3114607.01 | M69: 3173052.28 | N69: 3583744.85 | O69: 5504351.93 | P69: 10012259.16 | Q69: =SUM(E69:P69) -> 79180510.05
A70: =A69+1 -> 6 | C70: Gas Cost | E70: =E397 -> 10423242.3 | F70: 10187723.69 | G70: 7721871.7 | H70: 4620348.31 | I70: 2085896.94 | J70: 1056030.77 | K70: 654995.1 | L70: 647928.05 | M70: 716261.35 | N70: 1129073.63 | O70: 3056436.61 | P70: 7612068.41 | Q70: =SUM(E70:P70) -> 49911876.86
A71: =A70+1 -> 7 | C71: Total Revenue [2] | E71: =E407 -> 23207844.44 | F71: 22747352.84 | G71: 17856441.12 | H71: 11696331.88 | I71: 6655736.66 | J71: 4595391.17 | K71: 3783505.52 | L71: 3762535.06 | M71: 3889313.63 | N71: 4712818.48 | O71: 8560788.54 | P71: =P407 -> 17624327.57 | Q71: =SUM(E71:P71) -> 129092386.9
A73: =A71+1 -> 8 | B73: =Input!A20 -> G1C | C73: ='Sch M 2.1'!B20 -> LG&E Commercial
A74: =A73+1 -> 9 | C74: Bills | E74: =E414 -> 0 | F74: 0 | G74: 0 | H74: 0 | I74: 0 | J74: 0 | K74: 0 | L74: 0 | M74: 0 | N74: 0 | O74: 0 | P74: 0 | Q74: =SUM(E74:P74) -> 0
A75: =A74+1 -> 10 | C75: Volumes [1] | E75: =E417 -> 0 | F75: 0 | G75: 0 | H75: 0 | I75: 0 | J75: 0 | K75: 0 | L75: 0 | M75: 0 | N75: 0 | O75: 0 | P75: 0 | Q75: =SUM(E75:P75) -> 0
A76: =A75+1 -> 11 | C76: Revenue Less Gas Cost | E76: =E420 -> 0 | F76: 0 | G76: 0 | H76: 0 | I76: 0 | J76: 0 | K76: 0 | L76: 0 | M76: 0 | N76: 0 | O76: 0 | P76: 0 | Q76: =SUM(E76:P76) -> 0
A77: =A76+1 -> 12 | C77: Gas Cost | E77: =E422 -> 0 | F77: 0 | G77: 0 | H77: 0 | I77: 0 | J77: 0 | K77: 0 | L77: 0 | M77: 0 | N77: 0 | O77: 0 | P77: 0 | Q77: =SUM(E77:P77) -> 0
A78: =A77+1 -> 13 | C78: Total Revenue [2] | E78: =E424 -> 0 | F78: 0 | G78: 0 | H78: 0 | I78: 0 | J78: 0 | K78: 0 | L78: 0 | M78: 0 | N78: 0 | O78: 0 | P78: 0 | Q78: =SUM(E78:P78) -> 0
A80: =A78+1 -> 14 | B80: =Input!A21 -> G1R | C80: ='Sch M 2.1'!B21 -> LG&E Residential
A81: =A80+1 -> 15 | C81: Bills | E81: =E448 -> 3 | F81: 3 | G81: 3 | H81: 3 | I81: 3 | J81: 3 | K81: 3 | L81: 3 | M81: 3 | N81: 3 | O81: 3 | P81: 3 | Q81: =SUM(E81:P81) -> 36
A82: =A81+1 -> 16 | C82: Volumes [1] | E82: =E451 -> 84.5 | F82: 89.9 | G82: 71.5 | H82: 47.8 | I82: 16.6 | J82: 8.9 | K82: 4.4 | L82: 4.7 | M82: 4.3 | N82: 7.2 | O82: 26.9 | P82: 58.8 | Q82: =SUM(E82:P82) -> 425.5
A83: =A82+1 -> 17 | C83: Revenue Less Gas Cost | E83: =E454 -> 525.19 | F83: =F454 -> 554.26 | G83: 455.2 | H83: 327.61 | I83: 159.63 | J83: 118.18 | K83: 93.95 | L83: 95.56 | M83: 93.41 | N83: 109.02 | O83: 215.08 | P83: 386.83 | Q83: =SUM(E83:P83) -> 3133.92
A84: =A83+1 -> 18 | C84: Gas Cost | E84: =E456 -> 572.11 | F84: 608.67 | G84: 484.09 | H84: 323.63 | I84: 112.39 | J84: 60.26 | K84: 29.79 | L84: 31.82 | M84: 29.11 | N84: 48.75 | O84: 182.13 | P84: 398.11 | Q84: =SUM(E84:P84) -> 2880.86
A85: =A84+1 -> 19 | C85: Total Revenue [2] | E85: =E458 -> 1097.3 | F85: 1162.93 | G85: 939.29 | H85: 651.24 | I85: 272.02 | J85: 178.44 | K85: 123.74 | L85: 127.38 | M85: 122.52 | N85: 157.77 | O85: 397.21 | P85: 784.94 | Q85: =SUM(E85:P85) -> 6014.78
A87: =A85+1 -> 20 | B87: =Input!A22 -> IN3 | C87: ='Sch M 2.1'!B22 -> Inland Gas General Service - Residential
A88: =A87+1 -> 21 | C88: Bills | E88: =E465 -> 7 | F88: 7 | G88: 7 | H88: 7 | I88: 7 | J88: 7 | K88: 7 | L88: 7 | M88: 7 | N88: 7 | O88: 7 | P88: 7 | Q88: =SUM(E88:P88) -> 84
A89: =A88+1 -> 22 | C89: Volumes [1] | E89: =E468 -> 188 | F89: 159 | G89: 103.4 | H89: 69.4 | I89: 31.7 | J89: 14 | K89: 6 | L89: 7.1 | M89: 7.7 | N89: 26.3 | O89: 61.6 | P89: 135.8 | Q89: =SUM(E89:P89) -> 810
A90: =A89+1 -> 23 | C90: Revenue Less Gas Cost | E90: =E470 -> 75.2 | F90: =F470 -> 63.6 | G90: 41.36 | H90: 27.76 | I90: 12.68 | J90: 5.6 | K90: 2.4 | L90: 2.84 | M90: 3.08 | N90: 10.52 | O90: 24.64 | P90: 54.32 | Q90: =SUM(E90:P90) -> 324
A91: =A90+1 -> 24 | C91: Gas Cost | E91: =E472 -> 0 | F91: 0 | G91: 0 | H91: 0 | I91: 0 | J91: 0 | K91: 0 | L91: 0 | M91: 0 | N91: 0 | O91: 0 | P91: 0 | Q91: =SUM(E91:P91) -> 0
A92: =A91+1 -> 25 | C92: Total Revenue [2] | E92: =E474 -> 75.2 | F92: 63.6 | G92: 41.36 | H92: 27.76 | I92: 12.68 | J92: 5.6 | K92: 2.4 | L92: 2.84 | M92: 3.08 | N92: 10.52 | O92: 24.64 | P92: 54.32 | Q92: =SUM(E92:P92) -> 324
A94: =A92+1 -> 26 | B94: =Input!A24 -> IN4 | C94: ='Sch M 2.1'!B23 -> Inland Gas General Service - Residential
A95: =A94+1 -> 27 | C95: Bills | E95: =E481 -> 0 | F95: 0 | G95: 0 | H95: 0 | I95: 0 | J95: 0 | K95: 0 | L95: 0 | M95: 0 | N95: 0 | O95: 0 | P95: 0 | Q95: =SUM(E95:P95) -> 0
A96: =A95+1 -> 28 | C96: Volumes [1] | E96: =E484 -> 0 | F96: 0 | G96: 0 | H96: 0 | I96: 0 | J96: 0 | K96: 0 | L96: 0 | M96: 0 | N96: 0 | O96: 0 | P96: 0 | Q96: =SUM(E96:P96) -> 0
A97: =A96+1 -> 29 | C97: Revenue Less Gas Cost | E97: =E486 -> 0 | F97: 0 | G97: 0 | H97: 0 | I97: 0 | J97: 0 | K97: 0 | L97: 0 | M97: 0 | N97: 0 | O97: 0 | P97: 0 | Q97: =SUM(E97:P97) -> 0
A98: =A97+1 -> 30 | C98: Gas Cost | E98: =E488 -> 0 | F98: 0 | G98: 0 | H98: 0 | I98: 0 | J98: 0 | K98: 0 | L98: 0 | M98: 0 | N98: 0 | O98: 0 | P98: 0 | Q98: =SUM(E98:P98) -> 0
A99: =A98+1 -> 31 | C99: Total Revenue [2] | E99: =E490 -> 0 | F99: 0 | G99: 0 | H99: 0 | I99: 0 | J99: 0 | K99: 0 | L99: 0 | M99: 0 | N99: 0 | O99: 0 | P99: 0 | Q99: =SUM(E99:P99) -> 0
A101: =A99+1 -> 32 | B101: =Input!A25 -> IN5 | C101: ='Sch M 2.1'!B24 -> Inland Gas General Service - Residential
A102: =A101+1 -> 33 | C102: Bills | E102: =E514 -> 2 | F102: 2 | G102: 2 | H102: 2 | I102: 2 | J102: 2 | K102: 2 | L102: 2 | M102: 2 | N102: 2 | O102: 2 | P102: 2 | Q102: =SUM(E102:P102) -> 24
A103: =A102+1 -> 34 | C103: Volumes [1] | E103: =E517 -> 47.1 | F103: 21.1 | G103: 10.8 | H103: 6.7 | I103: 2.9 | J103: 0.6 | K103: 0.5 | L103: 0.4 | M103: 0.5 | N103: 0.6 | O103: 4.7 | P103: 23.3 | Q103: =SUM(E103:P103) -> 119.2
A104: =A103+1 -> 35 | C104: Revenue Less Gas Cost | E104: =E519 -> 28.26 | F104: 12.66 | G104: 6.48 | H104: 4.02 | I104: 1.74 | J104: 0.36 | K104: 0.3 | L104: 0.24 | M104: 0.3 | N104: 0.36 | O104: 2.82 | P104: 13.98 | Q104: =SUM(E104:P104) -> 71.52
A105: =A104+1 -> 36 | C105: Gas Cost | E105: =E521 -> 0 | F105: 0 | G105: 0 | H105: 0 | I105: 0 | J105: 0 | K105: 0 | L105: 0 | M105: 0 | N105: 0 | O105: 0 | P105: 0 | Q105: =SUM(E105:P105) -> 0
A106: =A105+1 -> 37 | C106: Total Revenue [2] | E106: =E523 -> 28.26 | F106: 12.66 | G106: 6.48 | H106: 4.02 | I106: 1.74 | J106: 0.36 | K106: 0.3 | L106: 0.24 | M106: 0.3 | N106: 0.36 | O106: 2.82 | P106: 13.98 | Q106: =SUM(E106:P106) -> 71.52
A109: [1] Reflects Normalized Volumes.
A110: [2] See Schedule M-2.2 Pages 8 through 20 for detail.
A112: =CONAME -> Columbia Gas of Kentucky, Inc.
A113: =case -> Case No. 2026-00099
A114: Annualized Test Year Revenues at Current Rates
A115: =TYDESC -> For the 12 Months Ended December 31, 2027
A116: (Gas Service)
A117: =$A$53 -> Data: __ Base Period _X_ Forecasted Period
A118: =$A$54 -> Type of Filing: X Original _ Update _ Revised | Q118: =$Q$54 -> Schedule M-2.2
A119: =$A$55 -> Work Paper Reference No(s): | Q119: Page 3 of 20
A120: =$A$56 -> 12 Months Forecasted | Q120: =Witness -> Witness: J. C. Wozniak
A121: Current Annualized
A124: Line | B124: Rate | C124: Class/ | D124: Current
A125: No. | B125: Code | C125: Description | D125: Rates | E125: =B!$D$11 -> Jan-27 | F125: =B!$E$11 -> Feb-27 | G125: =B!$F$11 -> Mar-27 | H125: =B!$G$11 -> Apr-27 | I125: =B!$H$11 -> May-27 | J125: =B!$I$11 -> Jun-27 | K125: =B!$J$11 -> Jul-27 | L125: =B!$K$11 -> Aug-27 | M125: =B!$L$11 -> Sep-27 | N125: =B!$M$11 -> Oct-27 | O125: =B!$N$11 -> Nov-27 | P125: =B!$O$11 -> Dec-27 | Q125: Total
B126: (A) | C126: (B) | D126: (C) | E126: (D) | F126: (E) | G126: (F) | H126: (G) | I126: (H) | J126: (I) | K126: (J) | L126: (K) | M126: (L) | N126: (M) | O126: (N) | P126: (O) | Q126: (P)
A128: 1 | C128: Sales Service
A130: =A128+1 -> 2 | B130: =Input!A26 -> LG2 | C130: ='Sch M 2.1'!B25 -> LG&E Residential
A131: =A130+1 -> 3 | C131: Bills | E131: =E530 -> 1 | F131: 1 | G131: 1 | H131: 0 | I131: 0 | J131: 1 | K131: 1 | L131: 1 | M131: 1 | N131: 1 | O131: 1 | P131: 1 | Q131: =SUM(E131:P131) -> 10
A132: =A131+1 -> 4 | C132: Volumes [1] | E132: =E533 -> 134.2 | F132: 86 | G132: 65.9 | H132: 0 | I132: 0 | J132: 5.6 | K132: 2.6 | L132: 2.8 | M132: 2.2 | N132: 4 | O132: 23.3 | P132: 84.3 | Q132: =SUM(E132:P132) -> 410.9
A133: =A132+1 -> 5 | C133: Revenue Less Gas Cost | E133: =E536 -> 46.97 | F133: 30.1 | G133: 23.07 | H133: 0 | I133: 0 | J133: 1.96 | K133: 0.91 | L133: 0.98 | M133: 0.77 | N133: 1.4 | O133: 8.16 | P133: 29.51 | Q133: =SUM(E133:P133) -> 143.83
A134: =A133+1 -> 6 | C134: Gas Cost | E134: =E538 -> 0 | F134: 0 | G134: 0 | H134: 0 | I134: 0 | J134: 0 | K134: 0 | L134: 0 | M134: 0 | N134: 0 | O134: 0 | P134: 0 | Q134: =SUM(E134:P134) -> 0
A135: =A134+1 -> 7 | C135: Total Revenue [2] | E135: =E540 -> 46.97 | F135: 30.1 | G135: 23.07 | H135: 0 | I135: 0 | J135: 1.96 | K135: 0.91 | L135: 0.98 | M135: 0.77 | N135: 1.4 | O135: 8.16 | P135: 29.51 | Q135: =SUM(E135:P135) -> 143.83
A137: =A135+1 -> 8 | B137: =Input!A27 -> LG2 | C137: ='Sch M 2.1'!B26 -> LG&E Commercial
A138: =A137+1 -> 9 | C138: Bills | E138: =E547 -> 0 | F138: 0 | G138: 0 | H138: 0 | I138: 0 | J138: 0 | K138: 0 | L138: 0 | M138: 0 | N138: 0 | O138: 0 | P138: 0 | Q138: =SUM(E138:P138) -> 0
A139: =A138+1 -> 10 | C139: Volumes [1] | E139: =E550 -> 0 | F139: 0 | G139: 0 | H139: 0 | I139: 0 | J139: 0 | K139: 0 | L139: 0 | M139: 0 | N139: 0 | O139: 0 | P139: 0 | Q139: =SUM(E139:P139) -> 0
A140: =A139+1 -> 11 | C140: Revenue Less Gas Cost | E140: =E553 -> 0 | F140: 0 | G140: 0 | H140: 0 | I140: 0 | J140: 0 | K140: 0 | L140: 0 | M140: 0 | N140: 0 | O140: 0 | P140: 0 | Q140: =SUM(E140:P140) -> 0
A141: =A140+1 -> 12 | C141: Gas Cost | E141: =E555 -> 0 | F141: 0 | G141: 0 | H141: 0 | I141: 0 | J141: 0 | K141: 0 | L141: 0 | M141: 0 | N141: 0 | O141: 0 | P141: 0 | Q141: =SUM(E141:P141) -> 0
A142: =A141+1 -> 13 | C142: Total Revenue [2] | E142: =E557 -> 0 | F142: 0 | G142: 0 | H142: 0 | I142: 0 | J142: 0 | K142: 0 | L142: 0 | M142: 0 | N142: 0 | O142: 0 | P142: 0 | Q142: =SUM(E142:P142) -> 0
A144: =A142+1 -> 14 | B144: =Input!A28 -> LG3 | C144: ='Sch M 2.1'!B27 -> LG&E Residential
A145: =A144+1 -> 15 | C145: Bills | E145: =E580 -> 1 | F145: 1 | G145: 1 | H145: 1 | I145: 1 | J145: 1 | K145: 1 | L145: 1 | M145: 1 | N145: 1 | O145: 1 | P145: 1 | Q145: =SUM(E145:P145) -> 12
A146: =A145+1 -> 16 | C146: Volumes [1] | E146: =E586 -> 95.8 | F146: 68.3 | G146: 38 | H146: 31 | I146: 13.1 | J146: 10.6 | K146: 10 | L146: 9.5 | M146: 9.9 | N146: 21.3 | O146: 40.1 | P146: 68.7 | Q146: =SUM(E146:P146) -> 416.3
A147: =A146+1 -> 17 | C147: Revenue Less Gas Cost | E147: =E592 -> 34.03 | F147: 24.41 | G147: 13.8 | H147: 11.35 | I147: 5.09 | J147: 4.07 | K147: 4 | L147: 3.83 | M147: 3.97 | N147: 7.96 | O147: 14.54 | P147: 24.55 | Q147: =SUM(E147:P147) -> 151.6
A148: =A147+1 -> 18 | C148: Gas Cost | E148: =E594 -> 0 | F148: 0 | G148: 0 | H148: 0 | I148: 0 | J148: 0 | K148: 0 | L148: 0 | M148: 0 | N148: 0 | O148: 0 | P148: 0 | Q148: =SUM(E148:P148) -> 0
A149: =A148+1 -> 19 | C149: Total Revenue [2] | E149: =E596 -> 34.03 | F149: 24.41 | G149: 13.8 | H149: 11.35 | I149: 5.09 | J149: 4.07 | K149: 4 | L149: 3.83 | M149: 3.97 | N149: 7.96 | O149: 14.54 | P149: 24.55 | Q149: =SUM(E149:P149) -> 151.6
A151: =A149+1 -> 20 | B151: =Input!A29 -> LG4 | C151: ='Sch M 2.1'!B28 -> LG&E Residential
A152: =A151+1 -> 21 | C152: Bills | E152: =E603 -> 0 | F152: 0 | G152: 0 | H152: 0 | I152: 0 | J152: 0 | K152: 0 | L152: 0 | M152: 0 | N152: 0 | O152: 0 | P152: 0 | Q152: =SUM(E152:P152) -> 0
A153: =A152+1 -> 22 | C153: Volumes [1] | E153: =E606 -> 0 | F153: 0 | G153: 0 | H153: 0 | I153: 0 | J153: 0 | K153: 0 | L153: 0 | M153: 0 | N153: 0 | O153: 0 | P153: 0 | Q153: =SUM(E153:P153) -> 0
A154: =A153+1 -> 23 | C154: Revenue Less Gas Cost | E154: =E609 -> 0 | F154: 0 | G154: 0 | H154: 0 | I154: 0 | J154: 0 | K154: 0 | L154: 0 | M154: 0 | N154: 0 | O154: 0 | P154: 0 | Q154: =SUM(E154:P154) -> 0
A155: =A154+1 -> 24 | C155: Gas Cost | E155: =E611 -> 0 | F155: 0 | G155: 0 | H155: 0 | I155: 0 | J155: 0 | K155: 0 | L155: 0 | M155: 0 | N155: 0 | O155: 0 | P155: 0 | Q155: =SUM(E155:P155) -> 0
A156: =A155+1 -> 25 | C156: Total Revenue [2] | E156: =E613 -> 0 | F156: 0 | G156: 0 | H156: 0 | I156: 0 | J156: 0 | K156: 0 | L156: 0 | M156: 0 | N156: 0 | O156: 0 | P156: 0 | Q156: =SUM(E156:P156) -> 0
A158: =A156+1 -> 26 | B158: =Input!A30 -> GSO | C158: ='Sch M 2.1'!B29 -> General Service - Commercial
A159: =A158+1 -> 27 | C159: Bills | E159: =E636 -> 12259 | F159: 12323 | G159: 12346 | H159: 12339 | I159: 12284 | J159: 12155 | K159: 12013 | L159: 11999 | M159: 11918 | N159: 11902 | O159: 12109 | P159: 12279 | Q159: =SUM(E159:P159) -> 145926
A160: =A159+1 -> 28 | C160: Volumes [1] | E160: =E644 -> 809616.8 | F160: 800776.3 | G160: 594307.5 | H160: 383921.9 | I160: 216993.8 | J160: 152752 | K160: 123116.2 | L160: 130648.3 | M160: 128433.3 | N160: 168727.9 | O160: 300582.7 | P160: 609356.4 | Q160: =SUM(E160:P160) -> 4419233.1
A161: =A160+1 -> 29 | C161: Revenue Less Gas Cost | E161: =E654+E662 -> 3822113.43 | F161: 3808368.25 | G161: 3200889.62 | H161: 2561766.5 | I161: 2029140.86 | J161: 1814719.05 | K161: 1708876.98 | L161: 1728100.82 | M161: 1714400.64 | N161: 1831476.69 | O161: 2279172.45 | P161: 3239954.95 | Q161: =SUM(E161:P161) -> 29738980.24
A162: =A161+1 -> 30 | C162: Gas Cost | E162: =E656 -> 5481510.54 | F162: 5421655.94 | G162: 4023758.93 | H162: 2599343.22 | I162: 1469156.52 | J162: 1034207.42 | K162: 833558.23 | L162: 884554.32 | M162: 869557.66 | N162: 1142372.25 | O162: 2035095.17 | P162: 4125647.51 | Q162: =SUM(E162:P162) -> 29920417.71
A163: =A162+1 -> 31 | C163: Total Revenue [2] | E163: =E664 -> 9303623.97 | F163: 9230024.19 | G163: 7224648.55 | H163: 5161109.72 | I163: 3498297.38 | J163: 2848926.47 | K163: 2542435.21 | L163: 2612655.14 | M163: 2583958.3 | N163: 2973848.94 | O163: 4314267.62 | P163: 7365602.46 | Q163: =SUM(E163:P163) -> 59659397.95
A166: =$A$109 -> [1] Reflects Normalized Volumes.
A167: =$A$110 -> [2] See Schedule M-2.2 Pages 8 through 20 for detail.
A168: =CONAME -> Columbia Gas of Kentucky, Inc.
A169: =case -> Case No. 2026-00099
A170: Annualized Test Year Revenues at Current Rates
A171: =TYDESC -> For the 12 Months Ended December 31, 2027
A172: (Gas Service)
A173: =$A$53 -> Data: __ Base Period _X_ Forecasted Period
A174: =$A$54 -> Type of Filing: X Original _ Update _ Revised | Q174: =$Q$54 -> Schedule M-2.2
A175: =$A$55 -> Work Paper Reference No(s): | Q175: Page 4 of 20
A176: =$A$56 -> 12 Months Forecasted | Q176: =Witness -> Witness: J. C. Wozniak
A177: Current Annualized
A180: Line | B180: Rate | C180: Class/ | D180: Current
A181: No. | B181: Code | C181: Description | D181: Rates | E181: =B!$D$11 -> Jan-27 | F181: =B!$E$11 -> Feb-27 | G181: =B!$F$11 -> Mar-27 | H181: =B!$G$11 -> Apr-27 | I181: =B!$H$11 -> May-27 | J181: =B!$I$11 -> Jun-27 | K181: =B!$J$11 -> Jul-27 | L181: =B!$K$11 -> Aug-27 | M181: =B!$L$11 -> Sep-27 | N181: =B!$M$11 -> Oct-27 | O181: =B!$N$11 -> Nov-27 | P181: =B!$O$11 -> Dec-27 | Q181: Total
B182: (A) | C182: (B) | D182: (C) | E182: (D) | F182: (E) | G182: (F) | H182: (G) | I182: (H) | J182: (I) | K182: (J) | L182: (K) | M182: (L) | N182: (M) | O182: (N) | P182: (O) | Q182: (P)
A184: 1 | C184: Sales Service
A186: =A184+1 -> 2 | B186: =Input!A31 -> GSO | C186: ='Sch M 2.1'!B30 -> General Service - Industrial
A187: =A186+1 -> 3 | C187: Bills | E187: =E688 -> 50 | F187: 50 | G187: 50 | H187: 52 | I187: 50 | J187: 50 | K187: 48 | L187: 50 | M187: 50 | N187: 50 | O187: 51 | P187: 50 | Q187: =SUM(E187:P187) -> 601
A188: =A187+1 -> 4 | C188: Volumes [1] | E188: =E696 -> 32462.3 | F188: 31230 | G188: 27627 | H188: 25457.9 | I188: 20992 | J188: 18363.9 | K188: 12873 | L188: 14733.3 | M188: 13970.3 | N188: 15556.9 | O188: 23447.8 | P188: 31351.9 | Q188: =SUM(E188:P188) -> 268066.3
A189: =A188+1 -> 5 | C189: Revenue Less Gas Cost | E189: =E706+E714 -> 92674.18 | F189: 89582.99 | G189: 80510.36 | H189: 74774.01 | I189: 61804.87 | J189: 54248.72 | K189: 39987.2 | L189: 44835.71 | M189: 43102.68 | N189: 47377.95 | O189: 69095.12 | P189: 90005.24 | Q189: =SUM(E189:P189) -> 787999.03
A190: =A189+1 -> 6 | C190: Gas Cost | E190: =E708 -> 219786 | F190: 211442.72 | G190: 187048.6 | H190: 172362.71 | I190: 142126.34 | J190: 124332.78 | K190: 87156.65 | L190: 99751.81 | M190: 94585.92 | N190: 105327.99 | O190: 158753.33 | P190: 212268.04 | Q190: =SUM(E190:P190) -> 1814942.89
A191: =A190+1 -> 7 | C191: Total Revenue [2] | E191: =E716 -> 312460.18 | F191: 301025.71 | G191: 267558.96 | H191: 247136.72 | I191: 203931.21 | J191: 178581.5 | K191: 127143.85 | L191: 144587.52 | M191: 137688.6 | N191: 152705.94 | O191: 227848.45 | P191: 302273.28 | Q191: =SUM(E191:P191) -> 2602941.92
A193: =A191+1 -> 8 | B193: =Input!A36 -> IS | C193: ='Sch M 2.1'!B31 -> Interruptible Service - Industrial
A194: =A193+1 -> 9 | C194: Bills | E194: =E741 -> 0 | F194: 0 | G194: 0 | H194: 0 | I194: 0 | J194: 0 | K194: 0 | L194: 0 | M194: 0 | N194: 0 | O194: 0 | P194: 0 | Q194: =SUM(E194:P194) -> 0
A195: =A194+1 -> 10 | C195: Volumes [1] | E195: =E748 -> 0 | F195: 0 | G195: 0 | H195: 0 | I195: 0 | J195: 0 | K195: 0 | L195: 0 | M195: 0 | N195: 0 | O195: 0 | P195: 0 | Q195: =SUM(E195:P195) -> 0
A196: =A195+1 -> 11 | C196: Revenue Less Gas Cost | E196: =E757+E765 -> 0 | F196: 0 | G196: 0 | H196: 0 | I196: 0 | J196: 0 | K196: 0 | L196: 0 | M196: 0 | N196: 0 | O196: 0 | P196: 0 | Q196: =SUM(E196:P196) -> 0
A197: =A196+1 -> 12 | C197: Gas Cost | E197: =E759 -> 0 | F197: 0 | G197: 0 | H197: 0 | I197: 0 | J197: 0 | K197: 0 | L197: 0 | M197: 0 | N197: 0 | O197: 0 | P197: 0 | Q197: =SUM(E197:P197) -> 0
A198: =A197+1 -> 13 | C198: Total Revenue [2] | E198: =E767 -> 0 | F198: 0 | G198: 0 | H198: 0 | I198: 0 | J198: 0 | K198: 0 | L198: 0 | M198: 0 | N198: 0 | O198: 0 | P198: 0 | Q198: =SUM(E198:P198) -> 0
A200: =A198+1 -> 14 | B200: =Input!A37 -> IUS | C200: ='Sch M 2.1'!B32 -> Intrastate Utility Service - Wholesale
A201: =A200+1 -> 15 | C201: Bills | E201: =E774 -> 2 | F201: 2 | G201: 2 | H201: 2 | I201: 2 | J201: 2 | K201: 2 | L201: 2 | M201: 2 | N201: 2 | O201: 2 | P201: 2 | Q201: =SUM(E201:P201) -> 24
A202: =A201+1 -> 16 | C202: Volumes [1] | E202: =E777 -> 1737 | F202: 2033 | G202: 1295 | H202: 576 | I202: 412 | J202: 320 | K202: 248 | L202: 259 | M202: 310 | N202: 470 | O202: 950 | P202: 1991 | Q202: =SUM(E202:P202) -> 10601
A203: =A202+1 -> 17 | C203: Revenue Less Gas Cost | E203: =E782+E790 -> 4263.03 | F203: 4602.66 | G203: 3755.88 | H203: 2930.9 | I203: 2742.73 | J203: 2637.17 | K203: 2554.56 | L203: 2567.18 | M203: 2625.69 | N203: 2809.28 | O203: 3360.03 | P203: 4554.47 | Q203: =SUM(E203:P203) -> 39403.58
A204: =A203+1 -> 18 | C204: Gas Cost | E204: =E784 -> 11760.36 | F204: 13764.43 | G204: 8767.8 | H204: 3899.81 | I204: 2789.45 | J204: 2166.56 | K204: 1679.08 | L204: 1753.56 | M204: 2098.86 | N204: 3182.14 | O204: 6431.98 | P204: 13480.07 | Q204: =SUM(E204:P204) -> 71774.1
A205: =A204+1 -> 19 | C205: Total Revenue [2] | E205: =E792 -> 16023.39 | F205: 18367.09 | G205: 12523.68 | H205: 6830.71 | I205: 5532.18 | J205: 4803.73 | K205: 4233.64 | L205: 4320.74 | M205: 4724.55 | N205: 5991.42 | O205: 9792.01 | P205: 18034.54 | Q205: =SUM(E205:P205) -> 111177.68
A208: =$A$109 -> [1] Reflects Normalized Volumes.
A209: =$A$110 -> [2] See Schedule M-2.2 Pages 8 through 20 for detail.
A210: =CONAME -> Columbia Gas of Kentucky, Inc.
A211: =case -> Case No. 2026-00099
A212: Annualized Test Year Revenues at Current Rates
A213: =TYDESC -> For the 12 Months Ended December 31, 2027
A214: (Gas Service)
A215: =$A$53 -> Data: __ Base Period _X_ Forecasted Period
A216: =$A$54 -> Type of Filing: X Original _ Update _ Revised | Q216: =$Q$54 -> Schedule M-2.2
A217: =$A$55 -> Work Paper Reference No(s): | Q217: Page 5 of 20
A218: =$A$56 -> 12 Months Forecasted | Q218: =Witness -> Witness: J. C. Wozniak
A219: Current Annualized
A222: Line | B222: Rate | C222: Class/ | D222: Current
A223: No. | B223: Code | C223: Description | D223: Rates | E223: =B!$D$11 -> Jan-27 | F223: =B!$E$11 -> Feb-27 | G223: =B!$F$11 -> Mar-27 | H223: =B!$G$11 -> Apr-27 | I223: =B!$H$11 -> May-27 | J223: =B!$I$11 -> Jun-27 | K223: =B!$J$11 -> Jul-27 | L223: =B!$K$11 -> Aug-27 | M223: =B!$L$11 -> Sep-27 | N223: =B!$M$11 -> Oct-27 | O223: =B!$N$11 -> Nov-27 | P223: =B!$O$11 -> Dec-27 | Q223: Total
B224: (A) | C224: (B) | D224: (C) | E224: (D) | F224: (E) | G224: (F) | H224: (G) | I224: (H) | J224: (I) | K224: (J) | L224: (K) | M224: (L) | N224: (M) | O224: (N) | P224: (O) | Q224: (P)
A226: 1 | C226: Transportation Service
A228: =A226+1 -> 2 | B228: =Input!A41 -> GTR | C228: ='Sch M 2.1'!B36 -> GTS Choice - Residential
A229: =A228+1 -> 3 | C229: Bills | E229: =E816 -> 10067 | F229: 10082 | G229: 10096 | H229: 10088 | I229: 10084 | J229: 10089 | K229: 10088 | L229: 10098 | M229: 10085 | N229: 10089 | O229: 10088 | P229: 10084 | Q229: =SUM(E229:P229) -> 121038
A230: =A229+1 -> 4 | C230: Volumes [1] | E230: =E819 -> 149336.7 | F230: 143923.5 | G230: 110860.6 | H230: 68262.7 | I230: 30289.8 | J230: 14748.6 | K230: 8535.4 | L230: 8539.5 | M230: 8611.3 | N230: 16362.3 | O230: 46480.2 | P230: 111402.2 | Q230: =SUM(E230:P230) -> 717352.8
A231: =A230+1 -> 5 | C231: Revenue Less Gas Cost | E231: =E824+E833 -> 1211603.75 | F231: 1175898.87 | G231: 956141.51 | H231: 672445.44 | I231: 419618.93 | J231: 316287.92 | K231: 274912.47 | L231: 275155.96 | M231: 275352.79 | N231: 327028.38 | O231: 527465.47 | P231: 959486.84 | Q231: =SUM(E231:P231) -> 7391398.33
A232: =A231+1 -> 6 | C232: Gas Cost | E232: =E826 -> 0 | F232: 0 | G232: 0 | H232: 0 | I232: 0 | J232: 0 | K232: 0 | L232: 0 | M232: 0 | N232: 0 | O232: 0 | P232: 0 | Q232: =SUM(E232:P232) -> 0
A233: =A232+1 -> 7 | C233: Total Revenue [2] | E233: =E835 -> 1211603.75 | F233: 1175898.87 | G233: 956141.51 | H233: 672445.44 | I233: 419618.93 | J233: 316287.92 | K233: 274912.47 | L233: 275155.96 | M233: 275352.79 | N233: 327028.38 | O233: 527465.47 | P233: 959486.84 | Q233: =SUM(E233:P233) -> 7391398.33
A235: =A233+1 -> 8 | B235: =Input!A42 -> GTO | C235: ='Sch M 2.1'!B37 -> GTS Choice - Commercial
A236: =A235+1 -> 9 | C236: Bills | E236: =E842 -> 1749 | F236: 1736 | G236: 1731 | H236: 1727 | I236: 1731 | J236: 1728 | K236: 1720 | L236: 1720 | M236: 1704 | N236: 1705 | O236: 1683 | P236: 1681 | Q236: =SUM(E236:P236) -> 20615
A237: =A236+1 -> 10 | C237: Volumes [1] | E237: =E850 -> 196518.3 | F237: 181767.5 | G237: 142380.7 | H237: 92909.3 | I237: 55266 | J237: 38853.1 | K237: 34467.9 | L237: 26135.1 | M237: 34721.9 | N237: 40285.5 | O237: 75449 | P237: 144919 | Q237: =SUM(E237:P237) -> 1063673.3
A238: =A237+1 -> 11 | C238: Revenue Less Gas Cost | E238: =E860 -> 772760.1 | F238: =F860 -> 731551.22 | G238: 618440.16 | H238: 472821.8 | I238: 358955.77 | J238: 308471.71 | K238: 294270.65 | L238: 270197.36 | M238: 293250.29 | N238: 309626.09 | O238: 416299.14 | P238: 619808.04 | Q238: =SUM(E238:P238) -> 5466452.33
A239: =A238+1 -> 12 | C239: Gas Cost | E239: =E862 -> 0 | F239: 0 | G239: 0 | H239: 0 | I239: 0 | J239: 0 | K239: 0 | L239: 0 | M239: 0 | N239: 0 | O239: 0 | P239: 0 | Q239: =SUM(E239:P239) -> 0
A240: =A239+1 -> 13 | C240: Total Revenue [2] | E240: =E864 -> 772760.1 | F240: 731551.22 | G240: 618440.16 | H240: 472821.8 | I240: 358955.77 | J240: 308471.71 | K240: 294270.65 | L240: 270197.36 | M240: 293250.29 | N240: 309626.09 | O240: 416299.14 | P240: 619808.04 | Q240: =SUM(E240:P240) -> 5466452.33
A242: =A240+1 -> 14 | B242: =Input!A43 -> GTO | C242: ='Sch M 2.1'!B38 -> GTS Choice - Industrial
A243: =A242+1 -> 15 | C243: Bills | E243: =E888 -> 14 | F243: 14 | G243: 14 | H243: 14 | I243: 14 | J243: 14 | K243: 14 | L243: 13 | M243: 13 | N243: 13 | O243: 13 | P243: 13 | Q243: =SUM(E243:P243) -> 163
A244: =A243+1 -> 16 | C244: Volumes [1] | E244: =E896 -> 10236.3 | F244: 9957.1 | G244: 8529 | H244: 8033 | I244: 5250 | J244: 3491.9 | K244: 2540.8 | L244: 2631 | M244: 2575.9 | N244: 4078 | O244: 7077.9 | P244: 10999.2 | Q244: =SUM(E244:P244) -> 75400.1
A245: =A244+1 -> 17 | C245: Revenue Less Gas Cost | E245: =E906 -> 29134.31 | F245: =F906 -> 28534.76 | G245: 25085.93 | H245: 23733.76 | I245: 16246.88 | J245: 11499.94 | K245: 8757.2 | L245: 8887.77 | M245: 8843.89 | N245: 12897.99 | O245: 20746.45 | P245: 30708.13 | Q245: =SUM(E245:P245) -> 225077.01
A246: =A245+1 -> 18 | C246: Gas Cost | E246: =E908 -> 0 | F246: 0 | G246: 0 | H246: 0 | I246: 0 | J246: 0 | K246: 0 | L246: 0 | M246: 0 | N246: 0 | O246: 0 | P246: 0 | Q246: =SUM(E246:P246) -> 0
A247: =A246+1 -> 19 | C247: Total Revenue [2] | E247: =E910 -> 29134.31 | F247: 28534.76 | G247: 25085.93 | H247: 23733.76 | I247: 16246.88 | J247: 11499.94 | K247: 8757.2 | L247: 8887.77 | M247: 8843.89 | N247: 12897.99 | O247: 20746.45 | P247: 30708.13 | Q247: =SUM(E247:P247) -> 225077.01
A249: =A247+1 -> 20 | B249: =Input!A44 -> DS | C249: ='Sch M 2.1'!B39 -> GTS Delivery Service - Commercial
A250: =A249+1 -> 21 | C250: Bills | E250: =E934 -> 22 | F250: 22 | G250: 22 | H250: 24 | I250: 22 | J250: 24 | K250: 22 | L250: 22 | M250: 22 | N250: 22 | O250: 22 | P250: 22 | Q250: =SUM(E250:P250) -> 268
A251: =A250+1 -> 22 | C251: Volumes [1] | E251: =E941 -> 379752.7 | F251: 320398.8 | G251: 297776.2 | H251: 234622 | I251: 195433.5 | J251: 164680.8 | K251: 165823.6 | L251: 168779 | M251: 171913.5 | N251: 216377.6 | O251: 278292.5 | P251: 321976.3 | Q251: =SUM(E251:P251) -> 2915826.5
A252: =A251+1 -> 23 | C252: Revenue Less Gas Cost | E252: =E950 -> 378301.27 | F252: =F950 -> 343683.3 | G252: 328334.52 | H252: 296474.93 | I252: 261320.77 | J252: 252041.16 | K252: 241837.78 | L252: 243883.86 | M252: 246046.78 | N252: 274443.33 | O252: 314249.37 | P252: 344454.53 | Q252: =SUM(E252:P252) -> 3525071.6
... 651 more rows

Sheet Sch M 2.3
A1: =CONAME -> Columbia Gas of Kentucky, Inc.
A2: =case -> Case No. 2026-00099
A3: Annualized Test Year Revenues at Proposed Rates
A4: =TYDESC -> For the 12 Months Ended December 31, 2027
A5: (Gas Service)
A6: =$A$53 -> Data: __ Base Period _X_ Forecasted Period
A7: =$A$54 -> Type of Filing: X Original _ Update _ Revised | Q7: =$Q$54 -> Schedule M-2.3
A8: =$A$55 -> Work Paper Reference No(s): | Q8: Page 1 of 20
A9: =$A$56 -> 12 Months Forecasted | Q9: =Witness -> Witness: J. C. Wozniak
A10: Proposed Annualized
A12: Line | B12: FERC | C12: Class/ | D12: Proposed
A13: No. | B13: Acct | C13: Description | D13: Rates | E13: =B!$D$11 -> Jan-27 | F13: =B!$E$11 -> Feb-27 | G13: =B!$F$11 -> Mar-27 | H13: =B!$G$11 -> Apr-27 | I13: =B!$H$11 -> May-27 | J13: =B!$I$11 -> Jun-27 | K13: =B!$J$11 -> Jul-27 | L13: =B!$K$11 -> Aug-27 | M13: =B!$L$11 -> Sep-27 | N13: =B!$M$11 -> Oct-27 | O13: =B!$N$11 -> Nov-27 | P13: =B!$O$11 -> Dec-27 | Q13: Total
B14: (A) | C14: (B) | D14: (C) | E14: (D) | F14: (E) | G14: (F) | H14: (G) | I14: (H) | J14: (I) | K14: (J) | L14: (K) | M14: (L) | N14: (M) | O14: (N) | P14: (O) | Q14: (P)
A16: 1 | C16: Operating Revenue
A18: =A16+1 -> 2 | C18: Sales of Gas
A19: =A18+1 -> 3 | B19: 480 | C19: Residential Sales Revenue | E19: =E70+E84+E91+E98+E105+E132+E146+E153 -> 24903413.41 | F19: 24436423.97 | G19: 19442469.83 | H19: 13148602.44 | I19: 7995200.52 | J19: 5883054.72 | K19: 5046216.84 | L19: =L70+L84+L91+L98+L105+L132+L146+L153 -> 5021498.4 | M19: 5146765.86 | N19: 5989865.07 | O19: 9930928.24 | P19: 19198260.36 | Q19: =SUM(E19:P19) -> 146142699.7
A20: =A19+1 -> 4 | B20: 481.1 | C20: Commercial Sales Revenue | E20: =E77+E139+E160 -> 9995998.97 | F20: =F77+F139+F160 -> 9923288.34 | G20: 7856664.75 | H20: 5725544.42 | I20: 4002462.29 | J20: 3326715.25 | K20: 3005695.07 | L20: 3077323.9 | M20: 3045555.89 | N20: 3446944.37 | O20: 4842894.67 | P20: 8000565.75 | Q20: =SUM(E20:P20) -> 66249653.67
A21: =A20+1 -> 5 | B21: 481.2 | C21: Industrial Sales Revenue | E21: =E187+E194 -> 321827.39 | F21: 310157.19 | G21: 275992.64 | H21: 255099.24 | I21: 210590.51 | J21: 184501.99 | K21: 131878.3 | L21: 149738.56 | M21: 142737.97 | N21: 158131.17 | O21: 235262.44 | P21: 311456.62 | Q21: =SUM(E21:P21) -> 2687374.02
A22: =A21+1 -> 6 | B22: 481.3 | C22: Other Sales Revenue | E22: 0 | F22: 0 | G22: 0 | H22: 0 | I22: 0 | J22: 0 | K22: 0 | L22: 0 | M22: 0 | N22: 0 | O22: 0 | P22: 0 | Q22: 0
A23: 7 | B23: 483 | C23: Public Utilities | E23: =E201 -> 16534.7 | F23: 18817.28 | G23: 13126.27 | H23: 7581.76 | I23: 6317.1 | J23: 5607.65 | K23: 5052.42 | L23: 5137.25 | M23: 5530.54 | N23: 6764.37 | O23: 10465.84 | P23: 18493.03 | Q23: =SUM(E23:P23) -> 119428.21
A24: =A23+1 -> 8 | C24: Total Sales of Gas | E24: =SUM(E19:E23) -> 35237774.47 | F24: 34688686.78 | G24: 27588253.49 | H24: 19136827.86 | I24: 12214570.42 | J24: 9399879.61 | K24: 8188842.63 | L24: 8253698.11 | M24: 8340590.26 | N24: 9601704.98 | O24: 15019551.19 | P24: 27528775.76 | Q24: =SUM(E24:P24) -> 215199155.6
A26: =A24+1 -> 9 | C26: Other Operating Revenue
A27: =A26+1 -> 10 | B27: 489 | C27: Transportation Revenue - Residential | E27: =E228 -> 1362743.37 | F27: 1325643.99 | G27: 1096534.84 | H27: 800510.14 | I27: 536727.22 | J27: 428983.41 | K27: 385811.55 | L27: 386163.72 | M27: 386241.43 | N27: 440187.65 | O27: 649269.88 | P27: 1099906.84 | Q27: =SUM(E27:P27) -> 8898724.04
A28: =A27+1 -> 11 | B28: 489 | C28: Transportation Revenue - Commercial | E28: =E235+E249+E263+E346 -> 1444170.14 | F28: =F235+F249+F263+F346 -> 1347536.96 | G28: 1192764.14 | H28: 997916.31 | I28: 811425.34 | J28: 742671.92 | K28: 706161.52 | L28: 682626.59 | M28: 709937.52 | N28: 765273.31 | O28: 940264.4 | P28: =P235+P249+P263+P346 -> 1219647.04 | Q28: =SUM(E28:P28) -> 11560395.19
A29: 12 | B29: 489 | C29: Transportation Revenue - Industrial | E29: =E242+E256+E291+E298+E305+E312+E319 -> 934901.18 | F29: =F242+F256+F291+F298+F305+F312+F319 -> 871327.74 | G29: 856437.54 | H29: 807338.48 | I29: 774696.65 | J29: 744458.27 | K29: 650446.27 | L29: 746332.39 | M29: 750253.66 | N29: 809153.13 | O29: 830134.01 | P29: 867877.58 | Q29: 9643356.9
A30: 13 | B30: 487 | C30: Forfeited Discounts | E30: =E352 -> 17542.44888 | F30: 23759.59253 | G30: 25028.6047 | H30: 17844.42954 | I30: 12587.98986 | J30: 9719.595927 | K30: 6886.923867 | L30: 6957.745256 | M30: 5912.767437 | N30: 6268.421807 | O30: 7282.693784 | P30: 10208.78642 | Q30: 150000
A31: 14 | B31: 488 | C31: Miscellaneous Service Revenue | E31: =E353 -> 9705.478056 | F31: 9705.478056 | G31: 9705.478056 | H31: 9705.478056 | I31: 9705.478056 | J31: 9705.478056 | K31: 9705.478056 | L31: 9705.478056 | M31: 9705.478056 | N31: 9705.478056 | O31: 9705.478056 | P31: 9705.478056 | Q31: 116465.7367
A32: 15 | B32: 493 | C32: Rent from Gas Property | E32: =E354 -> 6169.5 | F32: 6169.5 | G32: 6169.5 | H32: 6169.5 | I32: 6169.5 | J32: 6169.5 | K32: 6169.5 | L32: 6169.5 | M32: 6169.5 | N32: 6169.5 | O32: 6169.5 | P32: 6169.5 | Q32: 74034
A33: 16 | B33: 495 | C33: Non-Traditional Sales | E33: =E355 -> 0 | F33: 0 | G33: 0 | H33: 0 | I33: 0 | J33: 0 | K33: 0 | L33: 0 | M33: 0 | N33: 0 | O33: 0 | P33: 0 | Q33: 0
A34: 17 | B34: 495 | C34: Other Gas Revenues - Other | E34: =E356 -> 26874.49 | F34: 26188.37667 | G34: 19697.20333 | H34: 19045.08 | I34: 14345.24333 | J34: 9620.05 | K34: 9150.13 | L34: 3197.71 | M34: 8924.13 | N34: 10230.16 | O34: 12686 | P34: 20166.11667 | Q34: 180124.69
A35: 18 | C35: Total Other Operating Revenue | E35: =SUM(E27:E34) -> 3802106.607 | F35: 3610331.637 | G35: 3206337.306 | H35: 2658529.418 | I35: 2165657.421 | J35: 1951328.224 | K35: 1774331.372 | L35: 1841153.133 | M35: 1877144.485 | N35: 2046987.65 | O35: 2455511.962 | P35: 3233681.341 | Q35: 30623100.56
A37: =A35+1 -> 19 | C37: Total Operating Revenue | E37: =E24+E35 -> 39039881.08 | F37: 38299018.42 | G37: 30794590.8 | H37: 21795357.28 | I37: 14380227.84 | J37: 11351207.83 | K37: 9963174.002 | L37: 10094851.24 | M37: 10217734.75 | N37: 11648692.63 | O37: 17475063.15 | P37: 30762457.1 | Q37: =SUM(E37:P37) -> 245822256.1
A48: =CONAME -> Columbia Gas of Kentucky, Inc.
A49: =case -> Case No. 2026-00099
A50: Annualized Test Year Revenues at Proposed Rates
A51: =TYDESC -> For the 12 Months Ended December 31, 2027
A52: (Gas Service)
A53: Data: __ Base Period _X_ Forecasted Period
A54: Type of Filing: X Original _ Update _ Revised | Q54: Schedule M-2.3
A55: Work Paper Reference No(s): | Q55: Page 2 of 20
A56: 12 Months Forecasted | Q56: =Witness -> Witness: J. C. Wozniak
A57: Proposed Annualized
A59: Line | B59: Rate | C59: Class/ | D59: Proposed
A60: No. | B60: Code | C60: Description | D60: Rates | E60: =B!$D$11 -> Jan-27 | F60: =B!$E$11 -> Feb-27 | G60: =B!$F$11 -> Mar-27 | H60: =B!$G$11 -> Apr-27 | I60: =B!$H$11 -> May-27 | J60: =B!$I$11 -> Jun-27 | K60: =B!$J$11 -> Jul-27 | L60: =B!$K$11 -> Aug-27 | M60: =B!$L$11 -> Sep-27 | N60: =B!$M$11 -> Oct-27 | O60: =B!$N$11 -> Nov-27 | P60: =B!$O$11 -> Dec-27 | Q60: Total
B61: (A) | C61: (B) | D61: (C) | E61: (D) | F61: (E) | G61: (F) | H61: (G) | I61: (H) | J61: (I) | K61: (J) | L61: (K) | M61: (L) | N61: (M) | O61: (N) | P61: (O) | Q61: (P)
A63: 1 | C63: Sales Service
A65: =A63+1 -> 2 | B65: =Input!A19 -> GSR | C65: ='Sch M 2.1'!B19 -> General Service - Residential
A66: =A65+1 -> 3 | C66: Bills | E66: =E384 -> 116292 | F66: 116620 | G66: 116834 | H66: 116716 | I66: 116306 | J66: 115579 | K66: 114853 | L66: 114532 | M66: 114121 | N66: 114303 | O66: 115298 | P66: 116181 | Q66: =SUM(E66:P66) -> 1387635
A67: =A66+1 -> 4 | C67: Volumes [1] | E67: =E387 -> 1539508.5 | F67: 1504722.5 | G67: 1140517.2 | H67: 682423.5 | I67: 308086.1 | J67: 155975.3 | K67: 96742.5 | L67: 95698.7 | M67: 105791.5 | N67: 166763.7 | O67: 451434.4 | P67: 1124299.3 | Q67: =SUM(E67:P67) -> 7371963.2
A68: =A67+1 -> 5 | C68: Revenue Less Gas Cost | E68: =E392+E402 -> 14478889.35 | F68: 14247406.58 | G68: 11719574.13 | H68: 8527559.76 | I68: 5909012.05 | J68: 4826833.52 | K68: 4391090.39 | L68: 4373435.08 | M68: 4430373.87 | N68: 4860613.43 | O68: 6874044.26 | P68: 11585284.65 | Q68: =SUM(E68:P68) -> 96224117.07
A69: =A68+1 -> 6 | C69: Gas Cost | E69: =E394 -> 10423242.3 | F69: 10187723.69 | G69: 7721871.7 | H69: 4620348.31 | I69: 2085896.94 | J69: 1056030.77 | K69: 654995.1 | L69: 647928.05 | M69: 716261.35 | N69: 1129073.63 | O69: 3056436.61 | P69: 7612068.41 | Q69: =SUM(E69:P69) -> 49911876.86
A70: =A69+1 -> 7 | C70: Total Revenue [2] | E70: =E404 -> 24902131.65 | F70: 24435130.27 | G70: 19441445.83 | H70: 13147908.07 | I70: 7994908.99 | J70: 5882864.29 | K70: 5046085.49 | L70: 5021363.13 | M70: 5146635.22 | N70: 5989687.06 | O70: 9930480.87 | P70: 19197353.06 | Q70: =SUM(E70:P70) -> 146135993.9
A72: =A70+1 -> 8 | B72: =Input!A20 -> G1C | C72: ='Sch M 2.1'!B20 -> LG&E Commercial
A73: =A72+1 -> 9 | C73: Bills | E73: =E411 -> 0 | F73: 0 | G73: 0 | H73: 0 | I73: 0 | J73: 0 | K73: 0 | L73: 0 | M73: 0 | N73: 0 | O73: 0 | P73: 0 | Q73: =SUM(E73:P73) -> 0
A74: =A73+1 -> 10 | C74: Volumes [1] | E74: =E414 -> 0 | F74: 0 | G74: 0 | H74: 0 | I74: 0 | J74: 0 | K74: 0 | L74: 0 | M74: 0 | N74: 0 | O74: 0 | P74: 0 | Q74: =SUM(E74:P74) -> 0
A75: =A74+1 -> 11 | C75: Revenue Less Gas Cost | E75: =E417 -> 0 | F75: 0 | G75: 0 | H75: 0 | I75: 0 | J75: 0 | K75: 0 | L75: 0 | M75: 0 | N75: 0 | O75: 0 | P75: 0 | Q75: =SUM(E75:P75) -> 0
A76: =A75+1 -> 12 | C76: Gas Cost | E76: =E419 -> 0 | F76: 0 | G76: 0 | H76: 0 | I76: 0 | J76: 0 | K76: 0 | L76: 0 | M76: 0 | N76: 0 | O76: 0 | P76: 0 | Q76: =SUM(E76:P76) -> 0
A77: =A76+1 -> 13 | C77: Total Revenue [2] | E77: =E421 -> 0 | F77: 0 | G77: 0 | H77: 0 | I77: 0 | J77: 0 | K77: 0 | L77: 0 | M77: 0 | N77: 0 | O77: 0 | P77: 0 | Q77: =SUM(E77:P77) -> 0
A79: =A77+1 -> 14 | B79: =Input!A21 -> G1R | C79: ='Sch M 2.1'!B21 -> LG&E Residential
A80: =A79+1 -> 15 | C80: Bills | E80: =E446 -> 3 | F80: 3 | G80: 3 | H80: 3 | I80: 3 | J80: 3 | K80: 3 | L80: 3 | M80: 3 | N80: 3 | O80: 3 | P80: 3 | Q80: =SUM(E80:P80) -> 36
A81: =A80+1 -> 16 | C81: Volumes [1] | E81: =E449 -> 84.5 | F81: 89.9 | G81: 71.5 | H81: 47.8 | I81: 16.6 | J81: 8.9 | K81: 4.4 | L81: 4.7 | M81: 4.3 | N81: 7.2 | O81: 26.9 | P81: 58.8 | Q81: =SUM(E81:P81) -> 425.5
A82: =A81+1 -> 17 | C82: Revenue Less Gas Cost | E82: =E452 -> 525.19 | F82: 554.26 | G82: 455.2 | H82: 327.61 | I82: 159.63 | J82: 118.18 | K82: 93.95 | L82: =L452 -> 95.56 | M82: 93.41 | N82: 109.02 | O82: 215.08 | P82: 386.83 | Q82: =SUM(E82:P82) -> 3133.92
A83: =A82+1 -> 18 | C83: Gas Cost | E83: =E454 -> 572.11 | F83: 608.67 | G83: 484.09 | H83: 323.63 | I83: 112.39 | J83: 60.26 | K83: 29.79 | L83: 31.82 | M83: 29.11 | N83: 48.75 | O83: 182.13 | P83: 398.11 | Q83: =SUM(E83:P83) -> 2880.86
A84: =A83+1 -> 19 | C84: Total Revenue [2] | E84: =E456 -> 1097.3 | F84: 1162.93 | G84: 939.29 | H84: 651.24 | I84: 272.02 | J84: 178.44 | K84: 123.74 | L84: 127.38 | M84: 122.52 | N84: 157.77 | O84: 397.21 | P84: 784.94 | Q84: =SUM(E84:P84) -> 6014.78
A86: =A84+1 -> 20 | B86: =Input!A22 -> IN3 | C86: ='Sch M 2.1'!B22 -> Inland Gas General Service - Residential
A87: =A86+1 -> 21 | C87: Bills | E87: =E463 -> 7 | F87: 7 | G87: 7 | H87: 7 | I87: 7 | J87: 7 | K87: 7 | L87: 7 | M87: 7 | N87: 7 | O87: 7 | P87: 7 | Q87: =SUM(E87:P87) -> 84
A88: =A87+1 -> 22 | C88: Volumes [1] | E88: =E466 -> 188 | F88: 159 | G88: 103.4 | H88: 69.4 | I88: 31.7 | J88: 14 | K88: 6 | L88: 7.1 | M88: 7.7 | N88: 26.3 | O88: 61.6 | P88: 135.8 | Q88: =SUM(E88:P88) -> 810
A89: =A88+1 -> 23 | C89: Revenue Less Gas Cost | E89: =E468 -> 75.2 | F89: 63.6 | G89: 41.36 | H89: 27.76 | I89: 12.68 | J89: 5.6 | K89: 2.4 | L89: 2.84 | M89: 3.08 | N89: 10.52 | O89: 24.64 | P89: 54.32 | Q89: =SUM(E89:P89) -> 324
A90: =A89+1 -> 24 | C90: Gas Cost | E90: =E470 -> 0 | F90: 0 | G90: 0 | H90: 0 | I90: 0 | J90: 0 | K90: 0 | L90: 0 | M90: 0 | N90: 0 | O90: 0 | P90: 0 | Q90: =SUM(E90:P90) -> 0
A91: =A90+1 -> 25 | C91: Total Revenue [2] | E91: =E472 -> 75.2 | F91: 63.6 | G91: 41.36 | H91: 27.76 | I91: 12.68 | J91: 5.6 | K91: 2.4 | L91: 2.84 | M91: 3.08 | N91: 10.52 | O91: 24.64 | P91: 54.32 | Q91: =SUM(E91:P91) -> 324
A93: =A91+1 -> 26 | B93: =Input!A24 -> IN4 | C93: ='Sch M 2.1'!B23 -> Inland Gas General Service - Residential
A94: =A93+1 -> 27 | C94: Bills | E94: =E479 -> 0 | F94: 0 | G94: 0 | H94: 0 | I94: 0 | J94: 0 | K94: 0 | L94: 0 | M94: 0 | N94: 0 | O94: 0 | P94: 0 | Q94: =SUM(E94:P94) -> 0
A95: =A94+1 -> 28 | C95: Volumes [1] | E95: =E482 -> 0 | F95: 0 | G95: 0 | H95: 0 | I95: 0 | J95: 0 | K95: 0 | L95: 0 | M95: 0 | N95: 0 | O95: 0 | P95: 0 | Q95: =SUM(E95:P95) -> 0
A96: =A95+1 -> 29 | C96: Revenue Less Gas Cost | E96: =E484 -> 0 | F96: 0 | G96: 0 | H96: 0 | I96: 0 | J96: 0 | K96: 0 | L96: 0 | M96: 0 | N96: 0 | O96: 0 | P96: 0 | Q96: =SUM(E96:P96) -> 0
A97: =A96+1 -> 30 | C97: Gas Cost | E97: =E486 -> 0 | F97: 0 | G97: 0 | H97: 0 | I97: 0 | J97: 0 | K97: 0 | L97: 0 | M97: 0 | N97: 0 | O97: 0 | P97: 0 | Q97: =SUM(E97:P97) -> 0
A98: =A97+1 -> 31 | C98: Total Revenue [2] | E98: =E488 -> 0 | F98: 0 | G98: 0 | H98: 0 | I98: 0 | J98: 0 | K98: 0 | L98: 0 | M98: 0 | N98: 0 | O98: 0 | P98: 0 | Q98: =SUM(E98:P98) -> 0
A100: =A98+1 -> 32 | B100: =Input!A25 -> IN5 | C100: ='Sch M 2.1'!B24 -> Inland Gas General Service - Residential
A101: =A100+1 -> 33 | C101: Bills | E101: =E512 -> 2 | F101: 2 | G101: 2 | H101: 2 | I101: 2 | J101: 2 | K101: 2 | L101: 2 | M101: 2 | N101: 2 | O101: 2 | P101: 2 | Q101: =SUM(E101:P101) -> 24
A102: =A101+1 -> 34 | C102: Volumes [1] | E102: =E515 -> 47.1 | F102: 21.1 | G102: 10.8 | H102: 6.7 | I102: 2.9 | J102: 0.6 | K102: 0.5 | L102: 0.4 | M102: 0.5 | N102: 0.6 | O102: 4.7 | P102: 23.3 | Q102: =SUM(E102:P102) -> 119.2
A103: =A102+1 -> 35 | C103: Revenue Less Gas Cost | E103: =E517 -> 28.26 | F103: 12.66 | G103: 6.48 | H103: 4.02 | I103: 1.74 | J103: 0.36 | K103: 0.3 | L103: 0.24 | M103: 0.3 | N103: 0.36 | O103: 2.82 | P103: 13.98 | Q103: =SUM(E103:P103) -> 71.52
A104: =A103+1 -> 36 | C104: Gas Cost | E104: =E519 -> 0 | F104: 0 | G104: 0 | H104: 0 | I104: 0 | J104: 0 | K104: 0 | L104: 0 | M104: 0 | N104: 0 | O104: 0 | P104: 0 | Q104: =SUM(E104:P104) -> 0
A105: =A104+1 -> 37 | C105: Total Revenue [2] | E105: =E521 -> 28.26 | F105: 12.66 | G105: 6.48 | H105: 4.02 | I105: 1.74 | J105: 0.36 | K105: 0.3 | L105: 0.24 | M105: 0.3 | N105: 0.36 | O105: 2.82 | P105: 13.98 | Q105: =SUM(E105:P105) -> 71.52
A108: [1] Reflects Normalized Volumes.
A109: [2] See Schedule M-2.3 Pages 8 through 20 for detail.
A110: =CONAME -> Columbia Gas of Kentucky, Inc.
A111: =case -> Case No. 2026-00099
A112: Annualized Test Year Revenues at Proposed Rates
A113: =TYDESC -> For the 12 Months Ended December 31, 2027
A114: (Gas Service)
A115: =$A$53 -> Data: __ Base Period _X_ Forecasted Period
A116: =$A$54 -> Type of Filing: X Original _ Update _ Revised | Q116: =$Q$54 -> Schedule M-2.3
A117: =$A$55 -> Work Paper Reference No(s): | Q117: Page 3 of 20
A118: =$A$56 -> 12 Months Forecasted | Q118: =Witness -> Witness: J. C. Wozniak
A119: Proposed Annualized
A121: Line | B121: Rate | C121: Class/ | D121: Proposed
A122: No. | B122: Code | C122: Description | D122: Rates | E122: =B!$D$11 -> Jan-27 | F122: =B!$E$11 -> Feb-27 | G122: =B!$F$11 -> Mar-27 | H122: =B!$G$11 -> Apr-27 | I122: =B!$H$11 -> May-27 | J122: =B!$I$11 -> Jun-27 | K122: =B!$J$11 -> Jul-27 | L122: =B!$K$11 -> Aug-27 | M122: =B!$L$11 -> Sep-27 | N122: =B!$M$11 -> Oct-27 | O122: =B!$N$11 -> Nov-27 | P122: =B!$O$11 -> Dec-27 | Q122: Total
B123: (A) | C123: (B) | D123: (C) | E123: (D) | F123: (E) | G123: (F) | H123: (G) | I123: (H) | J123: (I) | K123: (J) | L123: (K) | M123: (L) | N123: (M) | O123: (N) | P123: (O) | Q123: (P)
A125: 1 | C125: Sales Service
A127: =A125+1 -> 2 | B127: =Input!A26 -> LG2 | C127: ='Sch M 2.1'!B25 -> LG&E Residential
A128: =A127+1 -> 3 | C128: Bills | E128: =E528 -> 1 | F128: 1 | G128: 1 | H128: 0 | I128: 0 | J128: 1 | K128: 1 | L128: 1 | M128: 1 | N128: 1 | O128: 1 | P128: 1 | Q128: =SUM(E128:P128) -> 10
A129: =A128+1 -> 4 | C129: Volumes [1] | E129: =E531 -> 134.2 | F129: 86 | G129: 65.9 | H129: 0 | I129: 0 | J129: 5.6 | K129: 2.6 | L129: 2.8 | M129: 2.2 | N129: 4 | O129: 23.3 | P129: 84.3 | Q129: =SUM(E129:P129) -> 410.9
A130: =A129+1 -> 5 | C130: Revenue Less Gas Cost | E130: =E534 -> 46.97 | F130: 30.1 | G130: 23.07 | H130: 0 | I130: 0 | J130: 1.96 | K130: 0.91 | L130: 0.98 | M130: 0.77 | N130: =N534 -> 1.4 | O130: 8.16 | P130: 29.51 | Q130: =SUM(E130:P130) -> 143.83
A131: =A130+1 -> 6 | C131: Gas Cost | E131: =E536 -> 0 | F131: 0 | G131: 0 | H131: 0 | I131: 0 | J131: 0 | K131: 0 | L131: 0 | M131: 0 | N131: 0 | O131: 0 | P131: 0 | Q131: =SUM(E131:P131) -> 0
A132: =A131+1 -> 7 | C132: Total Revenue [2] | E132: =E538 -> 46.97 | F132: 30.1 | G132: 23.07 | H132: 0 | I132: 0 | J132: 1.96 | K132: 0.91 | L132: 0.98 | M132: 0.77 | N132: 1.4 | O132: 8.16 | P132: 29.51 | Q132: =SUM(E132:P132) -> 143.83
A134: =A132+1 -> 8 | B134: =Input!A27 -> LG2 | C134: ='Sch M 2.1'!B26 -> LG&E Commercial
A135: =A134+1 -> 9 | C135: Bills | E135: =E545 -> 0 | F135: 0 | G135: 0 | H135: 0 | I135: 0 | J135: 0 | K135: 0 | L135: 0 | M135: 0 | N135: 0 | O135: 0 | P135: 0 | Q135: =SUM(E135:P135) -> 0
A136: =A135+1 -> 10 | C136: Volumes [1] | E136: =E548 -> 0 | F136: 0 | G136: 0 | H136: 0 | I136: 0 | J136: 0 | K136: 0 | L136: 0 | M136: 0 | N136: 0 | O136: 0 | P136: 0 | Q136: =SUM(E136:P136) -> 0
A137: =A136+1 -> 11 | C137: Revenue Less Gas Cost | E137: =E551 -> 0 | F137: 0 | G137: 0 | H137: 0 | I137: 0 | J137: 0 | K137: 0 | L137: 0 | M137: 0 | N137: 0 | O137: 0 | P137: 0 | Q137: =SUM(E137:P137) -> 0
A138: =A137+1 -> 12 | C138: Gas Cost | E138: =E553 -> 0 | F138: 0 | G138: 0 | H138: 0 | I138: 0 | J138: 0 | K138: 0 | L138: 0 | M138: 0 | N138: 0 | O138: 0 | P138: 0 | Q138: =SUM(E138:P138) -> 0
A139: =A138+1 -> 13 | C139: Total Revenue [2] | E139: =E555 -> 0 | F139: 0 | G139: 0 | H139: 0 | I139: 0 | J139: 0 | K139: 0 | L139: 0 | M139: 0 | N139: 0 | O139: 0 | P139: 0 | Q139: =SUM(E139:P139) -> 0
A141: =A139+1 -> 14 | B141: =Input!A28 -> LG3 | C141: ='Sch M 2.1'!B27 -> LG&E Residential
A142: =A141+1 -> 15 | C142: Bills | E142: =E578 -> 1 | F142: 1 | G142: 1 | H142: 1 | I142: 1 | J142: 1 | K142: 1 | L142: 1 | M142: 1 | N142: 1 | O142: 1 | P142: 1 | Q142: =SUM(E142:P142) -> 12
A143: =A142+1 -> 16 | C143: Volumes [1] | E143: =E584 -> 95.8 | F143: 68.3 | G143: 38 | H143: 31 | I143: 13.1 | J143: 10.6 | K143: 10 | L143: 9.5 | M143: 9.9 | N143: 21.3 | O143: 40.1 | P143: 68.7 | Q143: =SUM(E143:P143) -> 416.3
A144: =A143+1 -> 17 | C144: Revenue Less Gas Cost | E144: =E590 -> 34.03 | F144: 24.41 | G144: 13.8 | H144: 11.35 | I144: 5.09 | J144: 4.07 | K144: 4 | L144: 3.83 | M144: 3.97 | N144: =N590 -> 7.96 | O144: 14.54 | P144: 24.55 | Q144: =SUM(E144:P144) -> 151.6
A145: =A144+1 -> 18 | C145: Gas Cost | E145: =E592 -> 0 | F145: 0 | G145: 0 | H145: 0 | I145: 0 | J145: 0 | K145: 0 | L145: 0 | M145: 0 | N145: 0 | O145: 0 | P145: 0 | Q145: =SUM(E145:P145) -> 0
A146: =A145+1 -> 19 | C146: Total Revenue [2] | E146: =E594 -> 34.03 | F146: 24.41 | G146: 13.8 | H146: 11.35 | I146: 5.09 | J146: 4.07 | K146: 4 | L146: 3.83 | M146: 3.97 | N146: 7.96 | O146: 14.54 | P146: 24.55 | Q146: =SUM(E146:P146) -> 151.6
A148: =A146+1 -> 20 | B148: =Input!A29 -> LG4 | C148: ='Sch M 2.1'!B28 -> LG&E Residential
A149: =A148+1 -> 21 | C149: Bills | E149: =E600 -> 0 | F149: 0 | G149: 0 | H149: 0 | I149: 0 | J149: 0 | K149: 0 | L149: 0 | M149: 0 | N149: 0 | O149: 0 | P149: 0 | Q149: =SUM(E149:P149) -> 0
A150: =A149+1 -> 22 | C150: Volumes [1] | E150: =E603 -> 0 | F150: 0 | G150: 0 | H150: 0 | I150: 0 | J150: 0 | K150: 0 | L150: 0 | M150: 0 | N150: 0 | O150: 0 | P150: 0 | Q150: =SUM(E150:P150) -> 0
A151: =A150+1 -> 23 | C151: Revenue Less Gas Cost | E151: =E606 -> 0 | F151: 0 | G151: 0 | H151: 0 | I151: 0 | J151: 0 | K151: 0 | L151: 0 | M151: 0 | N151: 0 | O151: 0 | P151: 0 | Q151: =SUM(E151:P151) -> 0
A152: =A151+1 -> 24 | C152: Gas Cost | E152: =E608 -> 0 | F152: 0 | G152: 0 | H152: 0 | I152: 0 | J152: 0 | K152: 0 | L152: 0 | M152: 0 | N152: 0 | O152: 0 | P152: 0 | Q152: =SUM(E152:P152) -> 0
A153: =A152+1 -> 25 | C153: Total Revenue [2] | E153: =E610 -> 0 | F153: 0 | G153: 0 | H153: 0 | I153: 0 | J153: 0 | K153: 0 | L153: 0 | M153: 0 | N153: 0 | O153: 0 | P153: 0 | Q153: =SUM(E153:P153) -> 0
A155: =A153+1 -> 26 | B155: =Input!A30 -> GSO | C155: ='Sch M 2.1'!B29 -> General Service - Commercial
A156: =A155+1 -> 27 | C156: Bills | E156: =E633 -> 12259 | F156: 12323 | G156: 12346 | H156: 12339 | I156: 12284 | J156: 12155 | K156: 12013 | L156: 11999 | M156: 11918 | N156: 11902 | O156: 12109 | P156: 12279 | Q156: =SUM(E156:P156) -> 145926
A157: =A156+1 -> 28 | C157: Volumes [1] | E157: =E641 -> 809616.8 | F157: 800776.3 | G157: 594307.5 | H157: 383921.9 | I157: 216993.8 | J157: 152752 | K157: 123116.2 | L157: 130648.3 | M157: 128433.3 | N157: 168727.9 | O157: 300582.7 | P157: 609356.4 | Q157: =SUM(E157:P157) -> 4419233.1
A158: =A157+1 -> 29 | C158: Revenue Less Gas Cost | E158: =E651+E659 -> 4514488.43 | F158: 4501632.4 | G158: 3832905.82 | H158: 3126201.2 | I158: 2533305.77 | J158: 2292507.83 | K158: 2172136.84 | L158: 2192769.58 | M158: 2175998.23 | N158: 2304572.12 | O158: 2807799.5 | P158: 3874918.24 | Q158: =SUM(E158:P158) -> 36329235.96
A159: =A158+1 -> 30 | C159: Gas Cost | E159: =E653 -> 5481510.54 | F159: 5421655.94 | G159: 4023758.93 | H159: 2599343.22 | I159: 1469156.52 | J159: 1034207.42 | K159: 833558.23 | L159: 884554.32 | M159: 869557.66 | N159: 1142372.25 | O159: 2035095.17 | P159: 4125647.51 | Q159: =SUM(E159:P159) -> 29920417.71
A160: =A159+1 -> 31 | C160: Total Revenue [2] | E160: =E661 -> 9995998.97 | F160: 9923288.34 | G160: 7856664.75 | H160: 5725544.42 | I160: 4002462.29 | J160: 3326715.25 | K160: 3005695.07 | L160: 3077323.9 | M160: 3045555.89 | N160: 3446944.37 | O160: 4842894.67 | P160: 8000565.75 | Q160: =SUM(E160:P160) -> 66249653.67
A163: =$A$108 -> [1] Reflects Normalized Volumes.
A164: =$A$109 -> [2] See Schedule M-2.3 Pages 8 through 20 for detail.
A165: =CONAME -> Columbia Gas of Kentucky, Inc.
A166: =case -> Case No. 2026-00099
A167: Annualized Test Year Revenues at Proposed Rates
A168: =TYDESC -> For the 12 Months Ended December 31, 2027
A169: (Gas Service)
A170: =$A$53 -> Data: __ Base Period _X_ Forecasted Period
A171: =$A$54 -> Type of Filing: X Original _ Update _ Revised | Q171: =$Q$54 -> Schedule M-2.3
A172: =$A$55 -> Work Paper Reference No(s): | Q172: Page 4 of 20
A173: =$A$56 -> 12 Months Forecasted | Q173: =Witness -> Witness: J. C. Wozniak
A174: Proposed Annualized
A176: Line | B176: Rate | C176: Class/ | D176: Proposed
A177: No. | B177: Code | C177: Description | D177: Rates | E177: =B!$D$11 -> Jan-27 | F177: =B!$E$11 -> Feb-27 | G177: =B!$F$11 -> Mar-27 | H177: =B!$G$11 -> Apr-27 | I177: =B!$H$11 -> May-27 | J177: =B!$I$11 -> Jun-27 | K177: =B!$J$11 -> Jul-27 | L177: =B!$K$11 -> Aug-27 | M177: =B!$L$11 -> Sep-27 | N177: =B!$M$11 -> Oct-27 | O177: =B!$N$11 -> Nov-27 | P177: =B!$O$11 -> Dec-27 | Q177: Total
B178: (A) | C178: (B) | D178: (C) | E178: (D) | F178: (E) | G178: (F) | H178: (G) | I178: (H) | J178: (I) | K178: (J) | L178: (K) | M178: (L) | N178: (M) | O178: (N) | P178: (O) | Q178: (P)
A180: 1 | C180: Sales Service
A182: =A180+1 -> 2 | B182: =Input!A31 -> GSO | C182: ='Sch M 2.1'!B30 -> General Service - Industrial
A183: =A182+1 -> 3 | C183: Bills | E183: =E686 -> 50 | F183: 50 | G183: 50 | H183: 52 | I183: 50 | J183: 50 | K183: 48 | L183: 50 | M183: 50 | N183: 50 | O183: 51 | P183: 50 | Q183: =SUM(E183:P183) -> 601
A184: =A183+1 -> 4 | C184: Volumes [1] | E184: =E694 -> 32462.3 | F184: 31230 | G184: 27627 | H184: 25457.9 | I184: 20992 | J184: 18363.9 | K184: 12873 | L184: 14733.3 | M184: 13970.3 | N184: 15556.9 | O184: 23447.8 | P184: 31351.9 | Q184: =SUM(E184:P184) -> 268066.3
A185: =A184+1 -> 5 | C185: Revenue Less Gas Cost | E185: =E704+E712 -> 102041.39 | F185: 98714.47 | G185: 88944.04 | H185: 82736.53 | I185: 68464.17 | J185: 60169.21 | K185: 44721.65 | L185: 49986.75 | M185: 48152.05 | N185: 52803.18 | O185: 76509.11 | P185: 99188.58 | Q185: =SUM(E185:P185) -> 872431.13
A186: =A185+1 -> 6 | C186: Gas Cost | E186: =E706 -> 219786 | F186: 211442.72 | G186: 187048.6 | H186: 172362.71 | I186: 142126.34 | J186: 124332.78 | K186: 87156.65 | L186: 99751.81 | M186: 94585.92 | N186: 105327.99 | O186: 158753.33 | P186: 212268.04 | Q186: =SUM(E186:P186) -> 1814942.89
A187: =A186+1 -> 7 | C187: Total Revenue [2] | E187: =E714 -> 321827.39 | F187: 310157.19 | G187: 275992.64 | H187: 255099.24 | I187: 210590.51 | J187: 184501.99 | K187: 131878.3 | L187: 149738.56 | M187: 142737.97 | N187: 158131.17 | O187: 235262.44 | P187: 311456.62 | Q187: =SUM(E187:P187) -> 2687374.02
A189: =A187+1 -> 8 | B189: =Input!A36 -> IS | C189: ='Sch M 2.1'!B31 -> Interruptible Service - Industrial
A190: =A189+1 -> 9 | C190: Bills | E190: =E738 -> 0 | F190: 0 | G190: 0 | H190: 0 | I190: 0 | J190: 0 | K190: 0 | L190: 0 | M190: 0 | N190: 0 | O190: 0 | P190: 0 | Q190: =SUM(E190:P190) -> 0
A191: =A190+1 -> 10 | C191: Volumes [1] | E191: =E745 -> 0 | F191: 0 | G191: 0 | H191: 0 | I191: 0 | J191: 0 | K191: 0 | L191: 0 | M191: 0 | N191: 0 | O191: 0 | P191: 0 | Q191: =SUM(E191:P191) -> 0
A192: =A191+1 -> 11 | C192: Revenue Less Gas Cost | E192: =E754+E762 -> 0 | F192: 0 | G192: 0 | H192: 0 | I192: 0 | J192: 0 | K192: 0 | L192: 0 | M192: 0 | N192: 0 | O192: 0 | P192: 0 | Q192: =SUM(E192:P192) -> 0
A193: =A192+1 -> 12 | C193: Gas Cost | E193: =E756 -> 0 | F193: 0 | G193: 0 | H193: 0 | I193: 0 | J193: 0 | K193: 0 | L193: 0 | M193: 0 | N193: 0 | O193: 0 | P193: 0 | Q193: =SUM(E193:P193) -> 0
A194: =A193+1 -> 13 | C194: Total Revenue [2] | E194: =E764 -> 0 | F194: 0 | G194: 0 | H194: 0 | I194: 0 | J194: 0 | K194: 0 | L194: 0 | M194: 0 | N194: 0 | O194: 0 | P194: 0 | Q194: =SUM(E194:P194) -> 0
A196: =A194+1 -> 14 | B196: =Input!A37 -> IUS | C196: ='Sch M 2.1'!B32 -> Intrastate Utility Service - Wholesale
A197: =A196+1 -> 15 | C197: Bills | E197: =E771 -> 2 | F197: 2 | G197: 2 | H197: 2 | I197: 2 | J197: 2 | K197: 2 | L197: 2 | M197: 2 | N197: 2 | O197: 2 | P197: 2 | Q197: =SUM(E197:P197) -> 24
A198: =A197+1 -> 16 | C198: Volumes [1] | E198: =E774 -> 1737 | F198: 2033 | G198: 1295 | H198: 576 | I198: 412 | J198: 320 | K198: 248 | L198: 259 | M198: 310 | N198: 470 | O198: 950 | P198: 1991 | Q198: =SUM(E198:P198) -> 10601
A199: =A198+1 -> 17 | C199: Revenue Less Gas Cost | E199: =E779+E787 -> 4774.34 | F199: 5052.85 | G199: 4358.47 | H199: 3681.95 | I199: 3527.65 | J199: 3441.09 | K199: 3373.34 | L199: 3383.69 | M199: 3431.68 | N199: 3582.23 | O199: 4033.86 | P199: 5012.96 | Q199: =SUM(E199:P199) -> 47654.11
A200: =A199+1 -> 18 | C200: Gas Cost | E200: =E781 -> 11760.36 | F200: 13764.43 | G200: 8767.8 | H200: 3899.81 | I200: 2789.45 | J200: 2166.56 | K200: 1679.08 | L200: 1753.56 | M200: 2098.86 | N200: 3182.14 | O200: 6431.98 | P200: 13480.07 | Q200: =SUM(E200:P200) -> 71774.1
A201: =A200+1 -> 19 | C201: Total Revenue [2] | E201: =E789 -> 16534.7 | F201: 18817.28 | G201: 13126.27 | H201: 7581.76 | I201: 6317.1 | J201: 5607.65 | K201: 5052.42 | L201: 5137.25 | M201: 5530.54 | N201: 6764.37 | O201: 10465.84 | P201: 18493.03 | Q201: =SUM(E201:P201) -> 119428.21
A204: =$A$108 -> [1] Reflects Normalized Volumes.
A205: =$A$109 -> [2] See Schedule M-2.3 Pages 8 through 20 for detail.
A206: =CONAME -> Columbia Gas of Kentucky, Inc.
A207: =case -> Case No. 2026-00099
A208: Annualized Test Year Revenues at Proposed Rates
A209: =TYDESC -> For the 12 Months Ended December 31, 2027
A210: (Gas Service)
A211: =$A$53 -> Data: __ Base Period _X_ Forecasted Period
A212: =$A$54 -> Type of Filing: X Original _ Update _ Revised | Q212: =$Q$54 -> Schedule M-2.3
A213: =$A$55 -> Work Paper Reference No(s): | Q213: Page 5 of 20
A214: =$A$56 -> 12 Months Forecasted | Q214: =Witness -> Witness: J. C. Wozniak
A215: Proposed Annualized
A217: Line | B217: Rate | C217: Class/ | D217: Proposed
A218: No. | B218: Code | C218: Description | D218: Rates | E218: =B!$D$11 -> Jan-27 | F218: =B!$E$11 -> Feb-27 | G218: =B!$F$11 -> Mar-27 | H218: =B!$G$11 -> Apr-27 | I218: =B!$H$11 -> May-27 | J218: =B!$I$11 -> Jun-27 | K218: =B!$J$11 -> Jul-27 | L218: =B!$K$11 -> Aug-27 | M218: =B!$L$11 -> Sep-27 | N218: =B!$M$11 -> Oct-27 | O218: =B!$N$11 -> Nov-27 | P218: =B!$O$11 -> Dec-27 | Q218: Total
B219: (A) | C219: (B) | D219: (C) | E219: (D) | F219: (E) | G219: (F) | H219: (G) | I219: (H) | J219: (I) | K219: (J) | L219: (K) | M219: (L) | N219: (M) | O219: (N) | P219: (O) | Q219: (P)
A221: 1 | C221: Transportation Service
A223: =A221+1 -> 2 | B223: =Input!A41 -> GTR | C223: ='Sch M 2.1'!B36 -> GTS Choice - Residential
A224: =A223+1 -> 3 | C224: Bills | E224: =E815 -> 10067 | F224: 10082 | G224: 10096 | H224: 10088 | I224: 10084 | J224: 10089 | K224: 10088 | L224: 10098 | M224: 10085 | N224: 10089 | O224: 10088 | P224: 10084 | Q224: =SUM(E224:P224) -> 121038
A225: =A224+1 -> 4 | C225: Volumes [1] | E225: =E818 -> 149336.7 | F225: 143923.5 | G225: 110860.6 | H225: 68262.7 | I225: 30289.8 | J225: 14748.6 | K225: 8535.4 | L225: 8539.5 | M225: 8611.3 | N225: 16362.3 | O225: 46480.2 | P225: 111402.2 | Q225: =SUM(E225:P225) -> 717352.8
A226: =A225+1 -> 5 | C226: Revenue Less Gas Cost | E226: =E823+E832 -> 1362743.37 | F226: 1325643.99 | G226: 1096534.84 | H226: 800510.14 | I226: 536727.22 | J226: 428983.41 | K226: 385811.55 | L226: 386163.72 | M226: 386241.43 | N226: 440187.65 | O226: 649269.88 | P226: 1099906.84 | Q226: =SUM(E226:P226) -> 8898724.04
A227: =A226+1 -> 6 | C227: Gas Cost | E227: =E825 -> 0 | F227: 0 | G227: 0 | H227: 0 | I227: 0 | J227: 0 | K227: 0 | L227: 0 | M227: 0 | N227: 0 | O227: 0 | P227: 0 | Q227: =SUM(E227:P227) -> 0
A228: =A227+1 -> 7 | C228: Total Revenue [2] | E228: =E834 -> 1362743.37 | F228: 1325643.99 | G228: 1096534.84 | H228: 800510.14 | I228: 536727.22 | J228: 428983.41 | K228: 385811.55 | L228: 386163.72 | M228: 386241.43 | N228: 440187.65 | O228: 649269.88 | P228: 1099906.84 | Q228: =SUM(E228:P228) -> 8898724.04
A230: =A228+1 -> 8 | B230: =Input!A42 -> GTO | C230: ='Sch M 2.1'!B37 -> GTS Choice - Commercial
A231: =A230+1 -> 9 | C231: Bills | E231: =E841 -> 1749 | F231: 1736 | G231: 1731 | H231: 1727 | I231: 1731 | J231: 1728 | K231: 1720 | L231: 1720 | M231: 1704 | N231: 1705 | O231: 1683 | P231: 1681 | Q231: =SUM(E231:P231) -> 20615
A232: =A231+1 -> 10 | C232: Volumes [1] | E232: =E849 -> 196518.3 | F232: 181767.5 | G232: 142380.7 | H232: 92909.3 | I232: 55266 | J232: 38853.1 | K232: 34467.9 | L232: 26135.1 | M232: 34721.9 | N232: 40285.5 | O232: 75449 | P232: 144919 | Q232: =SUM(E232:P232) -> 1063673.3
A233: =A232+1 -> 11 | C233: Revenue Less Gas Cost | E233: =E859 -> 893503.6 | F233: =F859 -> 848298.18 | G233: 724001.4 | H233: 563483.5 | I233: 437586.97 | J233: 381614.22 | K233: 365714.14 | L233: 339247.84 | M233: 364208.15 | N233: 382263.83 | O233: 500102.93 | P233: 724234.32 | Q233: =SUM(E233:P233) -> 6524259.08
A234: =A233+1 -> 12 | C234: Gas Cost | E234: =E861 -> 0 | F234: 0 | G234: 0 | H234: 0 | I234: 0 | J234: 0 | K234: 0 | L234: 0 | M234: 0 | N234: 0 | O234: 0 | P234: 0 | Q234: =SUM(E234:P234) -> 0
A235: =A234+1 -> 13 | C235: Total Revenue [2] | E235: =E863 -> 893503.6 | F235: 848298.18 | G235: 724001.4 | H235: 563483.5 | I235: 437586.97 | J235: 381614.22 | K235: 365714.14 | L235: 339247.84 | M235: 364208.15 | N235: 382263.83 | O235: 500102.93 | P235: 724234.32 | Q235: =SUM(E235:P235) -> 6524259.08
A237: =A235+1 -> 14 | B237: =Input!A43 -> GTO | C237: ='Sch M 2.1'!B38 -> GTS Choice - Industrial
A238: =A237+1 -> 15 | C238: Bills | E238: =E886 -> 14 | F238: 14 | G238: 14 | H238: 14 | I238: 14 | J238: 14 | K238: 14 | L238: 13 | M238: 13 | N238: 13 | O238: 13 | P238: 13 | Q238: =SUM(E238:P238) -> 163
A239: =A238+1 -> 16 | C239: Volumes [1] | E239: =E894 -> 10236.3 | F239: 9957.1 | G239: 8529 | H239: 8033 | I239: 5250 | J239: 3491.9 | K239: 2540.8 | L239: 2631 | M239: 2575.9 | N239: 4078 | O239: 7077.9 | P239: 10999.2 | Q239: =SUM(E239:P239) -> 75400.1
A240: =A239+1 -> 17 | C240: Revenue Less Gas Cost | E240: =E904 -> 32079.54 | F240: =F904 -> 31450.53 | G240: 27757.39 | H240: 26282.53 | I240: 18131.87 | J240: 12961.4 | K240: 9946.72 | L240: 10063.31 | M240: 10031.82 | N240: 14447.41 | O240: 22957.02 | P240: 33710.02 | Q240: =SUM(E240:P240) -> 249819.56
A241: =A240+1 -> 18 | C241: Gas Cost | E241: =E906 -> 0 | F241: 0 | G241: 0 | H241: 0 | I241: 0 | J241: 0 | K241: 0 | L241: 0 | M241: 0 | N241: 0 | O241: 0 | P241: 0 | Q241: =SUM(E241:P241) -> 0
A242: =A241+1 -> 19 | C242: Total Revenue [2] | E242: =E908 -> 32079.54 | F242: 31450.53 | G242: 27757.39 | H242: 26282.53 | I242: 18131.87 | J242: 12961.4 | K242: 9946.72 | L242: 10063.31 | M242: 10031.82 | N242: 14447.41 | O242: 22957.02 | P242: 33710.02 | Q242: =SUM(E242:P242) -> 249819.56
A244: =A242+1 -> 20 | B244: =Input!A44 -> DS | C244: ='Sch M 2.1'!B39 -> GTS Delivery Service - Commercial
A245: =A244+1 -> 21 | C245: Bills | E245: =E931 -> 22 | F245: 22 | G245: 22 | H245: 24 | I245: 22 | J245: 24 | K245: 22 | L245: 22 | M245: 22 | N245: 22 | O245: 22 | P245: 22 | Q245: =SUM(E245:P245) -> 268
A246: =A245+1 -> 22 | C246: Volumes [1] | E246: =E938 -> 379752.7 | F246: 320398.8 | G246: 297776.2 | H246: 234622 | I246: 195433.5 | J246: 164680.8 | K246: 165823.6 | L246: 168779 | M246: 171913.5 | N246: 216377.6 | O246: 278292.5 | P246: 321976.3 | Q246: =SUM(E246:P246) -> 2915826.5
A247: =A246+1 -> 23 | C247: Revenue Less Gas Cost | E247: =E947 -> 439014.01 | F247: =F947 -> 405767.67 | G247: 390781.09 | H247: 366006.19 | I247: 325586.21 | J247: 322916.97 | K247: 306622.42 | L247: 308624.22 | M247: 310739.66 | N247: 338292.49 | O247: 376943.37 | P247: 406491.38 | Q247: =SUM(E247:P247) -> 4297785.68
... 650 more rows
